Workbook

Sheet טיימר עבודות
BJ1: שעת התחלה 1 | BL1: שעון
BK2: עבודות | BL2: =CONCATENATE(IF(TEXT(NOW(),"DDDD")="שבת","מוצאי שבת",TEXT(NOW(),"DDDD")),CHAR(10),TEXT(NOW(),"dd/mm/yyyy"),CHAR(10),TEXT(NOW(),"hh:mm:ss")) -> יום רביעי 22/01/2025 17:57:25
Q3: =" יומי: " & TEXT(TODAY(),"dd/mm/yyyy") -> יומי: 22/01/2025 | U3: =" שבועי: שבוע " & TEXT(WEEKNUM(TODAY()),0)& " (" & YEAR(TODAY())& ")" -> שבועי: שבוע 4 (2025) | Y3: =" חודשי: חודש " & TEXT(MONTH(TODAY()),0) & " (" & YEAR(TODAY())& ")" -> חודשי: חודש 1 (2025) | AC3: סך הכל | AG3: יעד דינמי | AL3: שמות העבודות | AM3: שכר לשעה | AN3: מטבע | AO3: שעות | AP3: שכר בשקלים | AQ3: שכר בדולרים | AR3: חיובים נוספים | AS3: זיכויים / שולם | AT3: לתשלום | AU3: הערות | BJ3: שעת התחלה 2 | BK3: כל העבודות
Q4: עבודה | R4: כל העבודות | U4: עבודה | V4: כל העבודות | Y4: עבודה | Z4: כל העבודות | AC4: עבודה | AD4: כל העבודות | AG4: התחלה | AH4: 2024-07-23 | AL4: הקלדה | AM4: 50 | AO4: =IF(AL4="","", IFERROR(IF(SUMIFS(טבלה1[שעות],טבלה1[שם העבודה],טבלה2[[#This Row],[שמות העבודות]])=0,"", SUMIFS(טבלה1[שעות],טבלה1[שם העבודה],טבלה2[[#This Row],[שמות העבודות]])),"")) -> 1.556689815 | AP4: =IFERROR(IF(OR(טבלה2[[#This Row],[שכר לשעה]]="",טבלה2[[#This Row],[שעות]]=""),"",IF( IF(OR(טבלה2[[#This Row],[מטבע]]="₪",AND(מטבע="שקלים",טבלה2[[#This Row],[מטבע]]="")), טבלה2[[#This Row],[שכר לשעה]]*טבלה2[[#This Row],[שעות]]*24, IF(OR(טבלה2[[#This Row],[מטבע]]="$",AND(מטבע="דולרים",טבלה2[[#This Row],[מטבע]]="")), טבלה2[[#This Row],[שכר לשעה]]*טבלה2[[#This Row],[שעות]]*24*שער,""))=0,"", IF(OR(טבלה2[[#This Row],[מטבע]]="₪",AND(מטבע="שקלים",טבלה2[[#This Row],[מטבע]]="")), טבלה2[[#This Row],[שכר לשעה]]*טבלה2[[#This Row],[שעות]]*24, IF(OR(טבלה2[[#This Row],[מטבע]]="$",AND(מטבע="דולרים",טבלה2[[#This Row],[מטבע]]="")), טבלה2[[#This Row],[שכר לשעה]]*טבלה2[[#This Row],[שעות]]*24*שער,"")))),"") -> 1868.027778 | AQ4: =IFERROR(IF(OR(טבלה2[[#This Row],[שכר לשעה]]="",טבלה2[[#This Row],[שעות]]=""),"",IF( IF(OR(טבלה2[[#This Row],[מטבע]]="$",AND(מטבע="דולרים",טבלה2[[#This Row],[מטבע]]="")), טבלה2[[#This Row],[שכר לשעה]]*טבלה2[[#This Row],[שעות]]*24, IF(OR(טבלה2[[#This Row],[מטבע]]="₪",AND(מטבע="שקלים",טבלה2[[#This Row],[מטבע]]="")), טבלה2[[#This Row],[שכר לשעה]]*טבלה2[[#This Row],[שעות]]*24/שער,""))=0,"", IF(OR(טבלה2[[#This Row],[מטבע]]="$",AND(מטבע="דולרים",טבלה2[[#This Row],[מטבע]]="")), טבלה2[[#This Row],[שכר לשעה]]*טבלה2[[#This Row],[שעות]]*24, IF(OR(טבלה2[[#This Row],[מטבע]]="₪",AND(מטבע="שקלים",טבלה2[[#This Row],[מטבע]]="")), טבלה2[[#This Row],[שכר לשעה]]*טבלה2[[#This Row],[שעות]]*24/שער,"")))),"") -> 488.5009879 | AR4: 50 | AT4: =IF(OR(טבלה2[[#This Row],[שכר לשעה]]="",טבלה2[[#This Row],[שעות]]=""),"",IF( IF(OR(טבלה2[[#This Row],[מטבע]]="₪",AND(מטבע="שקלים",טבלה2[[#This Row],[מטבע]]="")),טבלה2[[#This Row],[שכר בשקלים]]+טבלה2[[#This Row],[חיובים נוספים]]-טבלה2[[#This Row],[זיכויים / שולם]], IF(OR(טבלה2[[#This Row],[מטבע]]="$",AND(מטבע="דולרים",טבלה2[[#This Row],[מטבע]]="")),טבלה2[[#This Row],[שכר בדולרים]]+טבלה2[[#This Row],[חיובים נוספים]]-טבלה2[[#This Row],[זיכויים / שולם]],""))=0,"", IF(OR(טבלה2[[#This Row],[מטבע]]="₪",AND(מטבע="שקלים",טבלה2[[#This Row],[מטבע]]="")),טבלה2[[#This Row],[שכר בשקלים]]+טבלה2[[#This Row],[חיובים נוספים]]-טבלה2[[#This Row],[זיכויים / שולם]], IF(OR(טבלה2[[#This Row],[מטבע]]="$",AND(מטבע="דולרים",טבלה2[[#This Row],[מטבע]]="")),טבלה2[[#This Row],[שכר בדולרים]]+טבלה2[[#This Row],[חיובים נוספים]]-טבלה2[[#This Row],[זיכויים / שולם]],"")))) -> 1918.027778 | BJ4: =IF(OR(שעת_התחלה="",שעת_התחלה=0),0,שעת_התחלה) -> 0 | BK4: =IF(טבלה2[[#This Row],[שמות העבודות]]="","",טבלה2[[#This Row],[שמות העבודות]]) -> הקלדה
Q5: שעות | R5: =IF(SUMIFS(טבלה1[שעות],טבלה1[תאריך],"="&(TODAY()),טבלה1[שם העבודה],IF(R4="כל העבודות","<>""",R4))=0,"", SUMIFS(טבלה1[שעות],טבלה1[תאריך],"="&(TODAY()),טבלה1[שם העבודה],IF(R4="כל העבודות","<>""",R4))) ->  | U5: שעות | V5: =IF(SUMIFS(טבלה1[שעות],טבלה1[תאריך],">="&(TODAY())-WEEKDAY(TODAY())+1,טבלה1[תאריך],"<="&(TODAY())-WEEKDAY(TODAY())+7,טבלה1[שם העבודה],IF(V4="כל העבודות","<>""",V4))=0,"", SUMIFS(טבלה1[שעות],טבלה1[תאריך],">="&(TODAY())-WEEKDAY(TODAY())+1,טבלה1[תאריך],"<="&(TODAY())-WEEKDAY(TODAY())+7,טבלה1[שם העבודה],IF(V4="כל העבודות","<>""",V4))) ->  | Y5: שעות | Z5: =IF(SUMIFS(טבלה1[שעות],טבלה1[תאריך], ">="&DATE(YEAR(TODAY()),MONTH(TODAY()),1),טבלה1[תאריך], "<="&EOMONTH(TODAY(),0),טבלה1[שם העבודה],IF(Z4="כל העבודות","<>""",Z4))=0,"", SUMIFS(טבלה1[שעות],טבלה1[תאריך], ">="&DATE(YEAR(TODAY()),MONTH(TODAY()),1),טבלה1[תאריך], "<="&EOMONTH(TODAY(),0),טבלה1[שם העבודה],IF(Z4="כל העבודות","<>""",Z4))) ->  | AC5: שעות | AD5: =IF(SUMIFS(טבלה1[שעות],טבלה1[שם העבודה],IF(AD4="כל העבודות","<>""",AD4))=0,"", SUMIFS(טבלה1[שעות],טבלה1[שם העבודה],IF(AD4="כל העבודות","<>""",AD4))) -> 8.10712419 | AG5: סוף | AH5: 2024-07-29 | AL5: עימוד | AM5: 60 | AO5: =IF(AL5="","", IFERROR(IF(SUMIFS(טבלה1[שעות],טבלה1[שם העבודה],טבלה2[[#This Row],[שמות העבודות]])=0,"", SUMIFS(טבלה1[שעות],טבלה1[שם העבודה],טבלה2[[#This Row],[שמות העבודות]])),"")) -> 1.997490278 | AP5: =IFERROR(IF(OR(טבלה2[[#This Row],[שכר לשעה]]="",טבלה2[[#This Row],[שעות]]=""),"",IF( IF(OR(טבלה2[[#This Row],[מטבע]]="₪",AND(מטבע="שקלים",טבלה2[[#This Row],[מטבע]]="")), טבלה2[[#This Row],[שכר לשעה]]*טבלה2[[#This Row],[שעות]]*24, IF(OR(טבלה2[[#This Row],[מטבע]]="$",AND(מטבע="דולרים",טבלה2[[#This Row],[מטבע]]="")), טבלה2[[#This Row],[שכר לשעה]]*טבלה2[[#This Row],[שעות]]*24*שער,""))=0,"", IF(OR(טבלה2[[#This Row],[מטבע]]="₪",AND(מטבע="שקלים",טבלה2[[#This Row],[מטבע]]="")), טבלה2[[#This Row],[שכר לשעה]]*טבלה2[[#This Row],[שעות]]*24, IF(OR(טבלה2[[#This Row],[מטבע]]="$",AND(מטבע="דולרים",טבלה2[[#This Row],[מטבע]]="")), טבלה2[[#This Row],[שכר לשעה]]*טבלה2[[#This Row],[שעות]]*24*שער,"")))),"") -> 2876.386 | AQ5: =IFERROR(IF(OR(טבלה2[[#This Row],[שכר לשעה]]="",טבלה2[[#This Row],[שעות]]=""),"",IF( IF(OR(טבלה2[[#This Row],[מטבע]]="$",AND(מטבע="דולרים",טבלה2[[#This Row],[מטבע]]="")), טבלה2[[#This Row],[שכר לשעה]]*טבלה2[[#This Row],[שעות]]*24, IF(OR(טבלה2[[#This Row],[מטבע]]="₪",AND(מטבע="שקלים",טבלה2[[#This Row],[מטבע]]="")), טבלה2[[#This Row],[שכר לשעה]]*טבלה2[[#This Row],[שעות]]*24/שער,""))=0,"", IF(OR(טבלה2[[#This Row],[מטבע]]="$",AND(מטבע="דולרים",טבלה2[[#This Row],[מטבע]]="")), טבלה2[[#This Row],[שכר לשעה]]*טבלה2[[#This Row],[שעות]]*24, IF(OR(טבלה2[[#This Row],[מטבע]]="₪",AND(מטבע="שקלים",טבלה2[[#This Row],[מטבע]]="")), טבלה2[[#This Row],[שכר לשעה]]*טבלה2[[#This Row],[שעות]]*24/שער,"")))),"") -> 752.1929916 | AT5: =IF(OR(טבלה2[[#This Row],[שכר לשעה]]="",טבלה2[[#This Row],[שעות]]=""),"",IF( IF(OR(טבלה2[[#This Row],[מטבע]]="₪",AND(מטבע="שקלים",טבלה2[[#This Row],[מטבע]]="")),טבלה2[[#This Row],[שכר בשקלים]]+טבלה2[[#This Row],[חיובים נוספים]]-טבלה2[[#This Row],[זיכויים / שולם]], IF(OR(טבלה2[[#This Row],[מטבע]]="$",AND(מטבע="דולרים",טבלה2[[#This Row],[מטבע]]="")),טבלה2[[#This Row],[שכר בדולרים]]+טבלה2[[#This Row],[חיובים נוספים]]-טבלה2[[#This Row],[זיכויים / שולם]],""))=0,"", IF(OR(טבלה2[[#This Row],[מטבע]]="₪",AND(מטבע="שקלים",טבלה2[[#This Row],[מטבע]]="")),טבלה2[[#This Row],[שכר בשקלים]]+טבלה2[[#This Row],[חיובים נוספים]]-טבלה2[[#This Row],[זיכויים / שולם]], IF(OR(טבלה2[[#This Row],[מטבע]]="$",AND(מטבע="דולרים",טבלה2[[#This Row],[מטבע]]="")),טבלה2[[#This Row],[שכר בדולרים]]+טבלה2[[#This Row],[חיובים נוספים]]-טבלה2[[#This Row],[זיכויים / שולם]],"")))) -> 2876.386 | BJ5: הפסקה1 | BK5: =IF(טבלה2[[#This Row],[שמות העבודות]]="","",טבלה2[[#This Row],[שמות העבודות]]) -> עימוד
Q6: שכר | R6: =IF(SUMIFS(טבלה1[שכר],טבלה1[תאריך],"="&(TODAY()),טבלה1[שם העבודה],IF(R4="כל העבודות","<>""",R4))=0,"", SUMIFS(טבלה1[שכר],טבלה1[תאריך],"="&(TODAY()),טבלה1[שם העבודה],IF(R4="כל העבודות","<>""",R4))) ->  | U6: שכר | V6: =IF(SUMIFS(טבלה1[שכר],טבלה1[תאריך],">="&(TODAY())-WEEKDAY(TODAY())+1,טבלה1[תאריך],"<="&(TODAY())-WEEKDAY(TODAY())+7,טבלה1[שם העבודה],IF(V4="כל העבודות","<>""",V4))=0,"", SUMIFS(טבלה1[שכר],טבלה1[תאריך],">="&(TODAY())-WEEKDAY(TODAY())+1,טבלה1[תאריך],"<="&(TODAY())-WEEKDAY(TODAY())+7,טבלה1[שם העבודה],IF(V4="כל העבודות","<>""",V4))) ->  | Y6: שכר | Z6: =IF(SUMIFS(טבלה1[שכר],טבלה1[תאריך], ">="&DATE(YEAR(TODAY()),MONTH(TODAY()),1),טבלה1[תאריך], "<="&EOMONTH(TODAY(),0),טבלה1[שם העבודה],IF(Z4="כל העבודות","<>""",Z4))=0,"", SUMIFS(טבלה1[שכר],טבלה1[תאריך], ">="&DATE(YEAR(TODAY()),MONTH(TODAY()),1),טבלה1[תאריך], "<="&EOMONTH(TODAY(),0),טבלה1[שם העבודה],IF(Z4="כל העבודות","<>""",Z4))) ->  | AC6: שכר | AD6: =IF(SUMIFS(טבלה1[שכר],טבלה1[שם העבודה],IF(AD4="כל העבודות","<>""",AD4))=0,"", SUMIFS(טבלה1[שכר],טבלה1[שם העבודה],IF(AD4="כל העבודות","<>""",AD4))) -> 11262.75708 | AG6: עבודה | AH6: כל העבודות | AL6: הגהה | AM6: 70 | AO6: =IF(AL6="","", IFERROR(IF(SUMIFS(טבלה1[שעות],טבלה1[שם העבודה],טבלה2[[#This Row],[שמות העבודות]])=0,"", SUMIFS(טבלה1[שעות],טבלה1[שם העבודה],טבלה2[[#This Row],[שמות העבודות]])),"")) -> 1.307874653 | AP6: =IFERROR(IF(OR(טבלה2[[#This Row],[שכר לשעה]]="",טבלה2[[#This Row],[שעות]]=""),"",IF( IF(OR(טבלה2[[#This Row],[מטבע]]="₪",AND(מטבע="שקלים",טבלה2[[#This Row],[מטבע]]="")), טבלה2[[#This Row],[שכר לשעה]]*טבלה2[[#This Row],[שעות]]*24, IF(OR(טבלה2[[#This Row],[מטבע]]="$",AND(מטבע="דולרים",טבלה2[[#This Row],[מטבע]]="")), טבלה2[[#This Row],[שכר לשעה]]*טבלה2[[#This Row],[שעות]]*24*שער,""))=0,"", IF(OR(טבלה2[[#This Row],[מטבע]]="₪",AND(מטבע="שקלים",טבלה2[[#This Row],[מטבע]]="")), טבלה2[[#This Row],[שכר לשעה]]*טבלה2[[#This Row],[שעות]]*24, IF(OR(טבלה2[[#This Row],[מטבע]]="$",AND(מטבע="דולרים",טבלה2[[#This Row],[מטבע]]="")), טבלה2[[#This Row],[שכר לשעה]]*טבלה2[[#This Row],[שעות]]*24*שער,"")))),"") -> 2197.229417 | AQ6: =IFERROR(IF(OR(טבלה2[[#This Row],[שכר לשעה]]="",טבלה2[[#This Row],[שעות]]=""),"",IF( IF(OR(טבלה2[[#This Row],[מטבע]]="$",AND(מטבע="דולרים",טבלה2[[#This Row],[מטבע]]="")), טבלה2[[#This Row],[שכר לשעה]]*טבלה2[[#This Row],[שעות]]*24, IF(OR(טבלה2[[#This Row],[מטבע]]="₪",AND(מטבע="שקלים",טבלה2[[#This Row],[מטבע]]="")), טבלה2[[#This Row],[שכר לשעה]]*טבלה2[[#This Row],[שעות]]*24/שער,""))=0,"", IF(OR(טבלה2[[#This Row],[מטבע]]="$",AND(מטבע="דולרים",טבלה2[[#This Row],[מטבע]]="")), טבלה2[[#This Row],[שכר לשעה]]*טבלה2[[#This Row],[שעות]]*24, IF(OR(טבלה2[[#This Row],[מטבע]]="₪",AND(מטבע="שקלים",טבלה2[[#This Row],[מטבע]]="")), טבלה2[[#This Row],[שכר לשעה]]*טבלה2[[#This Row],[שעות]]*24/שער,"")))),"") -> 574.5892826 | AT6: =IF(OR(טבלה2[[#This Row],[שכר לשעה]]="",טבלה2[[#This Row],[שעות]]=""),"",IF( IF(OR(טבלה2[[#This Row],[מטבע]]="₪",AND(מטבע="שקלים",טבלה2[[#This Row],[מטבע]]="")),טבלה2[[#This Row],[שכר בשקלים]]+טבלה2[[#This Row],[חיובים נוספים]]-טבלה2[[#This Row],[זיכויים / שולם]], IF(OR(טבלה2[[#This Row],[מטבע]]="$",AND(מטבע="דולרים",טבלה2[[#This Row],[מטבע]]="")),טבלה2[[#This Row],[שכר בדולרים]]+טבלה2[[#This Row],[חיובים נוספים]]-טבלה2[[#This Row],[זיכויים / שולם]],""))=0,"", IF(OR(טבלה2[[#This Row],[מטבע]]="₪",AND(מטבע="שקלים",טבלה2[[#This Row],[מטבע]]="")),טבלה2[[#This Row],[שכר בשקלים]]+טבלה2[[#This Row],[חיובים נוספים]]-טבלה2[[#This Row],[זיכויים / שולם]], IF(OR(טבלה2[[#This Row],[מטבע]]="$",AND(מטבע="דולרים",טבלה2[[#This Row],[מטבע]]="")),טבלה2[[#This Row],[שכר בדולרים]]+טבלה2[[#This Row],[חיובים נוספים]]-טבלה2[[#This Row],[זיכויים / שולם]],"")))) -> 2197.229417 | BK6: =IF(טבלה2[[#This Row],[שמות העבודות]]="","",טבלה2[[#This Row],[שמות העבודות]]) -> הגהה
Q7: אחוזים | R7: =IF(OR(R8="",R6=""),"", IF(R6>=R8,"הגעת ליעד!",R6 /R8)) ->  | U7: אחוזים | V7: =IF(OR(V8="",V6=""),"", IF(V6>=V8,"הגעת ליעד!",V6 /V8)) ->  | Y7: אחוזים | Z7: =IF(OR(Z8="",Z6=""),"", IF(Z6>=Z8,"הגעת ליעד!",Z6 /Z8)) ->  | AC7: אחוזים | AD7: =IF(OR(AD8="",AD6=""),"", IF(AD6>=AD8,"הגעת ליעד!",AD6 /AD8)) -> הגעת ליעד! | AG7: שעות | AH7: =IF(SUMIFS(טבלה1[שעות],טבלה1[תאריך],">="&AH4,טבלה1[תאריך],"<"&AH5,טבלה1[שם העבודה],IF(AH6="כל העבודות","<>""",AH6))=0,"", SUMIFS(טבלה1[שעות],טבלה1[תאריך],">="&AH4,טבלה1[תאריך],"<"&AH5,טבלה1[שם העבודה],IF(AH6="כל העבודות","<>""",AH6))) ->  | AL7: מכון תורה אור | AM7: 65 | AO7: =IF(AL7="","", IFERROR(IF(SUMIFS(טבלה1[שעות],טבלה1[שם העבודה],טבלה2[[#This Row],[שמות העבודות]])=0,"", SUMIFS(טבלה1[שעות],טבלה1[שם העבודה],טבלה2[[#This Row],[שמות העבודות]])),"")) -> 2.00974537 | AP7: =IFERROR(IF(OR(טבלה2[[#This Row],[שכר לשעה]]="",טבלה2[[#This Row],[שעות]]=""),"",IF( IF(OR(טבלה2[[#This Row],[מטבע]]="₪",AND(מטבע="שקלים",טבלה2[[#This Row],[מטבע]]="")), טבלה2[[#This Row],[שכר לשעה]]*טבלה2[[#This Row],[שעות]]*24, IF(OR(טבלה2[[#This Row],[מטבע]]="$",AND(מטבע="דולרים",טבלה2[[#This Row],[מטבע]]="")), טבלה2[[#This Row],[שכר לשעה]]*טבלה2[[#This Row],[שעות]]*24*שער,""))=0,"", IF(OR(טבלה2[[#This Row],[מטבע]]="₪",AND(מטבע="שקלים",טבלה2[[#This Row],[מטבע]]="")), טבלה2[[#This Row],[שכר לשעה]]*טבלה2[[#This Row],[שעות]]*24, IF(OR(טבלה2[[#This Row],[מטבע]]="$",AND(מטבע="דולרים",טבלה2[[#This Row],[מטבע]]="")), טבלה2[[#This Row],[שכר לשעה]]*טבלה2[[#This Row],[שעות]]*24*שער,"")))),"") -> 3135.202778 | AQ7: =IFERROR(IF(OR(טבלה2[[#This Row],[שכר לשעה]]="",טבלה2[[#This Row],[שעות]]=""),"",IF( IF(OR(טבלה2[[#This Row],[מטבע]]="$",AND(מטבע="דולרים",טבלה2[[#This Row],[מטבע]]="")), טבלה2[[#This Row],[שכר לשעה]]*טבלה2[[#This Row],[שעות]]*24, IF(OR(טבלה2[[#This Row],[מטבע]]="₪",AND(מטבע="שקלים",טבלה2[[#This Row],[מטבע]]="")), טבלה2[[#This Row],[שכר לשעה]]*טבלה2[[#This Row],[שעות]]*24/שער,""))=0,"", IF(OR(טבלה2[[#This Row],[מטבע]]="$",AND(מטבע="דולרים",טבלה2[[#This Row],[מטבע]]="")), טבלה2[[#This Row],[שכר לשעה]]*טבלה2[[#This Row],[שעות]]*24, IF(OR(טבלה2[[#This Row],[מטבע]]="₪",AND(מטבע="שקלים",טבלה2[[#This Row],[מטבע]]="")), טבלה2[[#This Row],[שכר לשעה]]*טבלה2[[#This Row],[שעות]]*24/שער,"")))),"") -> 819.8752034 | AT7: =IF(OR(טבלה2[[#This Row],[שכר לשעה]]="",טבלה2[[#This Row],[שעות]]=""),"",IF( IF(OR(טבלה2[[#This Row],[מטבע]]="₪",AND(מטבע="שקלים",טבלה2[[#This Row],[מטבע]]="")),טבלה2[[#This Row],[שכר בשקלים]]+טבלה2[[#This Row],[חיובים נוספים]]-טבלה2[[#This Row],[זיכויים / שולם]], IF(OR(טבלה2[[#This Row],[מטבע]]="$",AND(מטבע="דולרים",טבלה2[[#This Row],[מטבע]]="")),טבלה2[[#This Row],[שכר בדולרים]]+טבלה2[[#This Row],[חיובים נוספים]]-טבלה2[[#This Row],[זיכויים / שולם]],""))=0,"", IF(OR(טבלה2[[#This Row],[מטבע]]="₪",AND(מטבע="שקלים",טבלה2[[#This Row],[מטבע]]="")),טבלה2[[#This Row],[שכר בשקלים]]+טבלה2[[#This Row],[חיובים נוספים]]-טבלה2[[#This Row],[זיכויים / שולם]], IF(OR(טבלה2[[#This Row],[מטבע]]="$",AND(מטבע="דולרים",טבלה2[[#This Row],[מטבע]]="")),טבלה2[[#This Row],[שכר בדולרים]]+טבלה2[[#This Row],[חיובים נוספים]]-טבלה2[[#This Row],[זיכויים / שולם]],"")))) -> 3135.202778 | BJ7: הפסקה2 | BK7: =IF(טבלה2[[#This Row],[שמות העבודות]]="","",טבלה2[[#This Row],[שמות העבודות]]) -> מכון תורה אור
C8: סה"כ | E8: שעות- | F8: =IF(SUBTOTAL(109,טבלה1[שעות])=0,"",SUBTOTAL(109,טבלה1[שעות])) -> 8.10712419 | I8: שכר- | J8: =IF(SUBTOTAL(109,טבלה1[שכר])=0,"",SUBTOTAL(109,טבלה1[שכר])) -> 11262.75708 | Q8: יעד | R8: 100 | U8: יעד | V8: 1000 | Y8: יעד | Z8: 5000 | AC8: יעד | AD8: 10000 | AG8: שכר | AH8: =IF(SUMIFS(טבלה1[שכר],טבלה1[תאריך],">="&AH4,טבלה1[תאריך],"<"&AH5,טבלה1[שם העבודה],IF(AH6="כל העבודות","<>""",AH6))=0,"", SUMIFS(טבלה1[שכר],טבלה1[תאריך],">="&AH4,טבלה1[תאריך],"<"&AH5,טבלה1[שם העבודה],IF(AH6="כל העבודות","<>""",AH6))) ->  | AL8: מכון אורה | AM8: 40 | AO8: =IF(AL8="","", IFERROR(IF(SUMIFS(טבלה1[שעות],טבלה1[שם העבודה],טבלה2[[#This Row],[שמות העבודות]])=0,"", SUMIFS(טבלה1[שעות],טבלה1[שם העבודה],טבלה2[[#This Row],[שמות העבודות]])),"")) -> 1.235324074 | AP8: =IFERROR(IF(OR(טבלה2[[#This Row],[שכר לשעה]]="",טבלה2[[#This Row],[שעות]]=""),"",IF( IF(OR(טבלה2[[#This Row],[מטבע]]="₪",AND(מטבע="שקלים",טבלה2[[#This Row],[מטבע]]="")), טבלה2[[#This Row],[שכר לשעה]]*טבלה2[[#This Row],[שעות]]*24, IF(OR(טבלה2[[#This Row],[מטבע]]="$",AND(מטבע="דולרים",טבלה2[[#This Row],[מטבע]]="")), טבלה2[[#This Row],[שכר לשעה]]*טבלה2[[#This Row],[שעות]]*24*שער,""))=0,"", IF(OR(טבלה2[[#This Row],[מטבע]]="₪",AND(מטבע="שקלים",טבלה2[[#This Row],[מטבע]]="")), טבלה2[[#This Row],[שכר לשעה]]*טבלה2[[#This Row],[שעות]]*24, IF(OR(טבלה2[[#This Row],[מטבע]]="$",AND(מטבע="דולרים",טבלה2[[#This Row],[מטבע]]="")), טבלה2[[#This Row],[שכר לשעה]]*טבלה2[[#This Row],[שעות]]*24*שער,"")))),"") -> 1185.911111 | AQ8: =IFERROR(IF(OR(טבלה2[[#This Row],[שכר לשעה]]="",טבלה2[[#This Row],[שעות]]=""),"",IF( IF(OR(טבלה2[[#This Row],[מטבע]]="$",AND(מטבע="דולרים",טבלה2[[#This Row],[מטבע]]="")), טבלה2[[#This Row],[שכר לשעה]]*טבלה2[[#This Row],[שעות]]*24, IF(OR(טבלה2[[#This Row],[מטבע]]="₪",AND(מטבע="שקלים",טבלה2[[#This Row],[מטבע]]="")), טבלה2[[#This Row],[שכר לשעה]]*טבלה2[[#This Row],[שעות]]*24/שער,""))=0,"", IF(OR(טבלה2[[#This Row],[מטבע]]="$",AND(מטבע="דולרים",טבלה2[[#This Row],[מטבע]]="")), טבלה2[[#This Row],[שכר לשעה]]*טבלה2[[#This Row],[שעות]]*24, IF(OR(טבלה2[[#This Row],[מטבע]]="₪",AND(מטבע="שקלים",טבלה2[[#This Row],[מטבע]]="")), טבלה2[[#This Row],[שכר לשעה]]*טבלה2[[#This Row],[שעות]]*24/שער,"")))),"") -> 310.1231985 | AT8: =IF(OR(טבלה2[[#This Row],[שכר לשעה]]="",טבלה2[[#This Row],[שעות]]=""),"",IF( IF(OR(טבלה2[[#This Row],[מטבע]]="₪",AND(מטבע="שקלים",טבלה2[[#This Row],[מטבע]]="")),טבלה2[[#This Row],[שכר בשקלים]]+טבלה2[[#This Row],[חיובים נוספים]]-טבלה2[[#This Row],[זיכויים / שולם]], IF(OR(טבלה2[[#This Row],[מטבע]]="$",AND(מטבע="דולרים",טבלה2[[#This Row],[מטבע]]="")),טבלה2[[#This Row],[שכר בדולרים]]+טבלה2[[#This Row],[חיובים נוספים]]-טבלה2[[#This Row],[זיכויים / שולם]],""))=0,"", IF(OR(טבלה2[[#This Row],[מטבע]]="₪",AND(מטבע="שקלים",טבלה2[[#This Row],[מטבע]]="")),טבלה2[[#This Row],[שכר בשקלים]]+טבלה2[[#This Row],[חיובים נוספים]]-טבלה2[[#This Row],[זיכויים / שולם]], IF(OR(טבלה2[[#This Row],[מטבע]]="$",AND(מטבע="דולרים",טבלה2[[#This Row],[מטבע]]="")),טבלה2[[#This Row],[שכר בדולרים]]+טבלה2[[#This Row],[חיובים נוספים]]-טבלה2[[#This Row],[זיכויים / שולם]],"")))) -> 1185.911111 | BJ8: =IF(הפסקה1="",0,MOD(MOD(NOW(),1)-הפסקה1,1)) -> 0 | BK8: =IF(טבלה2[[#This Row],[שמות העבודות]]="","",טבלה2[[#This Row],[שמות העבודות]]) -> מכון אורה
AG9: אחוזים | AH9: =IF(OR(AH10="",AH8=""),"", IF(AH8>=AH10,"הגעת ליעד!",AH8 /AH10)) ->  | AO9: =IF(AL9="","", IFERROR(IF(SUMIFS(טבלה1[שעות],טבלה1[שם העבודה],טבלה2[[#This Row],[שמות העבודות]])=0,"", SUMIFS(טבלה1[שעות],טבלה1[שם העבודה],טבלה2[[#This Row],[שמות העבודות]])),"")) ->  | AP9: =IFERROR(IF(OR(טבלה2[[#This Row],[שכר לשעה]]="",טבלה2[[#This Row],[שעות]]=""),"",IF( IF(OR(טבלה2[[#This Row],[מטבע]]="₪",AND(מטבע="שקלים",טבלה2[[#This Row],[מטבע]]="")), טבלה2[[#This Row],[שכר לשעה]]*טבלה2[[#This Row],[שעות]]*24, IF(OR(טבלה2[[#This Row],[מטבע]]="$",AND(מטבע="דולרים",טבלה2[[#This Row],[מטבע]]="")), טבלה2[[#This Row],[שכר לשעה]]*טבלה2[[#This Row],[שעות]]*24*שער,""))=0,"", IF(OR(טבלה2[[#This Row],[מטבע]]="₪",AND(מטבע="שקלים",טבלה2[[#This Row],[מטבע]]="")), טבלה2[[#This Row],[שכר לשעה]]*טבלה2[[#This Row],[שעות]]*24, IF(OR(טבלה2[[#This Row],[מטבע]]="$",AND(מטבע="דולרים",טבלה2[[#This Row],[מטבע]]="")), טבלה2[[#This Row],[שכר לשעה]]*טבלה2[[#This Row],[שעות]]*24*שער,"")))),"") ->  | AQ9: =IFERROR(IF(OR(טבלה2[[#This Row],[שכר לשעה]]="",טבלה2[[#This Row],[שעות]]=""),"",IF( IF(OR(טבלה2[[#This Row],[מטבע]]="$",AND(מטבע="דולרים",טבלה2[[#This Row],[מטבע]]="")), טבלה2[[#This Row],[שכר לשעה]]*טבלה2[[#This Row],[שעות]]*24, IF(OR(טבלה2[[#This Row],[מטבע]]="₪",AND(מטבע="שקלים",טבלה2[[#This Row],[מטבע]]="")), טבלה2[[#This Row],[שכר לשעה]]*טבלה2[[#This Row],[שעות]]*24/שער,""))=0,"", IF(OR(טבלה2[[#This Row],[מטבע]]="$",AND(מטבע="דולרים",טבלה2[[#This Row],[מטבע]]="")), טבלה2[[#This Row],[שכר לשעה]]*טבלה2[[#This Row],[שעות]]*24, IF(OR(טבלה2[[#This Row],[מטבע]]="₪",AND(מטבע="שקלים",טבלה2[[#This Row],[מטבע]]="")), טבלה2[[#This Row],[שכר לשעה]]*טבלה2[[#This Row],[שעות]]*24/שער,"")))),"") ->  | AT9: =IF(OR(טבלה2[[#This Row],[שכר לשעה]]="",טבלה2[[#This Row],[שעות]]=""),"",IF( IF(OR(טבלה2[[#This Row],[מטבע]]="₪",AND(מטבע="שקלים",טבלה2[[#This Row],[מטבע]]="")),טבלה2[[#This Row],[שכר בשקלים]]+טבלה2[[#This Row],[חיובים נוספים]]-טבלה2[[#This Row],[זיכויים / שולם]], IF(OR(טבלה2[[#This Row],[מטבע]]="$",AND(מטבע="דולרים",טבלה2[[#This Row],[מטבע]]="")),טבלה2[[#This Row],[שכר בדולרים]]+טבלה2[[#This Row],[חיובים נוספים]]-טבלה2[[#This Row],[זיכויים / שולם]],""))=0,"", IF(OR(טבלה2[[#This Row],[מטבע]]="₪",AND(מטבע="שקלים",טבלה2[[#This Row],[מטבע]]="")),טבלה2[[#This Row],[שכר בשקלים]]+טבלה2[[#This Row],[חיובים נוספים]]-טבלה2[[#This Row],[זיכויים / שולם]], IF(OR(טבלה2[[#This Row],[מטבע]]="$",AND(מטבע="דולרים",טבלה2[[#This Row],[מטבע]]="")),טבלה2[[#This Row],[שכר בדולרים]]+טבלה2[[#This Row],[חיובים נוספים]]-טבלה2[[#This Row],[זיכויים / שולם]],"")))) ->  | BJ9: הודעת אישור | BK9: =IF(טבלה2[[#This Row],[שמות העבודות]]="","",טבלה2[[#This Row],[שמות העבודות]]) -> 
B10: עמודה2 | C10: יום | D10: תאריך | E10: התחלה | F10: שם העבודה | G10: סיום | H10: הוספת דקות | I10: הפחתת דקות | J10: שעות | K10: שכר | L10: חודש | M10: הערות | AG10: יעד | AH10: 5000 | AO10: =IF(AL10="","", IFERROR(IF(SUMIFS(טבלה1[שעות],טבלה1[שם העבודה],טבלה2[[#This Row],[שמות העבודות]])=0,"", SUMIFS(טבלה1[שעות],טבלה1[שם העבודה],טבלה2[[#This Row],[שמות העבודות]])),"")) ->  | AP10: =IFERROR(IF(OR(טבלה2[[#This Row],[שכר לשעה]]="",טבלה2[[#This Row],[שעות]]=""),"",IF( IF(OR(טבלה2[[#This Row],[מטבע]]="₪",AND(מטבע="שקלים",טבלה2[[#This Row],[מטבע]]="")), טבלה2[[#This Row],[שכר לשעה]]*טבלה2[[#This Row],[שעות]]*24, IF(OR(טבלה2[[#This Row],[מטבע]]="$",AND(מטבע="דולרים",טבלה2[[#This Row],[מטבע]]="")), טבלה2[[#This Row],[שכר לשעה]]*טבלה2[[#This Row],[שעות]]*24*שער,""))=0,"", IF(OR(טבלה2[[#This Row],[מטבע]]="₪",AND(מטבע="שקלים",טבלה2[[#This Row],[מטבע]]="")), טבלה2[[#This Row],[שכר לשעה]]*טבלה2[[#This Row],[שעות]]*24, IF(OR(טבלה2[[#This Row],[מטבע]]="$",AND(מטבע="דולרים",טבלה2[[#This Row],[מטבע]]="")), טבלה2[[#This Row],[שכר לשעה]]*טבלה2[[#This Row],[שעות]]*24*שער,"")))),"") ->  | AQ10: =IFERROR(IF(OR(טבלה2[[#This Row],[שכר לשעה]]="",טבלה2[[#This Row],[שעות]]=""),"",IF( IF(OR(טבלה2[[#This Row],[מטבע]]="$",AND(מטבע="דולרים",טבלה2[[#This Row],[מטבע]]="")), טבלה2[[#This Row],[שכר לשעה]]*טבלה2[[#This Row],[שעות]]*24, IF(OR(טבלה2[[#This Row],[מטבע]]="₪",AND(מטבע="שקלים",טבלה2[[#This Row],[מטבע]]="")), טבלה2[[#This Row],[שכר לשעה]]*טבלה2[[#This Row],[שעות]]*24/שער,""))=0,"", IF(OR(טבלה2[[#This Row],[מטבע]]="$",AND(מטבע="דולרים",טבלה2[[#This Row],[מטבע]]="")), טבלה2[[#This Row],[שכר לשעה]]*טבלה2[[#This Row],[שעות]]*24, IF(OR(טבלה2[[#This Row],[מטבע]]="₪",AND(מטבע="שקלים",טבלה2[[#This Row],[מטבע]]="")), טבלה2[[#This Row],[שכר לשעה]]*טבלה2[[#This Row],[שעות]]*24/שער,"")))),"") ->  | AT10: =IF(OR(טבלה2[[#This Row],[שכר לשעה]]="",טבלה2[[#This Row],[שעות]]=""),"",IF( IF(OR(טבלה2[[#This Row],[מטבע]]="₪",AND(מטבע="שקלים",טבלה2[[#This Row],[מטבע]]="")),טבלה2[[#This Row],[שכר בשקלים]]+טבלה2[[#This Row],[חיובים נוספים]]-טבלה2[[#This Row],[זיכויים / שולם]], IF(OR(טבלה2[[#This Row],[מטבע]]="$",AND(מטבע="דולרים",טבלה2[[#This Row],[מטבע]]="")),טבלה2[[#This Row],[שכר בדולרים]]+טבלה2[[#This Row],[חיובים נוספים]]-טבלה2[[#This Row],[זיכויים / שולם]],""))=0,"", IF(OR(טבלה2[[#This Row],[מטבע]]="₪",AND(מטבע="שקלים",טבלה2[[#This Row],[מטבע]]="")),טבלה2[[#This Row],[שכר בשקלים]]+טבלה2[[#This Row],[חיובים נוספים]]-טבלה2[[#This Row],[זיכויים / שולם]], IF(OR(טבלה2[[#This Row],[מטבע]]="$",AND(מטבע="דולרים",טבלה2[[#This Row],[מטבע]]="")),טבלה2[[#This Row],[שכר בדולרים]]+טבלה2[[#This Row],[חיובים נוספים]]-טבלה2[[#This Row],[זיכויים / שולם]],"")))) ->  | BJ10: מושבת | BK10: =IF(טבלה2[[#This Row],[שמות העבודות]]="","",טבלה2[[#This Row],[שמות העבודות]]) -> 
B11: =IF(AND(טבלה1[[#This Row],[תאריך]]="",טבלה1[[#This Row],[התחלה]]="",טבלה1[[#This Row],[שם העבודה]]=""),"",ROW()-10) -> 1 | C11: =IF(טבלה1[[#This Row],[תאריך]]="","",IF(TEXT(טבלה1[[#This Row],[תאריך]],"DDD")="שבת","מוצ""ש",TEXT(טבלה1[[#This Row],[תאריך]],"DDD"))) -> יום ב | D11: 2024-08-05 | E11: 02:44:24 | F11: הקלדה | G11: 04:45:11 | H11: 0.003472222222 | J11: =IF(IF(AND(טבלה1[[#This Row],[התחלה]]="",טבלה1[[#This Row],[סיום]]<>""),"",IF(AND(טבלה1[[#This Row],[התחלה]]<>"",טבלה1[[#This Row],[סיום]]=""), SUM(MOD(MOD(NOW(),1)-טבלה1[[#This Row],[התחלה]],1),טבלה1[[#This Row],[הוספת דקות]],-טבלה1[[#This Row],[הפחתת דקות]]), SUM(MOD(טבלה1[[#This Row],[סיום]]-טבלה1[[#This Row],[התחלה]],1),טבלה1[[#This Row],[הוספת דקות]],-טבלה1[[#This Row],[הפחתת דקות]])))<=0,"", IF(AND(טבלה1[[#This Row],[התחלה]]="",טבלה1[[#This Row],[סיום]]<>""),"",IF(AND(טבלה1[[#This Row],[התחלה]]<>"",טבלה1[[#This Row],[סיום]]=""), SUM(MOD(MOD(NOW(),1)-טבלה1[[#This Row],[התחלה]],1),טבלה1[[#This Row],[הוספת דקות]],-טבלה1[[#This Row],[הפחתת דקות]]), SUM(MOD(טבלה1[[#This Row],[סיום]]-טבלה1[[#This Row],[התחלה]],1),טבלה1[[#This Row],[הוספת דקות]],-טבלה1[[#This Row],[הפחתת דקות]])))) -> 0.08734953704 | K11: =IF(טבלה1[[#This Row],[שעות]]="","",IFERROR( IF(IF(AND(מטבע="שקלים",VLOOKUP(טבלה1[[#This Row],[שם העבודה]],טבלה2[],3,FALSE)="$"), VLOOKUP(טבלה1[[#This Row],[שם העבודה]],טבלה2[#All],2,FALSE)*טבלה1[[#This Row],[שעות]]*24*שער, IF(AND(מטבע="דולרים",VLOOKUP(טבלה1[[#This Row],[שם העבודה]],טבלה2[],3,FALSE)="₪"), VLOOKUP(טבלה1[[#This Row],[שם העבודה]],טבלה2[#All],2,FALSE)*טבלה1[[#This Row],[שעות]]*24/שער, VLOOKUP(טבלה1[[#This Row],[שם העבודה]],טבלה2[#All],2,FALSE)*טבלה1[[#This Row],[שעות]]*24))=0,"", IF(AND(מטבע="שקלים",VLOOKUP(טבלה1[[#This Row],[שם העבודה]],טבלה2[],3,FALSE)="$"), VLOOKUP(טבלה1[[#This Row],[שם העבודה]],טבלה2[#All],2,FALSE)*טבלה1[[#This Row],[שעות]]*24*שער, IF(AND(מטבע="דולרים",VLOOKUP(טבלה1[[#This Row],[שם העבודה]],טבלה2[],3,FALSE)="₪"), VLOOKUP(טבלה1[[#This Row],[שם העבודה]],טבלה2[#All],2,FALSE)*טבלה1[[#This Row],[שעות]]*24/שער, VLOOKUP(טבלה1[[#This Row],[שם העבודה]],טבלה2[#All],2,FALSE)*טבלה1[[#This Row],[שעות]]*24))),"")) -> 104.8194444 | L11: =IF(טבלה1[[#This Row],[תאריך]]="","",DATE(YEAR(טבלה1[[#This Row],[תאריך]]),MONTH(טבלה1[[#This Row],[תאריך]]),1)) -> 2024-08-01 | AO11: =IF(AL11="","", IFERROR(IF(SUMIFS(טבלה1[שעות],טבלה1[שם העבודה],טבלה2[[#This Row],[שמות העבודות]])=0,"", SUMIFS(טבלה1[שעות],טבלה1[שם העבודה],טבלה2[[#This Row],[שמות העבודות]])),"")) ->  | AP11: =IFERROR(IF(OR(טבלה2[[#This Row],[שכר לשעה]]="",טבלה2[[#This Row],[שעות]]=""),"",IF( IF(OR(טבלה2[[#This Row],[מטבע]]="₪",AND(מטבע="שקלים",טבלה2[[#This Row],[מטבע]]="")), טבלה2[[#This Row],[שכר לשעה]]*טבלה2[[#This Row],[שעות]]*24, IF(OR(טבלה2[[#This Row],[מטבע]]="$",AND(מטבע="דולרים",טבלה2[[#This Row],[מטבע]]="")), טבלה2[[#This Row],[שכר לשעה]]*טבלה2[[#This Row],[שעות]]*24*שער,""))=0,"", IF(OR(טבלה2[[#This Row],[מטבע]]="₪",AND(מטבע="שקלים",טבלה2[[#This Row],[מטבע]]="")), טבלה2[[#This Row],[שכר לשעה]]*טבלה2[[#This Row],[שעות]]*24, IF(OR(טבלה2[[#This Row],[מטבע]]="$",AND(מטבע="דולרים",טבלה2[[#This Row],[מטבע]]="")), טבלה2[[#This Row],[שכר לשעה]]*טבלה2[[#This Row],[שעות]]*24*שער,"")))),"") ->  | AQ11: =IFERROR(IF(OR(טבלה2[[#This Row],[שכר לשעה]]="",טבלה2[[#This Row],[שעות]]=""),"",IF( IF(OR(טבלה2[[#This Row],[מטבע]]="$",AND(מטבע="דולרים",טבלה2[[#This Row],[מטבע]]="")), טבלה2[[#This Row],[שכר לשעה]]*טבלה2[[#This Row],[שעות]]*24, IF(OR(טבלה2[[#This Row],[מטבע]]="₪",AND(מטבע="שקלים",טבלה2[[#This Row],[מטבע]]="")), טבלה2[[#This Row],[שכר לשעה]]*טבלה2[[#This Row],[שעות]]*24/שער,""))=0,"", IF(OR(טבלה2[[#This Row],[מטבע]]="$",AND(מטבע="דולרים",טבלה2[[#This Row],[מטבע]]="")), טבלה2[[#This Row],[שכר לשעה]]*טבלה2[[#This Row],[שעות]]*24, IF(OR(טבלה2[[#This Row],[מטבע]]="₪",AND(מטבע="שקלים",טבלה2[[#This Row],[מטבע]]="")), טבלה2[[#This Row],[שכר לשעה]]*טבלה2[[#This Row],[שעות]]*24/שער,"")))),"") ->  | AT11: =IF(OR(טבלה2[[#This Row],[שכר לשעה]]="",טבלה2[[#This Row],[שעות]]=""),"",IF( IF(OR(טבלה2[[#This Row],[מטבע]]="₪",AND(מטבע="שקלים",טבלה2[[#This Row],[מטבע]]="")),טבלה2[[#This Row],[שכר בשקלים]]+טבלה2[[#This Row],[חיובים נוספים]]-טבלה2[[#This Row],[זיכויים / שולם]], IF(OR(טבלה2[[#This Row],[מטבע]]="$",AND(מטבע="דולרים",טבלה2[[#This Row],[מטבע]]="")),טבלה2[[#This Row],[שכר בדולרים]]+טבלה2[[#This Row],[חיובים נוספים]]-טבלה2[[#This Row],[זיכויים / שולם]],""))=0,"", IF(OR(טבלה2[[#This Row],[מטבע]]="₪",AND(מטבע="שקלים",טבלה2[[#This Row],[מטבע]]="")),טבלה2[[#This Row],[שכר בשקלים]]+טבלה2[[#This Row],[חיובים נוספים]]-טבלה2[[#This Row],[זיכויים / שולם]], IF(OR(טבלה2[[#This Row],[מטבע]]="$",AND(מטבע="דולרים",טבלה2[[#This Row],[מטבע]]="")),טבלה2[[#This Row],[שכר בדולרים]]+טבלה2[[#This Row],[חיובים נוספים]]-טבלה2[[#This Row],[זיכויים / שולם]],"")))) ->  | BJ11: עבודה נבחרת | BK11: =IF(טבלה2[[#This Row],[שמות העבודות]]="","",טבלה2[[#This Row],[שמות העבודות]]) -> 
B12: =IF(AND(טבלה1[[#This Row],[תאריך]]="",טבלה1[[#This Row],[התחלה]]="",טבלה1[[#This Row],[שם העבודה]]=""),"",ROW()-10) -> 2 | C12: =IF(טבלה1[[#This Row],[תאריך]]="","",IF(TEXT(טבלה1[[#This Row],[תאריך]],"DDD")="שבת","מוצ""ש",TEXT(טבלה1[[#This Row],[תאריך]],"DDD"))) -> יום ג | D12: 2024-08-06 | E12: 02:17:24 | F12: עימוד | G12: 04:17:28 | J12: =IF(IF(AND(טבלה1[[#This Row],[התחלה]]="",טבלה1[[#This Row],[סיום]]<>""),"",IF(AND(טבלה1[[#This Row],[התחלה]]<>"",טבלה1[[#This Row],[סיום]]=""), SUM(MOD(MOD(NOW(),1)-טבלה1[[#This Row],[התחלה]],1),טבלה1[[#This Row],[הוספת דקות]],-טבלה1[[#This Row],[הפחתת דקות]]), SUM(MOD(טבלה1[[#This Row],[סיום]]-טבלה1[[#This Row],[התחלה]],1),טבלה1[[#This Row],[הוספת דקות]],-טבלה1[[#This Row],[הפחתת דקות]])))<=0,"", IF(AND(טבלה1[[#This Row],[התחלה]]="",טבלה1[[#This Row],[סיום]]<>""),"",IF(AND(טבלה1[[#This Row],[התחלה]]<>"",טבלה1[[#This Row],[סיום]]=""), SUM(MOD(MOD(NOW(),1)-טבלה1[[#This Row],[התחלה]],1),טבלה1[[#This Row],[הוספת דקות]],-טבלה1[[#This Row],[הפחתת דקות]]), SUM(MOD(טבלה1[[#This Row],[סיום]]-טבלה1[[#This Row],[התחלה]],1),טבלה1[[#This Row],[הוספת דקות]],-טבלה1[[#This Row],[הפחתת דקות]])))) -> 0.08337962963 | K12: =IF(טבלה1[[#This Row],[שעות]]="","",IFERROR( IF(IF(AND(מטבע="שקלים",VLOOKUP(טבלה1[[#This Row],[שם העבודה]],טבלה2[],3,FALSE)="$"), VLOOKUP(טבלה1[[#This Row],[שם העבודה]],טבלה2[#All],2,FALSE)*טבלה1[[#This Row],[שעות]]*24*שער, IF(AND(מטבע="דולרים",VLOOKUP(טבלה1[[#This Row],[שם העבודה]],טבלה2[],3,FALSE)="₪"), VLOOKUP(טבלה1[[#This Row],[שם העבודה]],טבלה2[#All],2,FALSE)*טבלה1[[#This Row],[שעות]]*24/שער, VLOOKUP(טבלה1[[#This Row],[שם העבודה]],טבלה2[#All],2,FALSE)*טבלה1[[#This Row],[שעות]]*24))=0,"", IF(AND(מטבע="שקלים",VLOOKUP(טבלה1[[#This Row],[שם העבודה]],טבלה2[],3,FALSE)="$"), VLOOKUP(טבלה1[[#This Row],[שם העבודה]],טבלה2[#All],2,FALSE)*טבלה1[[#This Row],[שעות]]*24*שער, IF(AND(מטבע="דולרים",VLOOKUP(טבלה1[[#This Row],[שם העבודה]],טבלה2[],3,FALSE)="₪"), VLOOKUP(טבלה1[[#This Row],[שם העבודה]],טבלה2[#All],2,FALSE)*טבלה1[[#This Row],[שעות]]*24/שער, VLOOKUP(טבלה1[[#This Row],[שם העבודה]],טבלה2[#All],2,FALSE)*טבלה1[[#This Row],[שעות]]*24))),"")) -> 120.0666667 | L12: =IF(טבלה1[[#This Row],[תאריך]]="","",DATE(YEAR(טבלה1[[#This Row],[תאריך]]),MONTH(טבלה1[[#This Row],[תאריך]]),1)) -> 2024-08-01 | AO12: =IF(AL12="","", IFERROR(IF(SUMIFS(טבלה1[שעות],טבלה1[שם העבודה],טבלה2[[#This Row],[שמות העבודות]])=0,"", SUMIFS(טבלה1[שעות],טבלה1[שם העבודה],טבלה2[[#This Row],[שמות העבודות]])),"")) ->  | AP12: =IFERROR(IF(OR(טבלה2[[#This Row],[שכר לשעה]]="",טבלה2[[#This Row],[שעות]]=""),"",IF( IF(OR(טבלה2[[#This Row],[מטבע]]="₪",AND(מטבע="שקלים",טבלה2[[#This Row],[מטבע]]="")), טבלה2[[#This Row],[שכר לשעה]]*טבלה2[[#This Row],[שעות]]*24, IF(OR(טבלה2[[#This Row],[מטבע]]="$",AND(מטבע="דולרים",טבלה2[[#This Row],[מטבע]]="")), טבלה2[[#This Row],[שכר לשעה]]*טבלה2[[#This Row],[שעות]]*24*שער,""))=0,"", IF(OR(טבלה2[[#This Row],[מטבע]]="₪",AND(מטבע="שקלים",טבלה2[[#This Row],[מטבע]]="")), טבלה2[[#This Row],[שכר לשעה]]*טבלה2[[#This Row],[שעות]]*24, IF(OR(טבלה2[[#This Row],[מטבע]]="$",AND(מטבע="דולרים",טבלה2[[#This Row],[מטבע]]="")), טבלה2[[#This Row],[שכר לשעה]]*טבלה2[[#This Row],[שעות]]*24*שער,"")))),"") ->  | AQ12: =IFERROR(IF(OR(טבלה2[[#This Row],[שכר לשעה]]="",טבלה2[[#This Row],[שעות]]=""),"",IF( IF(OR(טבלה2[[#This Row],[מטבע]]="$",AND(מטבע="דולרים",טבלה2[[#This Row],[מטבע]]="")), טבלה2[[#This Row],[שכר לשעה]]*טבלה2[[#This Row],[שעות]]*24, IF(OR(טבלה2[[#This Row],[מטבע]]="₪",AND(מטבע="שקלים",טבלה2[[#This Row],[מטבע]]="")), טבלה2[[#This Row],[שכר לשעה]]*טבלה2[[#This Row],[שעות]]*24/שער,""))=0,"", IF(OR(טבלה2[[#This Row],[מטבע]]="$",AND(מטבע="דולרים",טבלה2[[#This Row],[מטבע]]="")), טבלה2[[#This Row],[שכר לשעה]]*טבלה2[[#This Row],[שעות]]*24, IF(OR(טבלה2[[#This Row],[מטבע]]="₪",AND(מטבע="שקלים",טבלה2[[#This Row],[מטבע]]="")), טבלה2[[#This Row],[שכר לשעה]]*טבלה2[[#This Row],[שעות]]*24/שער,"")))),"") ->  | AT12: =IF(OR(טבלה2[[#This Row],[שכר לשעה]]="",טבלה2[[#This Row],[שעות]]=""),"",IF( IF(OR(טבלה2[[#This Row],[מטבע]]="₪",AND(מטבע="שקלים",טבלה2[[#This Row],[מטבע]]="")),טבלה2[[#This Row],[שכר בשקלים]]+טבלה2[[#This Row],[חיובים נוספים]]-טבלה2[[#This Row],[זיכויים / שולם]], IF(OR(טבלה2[[#This Row],[מטבע]]="$",AND(מטבע="דולרים",טבלה2[[#This Row],[מטבע]]="")),טבלה2[[#This Row],[שכר בדולרים]]+טבלה2[[#This Row],[חיובים נוספים]]-טבלה2[[#This Row],[זיכויים / שולם]],""))=0,"", IF(OR(טבלה2[[#This Row],[מטבע]]="₪",AND(מטבע="שקלים",טבלה2[[#This Row],[מטבע]]="")),טבלה2[[#This Row],[שכר בשקלים]]+טבלה2[[#This Row],[חיובים נוספים]]-טבלה2[[#This Row],[זיכויים / שולם]], IF(OR(טבלה2[[#This Row],[מטבע]]="$",AND(מטבע="דולרים",טבלה2[[#This Row],[מטבע]]="")),טבלה2[[#This Row],[שכר בדולרים]]+טבלה2[[#This Row],[חיובים נוספים]]-טבלה2[[#This Row],[זיכויים / שולם]],"")))) ->  | BJ12: הקלדה | BK12: =IF(טבלה2[[#This Row],[שמות העבודות]]="","",טבלה2[[#This Row],[שמות העבודות]]) -> 
B13: =IF(AND(טבלה1[[#This Row],[תאריך]]="",טבלה1[[#This Row],[התחלה]]="",טבלה1[[#This Row],[שם העבודה]]=""),"",ROW()-10) -> 3 | C13: =IF(טבלה1[[#This Row],[תאריך]]="","",IF(TEXT(טבלה1[[#This Row],[תאריך]],"DDD")="שבת","מוצ""ש",TEXT(טבלה1[[#This Row],[תאריך]],"DDD"))) -> יום ד | D13: 2024-08-07 | E13: 02:17:24 | F13: הגהה | G13: 04:17:28 | J13: =IF(IF(AND(טבלה1[[#This Row],[התחלה]]="",טבלה1[[#This Row],[סיום]]<>""),"",IF(AND(טבלה1[[#This Row],[התחלה]]<>"",טבלה1[[#This Row],[סיום]]=""), SUM(MOD(MOD(NOW(),1)-טבלה1[[#This Row],[התחלה]],1),טבלה1[[#This Row],[הוספת דקות]],-טבלה1[[#This Row],[הפחתת דקות]]), SUM(MOD(טבלה1[[#This Row],[סיום]]-טבלה1[[#This Row],[התחלה]],1),טבלה1[[#This Row],[הוספת דקות]],-טבלה1[[#This Row],[הפחתת דקות]])))<=0,"", IF(AND(טבלה1[[#This Row],[התחלה]]="",טבלה1[[#This Row],[סיום]]<>""),"",IF(AND(טבלה1[[#This Row],[התחלה]]<>"",טבלה1[[#This Row],[סיום]]=""), SUM(MOD(MOD(NOW(),1)-טבלה1[[#This Row],[התחלה]],1),טבלה1[[#This Row],[הוספת דקות]],-טבלה1[[#This Row],[הפחתת דקות]]), SUM(MOD(טבלה1[[#This Row],[סיום]]-טבלה1[[#This Row],[התחלה]],1),טבלה1[[#This Row],[הוספת דקות]],-טבלה1[[#This Row],[הפחתת דקות]])))) -> 0.08337962963 | K13: =IF(טבלה1[[#This Row],[שעות]]="","",IFERROR( IF(IF(AND(מטבע="שקלים",VLOOKUP(טבלה1[[#This Row],[שם העבודה]],טבלה2[],3,FALSE)="$"), VLOOKUP(טבלה1[[#This Row],[שם העבודה]],טבלה2[#All],2,FALSE)*טבלה1[[#This Row],[שעות]]*24*שער, IF(AND(מטבע="דולרים",VLOOKUP(טבלה1[[#This Row],[שם העבודה]],טבלה2[],3,FALSE)="₪"), VLOOKUP(טבלה1[[#This Row],[שם העבודה]],טבלה2[#All],2,FALSE)*טבלה1[[#This Row],[שעות]]*24/שער, VLOOKUP(טבלה1[[#This Row],[שם העבודה]],טבלה2[#All],2,FALSE)*טבלה1[[#This Row],[שעות]]*24))=0,"", IF(AND(מטבע="שקלים",VLOOKUP(טבלה1[[#This Row],[שם העבודה]],טבלה2[],3,FALSE)="$"), VLOOKUP(טבלה1[[#This Row],[שם העבודה]],טבלה2[#All],2,FALSE)*טבלה1[[#This Row],[שעות]]*24*שער, IF(AND(מטבע="דולרים",VLOOKUP(טבלה1[[#This Row],[שם העבודה]],טבלה2[],3,FALSE)="₪"), VLOOKUP(טבלה1[[#This Row],[שם העבודה]],טבלה2[#All],2,FALSE)*טבלה1[[#This Row],[שעות]]*24/שער, VLOOKUP(טבלה1[[#This Row],[שם העבודה]],טבלה2[#All],2,FALSE)*טבלה1[[#This Row],[שעות]]*24))),"")) -> 140.0777778 | L13: =IF(טבלה1[[#This Row],[תאריך]]="","",DATE(YEAR(טבלה1[[#This Row],[תאריך]]),MONTH(טבלה1[[#This Row],[תאריך]]),1)) -> 2024-08-01 | AO13: =IF(AL13="","", IFERROR(IF(SUMIFS(טבלה1[שעות],טבלה1[שם העבודה],טבלה2[[#This Row],[שמות העבודות]])=0,"", SUMIFS(טבלה1[שעות],טבלה1[שם העבודה],טבלה2[[#This Row],[שמות העבודות]])),"")) ->  | AP13: =IFERROR(IF(OR(טבלה2[[#This Row],[שכר לשעה]]="",טבלה2[[#This Row],[שעות]]=""),"",IF( IF(OR(טבלה2[[#This Row],[מטבע]]="₪",AND(מטבע="שקלים",טבלה2[[#This Row],[מטבע]]="")), טבלה2[[#This Row],[שכר לשעה]]*טבלה2[[#This Row],[שעות]]*24, IF(OR(טבלה2[[#This Row],[מטבע]]="$",AND(מטבע="דולרים",טבלה2[[#This Row],[מטבע]]="")), טבלה2[[#This Row],[שכר לשעה]]*טבלה2[[#This Row],[שעות]]*24*שער,""))=0,"", IF(OR(טבלה2[[#This Row],[מטבע]]="₪",AND(מטבע="שקלים",טבלה2[[#This Row],[מטבע]]="")), טבלה2[[#This Row],[שכר לשעה]]*טבלה2[[#This Row],[שעות]]*24, IF(OR(טבלה2[[#This Row],[מטבע]]="$",AND(מטבע="דולרים",טבלה2[[#This Row],[מטבע]]="")), טבלה2[[#This Row],[שכר לשעה]]*טבלה2[[#This Row],[שעות]]*24*שער,"")))),"") ->  | AQ13: =IFERROR(IF(OR(טבלה2[[#This Row],[שכר לשעה]]="",טבלה2[[#This Row],[שעות]]=""),"",IF( IF(OR(טבלה2[[#This Row],[מטבע]]="$",AND(מטבע="דולרים",טבלה2[[#This Row],[מטבע]]="")), טבלה2[[#This Row],[שכר לשעה]]*טבלה2[[#This Row],[שעות]]*24, IF(OR(טבלה2[[#This Row],[מטבע]]="₪",AND(מטבע="שקלים",טבלה2[[#This Row],[מטבע]]="")), טבלה2[[#This Row],[שכר לשעה]]*טבלה2[[#This Row],[שעות]]*24/שער,""))=0,"", IF(OR(טבלה2[[#This Row],[מטבע]]="$",AND(מטבע="דולרים",טבלה2[[#This Row],[מטבע]]="")), טבלה2[[#This Row],[שכר לשעה]]*טבלה2[[#This Row],[שעות]]*24, IF(OR(טבלה2[[#This Row],[מטבע]]="₪",AND(מטבע="שקלים",טבלה2[[#This Row],[מטבע]]="")), טבלה2[[#This Row],[שכר לשעה]]*טבלה2[[#This Row],[שעות]]*24/שער,"")))),"") ->  | AT13: =IF(OR(טבלה2[[#This Row],[שכר לשעה]]="",טבלה2[[#This Row],[שעות]]=""),"",IF( IF(OR(טבלה2[[#This Row],[מטבע]]="₪",AND(מטבע="שקלים",טבלה2[[#This Row],[מטבע]]="")),טבלה2[[#This Row],[שכר בשקלים]]+טבלה2[[#This Row],[חיובים נוספים]]-טבלה2[[#This Row],[זיכויים / שולם]], IF(OR(טבלה2[[#This Row],[מטבע]]="$",AND(מטבע="דולרים",טבלה2[[#This Row],[מטבע]]="")),טבלה2[[#This Row],[שכר בדולרים]]+טבלה2[[#This Row],[חיובים נוספים]]-טבלה2[[#This Row],[זיכויים / שולם]],""))=0,"", IF(OR(טבלה2[[#This Row],[מטבע]]="₪",AND(מטבע="שקלים",טבלה2[[#This Row],[מטבע]]="")),טבלה2[[#This Row],[שכר בשקלים]]+טבלה2[[#This Row],[חיובים נוספים]]-טבלה2[[#This Row],[זיכויים / שולם]], IF(OR(טבלה2[[#This Row],[מטבע]]="$",AND(מטבע="דולרים",טבלה2[[#This Row],[מטבע]]="")),טבלה2[[#This Row],[שכר בדולרים]]+טבלה2[[#This Row],[חיובים נוספים]]-טבלה2[[#This Row],[זיכויים / שולם]],"")))) ->  | BJ13: שם עבודה נבחרת | BK13: =IF(טבלה2[[#This Row],[שמות העבודות]]="","",טבלה2[[#This Row],[שמות העבודות]]) -> 
B14: =IF(AND(טבלה1[[#This Row],[תאריך]]="",טבלה1[[#This Row],[התחלה]]="",טבלה1[[#This Row],[שם העבודה]]=""),"",ROW()-10) -> 4 | C14: =IF(טבלה1[[#This Row],[תאריך]]="","",IF(TEXT(טבלה1[[#This Row],[תאריך]],"DDD")="שבת","מוצ""ש",TEXT(טבלה1[[#This Row],[תאריך]],"DDD"))) -> יום ה | D14: 2024-08-08 | E14: 02:17:24 | F14: מכון תורה אור | G14: 04:17:28 | J14: =IF(IF(AND(טבלה1[[#This Row],[התחלה]]="",טבלה1[[#This Row],[סיום]]<>""),"",IF(AND(טבלה1[[#This Row],[התחלה]]<>"",טבלה1[[#This Row],[סיום]]=""), SUM(MOD(MOD(NOW(),1)-טבלה1[[#This Row],[התחלה]],1),טבלה1[[#This Row],[הוספת דקות]],-טבלה1[[#This Row],[הפחתת דקות]]), SUM(MOD(טבלה1[[#This Row],[סיום]]-טבלה1[[#This Row],[התחלה]],1),טבלה1[[#This Row],[הוספת דקות]],-טבלה1[[#This Row],[הפחתת דקות]])))<=0,"", IF(AND(טבלה1[[#This Row],[התחלה]]="",טבלה1[[#This Row],[סיום]]<>""),"",IF(AND(טבלה1[[#This Row],[התחלה]]<>"",טבלה1[[#This Row],[סיום]]=""), SUM(MOD(MOD(NOW(),1)-טבלה1[[#This Row],[התחלה]],1),טבלה1[[#This Row],[הוספת דקות]],-טבלה1[[#This Row],[הפחתת דקות]]), SUM(MOD(טבלה1[[#This Row],[סיום]]-טבלה1[[#This Row],[התחלה]],1),טבלה1[[#This Row],[הוספת דקות]],-טבלה1[[#This Row],[הפחתת דקות]])))) -> 0.08337962963 | K14: =IF(טבלה1[[#This Row],[שעות]]="","",IFERROR( IF(IF(AND(מטבע="שקלים",VLOOKUP(טבלה1[[#This Row],[שם העבודה]],טבלה2[],3,FALSE)="$"), VLOOKUP(טבלה1[[#This Row],[שם העבודה]],טבלה2[#All],2,FALSE)*טבלה1[[#This Row],[שעות]]*24*שער, IF(AND(מטבע="דולרים",VLOOKUP(טבלה1[[#This Row],[שם העבודה]],טבלה2[],3,FALSE)="₪"), VLOOKUP(טבלה1[[#This Row],[שם העבודה]],טבלה2[#All],2,FALSE)*טבלה1[[#This Row],[שעות]]*24/שער, VLOOKUP(טבלה1[[#This Row],[שם העבודה]],טבלה2[#All],2,FALSE)*טבלה1[[#This Row],[שעות]]*24))=0,"", IF(AND(מטבע="שקלים",VLOOKUP(טבלה1[[#This Row],[שם העבודה]],טבלה2[],3,FALSE)="$"), VLOOKUP(טבלה1[[#This Row],[שם העבודה]],טבלה2[#All],2,FALSE)*טבלה1[[#This Row],[שעות]]*24*שער, IF(AND(מטבע="דולרים",VLOOKUP(טבלה1[[#This Row],[שם העבודה]],טבלה2[],3,FALSE)="₪"), VLOOKUP(טבלה1[[#This Row],[שם העבודה]],טבלה2[#All],2,FALSE)*טבלה1[[#This Row],[שעות]]*24/שער, VLOOKUP(טבלה1[[#This Row],[שם העבודה]],טבלה2[#All],2,FALSE)*טבלה1[[#This Row],[שעות]]*24))),"")) -> 130.0722222 | L14: =IF(טבלה1[[#This Row],[תאריך]]="","",DATE(YEAR(טבלה1[[#This Row],[תאריך]]),MONTH(טבלה1[[#This Row],[תאריך]]),1)) -> 2024-08-01 | AO14: =IF(AL14="","", IFERROR(IF(SUMIFS(טבלה1[שעות],טבלה1[שם העבודה],טבלה2[[#This Row],[שמות העבודות]])=0,"", SUMIFS(טבלה1[שעות],טבלה1[שם העבודה],טבלה2[[#This Row],[שמות העבודות]])),"")) ->  | AP14: =IFERROR(IF(OR(טבלה2[[#This Row],[שכר לשעה]]="",טבלה2[[#This Row],[שעות]]=""),"",IF( IF(OR(טבלה2[[#This Row],[מטבע]]="₪",AND(מטבע="שקלים",טבלה2[[#This Row],[מטבע]]="")), טבלה2[[#This Row],[שכר לשעה]]*טבלה2[[#This Row],[שעות]]*24, IF(OR(טבלה2[[#This Row],[מטבע]]="$",AND(מטבע="דולרים",טבלה2[[#This Row],[מטבע]]="")), טבלה2[[#This Row],[שכר לשעה]]*טבלה2[[#This Row],[שעות]]*24*שער,""))=0,"", IF(OR(טבלה2[[#This Row],[מטבע]]="₪",AND(מטבע="שקלים",טבלה2[[#This Row],[מטבע]]="")), טבלה2[[#This Row],[שכר לשעה]]*טבלה2[[#This Row],[שעות]]*24, IF(OR(טבלה2[[#This Row],[מטבע]]="$",AND(מטבע="דולרים",טבלה2[[#This Row],[מטבע]]="")), טבלה2[[#This Row],[שכר לשעה]]*טבלה2[[#This Row],[שעות]]*24*שער,"")))),"") ->  | AQ14: =IFERROR(IF(OR(טבלה2[[#This Row],[שכר לשעה]]="",טבלה2[[#This Row],[שעות]]=""),"",IF( IF(OR(טבלה2[[#This Row],[מטבע]]="$",AND(מטבע="דולרים",טבלה2[[#This Row],[מטבע]]="")), טבלה2[[#This Row],[שכר לשעה]]*טבלה2[[#This Row],[שעות]]*24, IF(OR(טבלה2[[#This Row],[מטבע]]="₪",AND(מטבע="שקלים",טבלה2[[#This Row],[מטבע]]="")), טבלה2[[#This Row],[שכר לשעה]]*טבלה2[[#This Row],[שעות]]*24/שער,""))=0,"", IF(OR(טבלה2[[#This Row],[מטבע]]="$",AND(מטבע="דולרים",טבלה2[[#This Row],[מטבע]]="")), טבלה2[[#This Row],[שכר לשעה]]*טבלה2[[#This Row],[שעות]]*24, IF(OR(טבלה2[[#This Row],[מטבע]]="₪",AND(מטבע="שקלים",טבלה2[[#This Row],[מטבע]]="")), טבלה2[[#This Row],[שכר לשעה]]*טבלה2[[#This Row],[שעות]]*24/שער,"")))),"") ->  | AT14: =IF(OR(טבלה2[[#This Row],[שכר לשעה]]="",טבלה2[[#This Row],[שעות]]=""),"",IF( IF(OR(טבלה2[[#This Row],[מטבע]]="₪",AND(מטבע="שקלים",טבלה2[[#This Row],[מטבע]]="")),טבלה2[[#This Row],[שכר בשקלים]]+טבלה2[[#This Row],[חיובים נוספים]]-טבלה2[[#This Row],[זיכויים / שולם]], IF(OR(טבלה2[[#This Row],[מטבע]]="$",AND(מטבע="דולרים",טבלה2[[#This Row],[מטבע]]="")),טבלה2[[#This Row],[שכר בדולרים]]+טבלה2[[#This Row],[חיובים נוספים]]-טבלה2[[#This Row],[זיכויים / שולם]],""))=0,"", IF(OR(טבלה2[[#This Row],[מטבע]]="₪",AND(מטבע="שקלים",טבלה2[[#This Row],[מטבע]]="")),טבלה2[[#This Row],[שכר בשקלים]]+טבלה2[[#This Row],[חיובים נוספים]]-טבלה2[[#This Row],[זיכויים / שולם]], IF(OR(טבלה2[[#This Row],[מטבע]]="$",AND(מטבע="דולרים",טבלה2[[#This Row],[מטבע]]="")),טבלה2[[#This Row],[שכר בדולרים]]+טבלה2[[#This Row],[חיובים נוספים]]-טבלה2[[#This Row],[זיכויים / שולם]],"")))) ->  | BJ14: =IF(BJ12="","",BJ12) -> הקלדה | BK14: =IF(טבלה2[[#This Row],[שמות העבודות]]="","",טבלה2[[#This Row],[שמות העבודות]]) -> 
B15: =IF(AND(טבלה1[[#This Row],[תאריך]]="",טבלה1[[#This Row],[התחלה]]="",טבלה1[[#This Row],[שם העבודה]]=""),"",ROW()-10) -> 5 | C15: =IF(טבלה1[[#This Row],[תאריך]]="","",IF(TEXT(טבלה1[[#This Row],[תאריך]],"DDD")="שבת","מוצ""ש",TEXT(טבלה1[[#This Row],[תאריך]],"DDD"))) -> יום ו | D15: 2024-08-09 | E15: 14:17:24 | F15: מכון אורה | G15: 16:17:28 | J15: =IF(IF(AND(טבלה1[[#This Row],[התחלה]]="",טבלה1[[#This Row],[סיום]]<>""),"",IF(AND(טבלה1[[#This Row],[התחלה]]<>"",טבלה1[[#This Row],[סיום]]=""), SUM(MOD(MOD(NOW(),1)-טבלה1[[#This Row],[התחלה]],1),טבלה1[[#This Row],[הוספת דקות]],-טבלה1[[#This Row],[הפחתת דקות]]), SUM(MOD(טבלה1[[#This Row],[סיום]]-טבלה1[[#This Row],[התחלה]],1),טבלה1[[#This Row],[הוספת דקות]],-טבלה1[[#This Row],[הפחתת דקות]])))<=0,"", IF(AND(טבלה1[[#This Row],[התחלה]]="",טבלה1[[#This Row],[סיום]]<>""),"",IF(AND(טבלה1[[#This Row],[התחלה]]<>"",טבלה1[[#This Row],[סיום]]=""), SUM(MOD(MOD(NOW(),1)-טבלה1[[#This Row],[התחלה]],1),טבלה1[[#This Row],[הוספת דקות]],-טבלה1[[#This Row],[הפחתת דקות]]), SUM(MOD(טבלה1[[#This Row],[סיום]]-טבלה1[[#This Row],[התחלה]],1),טבלה1[[#This Row],[הוספת דקות]],-טבלה1[[#This Row],[הפחתת דקות]])))) -> 0.08337962963 | K15: =IF(טבלה1[[#This Row],[שעות]]="","",IFERROR( IF(IF(AND(מטבע="שקלים",VLOOKUP(טבלה1[[#This Row],[שם העבודה]],טבלה2[],3,FALSE)="$"), VLOOKUP(טבלה1[[#This Row],[שם העבודה]],טבלה2[#All],2,FALSE)*טבלה1[[#This Row],[שעות]]*24*שער, IF(AND(מטבע="דולרים",VLOOKUP(טבלה1[[#This Row],[שם העבודה]],טבלה2[],3,FALSE)="₪"), VLOOKUP(טבלה1[[#This Row],[שם העבודה]],טבלה2[#All],2,FALSE)*טבלה1[[#This Row],[שעות]]*24/שער, VLOOKUP(טבלה1[[#This Row],[שם העבודה]],טבלה2[#All],2,FALSE)*טבלה1[[#This Row],[שעות]]*24))=0,"", IF(AND(מטבע="שקלים",VLOOKUP(טבלה1[[#This Row],[שם העבודה]],טבלה2[],3,FALSE)="$"), VLOOKUP(טבלה1[[#This Row],[שם העבודה]],טבלה2[#All],2,FALSE)*טבלה1[[#This Row],[שעות]]*24*שער, IF(AND(מטבע="דולרים",VLOOKUP(טבלה1[[#This Row],[שם העבודה]],טבלה2[],3,FALSE)="₪"), VLOOKUP(טבלה1[[#This Row],[שם העבודה]],טבלה2[#All],2,FALSE)*טבלה1[[#This Row],[שעות]]*24/שער, VLOOKUP(טבלה1[[#This Row],[שם העבודה]],טבלה2[#All],2,FALSE)*טבלה1[[#This Row],[שעות]]*24))),"")) -> 80.04444444 | L15: =IF(טבלה1[[#This Row],[תאריך]]="","",DATE(YEAR(טבלה1[[#This Row],[תאריך]]),MONTH(טבלה1[[#This Row],[תאריך]]),1)) -> 2024-08-01 | Y15: מחשבון דולר | AE15: עדכון אוטומטי לשער הדולר ניתן לבצע באמצעות הלחצן שבתפריט 'אפשרויות' | AO15: =IF(AL15="","", IFERROR(IF(SUMIFS(טבלה1[שעות],טבלה1[שם העבודה],טבלה2[[#This Row],[שמות העבודות]])=0,"", SUMIFS(טבלה1[שעות],טבלה1[שם העבודה],טבלה2[[#This Row],[שמות העבודות]])),"")) ->  | AP15: =IFERROR(IF(OR(טבלה2[[#This Row],[שכר לשעה]]="",טבלה2[[#This Row],[שעות]]=""),"",IF( IF(OR(טבלה2[[#This Row],[מטבע]]="₪",AND(מטבע="שקלים",טבלה2[[#This Row],[מטבע]]="")), טבלה2[[#This Row],[שכר לשעה]]*טבלה2[[#This Row],[שעות]]*24, IF(OR(טבלה2[[#This Row],[מטבע]]="$",AND(מטבע="דולרים",טבלה2[[#This Row],[מטבע]]="")), טבלה2[[#This Row],[שכר לשעה]]*טבלה2[[#This Row],[שעות]]*24*שער,""))=0,"", IF(OR(טבלה2[[#This Row],[מטבע]]="₪",AND(מטבע="שקלים",טבלה2[[#This Row],[מטבע]]="")), טבלה2[[#This Row],[שכר לשעה]]*טבלה2[[#This Row],[שעות]]*24, IF(OR(טבלה2[[#This Row],[מטבע]]="$",AND(מטבע="דולרים",טבלה2[[#This Row],[מטבע]]="")), טבלה2[[#This Row],[שכר לשעה]]*טבלה2[[#This Row],[שעות]]*24*שער,"")))),"") ->  | AQ15: =IFERROR(IF(OR(טבלה2[[#This Row],[שכר לשעה]]="",טבלה2[[#This Row],[שעות]]=""),"",IF( IF(OR(טבלה2[[#This Row],[מטבע]]="$",AND(מטבע="דולרים",טבלה2[[#This Row],[מטבע]]="")), טבלה2[[#This Row],[שכר לשעה]]*טבלה2[[#This Row],[שעות]]*24, IF(OR(טבלה2[[#This Row],[מטבע]]="₪",AND(מטבע="שקלים",טבלה2[[#This Row],[מטבע]]="")), טבלה2[[#This Row],[שכר לשעה]]*טבלה2[[#This Row],[שעות]]*24/שער,""))=0,"", IF(OR(טבלה2[[#This Row],[מטבע]]="$",AND(מטבע="דולרים",טבלה2[[#This Row],[מטבע]]="")), טבלה2[[#This Row],[שכר לשעה]]*טבלה2[[#This Row],[שעות]]*24, IF(OR(טבלה2[[#This Row],[מטבע]]="₪",AND(מטבע="שקלים",טבלה2[[#This Row],[מטבע]]="")), טבלה2[[#This Row],[שכר לשעה]]*טבלה2[[#This Row],[שעות]]*24/שער,"")))),"") ->  | AT15: =IF(OR(טבלה2[[#This Row],[שכר לשעה]]="",טבלה2[[#This Row],[שעות]]=""),"",IF( IF(OR(טבלה2[[#This Row],[מטבע]]="₪",AND(מטבע="שקלים",טבלה2[[#This Row],[מטבע]]="")),טבלה2[[#This Row],[שכר בשקלים]]+טבלה2[[#This Row],[חיובים נוספים]]-טבלה2[[#This Row],[זיכויים / שולם]], IF(OR(טבלה2[[#This Row],[מטבע]]="$",AND(מטבע="דולרים",טבלה2[[#This Row],[מטבע]]="")),טבלה2[[#This Row],[שכר בדולרים]]+טבלה2[[#This Row],[חיובים נוספים]]-טבלה2[[#This Row],[זיכויים / שולם]],""))=0,"", IF(OR(טבלה2[[#This Row],[מטבע]]="₪",AND(מטבע="שקלים",טבלה2[[#This Row],[מטבע]]="")),טבלה2[[#This Row],[שכר בשקלים]]+טבלה2[[#This Row],[חיובים נוספים]]-טבלה2[[#This Row],[זיכויים / שולם]], IF(OR(טבלה2[[#This Row],[מטבע]]="$",AND(מטבע="דולרים",טבלה2[[#This Row],[מטבע]]="")),טבלה2[[#This Row],[שכר בדולרים]]+טבלה2[[#This Row],[חיובים נוספים]]-טבלה2[[#This Row],[זיכויים / שולם]],"")))) ->  | BJ15: סיסמת הגיליון | BK15: =IF(טבלה2[[#This Row],[שמות העבודות]]="","",טבלה2[[#This Row],[שמות העבודות]]) -> 
B16: =IF(AND(טבלה1[[#This Row],[תאריך]]="",טבלה1[[#This Row],[התחלה]]="",טבלה1[[#This Row],[שם העבודה]]=""),"",ROW()-10) -> 6 | C16: =IF(טבלה1[[#This Row],[תאריך]]="","",IF(TEXT(טבלה1[[#This Row],[תאריך]],"DDD")="שבת","מוצ""ש",TEXT(טבלה1[[#This Row],[תאריך]],"DDD"))) -> מוצ"ש | D16: 2024-08-10 | E16: 02:17:24 | F16: הקלדה | G16: 04:17:28 | J16: =IF(IF(AND(טבלה1[[#This Row],[התחלה]]="",טבלה1[[#This Row],[סיום]]<>""),"",IF(AND(טבלה1[[#This Row],[התחלה]]<>"",טבלה1[[#This Row],[סיום]]=""), SUM(MOD(MOD(NOW(),1)-טבלה1[[#This Row],[התחלה]],1),טבלה1[[#This Row],[הוספת דקות]],-טבלה1[[#This Row],[הפחתת דקות]]), SUM(MOD(טבלה1[[#This Row],[סיום]]-טבלה1[[#This Row],[התחלה]],1),טבלה1[[#This Row],[הוספת דקות]],-טבלה1[[#This Row],[הפחתת דקות]])))<=0,"", IF(AND(טבלה1[[#This Row],[התחלה]]="",טבלה1[[#This Row],[סיום]]<>""),"",IF(AND(טבלה1[[#This Row],[התחלה]]<>"",טבלה1[[#This Row],[סיום]]=""), SUM(MOD(MOD(NOW(),1)-טבלה1[[#This Row],[התחלה]],1),טבלה1[[#This Row],[הוספת דקות]],-טבלה1[[#This Row],[הפחתת דקות]]), SUM(MOD(טבלה1[[#This Row],[סיום]]-טבלה1[[#This Row],[התחלה]],1),טבלה1[[#This Row],[הוספת דקות]],-טבלה1[[#This Row],[הפחתת דקות]])))) -> 0.08337962963 | K16: =IF(טבלה1[[#This Row],[שעות]]="","",IFERROR( IF(IF(AND(מטבע="שקלים",VLOOKUP(טבלה1[[#This Row],[שם העבודה]],טבלה2[],3,FALSE)="$"), VLOOKUP(טבלה1[[#This Row],[שם העבודה]],טבלה2[#All],2,FALSE)*טבלה1[[#This Row],[שעות]]*24*שער, IF(AND(מטבע="דולרים",VLOOKUP(טבלה1[[#This Row],[שם העבודה]],טבלה2[],3,FALSE)="₪"), VLOOKUP(טבלה1[[#This Row],[שם העבודה]],טבלה2[#All],2,FALSE)*טבלה1[[#This Row],[שעות]]*24/שער, VLOOKUP(טבלה1[[#This Row],[שם העבודה]],טבלה2[#All],2,FALSE)*טבלה1[[#This Row],[שעות]]*24))=0,"", IF(AND(מטבע="שקלים",VLOOKUP(טבלה1[[#This Row],[שם העבודה]],טבלה2[],3,FALSE)="$"), VLOOKUP(טבלה1[[#This Row],[שם העבודה]],טבלה2[#All],2,FALSE)*טבלה1[[#This Row],[שעות]]*24*שער, IF(AND(מטבע="דולרים",VLOOKUP(טבלה1[[#This Row],[שם העבודה]],טבלה2[],3,FALSE)="₪"), VLOOKUP(טבלה1[[#This Row],[שם העבודה]],טבלה2[#All],2,FALSE)*טבלה1[[#This Row],[שעות]]*24/שער, VLOOKUP(טבלה1[[#This Row],[שם העבודה]],טבלה2[#All],2,FALSE)*טבלה1[[#This Row],[שעות]]*24))),"")) -> 100.0555556 | L16: =IF(טבלה1[[#This Row],[תאריך]]="","",DATE(YEAR(טבלה1[[#This Row],[תאריך]]),MONTH(טבלה1[[#This Row],[תאריך]]),1)) -> 2024-08-01 | AO16: =IF(AL16="","", IFERROR(IF(SUMIFS(טבלה1[שעות],טבלה1[שם העבודה],טבלה2[[#This Row],[שמות העבודות]])=0,"", SUMIFS(טבלה1[שעות],טבלה1[שם העבודה],טבלה2[[#This Row],[שמות העבודות]])),"")) ->  | AP16: =IFERROR(IF(OR(טבלה2[[#This Row],[שכר לשעה]]="",טבלה2[[#This Row],[שעות]]=""),"",IF( IF(OR(טבלה2[[#This Row],[מטבע]]="₪",AND(מטבע="שקלים",טבלה2[[#This Row],[מטבע]]="")), טבלה2[[#This Row],[שכר לשעה]]*טבלה2[[#This Row],[שעות]]*24, IF(OR(טבלה2[[#This Row],[מטבע]]="$",AND(מטבע="דולרים",טבלה2[[#This Row],[מטבע]]="")), טבלה2[[#This Row],[שכר לשעה]]*טבלה2[[#This Row],[שעות]]*24*שער,""))=0,"", IF(OR(טבלה2[[#This Row],[מטבע]]="₪",AND(מטבע="שקלים",טבלה2[[#This Row],[מטבע]]="")), טבלה2[[#This Row],[שכר לשעה]]*טבלה2[[#This Row],[שעות]]*24, IF(OR(טבלה2[[#This Row],[מטבע]]="$",AND(מטבע="דולרים",טבלה2[[#This Row],[מטבע]]="")), טבלה2[[#This Row],[שכר לשעה]]*טבלה2[[#This Row],[שעות]]*24*שער,"")))),"") ->  | AQ16: =IFERROR(IF(OR(טבלה2[[#This Row],[שכר לשעה]]="",טבלה2[[#This Row],[שעות]]=""),"",IF( IF(OR(טבלה2[[#This Row],[מטבע]]="$",AND(מטבע="דולרים",טבלה2[[#This Row],[מטבע]]="")), טבלה2[[#This Row],[שכר לשעה]]*טבלה2[[#This Row],[שעות]]*24, IF(OR(טבלה2[[#This Row],[מטבע]]="₪",AND(מטבע="שקלים",טבלה2[[#This Row],[מטבע]]="")), טבלה2[[#This Row],[שכר לשעה]]*טבלה2[[#This Row],[שעות]]*24/שער,""))=0,"", IF(OR(טבלה2[[#This Row],[מטבע]]="$",AND(מטבע="דולרים",טבלה2[[#This Row],[מטבע]]="")), טבלה2[[#This Row],[שכר לשעה]]*טבלה2[[#This Row],[שעות]]*24, IF(OR(טבלה2[[#This Row],[מטבע]]="₪",AND(מטבע="שקלים",טבלה2[[#This Row],[מטבע]]="")), טבלה2[[#This Row],[שכר לשעה]]*טבלה2[[#This Row],[שעות]]*24/שער,"")))),"") ->  | AT16: =IF(OR(טבלה2[[#This Row],[שכר לשעה]]="",טבלה2[[#This Row],[שעות]]=""),"",IF( IF(OR(טבלה2[[#This Row],[מטבע]]="₪",AND(מטבע="שקלים",טבלה2[[#This Row],[מטבע]]="")),טבלה2[[#This Row],[שכר בשקלים]]+טבלה2[[#This Row],[חיובים נוספים]]-טבלה2[[#This Row],[זיכויים / שולם]], IF(OR(טבלה2[[#This Row],[מטבע]]="$",AND(מטבע="דולרים",טבלה2[[#This Row],[מטבע]]="")),טבלה2[[#This Row],[שכר בדולרים]]+טבלה2[[#This Row],[חיובים נוספים]]-טבלה2[[#This Row],[זיכויים / שולם]],""))=0,"", IF(OR(טבלה2[[#This Row],[מטבע]]="₪",AND(מטבע="שקלים",טבלה2[[#This Row],[מטבע]]="")),טבלה2[[#This Row],[שכר בשקלים]]+טבלה2[[#This Row],[חיובים נוספים]]-טבלה2[[#This Row],[זיכויים / שולם]], IF(OR(טבלה2[[#This Row],[מטבע]]="$",AND(מטבע="דולרים",טבלה2[[#This Row],[מטבע]]="")),טבלה2[[#This Row],[שכר בדולרים]]+טבלה2[[#This Row],[חיובים נוספים]]-טבלה2[[#This Row],[זיכויים / שולם]],"")))) ->  | BJ16: 1234 | BK16: =IF(טבלה2[[#This Row],[שמות העבודות]]="","",טבלה2[[#This Row],[שמות העבודות]]) -> 
B17: =IF(AND(טבלה1[[#This Row],[תאריך]]="",טבלה1[[#This Row],[התחלה]]="",טבלה1[[#This Row],[שם העבודה]]=""),"",ROW()-10) -> 7 | C17: =IF(טבלה1[[#This Row],[תאריך]]="","",IF(TEXT(טבלה1[[#This Row],[תאריך]],"DDD")="שבת","מוצ""ש",TEXT(טבלה1[[#This Row],[תאריך]],"DDD"))) -> יום א | D17: 2024-08-11 | E17: 02:17:24 | F17: עימוד | G17: 04:17:28 | J17: =IF(IF(AND(טבלה1[[#This Row],[התחלה]]="",טבלה1[[#This Row],[סיום]]<>""),"",IF(AND(טבלה1[[#This Row],[התחלה]]<>"",טבלה1[[#This Row],[סיום]]=""), SUM(MOD(MOD(NOW(),1)-טבלה1[[#This Row],[התחלה]],1),טבלה1[[#This Row],[הוספת דקות]],-טבלה1[[#This Row],[הפחתת דקות]]), SUM(MOD(טבלה1[[#This Row],[סיום]]-טבלה1[[#This Row],[התחלה]],1),טבלה1[[#This Row],[הוספת דקות]],-טבלה1[[#This Row],[הפחתת דקות]])))<=0,"", IF(AND(טבלה1[[#This Row],[התחלה]]="",טבלה1[[#This Row],[סיום]]<>""),"",IF(AND(טבלה1[[#This Row],[התחלה]]<>"",טבלה1[[#This Row],[סיום]]=""), SUM(MOD(MOD(NOW(),1)-טבלה1[[#This Row],[התחלה]],1),טבלה1[[#This Row],[הוספת דקות]],-טבלה1[[#This Row],[הפחתת דקות]]), SUM(MOD(טבלה1[[#This Row],[סיום]]-טבלה1[[#This Row],[התחלה]],1),טבלה1[[#This Row],[הוספת דקות]],-טבלה1[[#This Row],[הפחתת דקות]])))) -> 0.08337962963 | K17: =IF(טבלה1[[#This Row],[שעות]]="","",IFERROR( IF(IF(AND(מטבע="שקלים",VLOOKUP(טבלה1[[#This Row],[שם העבודה]],טבלה2[],3,FALSE)="$"), VLOOKUP(טבלה1[[#This Row],[שם העבודה]],טבלה2[#All],2,FALSE)*טבלה1[[#This Row],[שעות]]*24*שער, IF(AND(מטבע="דולרים",VLOOKUP(טבלה1[[#This Row],[שם העבודה]],טבלה2[],3,FALSE)="₪"), VLOOKUP(טבלה1[[#This Row],[שם העבודה]],טבלה2[#All],2,FALSE)*טבלה1[[#This Row],[שעות]]*24/שער, VLOOKUP(טבלה1[[#This Row],[שם העבודה]],טבלה2[#All],2,FALSE)*טבלה1[[#This Row],[שעות]]*24))=0,"", IF(AND(מטבע="שקלים",VLOOKUP(טבלה1[[#This Row],[שם העבודה]],טבלה2[],3,FALSE)="$"), VLOOKUP(טבלה1[[#This Row],[שם העבודה]],טבלה2[#All],2,FALSE)*טבלה1[[#This Row],[שעות]]*24*שער, IF(AND(מטבע="דולרים",VLOOKUP(טבלה1[[#This Row],[שם העבודה]],טבלה2[],3,FALSE)="₪"), VLOOKUP(טבלה1[[#This Row],[שם העבודה]],טבלה2[#All],2,FALSE)*טבלה1[[#This Row],[שעות]]*24/שער, VLOOKUP(טבלה1[[#This Row],[שם העבודה]],טבלה2[#All],2,FALSE)*טבלה1[[#This Row],[שעות]]*24))),"")) -> 120.0666667 | L17: =IF(טבלה1[[#This Row],[תאריך]]="","",DATE(YEAR(טבלה1[[#This Row],[תאריך]]),MONTH(טבלה1[[#This Row],[תאריך]]),1)) -> 2024-08-01 | Q17: שער הדולר בשקלים | S17: תאריך שינוי אחרון | AO17: =IF(AL17="","", IFERROR(IF(SUMIFS(טבלה1[שעות],טבלה1[שם העבודה],טבלה2[[#This Row],[שמות העבודות]])=0,"", SUMIFS(טבלה1[שעות],טבלה1[שם העבודה],טבלה2[[#This Row],[שמות העבודות]])),"")) ->  | AP17: =IFERROR(IF(OR(טבלה2[[#This Row],[שכר לשעה]]="",טבלה2[[#This Row],[שעות]]=""),"",IF( IF(OR(טבלה2[[#This Row],[מטבע]]="₪",AND(מטבע="שקלים",טבלה2[[#This Row],[מטבע]]="")), טבלה2[[#This Row],[שכר לשעה]]*טבלה2[[#This Row],[שעות]]*24, IF(OR(טבלה2[[#This Row],[מטבע]]="$",AND(מטבע="דולרים",טבלה2[[#This Row],[מטבע]]="")), טבלה2[[#This Row],[שכר לשעה]]*טבלה2[[#This Row],[שעות]]*24*שער,""))=0,"", IF(OR(טבלה2[[#This Row],[מטבע]]="₪",AND(מטבע="שקלים",טבלה2[[#This Row],[מטבע]]="")), טבלה2[[#This Row],[שכר לשעה]]*טבלה2[[#This Row],[שעות]]*24, IF(OR(טבלה2[[#This Row],[מטבע]]="$",AND(מטבע="דולרים",טבלה2[[#This Row],[מטבע]]="")), טבלה2[[#This Row],[שכר לשעה]]*טבלה2[[#This Row],[שעות]]*24*שער,"")))),"") ->  | AQ17: =IFERROR(IF(OR(טבלה2[[#This Row],[שכר לשעה]]="",טבלה2[[#This Row],[שעות]]=""),"",IF( IF(OR(טבלה2[[#This Row],[מטבע]]="$",AND(מטבע="דולרים",טבלה2[[#This Row],[מטבע]]="")), טבלה2[[#This Row],[שכר לשעה]]*טבלה2[[#This Row],[שעות]]*24, IF(OR(טבלה2[[#This Row],[מטבע]]="₪",AND(מטבע="שקלים",טבלה2[[#This Row],[מטבע]]="")), טבלה2[[#This Row],[שכר לשעה]]*טבלה2[[#This Row],[שעות]]*24/שער,""))=0,"", IF(OR(טבלה2[[#This Row],[מטבע]]="$",AND(מטבע="דולרים",טבלה2[[#This Row],[מטבע]]="")), טבלה2[[#This Row],[שכר לשעה]]*טבלה2[[#This Row],[שעות]]*24, IF(OR(טבלה2[[#This Row],[מטבע]]="₪",AND(מטבע="שקלים",טבלה2[[#This Row],[מטבע]]="")), טבלה2[[#This Row],[שכר לשעה]]*טבלה2[[#This Row],[שעות]]*24/שער,"")))),"") ->  | AT17: =IF(OR(טבלה2[[#This Row],[שכר לשעה]]="",טבלה2[[#This Row],[שעות]]=""),"",IF( IF(OR(טבלה2[[#This Row],[מטבע]]="₪",AND(מטבע="שקלים",טבלה2[[#This Row],[מטבע]]="")),טבלה2[[#This Row],[שכר בשקלים]]+טבלה2[[#This Row],[חיובים נוספים]]-טבלה2[[#This Row],[זיכויים / שולם]], IF(OR(טבלה2[[#This Row],[מטבע]]="$",AND(מטבע="דולרים",טבלה2[[#This Row],[מטבע]]="")),טבלה2[[#This Row],[שכר בדולרים]]+טבלה2[[#This Row],[חיובים נוספים]]-טבלה2[[#This Row],[זיכויים / שולם]],""))=0,"", IF(OR(טבלה2[[#This Row],[מטבע]]="₪",AND(מטבע="שקלים",טבלה2[[#This Row],[מטבע]]="")),טבלה2[[#This Row],[שכר בשקלים]]+טבלה2[[#This Row],[חיובים נוספים]]-טבלה2[[#This Row],[זיכויים / שולם]], IF(OR(טבלה2[[#This Row],[מטבע]]="$",AND(מטבע="דולרים",טבלה2[[#This Row],[מטבע]]="")),טבלה2[[#This Row],[שכר בדולרים]]+טבלה2[[#This Row],[חיובים נוספים]]-טבלה2[[#This Row],[זיכויים / שולם]],"")))) ->  | BJ17: הקלקה כפולה | BK17: =IF(טבלה2[[#This Row],[שמות העבודות]]="","",טבלה2[[#This Row],[שמות העבודות]]) -> 
B18: =IF(AND(טבלה1[[#This Row],[תאריך]]="",טבלה1[[#This Row],[התחלה]]="",טבלה1[[#This Row],[שם העבודה]]=""),"",ROW()-10) -> 8 | C18: =IF(טבלה1[[#This Row],[תאריך]]="","",IF(TEXT(טבלה1[[#This Row],[תאריך]],"DDD")="שבת","מוצ""ש",TEXT(טבלה1[[#This Row],[תאריך]],"DDD"))) -> יום ב | D18: 2024-08-12 | E18: 02:17:24 | F18: הגהה | G18: 04:17:28 | J18: =IF(IF(AND(טבלה1[[#This Row],[התחלה]]="",טבלה1[[#This Row],[סיום]]<>""),"",IF(AND(טבלה1[[#This Row],[התחלה]]<>"",טבלה1[[#This Row],[סיום]]=""), SUM(MOD(MOD(NOW(),1)-טבלה1[[#This Row],[התחלה]],1),טבלה1[[#This Row],[הוספת דקות]],-טבלה1[[#This Row],[הפחתת דקות]]), SUM(MOD(טבלה1[[#This Row],[סיום]]-טבלה1[[#This Row],[התחלה]],1),טבלה1[[#This Row],[הוספת דקות]],-טבלה1[[#This Row],[הפחתת דקות]])))<=0,"", IF(AND(טבלה1[[#This Row],[התחלה]]="",טבלה1[[#This Row],[סיום]]<>""),"",IF(AND(טבלה1[[#This Row],[התחלה]]<>"",טבלה1[[#This Row],[סיום]]=""), SUM(MOD(MOD(NOW(),1)-טבלה1[[#This Row],[התחלה]],1),טבלה1[[#This Row],[הוספת דקות]],-טבלה1[[#This Row],[הפחתת דקות]]), SUM(MOD(טבלה1[[#This Row],[סיום]]-טבלה1[[#This Row],[התחלה]],1),טבלה1[[#This Row],[הוספת דקות]],-טבלה1[[#This Row],[הפחתת דקות]])))) -> 0.08337962963 | K18: =IF(טבלה1[[#This Row],[שעות]]="","",IFERROR( IF(IF(AND(מטבע="שקלים",VLOOKUP(טבלה1[[#This Row],[שם העבודה]],טבלה2[],3,FALSE)="$"), VLOOKUP(טבלה1[[#This Row],[שם העבודה]],טבלה2[#All],2,FALSE)*טבלה1[[#This Row],[שעות]]*24*שער, IF(AND(מטבע="דולרים",VLOOKUP(טבלה1[[#This Row],[שם העבודה]],טבלה2[],3,FALSE)="₪"), VLOOKUP(טבלה1[[#This Row],[שם העבודה]],טבלה2[#All],2,FALSE)*טבלה1[[#This Row],[שעות]]*24/שער, VLOOKUP(טבלה1[[#This Row],[שם העבודה]],טבלה2[#All],2,FALSE)*טבלה1[[#This Row],[שעות]]*24))=0,"", IF(AND(מטבע="שקלים",VLOOKUP(טבלה1[[#This Row],[שם העבודה]],טבלה2[],3,FALSE)="$"), VLOOKUP(טבלה1[[#This Row],[שם העבודה]],טבלה2[#All],2,FALSE)*טבלה1[[#This Row],[שעות]]*24*שער, IF(AND(מטבע="דולרים",VLOOKUP(טבלה1[[#This Row],[שם העבודה]],טבלה2[],3,FALSE)="₪"), VLOOKUP(טבלה1[[#This Row],[שם העבודה]],טבלה2[#All],2,FALSE)*טבלה1[[#This Row],[שעות]]*24/שער, VLOOKUP(טבלה1[[#This Row],[שם העבודה]],טבלה2[#All],2,FALSE)*טבלה1[[#This Row],[שעות]]*24))),"")) -> 140.0777778 | L18: =IF(טבלה1[[#This Row],[תאריך]]="","",DATE(YEAR(טבלה1[[#This Row],[תאריך]]),MONTH(טבלה1[[#This Row],[תאריך]]),1)) -> 2024-08-01 | X18: משקל לדולר | AB18: מדולר לשקל | AO18: =IF(AL18="","", IFERROR(IF(SUMIFS(טבלה1[שעות],טבלה1[שם העבודה],טבלה2[[#This Row],[שמות העבודות]])=0,"", SUMIFS(טבלה1[שעות],טבלה1[שם העבודה],טבלה2[[#This Row],[שמות העבודות]])),"")) ->  | AP18: =IFERROR(IF(OR(טבלה2[[#This Row],[שכר לשעה]]="",טבלה2[[#This Row],[שעות]]=""),"",IF( IF(OR(טבלה2[[#This Row],[מטבע]]="₪",AND(מטבע="שקלים",טבלה2[[#This Row],[מטבע]]="")), טבלה2[[#This Row],[שכר לשעה]]*טבלה2[[#This Row],[שעות]]*24, IF(OR(טבלה2[[#This Row],[מטבע]]="$",AND(מטבע="דולרים",טבלה2[[#This Row],[מטבע]]="")), טבלה2[[#This Row],[שכר לשעה]]*טבלה2[[#This Row],[שעות]]*24*שער,""))=0,"", IF(OR(טבלה2[[#This Row],[מטבע]]="₪",AND(מטבע="שקלים",טבלה2[[#This Row],[מטבע]]="")), טבלה2[[#This Row],[שכר לשעה]]*טבלה2[[#This Row],[שעות]]*24, IF(OR(טבלה2[[#This Row],[מטבע]]="$",AND(מטבע="דולרים",טבלה2[[#This Row],[מטבע]]="")), טבלה2[[#This Row],[שכר לשעה]]*טבלה2[[#This Row],[שעות]]*24*שער,"")))),"") ->  | AQ18: =IFERROR(IF(OR(טבלה2[[#This Row],[שכר לשעה]]="",טבלה2[[#This Row],[שעות]]=""),"",IF( IF(OR(טבלה2[[#This Row],[מטבע]]="$",AND(מטבע="דולרים",טבלה2[[#This Row],[מטבע]]="")), טבלה2[[#This Row],[שכר לשעה]]*טבלה2[[#This Row],[שעות]]*24, IF(OR(טבלה2[[#This Row],[מטבע]]="₪",AND(מטבע="שקלים",טבלה2[[#This Row],[מטבע]]="")), טבלה2[[#This Row],[שכר לשעה]]*טבלה2[[#This Row],[שעות]]*24/שער,""))=0,"", IF(OR(טבלה2[[#This Row],[מטבע]]="$",AND(מטבע="דולרים",טבלה2[[#This Row],[מטבע]]="")), טבלה2[[#This Row],[שכר לשעה]]*טבלה2[[#This Row],[שעות]]*24, IF(OR(טבלה2[[#This Row],[מטבע]]="₪",AND(מטבע="שקלים",טבלה2[[#This Row],[מטבע]]="")), טבלה2[[#This Row],[שכר לשעה]]*טבלה2[[#This Row],[שעות]]*24/שער,"")))),"") ->  | AT18: =IF(OR(טבלה2[[#This Row],[שכר לשעה]]="",טבלה2[[#This Row],[שעות]]=""),"",IF( IF(OR(טבלה2[[#This Row],[מטבע]]="₪",AND(מטבע="שקלים",טבלה2[[#This Row],[מטבע]]="")),טבלה2[[#This Row],[שכר בשקלים]]+טבלה2[[#This Row],[חיובים נוספים]]-טבלה2[[#This Row],[זיכויים / שולם]], IF(OR(טבלה2[[#This Row],[מטבע]]="$",AND(מטבע="דולרים",טבלה2[[#This Row],[מטבע]]="")),טבלה2[[#This Row],[שכר בדולרים]]+טבלה2[[#This Row],[חיובים נוספים]]-טבלה2[[#This Row],[זיכויים / שולם]],""))=0,"", IF(OR(טבלה2[[#This Row],[מטבע]]="₪",AND(מטבע="שקלים",טבלה2[[#This Row],[מטבע]]="")),טבלה2[[#This Row],[שכר בשקלים]]+טבלה2[[#This Row],[חיובים נוספים]]-טבלה2[[#This Row],[זיכויים / שולם]], IF(OR(טבלה2[[#This Row],[מטבע]]="$",AND(מטבע="דולרים",טבלה2[[#This Row],[מטבע]]="")),טבלה2[[#This Row],[שכר בדולרים]]+טבלה2[[#This Row],[חיובים נוספים]]-טבלה2[[#This Row],[זיכויים / שולם]],"")))) ->  | BJ18: מופעל | BK18: =IF(טבלה2[[#This Row],[שמות העבודות]]="","",טבלה2[[#This Row],[שמות העבודות]]) -> 
B19: =IF(AND(טבלה1[[#This Row],[תאריך]]="",טבלה1[[#This Row],[התחלה]]="",טבלה1[[#This Row],[שם העבודה]]=""),"",ROW()-10) -> 9 | C19: =IF(טבלה1[[#This Row],[תאריך]]="","",IF(TEXT(טבלה1[[#This Row],[תאריך]],"DDD")="שבת","מוצ""ש",TEXT(טבלה1[[#This Row],[תאריך]],"DDD"))) -> יום ג | D19: 2024-08-13 | E19: 02:17:24 | F19: מכון תורה אור | G19: 04:17:28 | J19: =IF(IF(AND(טבלה1[[#This Row],[התחלה]]="",טבלה1[[#This Row],[סיום]]<>""),"",IF(AND(טבלה1[[#This Row],[התחלה]]<>"",טבלה1[[#This Row],[סיום]]=""), SUM(MOD(MOD(NOW(),1)-טבלה1[[#This Row],[התחלה]],1),טבלה1[[#This Row],[הוספת דקות]],-טבלה1[[#This Row],[הפחתת דקות]]), SUM(MOD(טבלה1[[#This Row],[סיום]]-טבלה1[[#This Row],[התחלה]],1),טבלה1[[#This Row],[הוספת דקות]],-טבלה1[[#This Row],[הפחתת דקות]])))<=0,"", IF(AND(טבלה1[[#This Row],[התחלה]]="",טבלה1[[#This Row],[סיום]]<>""),"",IF(AND(טבלה1[[#This Row],[התחלה]]<>"",טבלה1[[#This Row],[סיום]]=""), SUM(MOD(MOD(NOW(),1)-טבלה1[[#This Row],[התחלה]],1),טבלה1[[#This Row],[הוספת דקות]],-טבלה1[[#This Row],[הפחתת דקות]]), SUM(MOD(טבלה1[[#This Row],[סיום]]-טבלה1[[#This Row],[התחלה]],1),טבלה1[[#This Row],[הוספת דקות]],-טבלה1[[#This Row],[הפחתת דקות]])))) -> 0.08337962963 | K19: =IF(טבלה1[[#This Row],[שעות]]="","",IFERROR( IF(IF(AND(מטבע="שקלים",VLOOKUP(טבלה1[[#This Row],[שם העבודה]],טבלה2[],3,FALSE)="$"), VLOOKUP(טבלה1[[#This Row],[שם העבודה]],טבלה2[#All],2,FALSE)*טבלה1[[#This Row],[שעות]]*24*שער, IF(AND(מטבע="דולרים",VLOOKUP(טבלה1[[#This Row],[שם העבודה]],טבלה2[],3,FALSE)="₪"), VLOOKUP(טבלה1[[#This Row],[שם העבודה]],טבלה2[#All],2,FALSE)*טבלה1[[#This Row],[שעות]]*24/שער, VLOOKUP(טבלה1[[#This Row],[שם העבודה]],טבלה2[#All],2,FALSE)*טבלה1[[#This Row],[שעות]]*24))=0,"", IF(AND(מטבע="שקלים",VLOOKUP(טבלה1[[#This Row],[שם העבודה]],טבלה2[],3,FALSE)="$"), VLOOKUP(טבלה1[[#This Row],[שם העבודה]],טבלה2[#All],2,FALSE)*טבלה1[[#This Row],[שעות]]*24*שער, IF(AND(מטבע="דולרים",VLOOKUP(טבלה1[[#This Row],[שם העבודה]],טבלה2[],3,FALSE)="₪"), VLOOKUP(טבלה1[[#This Row],[שם העבודה]],טבלה2[#All],2,FALSE)*טבלה1[[#This Row],[שעות]]*24/שער, VLOOKUP(טבלה1[[#This Row],[שם העבודה]],טבלה2[#All],2,FALSE)*טבלה1[[#This Row],[שעות]]*24))),"")) -> 130.0722222 | L19: =IF(טבלה1[[#This Row],[תאריך]]="","",DATE(YEAR(טבלה1[[#This Row],[תאריך]]),MONTH(טבלה1[[#This Row],[תאריך]]),1)) -> 2024-08-01 | Q19: 3.824 | S19: 2024-08-05T12:22:03.841 | X19: שקלים | Z19: 50 | AB19: דולרים | AD19: 50 | AO19: =IF(AL19="","", IFERROR(IF(SUMIFS(טבלה1[שעות],טבלה1[שם העבודה],טבלה2[[#This Row],[שמות העבודות]])=0,"", SUMIFS(טבלה1[שעות],טבלה1[שם העבודה],טבלה2[[#This Row],[שמות העבודות]])),"")) ->  | AP19: =IFERROR(IF(OR(טבלה2[[#This Row],[שכר לשעה]]="",טבלה2[[#This Row],[שעות]]=""),"",IF( IF(OR(טבלה2[[#This Row],[מטבע]]="₪",AND(מטבע="שקלים",טבלה2[[#This Row],[מטבע]]="")), טבלה2[[#This Row],[שכר לשעה]]*טבלה2[[#This Row],[שעות]]*24, IF(OR(טבלה2[[#This Row],[מטבע]]="$",AND(מטבע="דולרים",טבלה2[[#This Row],[מטבע]]="")), טבלה2[[#This Row],[שכר לשעה]]*טבלה2[[#This Row],[שעות]]*24*שער,""))=0,"", IF(OR(טבלה2[[#This Row],[מטבע]]="₪",AND(מטבע="שקלים",טבלה2[[#This Row],[מטבע]]="")), טבלה2[[#This Row],[שכר לשעה]]*טבלה2[[#This Row],[שעות]]*24, IF(OR(טבלה2[[#This Row],[מטבע]]="$",AND(מטבע="דולרים",טבלה2[[#This Row],[מטבע]]="")), טבלה2[[#This Row],[שכר לשעה]]*טבלה2[[#This Row],[שעות]]*24*שער,"")))),"") ->  | AQ19: =IFERROR(IF(OR(טבלה2[[#This Row],[שכר לשעה]]="",טבלה2[[#This Row],[שעות]]=""),"",IF( IF(OR(טבלה2[[#This Row],[מטבע]]="$",AND(מטבע="דולרים",טבלה2[[#This Row],[מטבע]]="")), טבלה2[[#This Row],[שכר לשעה]]*טבלה2[[#This Row],[שעות]]*24, IF(OR(טבלה2[[#This Row],[מטבע]]="₪",AND(מטבע="שקלים",טבלה2[[#This Row],[מטבע]]="")), טבלה2[[#This Row],[שכר לשעה]]*טבלה2[[#This Row],[שעות]]*24/שער,""))=0,"", IF(OR(טבלה2[[#This Row],[מטבע]]="$",AND(מטבע="דולרים",טבלה2[[#This Row],[מטבע]]="")), טבלה2[[#This Row],[שכר לשעה]]*טבלה2[[#This Row],[שעות]]*24, IF(OR(טבלה2[[#This Row],[מטבע]]="₪",AND(מטבע="שקלים",טבלה2[[#This Row],[מטבע]]="")), טבלה2[[#This Row],[שכר לשעה]]*טבלה2[[#This Row],[שעות]]*24/שער,"")))),"") ->  | AT19: =IF(OR(טבלה2[[#This Row],[שכר לשעה]]="",טבלה2[[#This Row],[שעות]]=""),"",IF( IF(OR(טבלה2[[#This Row],[מטבע]]="₪",AND(מטבע="שקלים",טבלה2[[#This Row],[מטבע]]="")),טבלה2[[#This Row],[שכר בשקלים]]+טבלה2[[#This Row],[חיובים נוספים]]-טבלה2[[#This Row],[זיכויים / שולם]], IF(OR(טבלה2[[#This Row],[מטבע]]="$",AND(מטבע="דולרים",טבלה2[[#This Row],[מטבע]]="")),טבלה2[[#This Row],[שכר בדולרים]]+טבלה2[[#This Row],[חיובים נוספים]]-טבלה2[[#This Row],[זיכויים / שולם]],""))=0,"", IF(OR(טבלה2[[#This Row],[מטבע]]="₪",AND(מטבע="שקלים",טבלה2[[#This Row],[מטבע]]="")),טבלה2[[#This Row],[שכר בשקלים]]+טבלה2[[#This Row],[חיובים נוספים]]-טבלה2[[#This Row],[זיכויים / שולם]], IF(OR(טבלה2[[#This Row],[מטבע]]="$",AND(מטבע="דולרים",טבלה2[[#This Row],[מטבע]]="")),טבלה2[[#This Row],[שכר בדולרים]]+טבלה2[[#This Row],[חיובים נוספים]]-טבלה2[[#This Row],[זיכויים / שולם]],"")))) ->  | BJ19: עיצוב מותנה | BK19: =IF(טבלה2[[#This Row],[שמות העבודות]]="","",טבלה2[[#This Row],[שמות העבודות]]) -> 
B20: =IF(AND(טבלה1[[#This Row],[תאריך]]="",טבלה1[[#This Row],[התחלה]]="",טבלה1[[#This Row],[שם העבודה]]=""),"",ROW()-10) -> 10 | C20: =IF(טבלה1[[#This Row],[תאריך]]="","",IF(TEXT(טבלה1[[#This Row],[תאריך]],"DDD")="שבת","מוצ""ש",TEXT(טבלה1[[#This Row],[תאריך]],"DDD"))) -> יום ד | D20: 2024-08-14 | E20: 02:17:24 | F20: מכון אורה | G20: 04:17:28 | J20: =IF(IF(AND(טבלה1[[#This Row],[התחלה]]="",טבלה1[[#This Row],[סיום]]<>""),"",IF(AND(טבלה1[[#This Row],[התחלה]]<>"",טבלה1[[#This Row],[סיום]]=""), SUM(MOD(MOD(NOW(),1)-טבלה1[[#This Row],[התחלה]],1),טבלה1[[#This Row],[הוספת דקות]],-טבלה1[[#This Row],[הפחתת דקות]]), SUM(MOD(טבלה1[[#This Row],[סיום]]-טבלה1[[#This Row],[התחלה]],1),טבלה1[[#This Row],[הוספת דקות]],-טבלה1[[#This Row],[הפחתת דקות]])))<=0,"", IF(AND(טבלה1[[#This Row],[התחלה]]="",טבלה1[[#This Row],[סיום]]<>""),"",IF(AND(טבלה1[[#This Row],[התחלה]]<>"",טבלה1[[#This Row],[סיום]]=""), SUM(MOD(MOD(NOW(),1)-טבלה1[[#This Row],[התחלה]],1),טבלה1[[#This Row],[הוספת דקות]],-טבלה1[[#This Row],[הפחתת דקות]]), SUM(MOD(טבלה1[[#This Row],[סיום]]-טבלה1[[#This Row],[התחלה]],1),טבלה1[[#This Row],[הוספת דקות]],-טבלה1[[#This Row],[הפחתת דקות]])))) -> 0.08337962963 | K20: =IF(טבלה1[[#This Row],[שעות]]="","",IFERROR( IF(IF(AND(מטבע="שקלים",VLOOKUP(טבלה1[[#This Row],[שם העבודה]],טבלה2[],3,FALSE)="$"), VLOOKUP(טבלה1[[#This Row],[שם העבודה]],טבלה2[#All],2,FALSE)*טבלה1[[#This Row],[שעות]]*24*שער, IF(AND(מטבע="דולרים",VLOOKUP(טבלה1[[#This Row],[שם העבודה]],טבלה2[],3,FALSE)="₪"), VLOOKUP(טבלה1[[#This Row],[שם העבודה]],טבלה2[#All],2,FALSE)*טבלה1[[#This Row],[שעות]]*24/שער, VLOOKUP(טבלה1[[#This Row],[שם העבודה]],טבלה2[#All],2,FALSE)*טבלה1[[#This Row],[שעות]]*24))=0,"", IF(AND(מטבע="שקלים",VLOOKUP(טבלה1[[#This Row],[שם העבודה]],טבלה2[],3,FALSE)="$"), VLOOKUP(טבלה1[[#This Row],[שם העבודה]],טבלה2[#All],2,FALSE)*טבלה1[[#This Row],[שעות]]*24*שער, IF(AND(מטבע="דולרים",VLOOKUP(טבלה1[[#This Row],[שם העבודה]],טבלה2[],3,FALSE)="₪"), VLOOKUP(טבלה1[[#This Row],[שם העבודה]],טבלה2[#All],2,FALSE)*טבלה1[[#This Row],[שעות]]*24/שער, VLOOKUP(טבלה1[[#This Row],[שם העבודה]],טבלה2[#All],2,FALSE)*טבלה1[[#This Row],[שעות]]*24))),"")) -> 80.04444444 | L20: =IF(טבלה1[[#This Row],[תאריך]]="","",DATE(YEAR(טבלה1[[#This Row],[תאריך]]),MONTH(טבלה1[[#This Row],[תאריך]]),1)) -> 2024-08-01 | X20: דולרים | Z20: =IF(Z19/שער=0,0,Z19/שער) -> 13.07531381 | AB20: שקלים | AD20: =IF(AD19*שער=0,0,AD19*שער) -> 191.2 | AO20: =IF(AL20="","", IFERROR(IF(SUMIFS(טבלה1[שעות],טבלה1[שם העבודה],טבלה2[[#This Row],[שמות העבודות]])=0,"", SUMIFS(טבלה1[שעות],טבלה1[שם העבודה],טבלה2[[#This Row],[שמות העבודות]])),"")) ->  | AP20: =IFERROR(IF(OR(טבלה2[[#This Row],[שכר לשעה]]="",טבלה2[[#This Row],[שעות]]=""),"",IF( IF(OR(טבלה2[[#This Row],[מטבע]]="₪",AND(מטבע="שקלים",טבלה2[[#This Row],[מטבע]]="")), טבלה2[[#This Row],[שכר לשעה]]*טבלה2[[#This Row],[שעות]]*24, IF(OR(טבלה2[[#This Row],[מטבע]]="$",AND(מטבע="דולרים",טבלה2[[#This Row],[מטבע]]="")), טבלה2[[#This Row],[שכר לשעה]]*טבלה2[[#This Row],[שעות]]*24*שער,""))=0,"", IF(OR(טבלה2[[#This Row],[מטבע]]="₪",AND(מטבע="שקלים",טבלה2[[#This Row],[מטבע]]="")), טבלה2[[#This Row],[שכר לשעה]]*טבלה2[[#This Row],[שעות]]*24, IF(OR(טבלה2[[#This Row],[מטבע]]="$",AND(מטבע="דולרים",טבלה2[[#This Row],[מטבע]]="")), טבלה2[[#This Row],[שכר לשעה]]*טבלה2[[#This Row],[שעות]]*24*שער,"")))),"") ->  | AQ20: =IFERROR(IF(OR(טבלה2[[#This Row],[שכר לשעה]]="",טבלה2[[#This Row],[שעות]]=""),"",IF( IF(OR(טבלה2[[#This Row],[מטבע]]="$",AND(מטבע="דולרים",טבלה2[[#This Row],[מטבע]]="")), טבלה2[[#This Row],[שכר לשעה]]*טבלה2[[#This Row],[שעות]]*24, IF(OR(טבלה2[[#This Row],[מטבע]]="₪",AND(מטבע="שקלים",טבלה2[[#This Row],[מטבע]]="")), טבלה2[[#This Row],[שכר לשעה]]*טבלה2[[#This Row],[שעות]]*24/שער,""))=0,"", IF(OR(טבלה2[[#This Row],[מטבע]]="$",AND(מטבע="דולרים",טבלה2[[#This Row],[מטבע]]="")), טבלה2[[#This Row],[שכר לשעה]]*טבלה2[[#This Row],[שעות]]*24, IF(OR(טבלה2[[#This Row],[מטבע]]="₪",AND(מטבע="שקלים",טבלה2[[#This Row],[מטבע]]="")), טבלה2[[#This Row],[שכר לשעה]]*טבלה2[[#This Row],[שעות]]*24/שער,"")))),"") ->  | AT20: =IF(OR(טבלה2[[#This Row],[שכר לשעה]]="",טבלה2[[#This Row],[שעות]]=""),"",IF( IF(OR(טבלה2[[#This Row],[מטבע]]="₪",AND(מטבע="שקלים",טבלה2[[#This Row],[מטבע]]="")),טבלה2[[#This Row],[שכר בשקלים]]+טבלה2[[#This Row],[חיובים נוספים]]-טבלה2[[#This Row],[זיכויים / שולם]], IF(OR(טבלה2[[#This Row],[מטבע]]="$",AND(מטבע="דולרים",טבלה2[[#This Row],[מטבע]]="")),טבלה2[[#This Row],[שכר בדולרים]]+טבלה2[[#This Row],[חיובים נוספים]]-טבלה2[[#This Row],[זיכויים / שולם]],""))=0,"", IF(OR(טבלה2[[#This Row],[מטבע]]="₪",AND(מטבע="שקלים",טבלה2[[#This Row],[מטבע]]="")),טבלה2[[#This Row],[שכר בשקלים]]+טבלה2[[#This Row],[חיובים נוספים]]-טבלה2[[#This Row],[זיכויים / שולם]], IF(OR(טבלה2[[#This Row],[מטבע]]="$",AND(מטבע="דולרים",טבלה2[[#This Row],[מטבע]]="")),טבלה2[[#This Row],[שכר בדולרים]]+טבלה2[[#This Row],[חיובים נוספים]]-טבלה2[[#This Row],[זיכויים / שולם]],"")))) ->  | BJ20: מושבת | BK20: =IF(טבלה2[[#This Row],[שמות העבודות]]="","",טבלה2[[#This Row],[שמות העבודות]]) -> 
B21: =IF(AND(טבלה1[[#This Row],[תאריך]]="",טבלה1[[#This Row],[התחלה]]="",טבלה1[[#This Row],[שם העבודה]]=""),"",ROW()-10) -> 11 | C21: =IF(טבלה1[[#This Row],[תאריך]]="","",IF(TEXT(טבלה1[[#This Row],[תאריך]],"DDD")="שבת","מוצ""ש",TEXT(טבלה1[[#This Row],[תאריך]],"DDD"))) -> יום ה | D21: 2024-08-15 | E21: 02:17:24 | F21: הקלדה | G21: 04:17:28 | J21: =IF(IF(AND(טבלה1[[#This Row],[התחלה]]="",טבלה1[[#This Row],[סיום]]<>""),"",IF(AND(טבלה1[[#This Row],[התחלה]]<>"",טבלה1[[#This Row],[סיום]]=""), SUM(MOD(MOD(NOW(),1)-טבלה1[[#This Row],[התחלה]],1),טבלה1[[#This Row],[הוספת דקות]],-טבלה1[[#This Row],[הפחתת דקות]]), SUM(MOD(טבלה1[[#This Row],[סיום]]-טבלה1[[#This Row],[התחלה]],1),טבלה1[[#This Row],[הוספת דקות]],-טבלה1[[#This Row],[הפחתת דקות]])))<=0,"", IF(AND(טבלה1[[#This Row],[התחלה]]="",טבלה1[[#This Row],[סיום]]<>""),"",IF(AND(טבלה1[[#This Row],[התחלה]]<>"",טבלה1[[#This Row],[סיום]]=""), SUM(MOD(MOD(NOW(),1)-טבלה1[[#This Row],[התחלה]],1),טבלה1[[#This Row],[הוספת דקות]],-טבלה1[[#This Row],[הפחתת דקות]]), SUM(MOD(טבלה1[[#This Row],[סיום]]-טבלה1[[#This Row],[התחלה]],1),טבלה1[[#This Row],[הוספת דקות]],-טבלה1[[#This Row],[הפחתת דקות]])))) -> 0.08337962963 | K21: =IF(טבלה1[[#This Row],[שעות]]="","",IFERROR( IF(IF(AND(מטבע="שקלים",VLOOKUP(טבלה1[[#This Row],[שם העבודה]],טבלה2[],3,FALSE)="$"), VLOOKUP(טבלה1[[#This Row],[שם העבודה]],טבלה2[#All],2,FALSE)*טבלה1[[#This Row],[שעות]]*24*שער, IF(AND(מטבע="דולרים",VLOOKUP(טבלה1[[#This Row],[שם העבודה]],טבלה2[],3,FALSE)="₪"), VLOOKUP(טבלה1[[#This Row],[שם העבודה]],טבלה2[#All],2,FALSE)*טבלה1[[#This Row],[שעות]]*24/שער, VLOOKUP(טבלה1[[#This Row],[שם העבודה]],טבלה2[#All],2,FALSE)*טבלה1[[#This Row],[שעות]]*24))=0,"", IF(AND(מטבע="שקלים",VLOOKUP(טבלה1[[#This Row],[שם העבודה]],טבלה2[],3,FALSE)="$"), VLOOKUP(טבלה1[[#This Row],[שם העבודה]],טבלה2[#All],2,FALSE)*טבלה1[[#This Row],[שעות]]*24*שער, IF(AND(מטבע="דולרים",VLOOKUP(טבלה1[[#This Row],[שם העבודה]],טבלה2[],3,FALSE)="₪"), VLOOKUP(טבלה1[[#This Row],[שם העבודה]],טבלה2[#All],2,FALSE)*טבלה1[[#This Row],[שעות]]*24/שער, VLOOKUP(טבלה1[[#This Row],[שם העבודה]],טבלה2[#All],2,FALSE)*טבלה1[[#This Row],[שעות]]*24))),"")) -> 100.0555556 | L21: =IF(טבלה1[[#This Row],[תאריך]]="","",DATE(YEAR(טבלה1[[#This Row],[תאריך]]),MONTH(טבלה1[[#This Row],[תאריך]]),1)) -> 2024-08-01 | AO21: =IF(AL21="","", IFERROR(IF(SUMIFS(טבלה1[שעות],טבלה1[שם העבודה],טבלה2[[#This Row],[שמות העבודות]])=0,"", SUMIFS(טבלה1[שעות],טבלה1[שם העבודה],טבלה2[[#This Row],[שמות העבודות]])),"")) ->  | AP21: =IFERROR(IF(OR(טבלה2[[#This Row],[שכר לשעה]]="",טבלה2[[#This Row],[שעות]]=""),"",IF( IF(OR(טבלה2[[#This Row],[מטבע]]="₪",AND(מטבע="שקלים",טבלה2[[#This Row],[מטבע]]="")), טבלה2[[#This Row],[שכר לשעה]]*טבלה2[[#This Row],[שעות]]*24, IF(OR(טבלה2[[#This Row],[מטבע]]="$",AND(מטבע="דולרים",טבלה2[[#This Row],[מטבע]]="")), טבלה2[[#This Row],[שכר לשעה]]*טבלה2[[#This Row],[שעות]]*24*שער,""))=0,"", IF(OR(טבלה2[[#This Row],[מטבע]]="₪",AND(מטבע="שקלים",טבלה2[[#This Row],[מטבע]]="")), טבלה2[[#This Row],[שכר לשעה]]*טבלה2[[#This Row],[שעות]]*24, IF(OR(טבלה2[[#This Row],[מטבע]]="$",AND(מטבע="דולרים",טבלה2[[#This Row],[מטבע]]="")), טבלה2[[#This Row],[שכר לשעה]]*טבלה2[[#This Row],[שעות]]*24*שער,"")))),"") ->  | AQ21: =IFERROR(IF(OR(טבלה2[[#This Row],[שכר לשעה]]="",טבלה2[[#This Row],[שעות]]=""),"",IF( IF(OR(טבלה2[[#This Row],[מטבע]]="$",AND(מטבע="דולרים",טבלה2[[#This Row],[מטבע]]="")), טבלה2[[#This Row],[שכר לשעה]]*טבלה2[[#This Row],[שעות]]*24, IF(OR(טבלה2[[#This Row],[מטבע]]="₪",AND(מטבע="שקלים",טבלה2[[#This Row],[מטבע]]="")), טבלה2[[#This Row],[שכר לשעה]]*טבלה2[[#This Row],[שעות]]*24/שער,""))=0,"", IF(OR(טבלה2[[#This Row],[מטבע]]="$",AND(מטבע="דולרים",טבלה2[[#This Row],[מטבע]]="")), טבלה2[[#This Row],[שכר לשעה]]*טבלה2[[#This Row],[שעות]]*24, IF(OR(טבלה2[[#This Row],[מטבע]]="₪",AND(מטבע="שקלים",טבלה2[[#This Row],[מטבע]]="")), טבלה2[[#This Row],[שכר לשעה]]*טבלה2[[#This Row],[שעות]]*24/שער,"")))),"") ->  | AT21: =IF(OR(טבלה2[[#This Row],[שכר לשעה]]="",טבלה2[[#This Row],[שעות]]=""),"",IF( IF(OR(טבלה2[[#This Row],[מטבע]]="₪",AND(מטבע="שקלים",טבלה2[[#This Row],[מטבע]]="")),טבלה2[[#This Row],[שכר בשקלים]]+טבלה2[[#This Row],[חיובים נוספים]]-טבלה2[[#This Row],[זיכויים / שולם]], IF(OR(טבלה2[[#This Row],[מטבע]]="$",AND(מטבע="דולרים",טבלה2[[#This Row],[מטבע]]="")),טבלה2[[#This Row],[שכר בדולרים]]+טבלה2[[#This Row],[חיובים נוספים]]-טבלה2[[#This Row],[זיכויים / שולם]],""))=0,"", IF(OR(טבלה2[[#This Row],[מטבע]]="₪",AND(מטבע="שקלים",טבלה2[[#This Row],[מטבע]]="")),טבלה2[[#This Row],[שכר בשקלים]]+טבלה2[[#This Row],[חיובים נוספים]]-טבלה2[[#This Row],[זיכויים / שולם]], IF(OR(טבלה2[[#This Row],[מטבע]]="$",AND(מטבע="דולרים",טבלה2[[#This Row],[מטבע]]="")),טבלה2[[#This Row],[שכר בדולרים]]+טבלה2[[#This Row],[חיובים נוספים]]-טבלה2[[#This Row],[זיכויים / שולם]],"")))) ->  | BJ21: שמירה אוטומטית | BK21: =IF(טבלה2[[#This Row],[שמות העבודות]]="","",טבלה2[[#This Row],[שמות העבודות]]) -> 
B22: =IF(AND(טבלה1[[#This Row],[תאריך]]="",טבלה1[[#This Row],[התחלה]]="",טבלה1[[#This Row],[שם העבודה]]=""),"",ROW()-10) -> 12 | C22: =IF(טבלה1[[#This Row],[תאריך]]="","",IF(TEXT(טבלה1[[#This Row],[תאריך]],"DDD")="שבת","מוצ""ש",TEXT(טבלה1[[#This Row],[תאריך]],"DDD"))) -> יום ו | D22: 2024-08-16 | E22: 14:17:24 | F22: עימוד | G22: 16:17:28 | J22: =IF(IF(AND(טבלה1[[#This Row],[התחלה]]="",טבלה1[[#This Row],[סיום]]<>""),"",IF(AND(טבלה1[[#This Row],[התחלה]]<>"",טבלה1[[#This Row],[סיום]]=""), SUM(MOD(MOD(NOW(),1)-טבלה1[[#This Row],[התחלה]],1),טבלה1[[#This Row],[הוספת דקות]],-טבלה1[[#This Row],[הפחתת דקות]]), SUM(MOD(טבלה1[[#This Row],[סיום]]-טבלה1[[#This Row],[התחלה]],1),טבלה1[[#This Row],[הוספת דקות]],-טבלה1[[#This Row],[הפחתת דקות]])))<=0,"", IF(AND(טבלה1[[#This Row],[התחלה]]="",טבלה1[[#This Row],[סיום]]<>""),"",IF(AND(טבלה1[[#This Row],[התחלה]]<>"",טבלה1[[#This Row],[סיום]]=""), SUM(MOD(MOD(NOW(),1)-טבלה1[[#This Row],[התחלה]],1),טבלה1[[#This Row],[הוספת דקות]],-טבלה1[[#This Row],[הפחתת דקות]]), SUM(MOD(טבלה1[[#This Row],[סיום]]-טבלה1[[#This Row],[התחלה]],1),טבלה1[[#This Row],[הוספת דקות]],-טבלה1[[#This Row],[הפחתת דקות]])))) -> 0.08337962963 | K22: =IF(טבלה1[[#This Row],[שעות]]="","",IFERROR( IF(IF(AND(מטבע="שקלים",VLOOKUP(טבלה1[[#This Row],[שם העבודה]],טבלה2[],3,FALSE)="$"), VLOOKUP(טבלה1[[#This Row],[שם העבודה]],טבלה2[#All],2,FALSE)*טבלה1[[#This Row],[שעות]]*24*שער, IF(AND(מטבע="דולרים",VLOOKUP(טבלה1[[#This Row],[שם העבודה]],טבלה2[],3,FALSE)="₪"), VLOOKUP(טבלה1[[#This Row],[שם העבודה]],טבלה2[#All],2,FALSE)*טבלה1[[#This Row],[שעות]]*24/שער, VLOOKUP(טבלה1[[#This Row],[שם העבודה]],טבלה2[#All],2,FALSE)*טבלה1[[#This Row],[שעות]]*24))=0,"", IF(AND(מטבע="שקלים",VLOOKUP(טבלה1[[#This Row],[שם העבודה]],טבלה2[],3,FALSE)="$"), VLOOKUP(טבלה1[[#This Row],[שם העבודה]],טבלה2[#All],2,FALSE)*טבלה1[[#This Row],[שעות]]*24*שער, IF(AND(מטבע="דולרים",VLOOKUP(טבלה1[[#This Row],[שם העבודה]],טבלה2[],3,FALSE)="₪"), VLOOKUP(טבלה1[[#This Row],[שם העבודה]],טבלה2[#All],2,FALSE)*טבלה1[[#This Row],[שעות]]*24/שער, VLOOKUP(טבלה1[[#This Row],[שם העבודה]],טבלה2[#All],2,FALSE)*טבלה1[[#This Row],[שעות]]*24))),"")) -> 120.0666667 | L22: =IF(טבלה1[[#This Row],[תאריך]]="","",DATE(YEAR(טבלה1[[#This Row],[תאריך]]),MONTH(טבלה1[[#This Row],[תאריך]]),1)) -> 2024-08-01 | AO22: =IF(AL22="","", IFERROR(IF(SUMIFS(טבלה1[שעות],טבלה1[שם העבודה],טבלה2[[#This Row],[שמות העבודות]])=0,"", SUMIFS(טבלה1[שעות],טבלה1[שם העבודה],טבלה2[[#This Row],[שמות העבודות]])),"")) ->  | AP22: =IFERROR(IF(OR(טבלה2[[#This Row],[שכר לשעה]]="",טבלה2[[#This Row],[שעות]]=""),"",IF( IF(OR(טבלה2[[#This Row],[מטבע]]="₪",AND(מטבע="שקלים",טבלה2[[#This Row],[מטבע]]="")), טבלה2[[#This Row],[שכר לשעה]]*טבלה2[[#This Row],[שעות]]*24, IF(OR(טבלה2[[#This Row],[מטבע]]="$",AND(מטבע="דולרים",טבלה2[[#This Row],[מטבע]]="")), טבלה2[[#This Row],[שכר לשעה]]*טבלה2[[#This Row],[שעות]]*24*שער,""))=0,"", IF(OR(טבלה2[[#This Row],[מטבע]]="₪",AND(מטבע="שקלים",טבלה2[[#This Row],[מטבע]]="")), טבלה2[[#This Row],[שכר לשעה]]*טבלה2[[#This Row],[שעות]]*24, IF(OR(טבלה2[[#This Row],[מטבע]]="$",AND(מטבע="דולרים",טבלה2[[#This Row],[מטבע]]="")), טבלה2[[#This Row],[שכר לשעה]]*טבלה2[[#This Row],[שעות]]*24*שער,"")))),"") ->  | AQ22: =IFERROR(IF(OR(טבלה2[[#This Row],[שכר לשעה]]="",טבלה2[[#This Row],[שעות]]=""),"",IF( IF(OR(טבלה2[[#This Row],[מטבע]]="$",AND(מטבע="דולרים",טבלה2[[#This Row],[מטבע]]="")), טבלה2[[#This Row],[שכר לשעה]]*טבלה2[[#This Row],[שעות]]*24, IF(OR(טבלה2[[#This Row],[מטבע]]="₪",AND(מטבע="שקלים",טבלה2[[#This Row],[מטבע]]="")), טבלה2[[#This Row],[שכר לשעה]]*טבלה2[[#This Row],[שעות]]*24/שער,""))=0,"", IF(OR(טבלה2[[#This Row],[מטבע]]="$",AND(מטבע="דולרים",טבלה2[[#This Row],[מטבע]]="")), טבלה2[[#This Row],[שכר לשעה]]*טבלה2[[#This Row],[שעות]]*24, IF(OR(טבלה2[[#This Row],[מטבע]]="₪",AND(מטבע="שקלים",טבלה2[[#This Row],[מטבע]]="")), טבלה2[[#This Row],[שכר לשעה]]*טבלה2[[#This Row],[שעות]]*24/שער,"")))),"") ->  | AT22: =IF(OR(טבלה2[[#This Row],[שכר לשעה]]="",טבלה2[[#This Row],[שעות]]=""),"",IF( IF(OR(טבלה2[[#This Row],[מטבע]]="₪",AND(מטבע="שקלים",טבלה2[[#This Row],[מטבע]]="")),טבלה2[[#This Row],[שכר בשקלים]]+טבלה2[[#This Row],[חיובים נוספים]]-טבלה2[[#This Row],[זיכויים / שולם]], IF(OR(טבלה2[[#This Row],[מטבע]]="$",AND(מטבע="דולרים",טבלה2[[#This Row],[מטבע]]="")),טבלה2[[#This Row],[שכר בדולרים]]+טבלה2[[#This Row],[חיובים נוספים]]-טבלה2[[#This Row],[זיכויים / שולם]],""))=0,"", IF(OR(טבלה2[[#This Row],[מטבע]]="₪",AND(מטבע="שקלים",טבלה2[[#This Row],[מטבע]]="")),טבלה2[[#This Row],[שכר בשקלים]]+טבלה2[[#This Row],[חיובים נוספים]]-טבלה2[[#This Row],[זיכויים / שולם]], IF(OR(טבלה2[[#This Row],[מטבע]]="$",AND(מטבע="דולרים",טבלה2[[#This Row],[מטבע]]="")),טבלה2[[#This Row],[שכר בדולרים]]+טבלה2[[#This Row],[חיובים נוספים]]-טבלה2[[#This Row],[זיכויים / שולם]],"")))) ->  | BJ22: מושבת | BK22: =IF(טבלה2[[#This Row],[שמות העבודות]]="","",טבלה2[[#This Row],[שמות העבודות]]) -> 
B23: =IF(AND(טבלה1[[#This Row],[תאריך]]="",טבלה1[[#This Row],[התחלה]]="",טבלה1[[#This Row],[שם העבודה]]=""),"",ROW()-10) -> 13 | C23: =IF(טבלה1[[#This Row],[תאריך]]="","",IF(TEXT(טבלה1[[#This Row],[תאריך]],"DDD")="שבת","מוצ""ש",TEXT(טבלה1[[#This Row],[תאריך]],"DDD"))) -> מוצ"ש | D23: 2024-08-17 | E23: 02:17:24 | F23: הגהה | G23: 04:17:28 | J23: =IF(IF(AND(טבלה1[[#This Row],[התחלה]]="",טבלה1[[#This Row],[סיום]]<>""),"",IF(AND(טבלה1[[#This Row],[התחלה]]<>"",טבלה1[[#This Row],[סיום]]=""), SUM(MOD(MOD(NOW(),1)-טבלה1[[#This Row],[התחלה]],1),טבלה1[[#This Row],[הוספת דקות]],-טבלה1[[#This Row],[הפחתת דקות]]), SUM(MOD(טבלה1[[#This Row],[סיום]]-טבלה1[[#This Row],[התחלה]],1),טבלה1[[#This Row],[הוספת דקות]],-טבלה1[[#This Row],[הפחתת דקות]])))<=0,"", IF(AND(טבלה1[[#This Row],[התחלה]]="",טבלה1[[#This Row],[סיום]]<>""),"",IF(AND(טבלה1[[#This Row],[התחלה]]<>"",טבלה1[[#This Row],[סיום]]=""), SUM(MOD(MOD(NOW(),1)-טבלה1[[#This Row],[התחלה]],1),טבלה1[[#This Row],[הוספת דקות]],-טבלה1[[#This Row],[הפחתת דקות]]), SUM(MOD(טבלה1[[#This Row],[סיום]]-טבלה1[[#This Row],[התחלה]],1),טבלה1[[#This Row],[הוספת דקות]],-טבלה1[[#This Row],[הפחתת דקות]])))) -> 0.08337962963 | K23: =IF(טבלה1[[#This Row],[שעות]]="","",IFERROR( IF(IF(AND(מטבע="שקלים",VLOOKUP(טבלה1[[#This Row],[שם העבודה]],טבלה2[],3,FALSE)="$"), VLOOKUP(טבלה1[[#This Row],[שם העבודה]],טבלה2[#All],2,FALSE)*טבלה1[[#This Row],[שעות]]*24*שער, IF(AND(מטבע="דולרים",VLOOKUP(טבלה1[[#This Row],[שם העבודה]],טבלה2[],3,FALSE)="₪"), VLOOKUP(טבלה1[[#This Row],[שם העבודה]],טבלה2[#All],2,FALSE)*טבלה1[[#This Row],[שעות]]*24/שער, VLOOKUP(טבלה1[[#This Row],[שם העבודה]],טבלה2[#All],2,FALSE)*טבלה1[[#This Row],[שעות]]*24))=0,"", IF(AND(מטבע="שקלים",VLOOKUP(טבלה1[[#This Row],[שם העבודה]],טבלה2[],3,FALSE)="$"), VLOOKUP(טבלה1[[#This Row],[שם העבודה]],טבלה2[#All],2,FALSE)*טבלה1[[#This Row],[שעות]]*24*שער, IF(AND(מטבע="דולרים",VLOOKUP(טבלה1[[#This Row],[שם העבודה]],טבלה2[],3,FALSE)="₪"), VLOOKUP(טבלה1[[#This Row],[שם העבודה]],טבלה2[#All],2,FALSE)*טבלה1[[#This Row],[שעות]]*24/שער, VLOOKUP(טבלה1[[#This Row],[שם העבודה]],טבלה2[#All],2,FALSE)*טבלה1[[#This Row],[שעות]]*24))),"")) -> 140.0777778 | L23: =IF(טבלה1[[#This Row],[תאריך]]="","",DATE(YEAR(טבלה1[[#This Row],[תאריך]]),MONTH(טבלה1[[#This Row],[תאריך]]),1)) -> 2024-08-01 | AO23: =IF(AL23="","", IFERROR(IF(SUMIFS(טבלה1[שעות],טבלה1[שם העבודה],טבלה2[[#This Row],[שמות העבודות]])=0,"", SUMIFS(טבלה1[שעות],טבלה1[שם העבודה],טבלה2[[#This Row],[שמות העבודות]])),"")) ->  | AP23: =IFERROR(IF(OR(טבלה2[[#This Row],[שכר לשעה]]="",טבלה2[[#This Row],[שעות]]=""),"",IF( IF(OR(טבלה2[[#This Row],[מטבע]]="₪",AND(מטבע="שקלים",טבלה2[[#This Row],[מטבע]]="")), טבלה2[[#This Row],[שכר לשעה]]*טבלה2[[#This Row],[שעות]]*24, IF(OR(טבלה2[[#This Row],[מטבע]]="$",AND(מטבע="דולרים",טבלה2[[#This Row],[מטבע]]="")), טבלה2[[#This Row],[שכר לשעה]]*טבלה2[[#This Row],[שעות]]*24*שער,""))=0,"", IF(OR(טבלה2[[#This Row],[מטבע]]="₪",AND(מטבע="שקלים",טבלה2[[#This Row],[מטבע]]="")), טבלה2[[#This Row],[שכר לשעה]]*טבלה2[[#This Row],[שעות]]*24, IF(OR(טבלה2[[#This Row],[מטבע]]="$",AND(מטבע="דולרים",טבלה2[[#This Row],[מטבע]]="")), טבלה2[[#This Row],[שכר לשעה]]*טבלה2[[#This Row],[שעות]]*24*שער,"")))),"") ->  | AQ23: =IFERROR(IF(OR(טבלה2[[#This Row],[שכר לשעה]]="",טבלה2[[#This Row],[שעות]]=""),"",IF( IF(OR(טבלה2[[#This Row],[מטבע]]="$",AND(מטבע="דולרים",טבלה2[[#This Row],[מטבע]]="")), טבלה2[[#This Row],[שכר לשעה]]*טבלה2[[#This Row],[שעות]]*24, IF(OR(טבלה2[[#This Row],[מטבע]]="₪",AND(מטבע="שקלים",טבלה2[[#This Row],[מטבע]]="")), טבלה2[[#This Row],[שכר לשעה]]*טבלה2[[#This Row],[שעות]]*24/שער,""))=0,"", IF(OR(טבלה2[[#This Row],[מטבע]]="$",AND(מטבע="דולרים",טבלה2[[#This Row],[מטבע]]="")), טבלה2[[#This Row],[שכר לשעה]]*טבלה2[[#This Row],[שעות]]*24, IF(OR(טבלה2[[#This Row],[מטבע]]="₪",AND(מטבע="שקלים",טבלה2[[#This Row],[מטבע]]="")), טבלה2[[#This Row],[שכר לשעה]]*טבלה2[[#This Row],[שעות]]*24/שער,"")))),"") ->  | AT23: =IF(OR(טבלה2[[#This Row],[שכר לשעה]]="",טבלה2[[#This Row],[שעות]]=""),"",IF( IF(OR(טבלה2[[#This Row],[מטבע]]="₪",AND(מטבע="שקלים",טבלה2[[#This Row],[מטבע]]="")),טבלה2[[#This Row],[שכר בשקלים]]+טבלה2[[#This Row],[חיובים נוספים]]-טבלה2[[#This Row],[זיכויים / שולם]], IF(OR(טבלה2[[#This Row],[מטבע]]="$",AND(מטבע="דולרים",טבלה2[[#This Row],[מטבע]]="")),טבלה2[[#This Row],[שכר בדולרים]]+טבלה2[[#This Row],[חיובים נוספים]]-טבלה2[[#This Row],[זיכויים / שולם]],""))=0,"", IF(OR(טבלה2[[#This Row],[מטבע]]="₪",AND(מטבע="שקלים",טבלה2[[#This Row],[מטבע]]="")),טבלה2[[#This Row],[שכר בשקלים]]+טבלה2[[#This Row],[חיובים נוספים]]-טבלה2[[#This Row],[זיכויים / שולם]], IF(OR(טבלה2[[#This Row],[מטבע]]="$",AND(מטבע="דולרים",טבלה2[[#This Row],[מטבע]]="")),טבלה2[[#This Row],[שכר בדולרים]]+טבלה2[[#This Row],[חיובים נוספים]]-טבלה2[[#This Row],[זיכויים / שולם]],"")))) ->  | BJ23: מטבע | BK23: =IF(טבלה2[[#This Row],[שמות העבודות]]="","",טבלה2[[#This Row],[שמות העבודות]]) -> 
B24: =IF(AND(טבלה1[[#This Row],[תאריך]]="",טבלה1[[#This Row],[התחלה]]="",טבלה1[[#This Row],[שם העבודה]]=""),"",ROW()-10) -> 14 | C24: =IF(טבלה1[[#This Row],[תאריך]]="","",IF(TEXT(טבלה1[[#This Row],[תאריך]],"DDD")="שבת","מוצ""ש",TEXT(טבלה1[[#This Row],[תאריך]],"DDD"))) -> יום א | D24: 2024-08-18 | E24: 02:17:24 | F24: מכון תורה אור | G24: 04:17:28 | J24: =IF(IF(AND(טבלה1[[#This Row],[התחלה]]="",טבלה1[[#This Row],[סיום]]<>""),"",IF(AND(טבלה1[[#This Row],[התחלה]]<>"",טבלה1[[#This Row],[סיום]]=""), SUM(MOD(MOD(NOW(),1)-טבלה1[[#This Row],[התחלה]],1),טבלה1[[#This Row],[הוספת דקות]],-טבלה1[[#This Row],[הפחתת דקות]]), SUM(MOD(טבלה1[[#This Row],[סיום]]-טבלה1[[#This Row],[התחלה]],1),טבלה1[[#This Row],[הוספת דקות]],-טבלה1[[#This Row],[הפחתת דקות]])))<=0,"", IF(AND(טבלה1[[#This Row],[התחלה]]="",טבלה1[[#This Row],[סיום]]<>""),"",IF(AND(טבלה1[[#This Row],[התחלה]]<>"",טבלה1[[#This Row],[סיום]]=""), SUM(MOD(MOD(NOW(),1)-טבלה1[[#This Row],[התחלה]],1),טבלה1[[#This Row],[הוספת דקות]],-טבלה1[[#This Row],[הפחתת דקות]]), SUM(MOD(טבלה1[[#This Row],[סיום]]-טבלה1[[#This Row],[התחלה]],1),טבלה1[[#This Row],[הוספת דקות]],-טבלה1[[#This Row],[הפחתת דקות]])))) -> 0.08337962963 | K24: =IF(טבלה1[[#This Row],[שעות]]="","",IFERROR( IF(IF(AND(מטבע="שקלים",VLOOKUP(טבלה1[[#This Row],[שם העבודה]],טבלה2[],3,FALSE)="$"), VLOOKUP(טבלה1[[#This Row],[שם העבודה]],טבלה2[#All],2,FALSE)*טבלה1[[#This Row],[שעות]]*24*שער, IF(AND(מטבע="דולרים",VLOOKUP(טבלה1[[#This Row],[שם העבודה]],טבלה2[],3,FALSE)="₪"), VLOOKUP(טבלה1[[#This Row],[שם העבודה]],טבלה2[#All],2,FALSE)*טבלה1[[#This Row],[שעות]]*24/שער, VLOOKUP(טבלה1[[#This Row],[שם העבודה]],טבלה2[#All],2,FALSE)*טבלה1[[#This Row],[שעות]]*24))=0,"", IF(AND(מטבע="שקלים",VLOOKUP(טבלה1[[#This Row],[שם העבודה]],טבלה2[],3,FALSE)="$"), VLOOKUP(טבלה1[[#This Row],[שם העבודה]],טבלה2[#All],2,FALSE)*טבלה1[[#This Row],[שעות]]*24*שער, IF(AND(מטבע="דולרים",VLOOKUP(טבלה1[[#This Row],[שם העבודה]],טבלה2[],3,FALSE)="₪"), VLOOKUP(טבלה1[[#This Row],[שם העבודה]],טבלה2[#All],2,FALSE)*טבלה1[[#This Row],[שעות]]*24/שער, VLOOKUP(טבלה1[[#This Row],[שם העבודה]],טבלה2[#All],2,FALSE)*טבלה1[[#This Row],[שעות]]*24))),"")) -> 130.0722222 | L24: =IF(טבלה1[[#This Row],[תאריך]]="","",DATE(YEAR(טבלה1[[#This Row],[תאריך]]),MONTH(טבלה1[[#This Row],[תאריך]]),1)) -> 2024-08-01 | AO24: =IF(AL24="","", IFERROR(IF(SUMIFS(טבלה1[שעות],טבלה1[שם העבודה],טבלה2[[#This Row],[שמות העבודות]])=0,"", SUMIFS(טבלה1[שעות],טבלה1[שם העבודה],טבלה2[[#This Row],[שמות העבודות]])),"")) ->  | AP24: =IFERROR(IF(OR(טבלה2[[#This Row],[שכר לשעה]]="",טבלה2[[#This Row],[שעות]]=""),"",IF( IF(OR(טבלה2[[#This Row],[מטבע]]="₪",AND(מטבע="שקלים",טבלה2[[#This Row],[מטבע]]="")), טבלה2[[#This Row],[שכר לשעה]]*טבלה2[[#This Row],[שעות]]*24, IF(OR(טבלה2[[#This Row],[מטבע]]="$",AND(מטבע="דולרים",טבלה2[[#This Row],[מטבע]]="")), טבלה2[[#This Row],[שכר לשעה]]*טבלה2[[#This Row],[שעות]]*24*שער,""))=0,"", IF(OR(טבלה2[[#This Row],[מטבע]]="₪",AND(מטבע="שקלים",טבלה2[[#This Row],[מטבע]]="")), טבלה2[[#This Row],[שכר לשעה]]*טבלה2[[#This Row],[שעות]]*24, IF(OR(טבלה2[[#This Row],[מטבע]]="$",AND(מטבע="דולרים",טבלה2[[#This Row],[מטבע]]="")), טבלה2[[#This Row],[שכר לשעה]]*טבלה2[[#This Row],[שעות]]*24*שער,"")))),"") ->  | AQ24: =IFERROR(IF(OR(טבלה2[[#This Row],[שכר לשעה]]="",טבלה2[[#This Row],[שעות]]=""),"",IF( IF(OR(טבלה2[[#This Row],[מטבע]]="$",AND(מטבע="דולרים",טבלה2[[#This Row],[מטבע]]="")), טבלה2[[#This Row],[שכר לשעה]]*טבלה2[[#This Row],[שעות]]*24, IF(OR(טבלה2[[#This Row],[מטבע]]="₪",AND(מטבע="שקלים",טבלה2[[#This Row],[מטבע]]="")), טבלה2[[#This Row],[שכר לשעה]]*טבלה2[[#This Row],[שעות]]*24/שער,""))=0,"", IF(OR(טבלה2[[#This Row],[מטבע]]="$",AND(מטבע="דולרים",טבלה2[[#This Row],[מטבע]]="")), טבלה2[[#This Row],[שכר לשעה]]*טבלה2[[#This Row],[שעות]]*24, IF(OR(טבלה2[[#This Row],[מטבע]]="₪",AND(מטבע="שקלים",טבלה2[[#This Row],[מטבע]]="")), טבלה2[[#This Row],[שכר לשעה]]*טבלה2[[#This Row],[שעות]]*24/שער,"")))),"") ->  | AT24: =IF(OR(טבלה2[[#This Row],[שכר לשעה]]="",טבלה2[[#This Row],[שעות]]=""),"",IF( IF(OR(טבלה2[[#This Row],[מטבע]]="₪",AND(מטבע="שקלים",טבלה2[[#This Row],[מטבע]]="")),טבלה2[[#This Row],[שכר בשקלים]]+טבלה2[[#This Row],[חיובים נוספים]]-טבלה2[[#This Row],[זיכויים / שולם]], IF(OR(טבלה2[[#This Row],[מטבע]]="$",AND(מטבע="דולרים",טבלה2[[#This Row],[מטבע]]="")),טבלה2[[#This Row],[שכר בדולרים]]+טבלה2[[#This Row],[חיובים נוספים]]-טבלה2[[#This Row],[זיכויים / שולם]],""))=0,"", IF(OR(טבלה2[[#This Row],[מטבע]]="₪",AND(מטבע="שקלים",טבלה2[[#This Row],[מטבע]]="")),טבלה2[[#This Row],[שכר בשקלים]]+טבלה2[[#This Row],[חיובים נוספים]]-טבלה2[[#This Row],[זיכויים / שולם]], IF(OR(טבלה2[[#This Row],[מטבע]]="$",AND(מטבע="דולרים",טבלה2[[#This Row],[מטבע]]="")),טבלה2[[#This Row],[שכר בדולרים]]+טבלה2[[#This Row],[חיובים נוספים]]-טבלה2[[#This Row],[זיכויים / שולם]],"")))) ->  | BJ24: שקלים | BK24: =IF(טבלה2[[#This Row],[שמות העבודות]]="","",טבלה2[[#This Row],[שמות העבודות]]) -> 
B25: =IF(AND(טבלה1[[#This Row],[תאריך]]="",טבלה1[[#This Row],[התחלה]]="",טבלה1[[#This Row],[שם העבודה]]=""),"",ROW()-10) -> 15 | C25: =IF(טבלה1[[#This Row],[תאריך]]="","",IF(TEXT(טבלה1[[#This Row],[תאריך]],"DDD")="שבת","מוצ""ש",TEXT(טבלה1[[#This Row],[תאריך]],"DDD"))) -> יום ב | D25: 2024-08-19 | E25: 02:17:24 | F25: מכון אורה | G25: 04:17:28 | J25: =IF(IF(AND(טבלה1[[#This Row],[התחלה]]="",טבלה1[[#This Row],[סיום]]<>""),"",IF(AND(טבלה1[[#This Row],[התחלה]]<>"",טבלה1[[#This Row],[סיום]]=""), SUM(MOD(MOD(NOW(),1)-טבלה1[[#This Row],[התחלה]],1),טבלה1[[#This Row],[הוספת דקות]],-טבלה1[[#This Row],[הפחתת דקות]]), SUM(MOD(טבלה1[[#This Row],[סיום]]-טבלה1[[#This Row],[התחלה]],1),טבלה1[[#This Row],[הוספת דקות]],-טבלה1[[#This Row],[הפחתת דקות]])))<=0,"", IF(AND(טבלה1[[#This Row],[התחלה]]="",טבלה1[[#This Row],[סיום]]<>""),"",IF(AND(טבלה1[[#This Row],[התחלה]]<>"",טבלה1[[#This Row],[סיום]]=""), SUM(MOD(MOD(NOW(),1)-טבלה1[[#This Row],[התחלה]],1),טבלה1[[#This Row],[הוספת דקות]],-טבלה1[[#This Row],[הפחתת דקות]]), SUM(MOD(טבלה1[[#This Row],[סיום]]-טבלה1[[#This Row],[התחלה]],1),טבלה1[[#This Row],[הוספת דקות]],-טבלה1[[#This Row],[הפחתת דקות]])))) -> 0.08337962963 | K25: =IF(טבלה1[[#This Row],[שעות]]="","",IFERROR( IF(IF(AND(מטבע="שקלים",VLOOKUP(טבלה1[[#This Row],[שם העבודה]],טבלה2[],3,FALSE)="$"), VLOOKUP(טבלה1[[#This Row],[שם העבודה]],טבלה2[#All],2,FALSE)*טבלה1[[#This Row],[שעות]]*24*שער, IF(AND(מטבע="דולרים",VLOOKUP(טבלה1[[#This Row],[שם העבודה]],טבלה2[],3,FALSE)="₪"), VLOOKUP(טבלה1[[#This Row],[שם העבודה]],טבלה2[#All],2,FALSE)*טבלה1[[#This Row],[שעות]]*24/שער, VLOOKUP(טבלה1[[#This Row],[שם העבודה]],טבלה2[#All],2,FALSE)*טבלה1[[#This Row],[שעות]]*24))=0,"", IF(AND(מטבע="שקלים",VLOOKUP(טבלה1[[#This Row],[שם העבודה]],טבלה2[],3,FALSE)="$"), VLOOKUP(טבלה1[[#This Row],[שם העבודה]],טבלה2[#All],2,FALSE)*טבלה1[[#This Row],[שעות]]*24*שער, IF(AND(מטבע="דולרים",VLOOKUP(טבלה1[[#This Row],[שם העבודה]],טבלה2[],3,FALSE)="₪"), VLOOKUP(טבלה1[[#This Row],[שם העבודה]],טבלה2[#All],2,FALSE)*טבלה1[[#This Row],[שעות]]*24/שער, VLOOKUP(טבלה1[[#This Row],[שם העבודה]],טבלה2[#All],2,FALSE)*טבלה1[[#This Row],[שעות]]*24))),"")) -> 80.04444444 | L25: =IF(טבלה1[[#This Row],[תאריך]]="","",DATE(YEAR(טבלה1[[#This Row],[תאריך]]),MONTH(טבלה1[[#This Row],[תאריך]]),1)) -> 2024-08-01 | AO25: =IF(AL25="","", IFERROR(IF(SUMIFS(טבלה1[שעות],טבלה1[שם העבודה],טבלה2[[#This Row],[שמות העבודות]])=0,"", SUMIFS(טבלה1[שעות],טבלה1[שם העבודה],טבלה2[[#This Row],[שמות העבודות]])),"")) ->  | AP25: =IFERROR(IF(OR(טבלה2[[#This Row],[שכר לשעה]]="",טבלה2[[#This Row],[שעות]]=""),"",IF( IF(OR(טבלה2[[#This Row],[מטבע]]="₪",AND(מטבע="שקלים",טבלה2[[#This Row],[מטבע]]="")), טבלה2[[#This Row],[שכר לשעה]]*טבלה2[[#This Row],[שעות]]*24, IF(OR(טבלה2[[#This Row],[מטבע]]="$",AND(מטבע="דולרים",טבלה2[[#This Row],[מטבע]]="")), טבלה2[[#This Row],[שכר לשעה]]*טבלה2[[#This Row],[שעות]]*24*שער,""))=0,"", IF(OR(טבלה2[[#This Row],[מטבע]]="₪",AND(מטבע="שקלים",טבלה2[[#This Row],[מטבע]]="")), טבלה2[[#This Row],[שכר לשעה]]*טבלה2[[#This Row],[שעות]]*24, IF(OR(טבלה2[[#This Row],[מטבע]]="$",AND(מטבע="דולרים",טבלה2[[#This Row],[מטבע]]="")), טבלה2[[#This Row],[שכר לשעה]]*טבלה2[[#This Row],[שעות]]*24*שער,"")))),"") ->  | AQ25: =IFERROR(IF(OR(טבלה2[[#This Row],[שכר לשעה]]="",טבלה2[[#This Row],[שעות]]=""),"",IF( IF(OR(טבלה2[[#This Row],[מטבע]]="$",AND(מטבע="דולרים",טבלה2[[#This Row],[מטבע]]="")), טבלה2[[#This Row],[שכר לשעה]]*טבלה2[[#This Row],[שעות]]*24, IF(OR(טבלה2[[#This Row],[מטבע]]="₪",AND(מטבע="שקלים",טבלה2[[#This Row],[מטבע]]="")), טבלה2[[#This Row],[שכר לשעה]]*טבלה2[[#This Row],[שעות]]*24/שער,""))=0,"", IF(OR(טבלה2[[#This Row],[מטבע]]="$",AND(מטבע="דולרים",טבלה2[[#This Row],[מטבע]]="")), טבלה2[[#This Row],[שכר לשעה]]*טבלה2[[#This Row],[שעות]]*24, IF(OR(טבלה2[[#This Row],[מטבע]]="₪",AND(מטבע="שקלים",טבלה2[[#This Row],[מטבע]]="")), טבלה2[[#This Row],[שכר לשעה]]*טבלה2[[#This Row],[שעות]]*24/שער,"")))),"") ->  | AT25: =IF(OR(טבלה2[[#This Row],[שכר לשעה]]="",טבלה2[[#This Row],[שעות]]=""),"",IF( IF(OR(טבלה2[[#This Row],[מטבע]]="₪",AND(מטבע="שקלים",טבלה2[[#This Row],[מטבע]]="")),טבלה2[[#This Row],[שכר בשקלים]]+טבלה2[[#This Row],[חיובים נוספים]]-טבלה2[[#This Row],[זיכויים / שולם]], IF(OR(טבלה2[[#This Row],[מטבע]]="$",AND(מטבע="דולרים",טבלה2[[#This Row],[מטבע]]="")),טבלה2[[#This Row],[שכר בדולרים]]+טבלה2[[#This Row],[חיובים נוספים]]-טבלה2[[#This Row],[זיכויים / שולם]],""))=0,"", IF(OR(טבלה2[[#This Row],[מטבע]]="₪",AND(מטבע="שקלים",טבלה2[[#This Row],[מטבע]]="")),טבלה2[[#This Row],[שכר בשקלים]]+טבלה2[[#This Row],[חיובים נוספים]]-טבלה2[[#This Row],[זיכויים / שולם]], IF(OR(טבלה2[[#This Row],[מטבע]]="$",AND(מטבע="דולרים",טבלה2[[#This Row],[מטבע]]="")),טבלה2[[#This Row],[שכר בדולרים]]+טבלה2[[#This Row],[חיובים נוספים]]-טבלה2[[#This Row],[זיכויים / שולם]],"")))) ->  | BK25: =IF(טבלה2[[#This Row],[שמות העבודות]]="","",טבלה2[[#This Row],[שמות העבודות]]) -> 
B26: =IF(AND(טבלה1[[#This Row],[תאריך]]="",טבלה1[[#This Row],[התחלה]]="",טבלה1[[#This Row],[שם העבודה]]=""),"",ROW()-10) -> 16 | C26: =IF(טבלה1[[#This Row],[תאריך]]="","",IF(TEXT(טבלה1[[#This Row],[תאריך]],"DDD")="שבת","מוצ""ש",TEXT(טבלה1[[#This Row],[תאריך]],"DDD"))) -> יום ג | D26: 2024-08-20 | E26: 02:17:24 | F26: הקלדה | G26: 04:17:28 | J26: =IF(IF(AND(טבלה1[[#This Row],[התחלה]]="",טבלה1[[#This Row],[סיום]]<>""),"",IF(AND(טבלה1[[#This Row],[התחלה]]<>"",טבלה1[[#This Row],[סיום]]=""), SUM(MOD(MOD(NOW(),1)-טבלה1[[#This Row],[התחלה]],1),טבלה1[[#This Row],[הוספת דקות]],-טבלה1[[#This Row],[הפחתת דקות]]), SUM(MOD(טבלה1[[#This Row],[סיום]]-טבלה1[[#This Row],[התחלה]],1),טבלה1[[#This Row],[הוספת דקות]],-טבלה1[[#This Row],[הפחתת דקות]])))<=0,"", IF(AND(טבלה1[[#This Row],[התחלה]]="",טבלה1[[#This Row],[סיום]]<>""),"",IF(AND(טבלה1[[#This Row],[התחלה]]<>"",טבלה1[[#This Row],[סיום]]=""), SUM(MOD(MOD(NOW(),1)-טבלה1[[#This Row],[התחלה]],1),טבלה1[[#This Row],[הוספת דקות]],-טבלה1[[#This Row],[הפחתת דקות]]), SUM(MOD(טבלה1[[#This Row],[סיום]]-טבלה1[[#This Row],[התחלה]],1),טבלה1[[#This Row],[הוספת דקות]],-טבלה1[[#This Row],[הפחתת דקות]])))) -> 0.08337962963 | K26: =IF(טבלה1[[#This Row],[שעות]]="","",IFERROR( IF(IF(AND(מטבע="שקלים",VLOOKUP(טבלה1[[#This Row],[שם העבודה]],טבלה2[],3,FALSE)="$"), VLOOKUP(טבלה1[[#This Row],[שם העבודה]],טבלה2[#All],2,FALSE)*טבלה1[[#This Row],[שעות]]*24*שער, IF(AND(מטבע="דולרים",VLOOKUP(טבלה1[[#This Row],[שם העבודה]],טבלה2[],3,FALSE)="₪"), VLOOKUP(טבלה1[[#This Row],[שם העבודה]],טבלה2[#All],2,FALSE)*טבלה1[[#This Row],[שעות]]*24/שער, VLOOKUP(טבלה1[[#This Row],[שם העבודה]],טבלה2[#All],2,FALSE)*טבלה1[[#This Row],[שעות]]*24))=0,"", IF(AND(מטבע="שקלים",VLOOKUP(טבלה1[[#This Row],[שם העבודה]],טבלה2[],3,FALSE)="$"), VLOOKUP(טבלה1[[#This Row],[שם העבודה]],טבלה2[#All],2,FALSE)*טבלה1[[#This Row],[שעות]]*24*שער, IF(AND(מטבע="דולרים",VLOOKUP(טבלה1[[#This Row],[שם העבודה]],טבלה2[],3,FALSE)="₪"), VLOOKUP(טבלה1[[#This Row],[שם העבודה]],טבלה2[#All],2,FALSE)*טבלה1[[#This Row],[שעות]]*24/שער, VLOOKUP(טבלה1[[#This Row],[שם העבודה]],טבלה2[#All],2,FALSE)*טבלה1[[#This Row],[שעות]]*24))),"")) -> 100.0555556 | L26: =IF(טבלה1[[#This Row],[תאריך]]="","",DATE(YEAR(טבלה1[[#This Row],[תאריך]]),MONTH(טבלה1[[#This Row],[תאריך]]),1)) -> 2024-08-01 | AO26: =IF(AL26="","", IFERROR(IF(SUMIFS(טבלה1[שעות],טבלה1[שם העבודה],טבלה2[[#This Row],[שמות העבודות]])=0,"", SUMIFS(טבלה1[שעות],טבלה1[שם העבודה],טבלה2[[#This Row],[שמות העבודות]])),"")) ->  | AP26: =IFERROR(IF(OR(טבלה2[[#This Row],[שכר לשעה]]="",טבלה2[[#This Row],[שעות]]=""),"",IF( IF(OR(טבלה2[[#This Row],[מטבע]]="₪",AND(מטבע="שקלים",טבלה2[[#This Row],[מטבע]]="")), טבלה2[[#This Row],[שכר לשעה]]*טבלה2[[#This Row],[שעות]]*24, IF(OR(טבלה2[[#This Row],[מטבע]]="$",AND(מטבע="דולרים",טבלה2[[#This Row],[מטבע]]="")), טבלה2[[#This Row],[שכר לשעה]]*טבלה2[[#This Row],[שעות]]*24*שער,""))=0,"", IF(OR(טבלה2[[#This Row],[מטבע]]="₪",AND(מטבע="שקלים",טבלה2[[#This Row],[מטבע]]="")), טבלה2[[#This Row],[שכר לשעה]]*טבלה2[[#This Row],[שעות]]*24, IF(OR(טבלה2[[#This Row],[מטבע]]="$",AND(מטבע="דולרים",טבלה2[[#This Row],[מטבע]]="")), טבלה2[[#This Row],[שכר לשעה]]*טבלה2[[#This Row],[שעות]]*24*שער,"")))),"") ->  | AQ26: =IFERROR(IF(OR(טבלה2[[#This Row],[שכר לשעה]]="",טבלה2[[#This Row],[שעות]]=""),"",IF( IF(OR(טבלה2[[#This Row],[מטבע]]="$",AND(מטבע="דולרים",טבלה2[[#This Row],[מטבע]]="")), טבלה2[[#This Row],[שכר לשעה]]*טבלה2[[#This Row],[שעות]]*24, IF(OR(טבלה2[[#This Row],[מטבע]]="₪",AND(מטבע="שקלים",טבלה2[[#This Row],[מטבע]]="")), טבלה2[[#This Row],[שכר לשעה]]*טבלה2[[#This Row],[שעות]]*24/שער,""))=0,"", IF(OR(טבלה2[[#This Row],[מטבע]]="$",AND(מטבע="דולרים",טבלה2[[#This Row],[מטבע]]="")), טבלה2[[#This Row],[שכר לשעה]]*טבלה2[[#This Row],[שעות]]*24, IF(OR(טבלה2[[#This Row],[מטבע]]="₪",AND(מטבע="שקלים",טבלה2[[#This Row],[מטבע]]="")), טבלה2[[#This Row],[שכר לשעה]]*טבלה2[[#This Row],[שעות]]*24/שער,"")))),"") ->  | AT26: =IF(OR(טבלה2[[#This Row],[שכר לשעה]]="",טבלה2[[#This Row],[שעות]]=""),"",IF( IF(OR(טבלה2[[#This Row],[מטבע]]="₪",AND(מטבע="שקלים",טבלה2[[#This Row],[מטבע]]="")),טבלה2[[#This Row],[שכר בשקלים]]+טבלה2[[#This Row],[חיובים נוספים]]-טבלה2[[#This Row],[זיכויים / שולם]], IF(OR(טבלה2[[#This Row],[מטבע]]="$",AND(מטבע="דולרים",טבלה2[[#This Row],[מטבע]]="")),טבלה2[[#This Row],[שכר בדולרים]]+טבלה2[[#This Row],[חיובים נוספים]]-טבלה2[[#This Row],[זיכויים / שולם]],""))=0,"", IF(OR(טבלה2[[#This Row],[מטבע]]="₪",AND(מטבע="שקלים",טבלה2[[#This Row],[מטבע]]="")),טבלה2[[#This Row],[שכר בשקלים]]+טבלה2[[#This Row],[חיובים נוספים]]-טבלה2[[#This Row],[זיכויים / שולם]], IF(OR(טבלה2[[#This Row],[מטבע]]="$",AND(מטבע="דולרים",טבלה2[[#This Row],[מטבע]]="")),טבלה2[[#This Row],[שכר בדולרים]]+טבלה2[[#This Row],[חיובים נוספים]]-טבלה2[[#This Row],[זיכויים / שולם]],"")))) ->  | BJ26: אימות נתונים | BK26: =IF(טבלה2[[#This Row],[שמות העבודות]]="","",טבלה2[[#This Row],[שמות העבודות]]) -> 
B27: =IF(AND(טבלה1[[#This Row],[תאריך]]="",טבלה1[[#This Row],[התחלה]]="",טבלה1[[#This Row],[שם העבודה]]=""),"",ROW()-10) -> 17 | C27: =IF(טבלה1[[#This Row],[תאריך]]="","",IF(TEXT(טבלה1[[#This Row],[תאריך]],"DDD")="שבת","מוצ""ש",TEXT(טבלה1[[#This Row],[תאריך]],"DDD"))) -> יום ד | D27: 2024-08-21 | E27: 02:17:24 | F27: עימוד | G27: 04:17:28 | J27: =IF(IF(AND(טבלה1[[#This Row],[התחלה]]="",טבלה1[[#This Row],[סיום]]<>""),"",IF(AND(טבלה1[[#This Row],[התחלה]]<>"",טבלה1[[#This Row],[סיום]]=""), SUM(MOD(MOD(NOW(),1)-טבלה1[[#This Row],[התחלה]],1),טבלה1[[#This Row],[הוספת דקות]],-טבלה1[[#This Row],[הפחתת דקות]]), SUM(MOD(טבלה1[[#This Row],[סיום]]-טבלה1[[#This Row],[התחלה]],1),טבלה1[[#This Row],[הוספת דקות]],-טבלה1[[#This Row],[הפחתת דקות]])))<=0,"", IF(AND(טבלה1[[#This Row],[התחלה]]="",טבלה1[[#This Row],[סיום]]<>""),"",IF(AND(טבלה1[[#This Row],[התחלה]]<>"",טבלה1[[#This Row],[סיום]]=""), SUM(MOD(MOD(NOW(),1)-טבלה1[[#This Row],[התחלה]],1),טבלה1[[#This Row],[הוספת דקות]],-טבלה1[[#This Row],[הפחתת דקות]]), SUM(MOD(טבלה1[[#This Row],[סיום]]-טבלה1[[#This Row],[התחלה]],1),טבלה1[[#This Row],[הוספת דקות]],-טבלה1[[#This Row],[הפחתת דקות]])))) -> 0.08337962963 | K27: =IF(טבלה1[[#This Row],[שעות]]="","",IFERROR( IF(IF(AND(מטבע="שקלים",VLOOKUP(טבלה1[[#This Row],[שם העבודה]],טבלה2[],3,FALSE)="$"), VLOOKUP(טבלה1[[#This Row],[שם העבודה]],טבלה2[#All],2,FALSE)*טבלה1[[#This Row],[שעות]]*24*שער, IF(AND(מטבע="דולרים",VLOOKUP(טבלה1[[#This Row],[שם העבודה]],טבלה2[],3,FALSE)="₪"), VLOOKUP(טבלה1[[#This Row],[שם העבודה]],טבלה2[#All],2,FALSE)*טבלה1[[#This Row],[שעות]]*24/שער, VLOOKUP(טבלה1[[#This Row],[שם העבודה]],טבלה2[#All],2,FALSE)*טבלה1[[#This Row],[שעות]]*24))=0,"", IF(AND(מטבע="שקלים",VLOOKUP(טבלה1[[#This Row],[שם העבודה]],טבלה2[],3,FALSE)="$"), VLOOKUP(טבלה1[[#This Row],[שם העבודה]],טבלה2[#All],2,FALSE)*טבלה1[[#This Row],[שעות]]*24*שער, IF(AND(מטבע="דולרים",VLOOKUP(טבלה1[[#This Row],[שם העבודה]],טבלה2[],3,FALSE)="₪"), VLOOKUP(טבלה1[[#This Row],[שם העבודה]],טבלה2[#All],2,FALSE)*טבלה1[[#This Row],[שעות]]*24/שער, VLOOKUP(טבלה1[[#This Row],[שם העבודה]],טבלה2[#All],2,FALSE)*טבלה1[[#This Row],[שעות]]*24))),"")) -> 120.0666667 | L27: =IF(טבלה1[[#This Row],[תאריך]]="","",DATE(YEAR(טבלה1[[#This Row],[תאריך]]),MONTH(טבלה1[[#This Row],[תאריך]]),1)) -> 2024-08-01 | AO27: =IF(AL27="","", IFERROR(IF(SUMIFS(טבלה1[שעות],טבלה1[שם העבודה],טבלה2[[#This Row],[שמות העבודות]])=0,"", SUMIFS(טבלה1[שעות],טבלה1[שם העבודה],טבלה2[[#This Row],[שמות העבודות]])),"")) ->  | AP27: =IFERROR(IF(OR(טבלה2[[#This Row],[שכר לשעה]]="",טבלה2[[#This Row],[שעות]]=""),"",IF( IF(OR(טבלה2[[#This Row],[מטבע]]="₪",AND(מטבע="שקלים",טבלה2[[#This Row],[מטבע]]="")), טבלה2[[#This Row],[שכר לשעה]]*טבלה2[[#This Row],[שעות]]*24, IF(OR(טבלה2[[#This Row],[מטבע]]="$",AND(מטבע="דולרים",טבלה2[[#This Row],[מטבע]]="")), טבלה2[[#This Row],[שכר לשעה]]*טבלה2[[#This Row],[שעות]]*24*שער,""))=0,"", IF(OR(טבלה2[[#This Row],[מטבע]]="₪",AND(מטבע="שקלים",טבלה2[[#This Row],[מטבע]]="")), טבלה2[[#This Row],[שכר לשעה]]*טבלה2[[#This Row],[שעות]]*24, IF(OR(טבלה2[[#This Row],[מטבע]]="$",AND(מטבע="דולרים",טבלה2[[#This Row],[מטבע]]="")), טבלה2[[#This Row],[שכר לשעה]]*טבלה2[[#This Row],[שעות]]*24*שער,"")))),"") ->  | AQ27: =IFERROR(IF(OR(טבלה2[[#This Row],[שכר לשעה]]="",טבלה2[[#This Row],[שעות]]=""),"",IF( IF(OR(טבלה2[[#This Row],[מטבע]]="$",AND(מטבע="דולרים",טבלה2[[#This Row],[מטבע]]="")), טבלה2[[#This Row],[שכר לשעה]]*טבלה2[[#This Row],[שעות]]*24, IF(OR(טבלה2[[#This Row],[מטבע]]="₪",AND(מטבע="שקלים",טבלה2[[#This Row],[מטבע]]="")), טבלה2[[#This Row],[שכר לשעה]]*טבלה2[[#This Row],[שעות]]*24/שער,""))=0,"", IF(OR(טבלה2[[#This Row],[מטבע]]="$",AND(מטבע="דולרים",טבלה2[[#This Row],[מטבע]]="")), טבלה2[[#This Row],[שכר לשעה]]*טבלה2[[#This Row],[שעות]]*24, IF(OR(טבלה2[[#This Row],[מטבע]]="₪",AND(מטבע="שקלים",טבלה2[[#This Row],[מטבע]]="")), טבלה2[[#This Row],[שכר לשעה]]*טבלה2[[#This Row],[שעות]]*24/שער,"")))),"") ->  | AT27: =IF(OR(טבלה2[[#This Row],[שכר לשעה]]="",טבלה2[[#This Row],[שעות]]=""),"",IF( IF(OR(טבלה2[[#This Row],[מטבע]]="₪",AND(מטבע="שקלים",טבלה2[[#This Row],[מטבע]]="")),טבלה2[[#This Row],[שכר בשקלים]]+טבלה2[[#This Row],[חיובים נוספים]]-טבלה2[[#This Row],[זיכויים / שולם]], IF(OR(טבלה2[[#This Row],[מטבע]]="$",AND(מטבע="דולרים",טבלה2[[#This Row],[מטבע]]="")),טבלה2[[#This Row],[שכר בדולרים]]+טבלה2[[#This Row],[חיובים נוספים]]-טבלה2[[#This Row],[זיכויים / שולם]],""))=0,"", IF(OR(טבלה2[[#This Row],[מטבע]]="₪",AND(מטבע="שקלים",טבלה2[[#This Row],[מטבע]]="")),טבלה2[[#This Row],[שכר בשקלים]]+טבלה2[[#This Row],[חיובים נוספים]]-טבלה2[[#This Row],[זיכויים / שולם]], IF(OR(טבלה2[[#This Row],[מטבע]]="$",AND(מטבע="דולרים",טבלה2[[#This Row],[מטבע]]="")),טבלה2[[#This Row],[שכר בדולרים]]+טבלה2[[#This Row],[חיובים נוספים]]-טבלה2[[#This Row],[זיכויים / שולם]],"")))) ->  | BJ27: =BJ30-3 -> 2025-01-19 | BK27: =IF(טבלה2[[#This Row],[שמות העבודות]]="","",טבלה2[[#This Row],[שמות העבודות]]) -> 
B28: =IF(AND(טבלה1[[#This Row],[תאריך]]="",טבלה1[[#This Row],[התחלה]]="",טבלה1[[#This Row],[שם העבודה]]=""),"",ROW()-10) -> 18 | C28: =IF(טבלה1[[#This Row],[תאריך]]="","",IF(TEXT(טבלה1[[#This Row],[תאריך]],"DDD")="שבת","מוצ""ש",TEXT(טבלה1[[#This Row],[תאריך]],"DDD"))) -> יום ה | D28: 2024-08-22 | E28: 02:17:24 | F28: הגהה | G28: 04:17:28 | J28: =IF(IF(AND(טבלה1[[#This Row],[התחלה]]="",טבלה1[[#This Row],[סיום]]<>""),"",IF(AND(טבלה1[[#This Row],[התחלה]]<>"",טבלה1[[#This Row],[סיום]]=""), SUM(MOD(MOD(NOW(),1)-טבלה1[[#This Row],[התחלה]],1),טבלה1[[#This Row],[הוספת דקות]],-טבלה1[[#This Row],[הפחתת דקות]]), SUM(MOD(טבלה1[[#This Row],[סיום]]-טבלה1[[#This Row],[התחלה]],1),טבלה1[[#This Row],[הוספת דקות]],-טבלה1[[#This Row],[הפחתת דקות]])))<=0,"", IF(AND(טבלה1[[#This Row],[התחלה]]="",טבלה1[[#This Row],[סיום]]<>""),"",IF(AND(טבלה1[[#This Row],[התחלה]]<>"",טבלה1[[#This Row],[סיום]]=""), SUM(MOD(MOD(NOW(),1)-טבלה1[[#This Row],[התחלה]],1),טבלה1[[#This Row],[הוספת דקות]],-טבלה1[[#This Row],[הפחתת דקות]]), SUM(MOD(טבלה1[[#This Row],[סיום]]-טבלה1[[#This Row],[התחלה]],1),טבלה1[[#This Row],[הוספת דקות]],-טבלה1[[#This Row],[הפחתת דקות]])))) -> 0.08337962963 | K28: =IF(טבלה1[[#This Row],[שעות]]="","",IFERROR( IF(IF(AND(מטבע="שקלים",VLOOKUP(טבלה1[[#This Row],[שם העבודה]],טבלה2[],3,FALSE)="$"), VLOOKUP(טבלה1[[#This Row],[שם העבודה]],טבלה2[#All],2,FALSE)*טבלה1[[#This Row],[שעות]]*24*שער, IF(AND(מטבע="דולרים",VLOOKUP(טבלה1[[#This Row],[שם העבודה]],טבלה2[],3,FALSE)="₪"), VLOOKUP(טבלה1[[#This Row],[שם העבודה]],טבלה2[#All],2,FALSE)*טבלה1[[#This Row],[שעות]]*24/שער, VLOOKUP(טבלה1[[#This Row],[שם העבודה]],טבלה2[#All],2,FALSE)*טבלה1[[#This Row],[שעות]]*24))=0,"", IF(AND(מטבע="שקלים",VLOOKUP(טבלה1[[#This Row],[שם העבודה]],טבלה2[],3,FALSE)="$"), VLOOKUP(טבלה1[[#This Row],[שם העבודה]],טבלה2[#All],2,FALSE)*טבלה1[[#This Row],[שעות]]*24*שער, IF(AND(מטבע="דולרים",VLOOKUP(טבלה1[[#This Row],[שם העבודה]],טבלה2[],3,FALSE)="₪"), VLOOKUP(טבלה1[[#This Row],[שם העבודה]],טבלה2[#All],2,FALSE)*טבלה1[[#This Row],[שעות]]*24/שער, VLOOKUP(טבלה1[[#This Row],[שם העבודה]],טבלה2[#All],2,FALSE)*טבלה1[[#This Row],[שעות]]*24))),"")) -> 140.0777778 | L28: =IF(טבלה1[[#This Row],[תאריך]]="","",DATE(YEAR(טבלה1[[#This Row],[תאריך]]),MONTH(טבלה1[[#This Row],[תאריך]]),1)) -> 2024-08-01 | AO28: =IF(AL28="","", IFERROR(IF(SUMIFS(טבלה1[שעות],טבלה1[שם העבודה],טבלה2[[#This Row],[שמות העבודות]])=0,"", SUMIFS(טבלה1[שעות],טבלה1[שם העבודה],טבלה2[[#This Row],[שמות העבודות]])),"")) ->  | AP28: =IFERROR(IF(OR(טבלה2[[#This Row],[שכר לשעה]]="",טבלה2[[#This Row],[שעות]]=""),"",IF( IF(OR(טבלה2[[#This Row],[מטבע]]="₪",AND(מטבע="שקלים",טבלה2[[#This Row],[מטבע]]="")), טבלה2[[#This Row],[שכר לשעה]]*טבלה2[[#This Row],[שעות]]*24, IF(OR(טבלה2[[#This Row],[מטבע]]="$",AND(מטבע="דולרים",טבלה2[[#This Row],[מטבע]]="")), טבלה2[[#This Row],[שכר לשעה]]*טבלה2[[#This Row],[שעות]]*24*שער,""))=0,"", IF(OR(טבלה2[[#This Row],[מטבע]]="₪",AND(מטבע="שקלים",טבלה2[[#This Row],[מטבע]]="")), טבלה2[[#This Row],[שכר לשעה]]*טבלה2[[#This Row],[שעות]]*24, IF(OR(טבלה2[[#This Row],[מטבע]]="$",AND(מטבע="דולרים",טבלה2[[#This Row],[מטבע]]="")), טבלה2[[#This Row],[שכר לשעה]]*טבלה2[[#This Row],[שעות]]*24*שער,"")))),"") ->  | AQ28: =IFERROR(IF(OR(טבלה2[[#This Row],[שכר לשעה]]="",טבלה2[[#This Row],[שעות]]=""),"",IF( IF(OR(טבלה2[[#This Row],[מטבע]]="$",AND(מטבע="דולרים",טבלה2[[#This Row],[מטבע]]="")), טבלה2[[#This Row],[שכר לשעה]]*טבלה2[[#This Row],[שעות]]*24, IF(OR(טבלה2[[#This Row],[מטבע]]="₪",AND(מטבע="שקלים",טבלה2[[#This Row],[מטבע]]="")), טבלה2[[#This Row],[שכר לשעה]]*טבלה2[[#This Row],[שעות]]*24/שער,""))=0,"", IF(OR(טבלה2[[#This Row],[מטבע]]="$",AND(מטבע="דולרים",טבלה2[[#This Row],[מטבע]]="")), טבלה2[[#This Row],[שכר לשעה]]*טבלה2[[#This Row],[שעות]]*24, IF(OR(טבלה2[[#This Row],[מטבע]]="₪",AND(מטבע="שקלים",טבלה2[[#This Row],[מטבע]]="")), טבלה2[[#This Row],[שכר לשעה]]*טבלה2[[#This Row],[שעות]]*24/שער,"")))),"") ->  | AT28: =IF(OR(טבלה2[[#This Row],[שכר לשעה]]="",טבלה2[[#This Row],[שעות]]=""),"",IF( IF(OR(טבלה2[[#This Row],[מטבע]]="₪",AND(מטבע="שקלים",טבלה2[[#This Row],[מטבע]]="")),טבלה2[[#This Row],[שכר בשקלים]]+טבלה2[[#This Row],[חיובים נוספים]]-טבלה2[[#This Row],[זיכויים / שולם]], IF(OR(טבלה2[[#This Row],[מטבע]]="$",AND(מטבע="דולרים",טבלה2[[#This Row],[מטבע]]="")),טבלה2[[#This Row],[שכר בדולרים]]+טבלה2[[#This Row],[חיובים נוספים]]-טבלה2[[#This Row],[זיכויים / שולם]],""))=0,"", IF(OR(טבלה2[[#This Row],[מטבע]]="₪",AND(מטבע="שקלים",טבלה2[[#This Row],[מטבע]]="")),טבלה2[[#This Row],[שכר בשקלים]]+טבלה2[[#This Row],[חיובים נוספים]]-טבלה2[[#This Row],[זיכויים / שולם]], IF(OR(טבלה2[[#This Row],[מטבע]]="$",AND(מטבע="דולרים",טבלה2[[#This Row],[מטבע]]="")),טבלה2[[#This Row],[שכר בדולרים]]+טבלה2[[#This Row],[חיובים נוספים]]-טבלה2[[#This Row],[זיכויים / שולם]],"")))) ->  | BJ28: =BJ30-2 -> 2025-01-20 | BK28: =IF(טבלה2[[#This Row],[שמות העבודות]]="","",טבלה2[[#This Row],[שמות העבודות]]) -> 
B29: =IF(AND(טבלה1[[#This Row],[תאריך]]="",טבלה1[[#This Row],[התחלה]]="",טבלה1[[#This Row],[שם העבודה]]=""),"",ROW()-10) -> 19 | C29: =IF(טבלה1[[#This Row],[תאריך]]="","",IF(TEXT(טבלה1[[#This Row],[תאריך]],"DDD")="שבת","מוצ""ש",TEXT(טבלה1[[#This Row],[תאריך]],"DDD"))) -> יום ו | D29: 2024-08-23 | E29: 14:17:24 | F29: מכון תורה אור | G29: 16:17:28 | J29: =IF(IF(AND(טבלה1[[#This Row],[התחלה]]="",טבלה1[[#This Row],[סיום]]<>""),"",IF(AND(טבלה1[[#This Row],[התחלה]]<>"",טבלה1[[#This Row],[סיום]]=""), SUM(MOD(MOD(NOW(),1)-טבלה1[[#This Row],[התחלה]],1),טבלה1[[#This Row],[הוספת דקות]],-טבלה1[[#This Row],[הפחתת דקות]]), SUM(MOD(טבלה1[[#This Row],[סיום]]-טבלה1[[#This Row],[התחלה]],1),טבלה1[[#This Row],[הוספת דקות]],-טבלה1[[#This Row],[הפחתת דקות]])))<=0,"", IF(AND(טבלה1[[#This Row],[התחלה]]="",טבלה1[[#This Row],[סיום]]<>""),"",IF(AND(טבלה1[[#This Row],[התחלה]]<>"",טבלה1[[#This Row],[סיום]]=""), SUM(MOD(MOD(NOW(),1)-טבלה1[[#This Row],[התחלה]],1),טבלה1[[#This Row],[הוספת דקות]],-טבלה1[[#This Row],[הפחתת דקות]]), SUM(MOD(טבלה1[[#This Row],[סיום]]-טבלה1[[#This Row],[התחלה]],1),טבלה1[[#This Row],[הוספת דקות]],-טבלה1[[#This Row],[הפחתת דקות]])))) -> 0.08337962963 | K29: =IF(טבלה1[[#This Row],[שעות]]="","",IFERROR( IF(IF(AND(מטבע="שקלים",VLOOKUP(טבלה1[[#This Row],[שם העבודה]],טבלה2[],3,FALSE)="$"), VLOOKUP(טבלה1[[#This Row],[שם העבודה]],טבלה2[#All],2,FALSE)*טבלה1[[#This Row],[שעות]]*24*שער, IF(AND(מטבע="דולרים",VLOOKUP(טבלה1[[#This Row],[שם העבודה]],טבלה2[],3,FALSE)="₪"), VLOOKUP(טבלה1[[#This Row],[שם העבודה]],טבלה2[#All],2,FALSE)*טבלה1[[#This Row],[שעות]]*24/שער, VLOOKUP(טבלה1[[#This Row],[שם העבודה]],טבלה2[#All],2,FALSE)*טבלה1[[#This Row],[שעות]]*24))=0,"", IF(AND(מטבע="שקלים",VLOOKUP(טבלה1[[#This Row],[שם העבודה]],טבלה2[],3,FALSE)="$"), VLOOKUP(טבלה1[[#This Row],[שם העבודה]],טבלה2[#All],2,FALSE)*טבלה1[[#This Row],[שעות]]*24*שער, IF(AND(מטבע="דולרים",VLOOKUP(טבלה1[[#This Row],[שם העבודה]],טבלה2[],3,FALSE)="₪"), VLOOKUP(טבלה1[[#This Row],[שם העבודה]],טבלה2[#All],2,FALSE)*טבלה1[[#This Row],[שעות]]*24/שער, VLOOKUP(טבלה1[[#This Row],[שם העבודה]],טבלה2[#All],2,FALSE)*טבלה1[[#This Row],[שעות]]*24))),"")) -> 130.0722222 | L29: =IF(טבלה1[[#This Row],[תאריך]]="","",DATE(YEAR(טבלה1[[#This Row],[תאריך]]),MONTH(טבלה1[[#This Row],[תאריך]]),1)) -> 2024-08-01 | AO29: =IF(AL29="","", IFERROR(IF(SUMIFS(טבלה1[שעות],טבלה1[שם העבודה],טבלה2[[#This Row],[שמות העבודות]])=0,"", SUMIFS(טבלה1[שעות],טבלה1[שם העבודה],טבלה2[[#This Row],[שמות העבודות]])),"")) ->  | AP29: =IFERROR(IF(OR(טבלה2[[#This Row],[שכר לשעה]]="",טבלה2[[#This Row],[שעות]]=""),"",IF( IF(OR(טבלה2[[#This Row],[מטבע]]="₪",AND(מטבע="שקלים",טבלה2[[#This Row],[מטבע]]="")), טבלה2[[#This Row],[שכר לשעה]]*טבלה2[[#This Row],[שעות]]*24, IF(OR(טבלה2[[#This Row],[מטבע]]="$",AND(מטבע="דולרים",טבלה2[[#This Row],[מטבע]]="")), טבלה2[[#This Row],[שכר לשעה]]*טבלה2[[#This Row],[שעות]]*24*שער,""))=0,"", IF(OR(טבלה2[[#This Row],[מטבע]]="₪",AND(מטבע="שקלים",טבלה2[[#This Row],[מטבע]]="")), טבלה2[[#This Row],[שכר לשעה]]*טבלה2[[#This Row],[שעות]]*24, IF(OR(טבלה2[[#This Row],[מטבע]]="$",AND(מטבע="דולרים",טבלה2[[#This Row],[מטבע]]="")), טבלה2[[#This Row],[שכר לשעה]]*טבלה2[[#This Row],[שעות]]*24*שער,"")))),"") ->  | AQ29: =IFERROR(IF(OR(טבלה2[[#This Row],[שכר לשעה]]="",טבלה2[[#This Row],[שעות]]=""),"",IF( IF(OR(טבלה2[[#This Row],[מטבע]]="$",AND(מטבע="דולרים",טבלה2[[#This Row],[מטבע]]="")), טבלה2[[#This Row],[שכר לשעה]]*טבלה2[[#This Row],[שעות]]*24, IF(OR(טבלה2[[#This Row],[מטבע]]="₪",AND(מטבע="שקלים",טבלה2[[#This Row],[מטבע]]="")), טבלה2[[#This Row],[שכר לשעה]]*טבלה2[[#This Row],[שעות]]*24/שער,""))=0,"", IF(OR(טבלה2[[#This Row],[מטבע]]="$",AND(מטבע="דולרים",טבלה2[[#This Row],[מטבע]]="")), טבלה2[[#This Row],[שכר לשעה]]*טבלה2[[#This Row],[שעות]]*24, IF(OR(טבלה2[[#This Row],[מטבע]]="₪",AND(מטבע="שקלים",טבלה2[[#This Row],[מטבע]]="")), טבלה2[[#This Row],[שכר לשעה]]*טבלה2[[#This Row],[שעות]]*24/שער,"")))),"") ->  | AT29: =IF(OR(טבלה2[[#This Row],[שכר לשעה]]="",טבלה2[[#This Row],[שעות]]=""),"",IF( IF(OR(טבלה2[[#This Row],[מטבע]]="₪",AND(מטבע="שקלים",טבלה2[[#This Row],[מטבע]]="")),טבלה2[[#This Row],[שכר בשקלים]]+טבלה2[[#This Row],[חיובים נוספים]]-טבלה2[[#This Row],[זיכויים / שולם]], IF(OR(טבלה2[[#This Row],[מטבע]]="$",AND(מטבע="דולרים",טבלה2[[#This Row],[מטבע]]="")),טבלה2[[#This Row],[שכר בדולרים]]+טבלה2[[#This Row],[חיובים נוספים]]-טבלה2[[#This Row],[זיכויים / שולם]],""))=0,"", IF(OR(טבלה2[[#This Row],[מטבע]]="₪",AND(מטבע="שקלים",טבלה2[[#This Row],[מטבע]]="")),טבלה2[[#This Row],[שכר בשקלים]]+טבלה2[[#This Row],[חיובים נוספים]]-טבלה2[[#This Row],[זיכויים / שולם]], IF(OR(טבלה2[[#This Row],[מטבע]]="$",AND(מטבע="דולרים",טבלה2[[#This Row],[מטבע]]="")),טבלה2[[#This Row],[שכר בדולרים]]+טבלה2[[#This Row],[חיובים נוספים]]-טבלה2[[#This Row],[זיכויים / שולם]],"")))) ->  | BJ29: =BJ30-1 -> 2025-01-21 | BK29: =IF(טבלה2[[#This Row],[שמות העבודות]]="","",טבלה2[[#This Row],[שמות העבודות]]) -> 
B30: =IF(AND(טבלה1[[#This Row],[תאריך]]="",טבלה1[[#This Row],[התחלה]]="",טבלה1[[#This Row],[שם העבודה]]=""),"",ROW()-10) -> 20 | C30: =IF(טבלה1[[#This Row],[תאריך]]="","",IF(TEXT(טבלה1[[#This Row],[תאריך]],"DDD")="שבת","מוצ""ש",TEXT(טבלה1[[#This Row],[תאריך]],"DDD"))) -> מוצ"ש | D30: 2024-08-24 | E30: 02:17:24 | F30: מכון אורה | G30: 04:17:28 | J30: =IF(IF(AND(טבלה1[[#This Row],[התחלה]]="",טבלה1[[#This Row],[סיום]]<>""),"",IF(AND(טבלה1[[#This Row],[התחלה]]<>"",טבלה1[[#This Row],[סיום]]=""), SUM(MOD(MOD(NOW(),1)-טבלה1[[#This Row],[התחלה]],1),טבלה1[[#This Row],[הוספת דקות]],-טבלה1[[#This Row],[הפחתת דקות]]), SUM(MOD(טבלה1[[#This Row],[סיום]]-טבלה1[[#This Row],[התחלה]],1),טבלה1[[#This Row],[הוספת דקות]],-טבלה1[[#This Row],[הפחתת דקות]])))<=0,"", IF(AND(טבלה1[[#This Row],[התחלה]]="",טבלה1[[#This Row],[סיום]]<>""),"",IF(AND(טבלה1[[#This Row],[התחלה]]<>"",טבלה1[[#This Row],[סיום]]=""), SUM(MOD(MOD(NOW(),1)-טבלה1[[#This Row],[התחלה]],1),טבלה1[[#This Row],[הוספת דקות]],-טבלה1[[#This Row],[הפחתת דקות]]), SUM(MOD(טבלה1[[#This Row],[סיום]]-טבלה1[[#This Row],[התחלה]],1),טבלה1[[#This Row],[הוספת דקות]],-טבלה1[[#This Row],[הפחתת דקות]])))) -> 0.08337962963 | K30: =IF(טבלה1[[#This Row],[שעות]]="","",IFERROR( IF(IF(AND(מטבע="שקלים",VLOOKUP(טבלה1[[#This Row],[שם העבודה]],טבלה2[],3,FALSE)="$"), VLOOKUP(טבלה1[[#This Row],[שם העבודה]],טבלה2[#All],2,FALSE)*טבלה1[[#This Row],[שעות]]*24*שער, IF(AND(מטבע="דולרים",VLOOKUP(טבלה1[[#This Row],[שם העבודה]],טבלה2[],3,FALSE)="₪"), VLOOKUP(טבלה1[[#This Row],[שם העבודה]],טבלה2[#All],2,FALSE)*טבלה1[[#This Row],[שעות]]*24/שער, VLOOKUP(טבלה1[[#This Row],[שם העבודה]],טבלה2[#All],2,FALSE)*טבלה1[[#This Row],[שעות]]*24))=0,"", IF(AND(מטבע="שקלים",VLOOKUP(טבלה1[[#This Row],[שם העבודה]],טבלה2[],3,FALSE)="$"), VLOOKUP(טבלה1[[#This Row],[שם העבודה]],טבלה2[#All],2,FALSE)*טבלה1[[#This Row],[שעות]]*24*שער, IF(AND(מטבע="דולרים",VLOOKUP(טבלה1[[#This Row],[שם העבודה]],טבלה2[],3,FALSE)="₪"), VLOOKUP(טבלה1[[#This Row],[שם העבודה]],טבלה2[#All],2,FALSE)*טבלה1[[#This Row],[שעות]]*24/שער, VLOOKUP(טבלה1[[#This Row],[שם העבודה]],טבלה2[#All],2,FALSE)*טבלה1[[#This Row],[שעות]]*24))),"")) -> 80.04444444 | L30: =IF(טבלה1[[#This Row],[תאריך]]="","",DATE(YEAR(טבלה1[[#This Row],[תאריך]]),MONTH(טבלה1[[#This Row],[תאריך]]),1)) -> 2024-08-01 | AO30: =IF(AL30="","", IFERROR(IF(SUMIFS(טבלה1[שעות],טבלה1[שם העבודה],טבלה2[[#This Row],[שמות העבודות]])=0,"", SUMIFS(טבלה1[שעות],טבלה1[שם העבודה],טבלה2[[#This Row],[שמות העבודות]])),"")) ->  | AP30: =IFERROR(IF(OR(טבלה2[[#This Row],[שכר לשעה]]="",טבלה2[[#This Row],[שעות]]=""),"",IF( IF(OR(טבלה2[[#This Row],[מטבע]]="₪",AND(מטבע="שקלים",טבלה2[[#This Row],[מטבע]]="")), טבלה2[[#This Row],[שכר לשעה]]*טבלה2[[#This Row],[שעות]]*24, IF(OR(טבלה2[[#This Row],[מטבע]]="$",AND(מטבע="דולרים",טבלה2[[#This Row],[מטבע]]="")), טבלה2[[#This Row],[שכר לשעה]]*טבלה2[[#This Row],[שעות]]*24*שער,""))=0,"", IF(OR(טבלה2[[#This Row],[מטבע]]="₪",AND(מטבע="שקלים",טבלה2[[#This Row],[מטבע]]="")), טבלה2[[#This Row],[שכר לשעה]]*טבלה2[[#This Row],[שעות]]*24, IF(OR(טבלה2[[#This Row],[מטבע]]="$",AND(מטבע="דולרים",טבלה2[[#This Row],[מטבע]]="")), טבלה2[[#This Row],[שכר לשעה]]*טבלה2[[#This Row],[שעות]]*24*שער,"")))),"") ->  | AQ30: =IFERROR(IF(OR(טבלה2[[#This Row],[שכר לשעה]]="",טבלה2[[#This Row],[שעות]]=""),"",IF( IF(OR(טבלה2[[#This Row],[מטבע]]="$",AND(מטבע="דולרים",טבלה2[[#This Row],[מטבע]]="")), טבלה2[[#This Row],[שכר לשעה]]*טבלה2[[#This Row],[שעות]]*24, IF(OR(טבלה2[[#This Row],[מטבע]]="₪",AND(מטבע="שקלים",טבלה2[[#This Row],[מטבע]]="")), טבלה2[[#This Row],[שכר לשעה]]*טבלה2[[#This Row],[שעות]]*24/שער,""))=0,"", IF(OR(טבלה2[[#This Row],[מטבע]]="$",AND(מטבע="דולרים",טבלה2[[#This Row],[מטבע]]="")), טבלה2[[#This Row],[שכר לשעה]]*טבלה2[[#This Row],[שעות]]*24, IF(OR(טבלה2[[#This Row],[מטבע]]="₪",AND(מטבע="שקלים",טבלה2[[#This Row],[מטבע]]="")), טבלה2[[#This Row],[שכר לשעה]]*טבלה2[[#This Row],[שעות]]*24/שער,"")))),"") ->  | AT30: =IF(OR(טבלה2[[#This Row],[שכר לשעה]]="",טבלה2[[#This Row],[שעות]]=""),"",IF( IF(OR(טבלה2[[#This Row],[מטבע]]="₪",AND(מטבע="שקלים",טבלה2[[#This Row],[מטבע]]="")),טבלה2[[#This Row],[שכר בשקלים]]+טבלה2[[#This Row],[חיובים נוספים]]-טבלה2[[#This Row],[זיכויים / שולם]], IF(OR(טבלה2[[#This Row],[מטבע]]="$",AND(מטבע="דולרים",טבלה2[[#This Row],[מטבע]]="")),טבלה2[[#This Row],[שכר בדולרים]]+טבלה2[[#This Row],[חיובים נוספים]]-טבלה2[[#This Row],[זיכויים / שולם]],""))=0,"", IF(OR(טבלה2[[#This Row],[מטבע]]="₪",AND(מטבע="שקלים",טבלה2[[#This Row],[מטבע]]="")),טבלה2[[#This Row],[שכר בשקלים]]+טבלה2[[#This Row],[חיובים נוספים]]-טבלה2[[#This Row],[זיכויים / שולם]], IF(OR(טבלה2[[#This Row],[מטבע]]="$",AND(מטבע="דולרים",טבלה2[[#This Row],[מטבע]]="")),טבלה2[[#This Row],[שכר בדולרים]]+טבלה2[[#This Row],[חיובים נוספים]]-טבלה2[[#This Row],[זיכויים / שולם]],"")))) ->  | BJ30: =TODAY() -> 2025-01-22 | BK30: =IF(טבלה2[[#This Row],[שמות העבודות]]="","",טבלה2[[#This Row],[שמות העבודות]]) -> 
B31: =IF(AND(טבלה1[[#This Row],[תאריך]]="",טבלה1[[#This Row],[התחלה]]="",טבלה1[[#This Row],[שם העבודה]]=""),"",ROW()-10) -> 21 | C31: =IF(טבלה1[[#This Row],[תאריך]]="","",IF(TEXT(טבלה1[[#This Row],[תאריך]],"DDD")="שבת","מוצ""ש",TEXT(טבלה1[[#This Row],[תאריך]],"DDD"))) -> יום א | D31: 2024-08-25 | E31: 01:45:07 | F31: הקלדה | G31: 01:45:30 | J31: =IF(IF(AND(טבלה1[[#This Row],[התחלה]]="",טבלה1[[#This Row],[סיום]]<>""),"",IF(AND(טבלה1[[#This Row],[התחלה]]<>"",טבלה1[[#This Row],[סיום]]=""), SUM(MOD(MOD(NOW(),1)-טבלה1[[#This Row],[התחלה]],1),טבלה1[[#This Row],[הוספת דקות]],-טבלה1[[#This Row],[הפחתת דקות]]), SUM(MOD(טבלה1[[#This Row],[סיום]]-טבלה1[[#This Row],[התחלה]],1),טבלה1[[#This Row],[הוספת דקות]],-טבלה1[[#This Row],[הפחתת דקות]])))<=0,"", IF(AND(טבלה1[[#This Row],[התחלה]]="",טבלה1[[#This Row],[סיום]]<>""),"",IF(AND(טבלה1[[#This Row],[התחלה]]<>"",טבלה1[[#This Row],[סיום]]=""), SUM(MOD(MOD(NOW(),1)-טבלה1[[#This Row],[התחלה]],1),טבלה1[[#This Row],[הוספת דקות]],-טבלה1[[#This Row],[הפחתת דקות]]), SUM(MOD(טבלה1[[#This Row],[סיום]]-טבלה1[[#This Row],[התחלה]],1),טבלה1[[#This Row],[הוספת דקות]],-טבלה1[[#This Row],[הפחתת דקות]])))) -> 0.0002662037037 | K31: =IF(טבלה1[[#This Row],[שעות]]="","",IFERROR( IF(IF(AND(מטבע="שקלים",VLOOKUP(טבלה1[[#This Row],[שם העבודה]],טבלה2[],3,FALSE)="$"), VLOOKUP(טבלה1[[#This Row],[שם העבודה]],טבלה2[#All],2,FALSE)*טבלה1[[#This Row],[שעות]]*24*שער, IF(AND(מטבע="דולרים",VLOOKUP(טבלה1[[#This Row],[שם העבודה]],טבלה2[],3,FALSE)="₪"), VLOOKUP(טבלה1[[#This Row],[שם העבודה]],טבלה2[#All],2,FALSE)*טבלה1[[#This Row],[שעות]]*24/שער, VLOOKUP(טבלה1[[#This Row],[שם העבודה]],טבלה2[#All],2,FALSE)*טבלה1[[#This Row],[שעות]]*24))=0,"", IF(AND(מטבע="שקלים",VLOOKUP(טבלה1[[#This Row],[שם העבודה]],טבלה2[],3,FALSE)="$"), VLOOKUP(טבלה1[[#This Row],[שם העבודה]],טבלה2[#All],2,FALSE)*טבלה1[[#This Row],[שעות]]*24*שער, IF(AND(מטבע="דולרים",VLOOKUP(טבלה1[[#This Row],[שם העבודה]],טבלה2[],3,FALSE)="₪"), VLOOKUP(טבלה1[[#This Row],[שם העבודה]],טבלה2[#All],2,FALSE)*טבלה1[[#This Row],[שעות]]*24/שער, VLOOKUP(טבלה1[[#This Row],[שם העבודה]],טבלה2[#All],2,FALSE)*טבלה1[[#This Row],[שעות]]*24))),"")) -> 0.3194444444 | L31: =IF(טבלה1[[#This Row],[תאריך]]="","",DATE(YEAR(טבלה1[[#This Row],[תאריך]]),MONTH(טבלה1[[#This Row],[תאריך]]),1)) -> 2024-08-01 | AO31: =IF(AL31="","", IFERROR(IF(SUMIFS(טבלה1[שעות],טבלה1[שם העבודה],טבלה2[[#This Row],[שמות העבודות]])=0,"", SUMIFS(טבלה1[שעות],טבלה1[שם העבודה],טבלה2[[#This Row],[שמות העבודות]])),"")) ->  | AP31: =IFERROR(IF(OR(טבלה2[[#This Row],[שכר לשעה]]="",טבלה2[[#This Row],[שעות]]=""),"",IF( IF(OR(טבלה2[[#This Row],[מטבע]]="₪",AND(מטבע="שקלים",טבלה2[[#This Row],[מטבע]]="")), טבלה2[[#This Row],[שכר לשעה]]*טבלה2[[#This Row],[שעות]]*24, IF(OR(טבלה2[[#This Row],[מטבע]]="$",AND(מטבע="דולרים",טבלה2[[#This Row],[מטבע]]="")), טבלה2[[#This Row],[שכר לשעה]]*טבלה2[[#This Row],[שעות]]*24*שער,""))=0,"", IF(OR(טבלה2[[#This Row],[מטבע]]="₪",AND(מטבע="שקלים",טבלה2[[#This Row],[מטבע]]="")), טבלה2[[#This Row],[שכר לשעה]]*טבלה2[[#This Row],[שעות]]*24, IF(OR(טבלה2[[#This Row],[מטבע]]="$",AND(מטבע="דולרים",טבלה2[[#This Row],[מטבע]]="")), טבלה2[[#This Row],[שכר לשעה]]*טבלה2[[#This Row],[שעות]]*24*שער,"")))),"") ->  | AQ31: =IFERROR(IF(OR(טבלה2[[#This Row],[שכר לשעה]]="",טבלה2[[#This Row],[שעות]]=""),"",IF( IF(OR(טבלה2[[#This Row],[מטבע]]="$",AND(מטבע="דולרים",טבלה2[[#This Row],[מטבע]]="")), טבלה2[[#This Row],[שכר לשעה]]*טבלה2[[#This Row],[שעות]]*24, IF(OR(טבלה2[[#This Row],[מטבע]]="₪",AND(מטבע="שקלים",טבלה2[[#This Row],[מטבע]]="")), טבלה2[[#This Row],[שכר לשעה]]*טבלה2[[#This Row],[שעות]]*24/שער,""))=0,"", IF(OR(טבלה2[[#This Row],[מטבע]]="$",AND(מטבע="דולרים",טבלה2[[#This Row],[מטבע]]="")), טבלה2[[#This Row],[שכר לשעה]]*טבלה2[[#This Row],[שעות]]*24, IF(OR(טבלה2[[#This Row],[מטבע]]="₪",AND(מטבע="שקלים",טבלה2[[#This Row],[מטבע]]="")), טבלה2[[#This Row],[שכר לשעה]]*טבלה2[[#This Row],[שעות]]*24/שער,"")))),"") ->  | AT31: =IF(OR(טבלה2[[#This Row],[שכר לשעה]]="",טבלה2[[#This Row],[שעות]]=""),"",IF( IF(OR(טבלה2[[#This Row],[מטבע]]="₪",AND(מטבע="שקלים",טבלה2[[#This Row],[מטבע]]="")),טבלה2[[#This Row],[שכר בשקלים]]+טבלה2[[#This Row],[חיובים נוספים]]-טבלה2[[#This Row],[זיכויים / שולם]], IF(OR(טבלה2[[#This Row],[מטבע]]="$",AND(מטבע="דולרים",טבלה2[[#This Row],[מטבע]]="")),טבלה2[[#This Row],[שכר בדולרים]]+טבלה2[[#This Row],[חיובים נוספים]]-טבלה2[[#This Row],[זיכויים / שולם]],""))=0,"", IF(OR(טבלה2[[#This Row],[מטבע]]="₪",AND(מטבע="שקלים",טבלה2[[#This Row],[מטבע]]="")),טבלה2[[#This Row],[שכר בשקלים]]+טבלה2[[#This Row],[חיובים נוספים]]-טבלה2[[#This Row],[זיכויים / שולם]], IF(OR(טבלה2[[#This Row],[מטבע]]="$",AND(מטבע="דולרים",טבלה2[[#This Row],[מטבע]]="")),טבלה2[[#This Row],[שכר בדולרים]]+טבלה2[[#This Row],[חיובים נוספים]]-טבלה2[[#This Row],[זיכויים / שולם]],"")))) ->  | BJ31: =BJ30+1 -> 2025-01-23 | BK31: =IF(טבלה2[[#This Row],[שמות העבודות]]="","",טבלה2[[#This Row],[שמות העבודות]]) -> 
B32: =IF(AND(טבלה1[[#This Row],[תאריך]]="",טבלה1[[#This Row],[התחלה]]="",טבלה1[[#This Row],[שם העבודה]]=""),"",ROW()-10) -> 22 | C32: =IF(טבלה1[[#This Row],[תאריך]]="","",IF(TEXT(טבלה1[[#This Row],[תאריך]],"DDD")="שבת","מוצ""ש",TEXT(טבלה1[[#This Row],[תאריך]],"DDD"))) -> יום ב | D32: 2024-08-26 | E32: 02:14:41 | F32: עימוד | G32: 02:27:55 | J32: =IF(IF(AND(טבלה1[[#This Row],[התחלה]]="",טבלה1[[#This Row],[סיום]]<>""),"",IF(AND(טבלה1[[#This Row],[התחלה]]<>"",טבלה1[[#This Row],[סיום]]=""), SUM(MOD(MOD(NOW(),1)-טבלה1[[#This Row],[התחלה]],1),טבלה1[[#This Row],[הוספת דקות]],-טבלה1[[#This Row],[הפחתת דקות]]), SUM(MOD(טבלה1[[#This Row],[סיום]]-טבלה1[[#This Row],[התחלה]],1),טבלה1[[#This Row],[הוספת דקות]],-טבלה1[[#This Row],[הפחתת דקות]])))<=0,"", IF(AND(טבלה1[[#This Row],[התחלה]]="",טבלה1[[#This Row],[סיום]]<>""),"",IF(AND(טבלה1[[#This Row],[התחלה]]<>"",טבלה1[[#This Row],[סיום]]=""), SUM(MOD(MOD(NOW(),1)-טבלה1[[#This Row],[התחלה]],1),טבלה1[[#This Row],[הוספת דקות]],-טבלה1[[#This Row],[הפחתת דקות]]), SUM(MOD(טבלה1[[#This Row],[סיום]]-טבלה1[[#This Row],[התחלה]],1),טבלה1[[#This Row],[הוספת דקות]],-טבלה1[[#This Row],[הפחתת דקות]])))) -> 0.009189814815 | K32: =IF(טבלה1[[#This Row],[שעות]]="","",IFERROR( IF(IF(AND(מטבע="שקלים",VLOOKUP(טבלה1[[#This Row],[שם העבודה]],טבלה2[],3,FALSE)="$"), VLOOKUP(טבלה1[[#This Row],[שם העבודה]],טבלה2[#All],2,FALSE)*טבלה1[[#This Row],[שעות]]*24*שער, IF(AND(מטבע="דולרים",VLOOKUP(טבלה1[[#This Row],[שם העבודה]],טבלה2[],3,FALSE)="₪"), VLOOKUP(טבלה1[[#This Row],[שם העבודה]],טבלה2[#All],2,FALSE)*טבלה1[[#This Row],[שעות]]*24/שער, VLOOKUP(טבלה1[[#This Row],[שם העבודה]],טבלה2[#All],2,FALSE)*טבלה1[[#This Row],[שעות]]*24))=0,"", IF(AND(מטבע="שקלים",VLOOKUP(טבלה1[[#This Row],[שם העבודה]],טבלה2[],3,FALSE)="$"), VLOOKUP(טבלה1[[#This Row],[שם העבודה]],טבלה2[#All],2,FALSE)*טבלה1[[#This Row],[שעות]]*24*שער, IF(AND(מטבע="דולרים",VLOOKUP(טבלה1[[#This Row],[שם העבודה]],טבלה2[],3,FALSE)="₪"), VLOOKUP(טבלה1[[#This Row],[שם העבודה]],טבלה2[#All],2,FALSE)*טבלה1[[#This Row],[שעות]]*24/שער, VLOOKUP(טבלה1[[#This Row],[שם העבודה]],טבלה2[#All],2,FALSE)*טבלה1[[#This Row],[שעות]]*24))),"")) -> 13.23333333 | L32: =IF(טבלה1[[#This Row],[תאריך]]="","",DATE(YEAR(טבלה1[[#This Row],[תאריך]]),MONTH(טבלה1[[#This Row],[תאריך]]),1)) -> 2024-08-01 | AO32: =IF(AL32="","", IFERROR(IF(SUMIFS(טבלה1[שעות],טבלה1[שם העבודה],טבלה2[[#This Row],[שמות העבודות]])=0,"", SUMIFS(טבלה1[שעות],טבלה1[שם העבודה],טבלה2[[#This Row],[שמות העבודות]])),"")) ->  | AP32: =IFERROR(IF(OR(טבלה2[[#This Row],[שכר לשעה]]="",טבלה2[[#This Row],[שעות]]=""),"",IF( IF(OR(טבלה2[[#This Row],[מטבע]]="₪",AND(מטבע="שקלים",טבלה2[[#This Row],[מטבע]]="")), טבלה2[[#This Row],[שכר לשעה]]*טבלה2[[#This Row],[שעות]]*24, IF(OR(טבלה2[[#This Row],[מטבע]]="$",AND(מטבע="דולרים",טבלה2[[#This Row],[מטבע]]="")), טבלה2[[#This Row],[שכר לשעה]]*טבלה2[[#This Row],[שעות]]*24*שער,""))=0,"", IF(OR(טבלה2[[#This Row],[מטבע]]="₪",AND(מטבע="שקלים",טבלה2[[#This Row],[מטבע]]="")), טבלה2[[#This Row],[שכר לשעה]]*טבלה2[[#This Row],[שעות]]*24, IF(OR(טבלה2[[#This Row],[מטבע]]="$",AND(מטבע="דולרים",טבלה2[[#This Row],[מטבע]]="")), טבלה2[[#This Row],[שכר לשעה]]*טבלה2[[#This Row],[שעות]]*24*שער,"")))),"") ->  | AQ32: =IFERROR(IF(OR(טבלה2[[#This Row],[שכר לשעה]]="",טבלה2[[#This Row],[שעות]]=""),"",IF( IF(OR(טבלה2[[#This Row],[מטבע]]="$",AND(מטבע="דולרים",טבלה2[[#This Row],[מטבע]]="")), טבלה2[[#This Row],[שכר לשעה]]*טבלה2[[#This Row],[שעות]]*24, IF(OR(טבלה2[[#This Row],[מטבע]]="₪",AND(מטבע="שקלים",טבלה2[[#This Row],[מטבע]]="")), טבלה2[[#This Row],[שכר לשעה]]*טבלה2[[#This Row],[שעות]]*24/שער,""))=0,"", IF(OR(טבלה2[[#This Row],[מטבע]]="$",AND(מטבע="דולרים",טבלה2[[#This Row],[מטבע]]="")), טבלה2[[#This Row],[שכר לשעה]]*טבלה2[[#This Row],[שעות]]*24, IF(OR(טבלה2[[#This Row],[מטבע]]="₪",AND(מטבע="שקלים",טבלה2[[#This Row],[מטבע]]="")), טבלה2[[#This Row],[שכר לשעה]]*טבלה2[[#This Row],[שעות]]*24/שער,"")))),"") ->  | AT32: =IF(OR(טבלה2[[#This Row],[שכר לשעה]]="",טבלה2[[#This Row],[שעות]]=""),"",IF( IF(OR(טבלה2[[#This Row],[מטבע]]="₪",AND(מטבע="שקלים",טבלה2[[#This Row],[מטבע]]="")),טבלה2[[#This Row],[שכר בשקלים]]+טבלה2[[#This Row],[חיובים נוספים]]-טבלה2[[#This Row],[זיכויים / שולם]], IF(OR(טבלה2[[#This Row],[מטבע]]="$",AND(מטבע="דולרים",טבלה2[[#This Row],[מטבע]]="")),טבלה2[[#This Row],[שכר בדולרים]]+טבלה2[[#This Row],[חיובים נוספים]]-טבלה2[[#This Row],[זיכויים / שולם]],""))=0,"", IF(OR(טבלה2[[#This Row],[מטבע]]="₪",AND(מטבע="שקלים",טבלה2[[#This Row],[מטבע]]="")),טבלה2[[#This Row],[שכר בשקלים]]+טבלה2[[#This Row],[חיובים נוספים]]-טבלה2[[#This Row],[זיכויים / שולם]], IF(OR(טבלה2[[#This Row],[מטבע]]="$",AND(מטבע="דולרים",טבלה2[[#This Row],[מטבע]]="")),טבלה2[[#This Row],[שכר בדולרים]]+טבלה2[[#This Row],[חיובים נוספים]]-טבלה2[[#This Row],[זיכויים / שולם]],"")))) ->  | BJ32: =BJ30+2 -> 2025-01-24 | BK32: =IF(טבלה2[[#This Row],[שמות העבודות]]="","",טבלה2[[#This Row],[שמות העבודות]]) -> 
B33: =IF(AND(טבלה1[[#This Row],[תאריך]]="",טבלה1[[#This Row],[התחלה]]="",טבלה1[[#This Row],[שם העבודה]]=""),"",ROW()-10) -> 23 | C33: =IF(טבלה1[[#This Row],[תאריך]]="","",IF(TEXT(טבלה1[[#This Row],[תאריך]],"DDD")="שבת","מוצ""ש",TEXT(טבלה1[[#This Row],[תאריך]],"DDD"))) -> יום ג | D33: 2024-08-27 | E33: 02:27:57 | F33: הגהה | G33: 02:27:58 | J33: =IF(IF(AND(טבלה1[[#This Row],[התחלה]]="",טבלה1[[#This Row],[סיום]]<>""),"",IF(AND(טבלה1[[#This Row],[התחלה]]<>"",טבלה1[[#This Row],[סיום]]=""), SUM(MOD(MOD(NOW(),1)-טבלה1[[#This Row],[התחלה]],1),טבלה1[[#This Row],[הוספת דקות]],-טבלה1[[#This Row],[הפחתת דקות]]), SUM(MOD(טבלה1[[#This Row],[סיום]]-טבלה1[[#This Row],[התחלה]],1),טבלה1[[#This Row],[הוספת דקות]],-טבלה1[[#This Row],[הפחתת דקות]])))<=0,"", IF(AND(טבלה1[[#This Row],[התחלה]]="",טבלה1[[#This Row],[סיום]]<>""),"",IF(AND(טבלה1[[#This Row],[התחלה]]<>"",טבלה1[[#This Row],[סיום]]=""), SUM(MOD(MOD(NOW(),1)-טבלה1[[#This Row],[התחלה]],1),טבלה1[[#This Row],[הוספת דקות]],-טבלה1[[#This Row],[הפחתת דקות]]), SUM(MOD(טבלה1[[#This Row],[סיום]]-טבלה1[[#This Row],[התחלה]],1),טבלה1[[#This Row],[הוספת דקות]],-טבלה1[[#This Row],[הפחתת דקות]])))) -> 1.157407407e-05 | K33: =IF(טבלה1[[#This Row],[שעות]]="","",IFERROR( IF(IF(AND(מטבע="שקלים",VLOOKUP(טבלה1[[#This Row],[שם העבודה]],טבלה2[],3,FALSE)="$"), VLOOKUP(טבלה1[[#This Row],[שם העבודה]],טבלה2[#All],2,FALSE)*טבלה1[[#This Row],[שעות]]*24*שער, IF(AND(מטבע="דולרים",VLOOKUP(טבלה1[[#This Row],[שם העבודה]],טבלה2[],3,FALSE)="₪"), VLOOKUP(טבלה1[[#This Row],[שם העבודה]],טבלה2[#All],2,FALSE)*טבלה1[[#This Row],[שעות]]*24/שער, VLOOKUP(טבלה1[[#This Row],[שם העבודה]],טבלה2[#All],2,FALSE)*טבלה1[[#This Row],[שעות]]*24))=0,"", IF(AND(מטבע="שקלים",VLOOKUP(טבלה1[[#This Row],[שם העבודה]],טבלה2[],3,FALSE)="$"), VLOOKUP(טבלה1[[#This Row],[שם העבודה]],טבלה2[#All],2,FALSE)*טבלה1[[#This Row],[שעות]]*24*שער, IF(AND(מטבע="דולרים",VLOOKUP(טבלה1[[#This Row],[שם העבודה]],טבלה2[],3,FALSE)="₪"), VLOOKUP(טבלה1[[#This Row],[שם העבודה]],טבלה2[#All],2,FALSE)*טבלה1[[#This Row],[שעות]]*24/שער, VLOOKUP(טבלה1[[#This Row],[שם העבודה]],טבלה2[#All],2,FALSE)*טבלה1[[#This Row],[שעות]]*24))),"")) -> 0.01944444444 | L33: =IF(טבלה1[[#This Row],[תאריך]]="","",DATE(YEAR(טבלה1[[#This Row],[תאריך]]),MONTH(טבלה1[[#This Row],[תאריך]]),1)) -> 2024-08-01 | AO33: =IF(AL33="","", IFERROR(IF(SUMIFS(טבלה1[שעות],טבלה1[שם העבודה],טבלה2[[#This Row],[שמות העבודות]])=0,"", SUMIFS(טבלה1[שעות],טבלה1[שם העבודה],טבלה2[[#This Row],[שמות העבודות]])),"")) ->  | AP33: =IFERROR(IF(OR(טבלה2[[#This Row],[שכר לשעה]]="",טבלה2[[#This Row],[שעות]]=""),"",IF( IF(OR(טבלה2[[#This Row],[מטבע]]="₪",AND(מטבע="שקלים",טבלה2[[#This Row],[מטבע]]="")), טבלה2[[#This Row],[שכר לשעה]]*טבלה2[[#This Row],[שעות]]*24, IF(OR(טבלה2[[#This Row],[מטבע]]="$",AND(מטבע="דולרים",טבלה2[[#This Row],[מטבע]]="")), טבלה2[[#This Row],[שכר לשעה]]*טבלה2[[#This Row],[שעות]]*24*שער,""))=0,"", IF(OR(טבלה2[[#This Row],[מטבע]]="₪",AND(מטבע="שקלים",טבלה2[[#This Row],[מטבע]]="")), טבלה2[[#This Row],[שכר לשעה]]*טבלה2[[#This Row],[שעות]]*24, IF(OR(טבלה2[[#This Row],[מטבע]]="$",AND(מטבע="דולרים",טבלה2[[#This Row],[מטבע]]="")), טבלה2[[#This Row],[שכר לשעה]]*טבלה2[[#This Row],[שעות]]*24*שער,"")))),"") ->  | AQ33: =IFERROR(IF(OR(טבלה2[[#This Row],[שכר לשעה]]="",טבלה2[[#This Row],[שעות]]=""),"",IF( IF(OR(טבלה2[[#This Row],[מטבע]]="$",AND(מטבע="דולרים",טבלה2[[#This Row],[מטבע]]="")), טבלה2[[#This Row],[שכר לשעה]]*טבלה2[[#This Row],[שעות]]*24, IF(OR(טבלה2[[#This Row],[מטבע]]="₪",AND(מטבע="שקלים",טבלה2[[#This Row],[מטבע]]="")), טבלה2[[#This Row],[שכר לשעה]]*טבלה2[[#This Row],[שעות]]*24/שער,""))=0,"", IF(OR(טבלה2[[#This Row],[מטבע]]="$",AND(מטבע="דולרים",טבלה2[[#This Row],[מטבע]]="")), טבלה2[[#This Row],[שכר לשעה]]*טבלה2[[#This Row],[שעות]]*24, IF(OR(טבלה2[[#This Row],[מטבע]]="₪",AND(מטבע="שקלים",טבלה2[[#This Row],[מטבע]]="")), טבלה2[[#This Row],[שכר לשעה]]*טבלה2[[#This Row],[שעות]]*24/שער,"")))),"") ->  | AT33: =IF(OR(טבלה2[[#This Row],[שכר לשעה]]="",טבלה2[[#This Row],[שעות]]=""),"",IF( IF(OR(טבלה2[[#This Row],[מטבע]]="₪",AND(מטבע="שקלים",טבלה2[[#This Row],[מטבע]]="")),טבלה2[[#This Row],[שכר בשקלים]]+טבלה2[[#This Row],[חיובים נוספים]]-טבלה2[[#This Row],[זיכויים / שולם]], IF(OR(טבלה2[[#This Row],[מטבע]]="$",AND(מטבע="דולרים",טבלה2[[#This Row],[מטבע]]="")),טבלה2[[#This Row],[שכר בדולרים]]+טבלה2[[#This Row],[חיובים נוספים]]-טבלה2[[#This Row],[זיכויים / שולם]],""))=0,"", IF(OR(טבלה2[[#This Row],[מטבע]]="₪",AND(מטבע="שקלים",טבלה2[[#This Row],[מטבע]]="")),טבלה2[[#This Row],[שכר בשקלים]]+טבלה2[[#This Row],[חיובים נוספים]]-טבלה2[[#This Row],[זיכויים / שולם]], IF(OR(טבלה2[[#This Row],[מטבע]]="$",AND(מטבע="דולרים",טבלה2[[#This Row],[מטבע]]="")),טבלה2[[#This Row],[שכר בדולרים]]+טבלה2[[#This Row],[חיובים נוספים]]-טבלה2[[#This Row],[זיכויים / שולם]],"")))) ->  | BJ33: =BJ30+3 -> 2025-01-25 | BK33: =IF(טבלה2[[#This Row],[שמות העבודות]]="","",טבלה2[[#This Row],[שמות העבודות]]) -> 
B34: =IF(AND(טבלה1[[#This Row],[תאריך]]="",טבלה1[[#This Row],[התחלה]]="",טבלה1[[#This Row],[שם העבודה]]=""),"",ROW()-10) -> 24 | C34: =IF(טבלה1[[#This Row],[תאריך]]="","",IF(TEXT(טבלה1[[#This Row],[תאריך]],"DDD")="שבת","מוצ""ש",TEXT(טבלה1[[#This Row],[תאריך]],"DDD"))) -> יום ד | D34: 2024-08-28 | E34: 02:38:22 | F34: מכון תורה אור | G34: 22:15:22 | J34: =IF(IF(AND(טבלה1[[#This Row],[התחלה]]="",טבלה1[[#This Row],[סיום]]<>""),"",IF(AND(טבלה1[[#This Row],[התחלה]]<>"",טבלה1[[#This Row],[סיום]]=""), SUM(MOD(MOD(NOW(),1)-טבלה1[[#This Row],[התחלה]],1),טבלה1[[#This Row],[הוספת דקות]],-טבלה1[[#This Row],[הפחתת דקות]]), SUM(MOD(טבלה1[[#This Row],[סיום]]-טבלה1[[#This Row],[התחלה]],1),טבלה1[[#This Row],[הוספת דקות]],-טבלה1[[#This Row],[הפחתת דקות]])))<=0,"", IF(AND(טבלה1[[#This Row],[התחלה]]="",טבלה1[[#This Row],[סיום]]<>""),"",IF(AND(טבלה1[[#This Row],[התחלה]]<>"",טבלה1[[#This Row],[סיום]]=""), SUM(MOD(MOD(NOW(),1)-טבלה1[[#This Row],[התחלה]],1),טבלה1[[#This Row],[הוספת דקות]],-טבלה1[[#This Row],[הפחתת דקות]]), SUM(MOD(טבלה1[[#This Row],[סיום]]-טבלה1[[#This Row],[התחלה]],1),טבלה1[[#This Row],[הוספת דקות]],-טבלה1[[#This Row],[הפחתת דקות]])))) -> 0.8173611111 | K34: =IF(טבלה1[[#This Row],[שעות]]="","",IFERROR( IF(IF(AND(מטבע="שקלים",VLOOKUP(טבלה1[[#This Row],[שם העבודה]],טבלה2[],3,FALSE)="$"), VLOOKUP(טבלה1[[#This Row],[שם העבודה]],טבלה2[#All],2,FALSE)*טבלה1[[#This Row],[שעות]]*24*שער, IF(AND(מטבע="דולרים",VLOOKUP(טבלה1[[#This Row],[שם העבודה]],טבלה2[],3,FALSE)="₪"), VLOOKUP(טבלה1[[#This Row],[שם העבודה]],טבלה2[#All],2,FALSE)*טבלה1[[#This Row],[שעות]]*24/שער, VLOOKUP(טבלה1[[#This Row],[שם העבודה]],טבלה2[#All],2,FALSE)*טבלה1[[#This Row],[שעות]]*24))=0,"", IF(AND(מטבע="שקלים",VLOOKUP(טבלה1[[#This Row],[שם העבודה]],טבלה2[],3,FALSE)="$"), VLOOKUP(טבלה1[[#This Row],[שם העבודה]],טבלה2[#All],2,FALSE)*טבלה1[[#This Row],[שעות]]*24*שער, IF(AND(מטבע="דולרים",VLOOKUP(טבלה1[[#This Row],[שם העבודה]],טבלה2[],3,FALSE)="₪"), VLOOKUP(טבלה1[[#This Row],[שם העבודה]],טבלה2[#All],2,FALSE)*טבלה1[[#This Row],[שעות]]*24/שער, VLOOKUP(טבלה1[[#This Row],[שם העבודה]],טבלה2[#All],2,FALSE)*טבלה1[[#This Row],[שעות]]*24))),"")) -> 1275.083333 | L34: =IF(טבלה1[[#This Row],[תאריך]]="","",DATE(YEAR(טבלה1[[#This Row],[תאריך]]),MONTH(טבלה1[[#This Row],[תאריך]]),1)) -> 2024-08-01
B35: =IF(AND(טבלה1[[#This Row],[תאריך]]="",טבלה1[[#This Row],[התחלה]]="",טבלה1[[#This Row],[שם העבודה]]=""),"",ROW()-10) -> 25 | C35: =IF(טבלה1[[#This Row],[תאריך]]="","",IF(TEXT(טבלה1[[#This Row],[תאריך]],"DDD")="שבת","מוצ""ש",TEXT(טבלה1[[#This Row],[תאריך]],"DDD"))) -> יום ה | D35: 2024-08-29 | E35: 02:38:31 | F35: מכון אורה | G35: 02:38:44 | J35: =IF(IF(AND(טבלה1[[#This Row],[התחלה]]="",טבלה1[[#This Row],[סיום]]<>""),"",IF(AND(טבלה1[[#This Row],[התחלה]]<>"",טבלה1[[#This Row],[סיום]]=""), SUM(MOD(MOD(NOW(),1)-טבלה1[[#This Row],[התחלה]],1),טבלה1[[#This Row],[הוספת דקות]],-טבלה1[[#This Row],[הפחתת דקות]]), SUM(MOD(טבלה1[[#This Row],[סיום]]-טבלה1[[#This Row],[התחלה]],1),טבלה1[[#This Row],[הוספת דקות]],-טבלה1[[#This Row],[הפחתת דקות]])))<=0,"", IF(AND(טבלה1[[#This Row],[התחלה]]="",טבלה1[[#This Row],[סיום]]<>""),"",IF(AND(טבלה1[[#This Row],[התחלה]]<>"",טבלה1[[#This Row],[סיום]]=""), SUM(MOD(MOD(NOW(),1)-טבלה1[[#This Row],[התחלה]],1),טבלה1[[#This Row],[הוספת דקות]],-טבלה1[[#This Row],[הפחתת דקות]]), SUM(MOD(טבלה1[[#This Row],[סיום]]-טבלה1[[#This Row],[התחלה]],1),טבלה1[[#This Row],[הוספת דקות]],-טבלה1[[#This Row],[הפחתת דקות]])))) -> 0.000150462963 | K35: =IF(טבלה1[[#This Row],[שעות]]="","",IFERROR( IF(IF(AND(מטבע="שקלים",VLOOKUP(טבלה1[[#This Row],[שם העבודה]],טבלה2[],3,FALSE)="$"), VLOOKUP(טבלה1[[#This Row],[שם העבודה]],טבלה2[#All],2,FALSE)*טבלה1[[#This Row],[שעות]]*24*שער, IF(AND(מטבע="דולרים",VLOOKUP(טבלה1[[#This Row],[שם העבודה]],טבלה2[],3,FALSE)="₪"), VLOOKUP(טבלה1[[#This Row],[שם העבודה]],טבלה2[#All],2,FALSE)*טבלה1[[#This Row],[שעות]]*24/שער, VLOOKUP(טבלה1[[#This Row],[שם העבודה]],טבלה2[#All],2,FALSE)*טבלה1[[#This Row],[שעות]]*24))=0,"", IF(AND(מטבע="שקלים",VLOOKUP(טבלה1[[#This Row],[שם העבודה]],טבלה2[],3,FALSE)="$"), VLOOKUP(טבלה1[[#This Row],[שם העבודה]],טבלה2[#All],2,FALSE)*טבלה1[[#This Row],[שעות]]*24*שער, IF(AND(מטבע="דולרים",VLOOKUP(טבלה1[[#This Row],[שם העבודה]],טבלה2[],3,FALSE)="₪"), VLOOKUP(טבלה1[[#This Row],[שם העבודה]],טבלה2[#All],2,FALSE)*טבלה1[[#This Row],[שעות]]*24/שער, VLOOKUP(טבלה1[[#This Row],[שם העבודה]],טבלה2[#All],2,FALSE)*טבלה1[[#This Row],[שעות]]*24))),"")) -> 0.1444444444 | L35: =IF(טבלה1[[#This Row],[תאריך]]="","",DATE(YEAR(טבלה1[[#This Row],[תאריך]]),MONTH(טבלה1[[#This Row],[תאריך]]),1)) -> 2024-08-01
B36: =IF(AND(טבלה1[[#This Row],[תאריך]]="",טבלה1[[#This Row],[התחלה]]="",טבלה1[[#This Row],[שם העבודה]]=""),"",ROW()-10) -> 26 | C36: =IF(טבלה1[[#This Row],[תאריך]]="","",IF(TEXT(טבלה1[[#This Row],[תאריך]],"DDD")="שבת","מוצ""ש",TEXT(טבלה1[[#This Row],[תאריך]],"DDD"))) -> יום ו | D36: 2024-08-30 | E36: 14:17:24 | F36: הקלדה | G36: 16:17:28 | J36: =IF(IF(AND(טבלה1[[#This Row],[התחלה]]="",טבלה1[[#This Row],[סיום]]<>""),"",IF(AND(טבלה1[[#This Row],[התחלה]]<>"",טבלה1[[#This Row],[סיום]]=""), SUM(MOD(MOD(NOW(),1)-טבלה1[[#This Row],[התחלה]],1),טבלה1[[#This Row],[הוספת דקות]],-טבלה1[[#This Row],[הפחתת דקות]]), SUM(MOD(טבלה1[[#This Row],[סיום]]-טבלה1[[#This Row],[התחלה]],1),טבלה1[[#This Row],[הוספת דקות]],-טבלה1[[#This Row],[הפחתת דקות]])))<=0,"", IF(AND(טבלה1[[#This Row],[התחלה]]="",טבלה1[[#This Row],[סיום]]<>""),"",IF(AND(טבלה1[[#This Row],[התחלה]]<>"",טבלה1[[#This Row],[סיום]]=""), SUM(MOD(MOD(NOW(),1)-טבלה1[[#This Row],[התחלה]],1),טבלה1[[#This Row],[הוספת דקות]],-טבלה1[[#This Row],[הפחתת דקות]]), SUM(MOD(טבלה1[[#This Row],[סיום]]-טבלה1[[#This Row],[התחלה]],1),טבלה1[[#This Row],[הוספת דקות]],-טבלה1[[#This Row],[הפחתת דקות]])))) -> 0.08337962963 | K36: =IF(טבלה1[[#This Row],[שעות]]="","",IFERROR( IF(IF(AND(מטבע="שקלים",VLOOKUP(טבלה1[[#This Row],[שם העבודה]],טבלה2[],3,FALSE)="$"), VLOOKUP(טבלה1[[#This Row],[שם העבודה]],טבלה2[#All],2,FALSE)*טבלה1[[#This Row],[שעות]]*24*שער, IF(AND(מטבע="דולרים",VLOOKUP(טבלה1[[#This Row],[שם העבודה]],טבלה2[],3,FALSE)="₪"), VLOOKUP(טבלה1[[#This Row],[שם העבודה]],טבלה2[#All],2,FALSE)*טבלה1[[#This Row],[שעות]]*24/שער, VLOOKUP(טבלה1[[#This Row],[שם העבודה]],טבלה2[#All],2,FALSE)*טבלה1[[#This Row],[שעות]]*24))=0,"", IF(AND(מטבע="שקלים",VLOOKUP(טבלה1[[#This Row],[שם העבודה]],טבלה2[],3,FALSE)="$"), VLOOKUP(טבלה1[[#This Row],[שם העבודה]],טבלה2[#All],2,FALSE)*טבלה1[[#This Row],[שעות]]*24*שער, IF(AND(מטבע="דולרים",VLOOKUP(טבלה1[[#This Row],[שם העבודה]],טבלה2[],3,FALSE)="₪"), VLOOKUP(טבלה1[[#This Row],[שם העבודה]],טבלה2[#All],2,FALSE)*טבלה1[[#This Row],[שעות]]*24/שער, VLOOKUP(טבלה1[[#This Row],[שם העבודה]],טבלה2[#All],2,FALSE)*טבלה1[[#This Row],[שעות]]*24))),"")) -> 100.0555556 | L36: =IF(טבלה1[[#This Row],[תאריך]]="","",DATE(YEAR(טבלה1[[#This Row],[תאריך]]),MONTH(טבלה1[[#This Row],[תאריך]]),1)) -> 2024-08-01
B37: =IF(AND(טבלה1[[#This Row],[תאריך]]="",טבלה1[[#This Row],[התחלה]]="",טבלה1[[#This Row],[שם העבודה]]=""),"",ROW()-10) -> 27 | C37: =IF(טבלה1[[#This Row],[תאריך]]="","",IF(TEXT(טבלה1[[#This Row],[תאריך]],"DDD")="שבת","מוצ""ש",TEXT(טבלה1[[#This Row],[תאריך]],"DDD"))) -> מוצ"ש | D37: 2024-08-31 | E37: 02:51:40 | F37: עימוד | G37: 22:15:13 | J37: =IF(IF(AND(טבלה1[[#This Row],[התחלה]]="",טבלה1[[#This Row],[סיום]]<>""),"",IF(AND(טבלה1[[#This Row],[התחלה]]<>"",טבלה1[[#This Row],[סיום]]=""), SUM(MOD(MOD(NOW(),1)-טבלה1[[#This Row],[התחלה]],1),טבלה1[[#This Row],[הוספת דקות]],-טבלה1[[#This Row],[הפחתת דקות]]), SUM(MOD(טבלה1[[#This Row],[סיום]]-טבלה1[[#This Row],[התחלה]],1),טבלה1[[#This Row],[הוספת דקות]],-טבלה1[[#This Row],[הפחתת דקות]])))<=0,"", IF(AND(טבלה1[[#This Row],[התחלה]]="",טבלה1[[#This Row],[סיום]]<>""),"",IF(AND(טבלה1[[#This Row],[התחלה]]<>"",טבלה1[[#This Row],[סיום]]=""), SUM(MOD(MOD(NOW(),1)-טבלה1[[#This Row],[התחלה]],1),טבלה1[[#This Row],[הוספת דקות]],-טבלה1[[#This Row],[הפחתת דקות]]), SUM(MOD(טבלה1[[#This Row],[סיום]]-טבלה1[[#This Row],[התחלה]],1),טבלה1[[#This Row],[הוספת דקות]],-טבלה1[[#This Row],[הפחתת דקות]])))) -> 0.8080208333 | K37: =IF(טבלה1[[#This Row],[שעות]]="","",IFERROR( IF(IF(AND(מטבע="שקלים",VLOOKUP(טבלה1[[#This Row],[שם העבודה]],טבלה2[],3,FALSE)="$"), VLOOKUP(טבלה1[[#This Row],[שם העבודה]],טבלה2[#All],2,FALSE)*טבלה1[[#This Row],[שעות]]*24*שער, IF(AND(מטבע="דולרים",VLOOKUP(טבלה1[[#This Row],[שם העבודה]],טבלה2[],3,FALSE)="₪"), VLOOKUP(טבלה1[[#This Row],[שם העבודה]],טבלה2[#All],2,FALSE)*טבלה1[[#This Row],[שעות]]*24/שער, VLOOKUP(טבלה1[[#This Row],[שם העבודה]],טבלה2[#All],2,FALSE)*טבלה1[[#This Row],[שעות]]*24))=0,"", IF(AND(מטבע="שקלים",VLOOKUP(טבלה1[[#This Row],[שם העבודה]],טבלה2[],3,FALSE)="$"), VLOOKUP(טבלה1[[#This Row],[שם העבודה]],טבלה2[#All],2,FALSE)*טבלה1[[#This Row],[שעות]]*24*שער, IF(AND(מטבע="דולרים",VLOOKUP(טבלה1[[#This Row],[שם העבודה]],טבלה2[],3,FALSE)="₪"), VLOOKUP(טבלה1[[#This Row],[שם העבודה]],טבלה2[#All],2,FALSE)*טבלה1[[#This Row],[שעות]]*24/שער, VLOOKUP(טבלה1[[#This Row],[שם העבודה]],טבלה2[#All],2,FALSE)*טבלה1[[#This Row],[שעות]]*24))),"")) -> 1163.55 | L37: =IF(טבלה1[[#This Row],[תאריך]]="","",DATE(YEAR(טבלה1[[#This Row],[תאריך]]),MONTH(טבלה1[[#This Row],[תאריך]]),1)) -> 2024-08-01 | AP37: עבודות לפי תווים / מילים
B38: =IF(AND(טבלה1[[#This Row],[תאריך]]="",טבלה1[[#This Row],[התחלה]]="",טבלה1[[#This Row],[שם העבודה]]=""),"",ROW()-10) -> 28 | C38: =IF(טבלה1[[#This Row],[תאריך]]="","",IF(TEXT(טבלה1[[#This Row],[תאריך]],"DDD")="שבת","מוצ""ש",TEXT(טבלה1[[#This Row],[תאריך]],"DDD"))) -> יום א | D38: 2024-09-01 | E38: 02:52:03 | F38: הגהה | G38: 22:15:13 | J38: =IF(IF(AND(טבלה1[[#This Row],[התחלה]]="",טבלה1[[#This Row],[סיום]]<>""),"",IF(AND(טבלה1[[#This Row],[התחלה]]<>"",טבלה1[[#This Row],[סיום]]=""), SUM(MOD(MOD(NOW(),1)-טבלה1[[#This Row],[התחלה]],1),טבלה1[[#This Row],[הוספת דקות]],-טבלה1[[#This Row],[הפחתת דקות]]), SUM(MOD(טבלה1[[#This Row],[סיום]]-טבלה1[[#This Row],[התחלה]],1),טבלה1[[#This Row],[הוספת דקות]],-טבלה1[[#This Row],[הפחתת דקות]])))<=0,"", IF(AND(טבלה1[[#This Row],[התחלה]]="",טבלה1[[#This Row],[סיום]]<>""),"",IF(AND(טבלה1[[#This Row],[התחלה]]<>"",טבלה1[[#This Row],[סיום]]=""), SUM(MOD(MOD(NOW(),1)-טבלה1[[#This Row],[התחלה]],1),טבלה1[[#This Row],[הוספת דקות]],-טבלה1[[#This Row],[הפחתת דקות]]), SUM(MOD(טבלה1[[#This Row],[סיום]]-טבלה1[[#This Row],[התחלה]],1),טבלה1[[#This Row],[הוספת דקות]],-טבלה1[[#This Row],[הפחתת דקות]])))) -> 0.8077546296 | K38: =IF(טבלה1[[#This Row],[שעות]]="","",IFERROR( IF(IF(AND(מטבע="שקלים",VLOOKUP(טבלה1[[#This Row],[שם העבודה]],טבלה2[],3,FALSE)="$"), VLOOKUP(טבלה1[[#This Row],[שם העבודה]],טבלה2[#All],2,FALSE)*טבלה1[[#This Row],[שעות]]*24*שער, IF(AND(מטבע="דולרים",VLOOKUP(טבלה1[[#This Row],[שם העבודה]],טבלה2[],3,FALSE)="₪"), VLOOKUP(טבלה1[[#This Row],[שם העבודה]],טבלה2[#All],2,FALSE)*טבלה1[[#This Row],[שעות]]*24/שער, VLOOKUP(טבלה1[[#This Row],[שם העבודה]],טבלה2[#All],2,FALSE)*טבלה1[[#This Row],[שעות]]*24))=0,"", IF(AND(מטבע="שקלים",VLOOKUP(טבלה1[[#This Row],[שם העבודה]],טבלה2[],3,FALSE)="$"), VLOOKUP(טבלה1[[#This Row],[שם העבודה]],טבלה2[#All],2,FALSE)*טבלה1[[#This Row],[שעות]]*24*שער, IF(AND(מטבע="דולרים",VLOOKUP(טבלה1[[#This Row],[שם העבודה]],טבלה2[],3,FALSE)="₪"), VLOOKUP(טבלה1[[#This Row],[שם העבודה]],טבלה2[#All],2,FALSE)*טבלה1[[#This Row],[שעות]]*24/שער, VLOOKUP(טבלה1[[#This Row],[שם העבודה]],טבלה2[#All],2,FALSE)*טבלה1[[#This Row],[שעות]]*24))),"")) -> 1357.027778 | L38: =IF(טבלה1[[#This Row],[תאריך]]="","",DATE(YEAR(טבלה1[[#This Row],[תאריך]]),MONTH(טבלה1[[#This Row],[תאריך]]),1)) -> 2024-09-01
B39: =IF(AND(טבלה1[[#This Row],[תאריך]]="",טבלה1[[#This Row],[התחלה]]="",טבלה1[[#This Row],[שם העבודה]]=""),"",ROW()-10) -> 29 | C39: =IF(טבלה1[[#This Row],[תאריך]]="","",IF(TEXT(טבלה1[[#This Row],[תאריך]],"DDD")="שבת","מוצ""ש",TEXT(טבלה1[[#This Row],[תאריך]],"DDD"))) -> יום ב | D39: 2024-09-02 | E39: 02:52:54 | F39: מכון תורה אור | G39: 22:15:14 | J39: =IF(IF(AND(טבלה1[[#This Row],[התחלה]]="",טבלה1[[#This Row],[סיום]]<>""),"",IF(AND(טבלה1[[#This Row],[התחלה]]<>"",טבלה1[[#This Row],[סיום]]=""), SUM(MOD(MOD(NOW(),1)-טבלה1[[#This Row],[התחלה]],1),טבלה1[[#This Row],[הוספת דקות]],-טבלה1[[#This Row],[הפחתת דקות]]), SUM(MOD(טבלה1[[#This Row],[סיום]]-טבלה1[[#This Row],[התחלה]],1),טבלה1[[#This Row],[הוספת דקות]],-טבלה1[[#This Row],[הפחתת דקות]])))<=0,"", IF(AND(טבלה1[[#This Row],[התחלה]]="",טבלה1[[#This Row],[סיום]]<>""),"",IF(AND(טבלה1[[#This Row],[התחלה]]<>"",טבלה1[[#This Row],[סיום]]=""), SUM(MOD(MOD(NOW(),1)-טבלה1[[#This Row],[התחלה]],1),טבלה1[[#This Row],[הוספת דקות]],-טבלה1[[#This Row],[הפחתת דקות]]), SUM(MOD(טבלה1[[#This Row],[סיום]]-טבלה1[[#This Row],[התחלה]],1),טבלה1[[#This Row],[הוספת דקות]],-טבלה1[[#This Row],[הפחתת דקות]])))) -> 0.8071759259 | K39: =IF(טבלה1[[#This Row],[שעות]]="","",IFERROR( IF(IF(AND(מטבע="שקלים",VLOOKUP(טבלה1[[#This Row],[שם העבודה]],טבלה2[],3,FALSE)="$"), VLOOKUP(טבלה1[[#This Row],[שם העבודה]],טבלה2[#All],2,FALSE)*טבלה1[[#This Row],[שעות]]*24*שער, IF(AND(מטבע="דולרים",VLOOKUP(טבלה1[[#This Row],[שם העבודה]],טבלה2[],3,FALSE)="₪"), VLOOKUP(טבלה1[[#This Row],[שם העבודה]],טבלה2[#All],2,FALSE)*טבלה1[[#This Row],[שעות]]*24/שער, VLOOKUP(טבלה1[[#This Row],[שם העבודה]],טבלה2[#All],2,FALSE)*טבלה1[[#This Row],[שעות]]*24))=0,"", IF(AND(מטבע="שקלים",VLOOKUP(טבלה1[[#This Row],[שם העבודה]],טבלה2[],3,FALSE)="$"), VLOOKUP(טבלה1[[#This Row],[שם העבודה]],טבלה2[#All],2,FALSE)*טבלה1[[#This Row],[שעות]]*24*שער, IF(AND(מטבע="דולרים",VLOOKUP(טבלה1[[#This Row],[שם העבודה]],טבלה2[],3,FALSE)="₪"), VLOOKUP(טבלה1[[#This Row],[שם העבודה]],טבלה2[#All],2,FALSE)*טבלה1[[#This Row],[שעות]]*24/שער, VLOOKUP(טבלה1[[#This Row],[שם העבודה]],טבלה2[#All],2,FALSE)*טבלה1[[#This Row],[שעות]]*24))),"")) -> 1259.194444 | L39: =IF(טבלה1[[#This Row],[תאריך]]="","",DATE(YEAR(טבלה1[[#This Row],[תאריך]]),MONTH(טבלה1[[#This Row],[תאריך]]),1)) -> 2024-09-01 | AL39: שמות העבודות | AM39: שכר לתווים | AN39: תווים | AO39: תווים שהוקלדו | AP39: שכר | AQ39: אחוזים | AR39: יעד | AS39: חיובים נוספים | AT39: זיכויים / שולם | AU39: לתשלום
B40: =IF(AND(טבלה1[[#This Row],[תאריך]]="",טבלה1[[#This Row],[התחלה]]="",טבלה1[[#This Row],[שם העבודה]]=""),"",ROW()-10) -> 30 | C40: =IF(טבלה1[[#This Row],[תאריך]]="","",IF(TEXT(טבלה1[[#This Row],[תאריך]],"DDD")="שבת","מוצ""ש",TEXT(טבלה1[[#This Row],[תאריך]],"DDD"))) -> יום ג | D40: 2024-09-03 | E40: 02:59:00 | F40: מכון אורה | G40: 22:15:15 | J40: =IF(IF(AND(טבלה1[[#This Row],[התחלה]]="",טבלה1[[#This Row],[סיום]]<>""),"",IF(AND(טבלה1[[#This Row],[התחלה]]<>"",טבלה1[[#This Row],[סיום]]=""), SUM(MOD(MOD(NOW(),1)-טבלה1[[#This Row],[התחלה]],1),טבלה1[[#This Row],[הוספת דקות]],-טבלה1[[#This Row],[הפחתת דקות]]), SUM(MOD(טבלה1[[#This Row],[סיום]]-טבלה1[[#This Row],[התחלה]],1),טבלה1[[#This Row],[הוספת דקות]],-טבלה1[[#This Row],[הפחתת דקות]])))<=0,"", IF(AND(טבלה1[[#This Row],[התחלה]]="",טבלה1[[#This Row],[סיום]]<>""),"",IF(AND(טבלה1[[#This Row],[התחלה]]<>"",טבלה1[[#This Row],[סיום]]=""), SUM(MOD(MOD(NOW(),1)-טבלה1[[#This Row],[התחלה]],1),טבלה1[[#This Row],[הוספת דקות]],-טבלה1[[#This Row],[הפחתת דקות]]), SUM(MOD(טבלה1[[#This Row],[סיום]]-טבלה1[[#This Row],[התחלה]],1),טבלה1[[#This Row],[הוספת דקות]],-טבלה1[[#This Row],[הפחתת דקות]])))) -> 0.8029513889 | K40: =IF(טבלה1[[#This Row],[שעות]]="","",IFERROR( IF(IF(AND(מטבע="שקלים",VLOOKUP(טבלה1[[#This Row],[שם העבודה]],טבלה2[],3,FALSE)="$"), VLOOKUP(טבלה1[[#This Row],[שם העבודה]],טבלה2[#All],2,FALSE)*טבלה1[[#This Row],[שעות]]*24*שער, IF(AND(מטבע="דולרים",VLOOKUP(טבלה1[[#This Row],[שם העבודה]],טבלה2[],3,FALSE)="₪"), VLOOKUP(טבלה1[[#This Row],[שם העבודה]],טבלה2[#All],2,FALSE)*טבלה1[[#This Row],[שעות]]*24/שער, VLOOKUP(טבלה1[[#This Row],[שם העבודה]],טבלה2[#All],2,FALSE)*טבלה1[[#This Row],[שעות]]*24))=0,"", IF(AND(מטבע="שקלים",VLOOKUP(טבלה1[[#This Row],[שם העבודה]],טבלה2[],3,FALSE)="$"), VLOOKUP(טבלה1[[#This Row],[שם העבודה]],טבלה2[#All],2,FALSE)*טבלה1[[#This Row],[שעות]]*24*שער, IF(AND(מטבע="דולרים",VLOOKUP(טבלה1[[#This Row],[שם העבודה]],טבלה2[],3,FALSE)="₪"), VLOOKUP(טבלה1[[#This Row],[שם העבודה]],טבלה2[#All],2,FALSE)*טבלה1[[#This Row],[שעות]]*24/שער, VLOOKUP(טבלה1[[#This Row],[שם העבודה]],טבלה2[#All],2,FALSE)*טבלה1[[#This Row],[שעות]]*24))),"")) -> 770.8333333 | L40: =IF(טבלה1[[#This Row],[תאריך]]="","",DATE(YEAR(טבלה1[[#This Row],[תאריך]]),MONTH(טבלה1[[#This Row],[תאריך]]),1)) -> 2024-09-01 | AL40: הקלדה | AM40: 5 | AN40: 1000 | AO40: 15632 | AP40: =IF(OR(טבלה3[[#This Row],[תווים]]="",טבלה3[[#This Row],[שכר לתווים]]=""),"", IF(טבלה3[[#This Row],[תווים שהוקלדו]]/טבלה3[[#This Row],[תווים]]*טבלה3[[#This Row],[שכר לתווים]]=0,"", טבלה3[[#This Row],[תווים שהוקלדו]]/טבלה3[[#This Row],[תווים]]*טבלה3[[#This Row],[שכר לתווים]])) -> 78.16 | AQ40: =IF(OR(טבלה3[[#This Row],[שכר]]="",טבלה3[[#This Row],[יעד]]=""),"", IF(טבלה3[[#This Row],[שכר]]>=טבלה3[[#This Row],[יעד]],"הגעת ליעד!", טבלה3[[#This Row],[שכר]]/טבלה3[[#This Row],[יעד]])) -> 0.7816 | AR40: 100 | AU40: =IF(טבלה3[[#This Row],[שכר]]="","", IF(SUM(טבלה3[[#This Row],[שכר]])-SUM(טבלה3[[#This Row],[חיובים נוספים]]+טבלה3[[#This Row],[זיכויים / שולם]])=0,"", SUM(טבלה3[[#This Row],[שכר]])-SUM(טבלה3[[#This Row],[חיובים נוספים]]+טבלה3[[#This Row],[זיכויים / שולם]]))) -> 78.16
B41: =IF(AND(טבלה1[[#This Row],[תאריך]]="",טבלה1[[#This Row],[התחלה]]="",טבלה1[[#This Row],[שם העבודה]]=""),"",ROW()-10) -> 31 | C41: =IF(טבלה1[[#This Row],[תאריך]]="","",IF(TEXT(טבלה1[[#This Row],[תאריך]],"DDD")="שבת","מוצ""ש",TEXT(טבלה1[[#This Row],[תאריך]],"DDD"))) -> יום ד | D41: 2024-09-04 | E41: 03:00:13 | F41: הקלדה | G41: 22:15:18 | J41: =IF(IF(AND(טבלה1[[#This Row],[התחלה]]="",טבלה1[[#This Row],[סיום]]<>""),"",IF(AND(טבלה1[[#This Row],[התחלה]]<>"",טבלה1[[#This Row],[סיום]]=""), SUM(MOD(MOD(NOW(),1)-טבלה1[[#This Row],[התחלה]],1),טבלה1[[#This Row],[הוספת דקות]],-טבלה1[[#This Row],[הפחתת דקות]]), SUM(MOD(טבלה1[[#This Row],[סיום]]-טבלה1[[#This Row],[התחלה]],1),טבלה1[[#This Row],[הוספת דקות]],-טבלה1[[#This Row],[הפחתת דקות]])))<=0,"", IF(AND(טבלה1[[#This Row],[התחלה]]="",טבלה1[[#This Row],[סיום]]<>""),"",IF(AND(טבלה1[[#This Row],[התחלה]]<>"",טבלה1[[#This Row],[סיום]]=""), SUM(MOD(MOD(NOW(),1)-טבלה1[[#This Row],[התחלה]],1),טבלה1[[#This Row],[הוספת דקות]],-טבלה1[[#This Row],[הפחתת דקות]]), SUM(MOD(טבלה1[[#This Row],[סיום]]-טבלה1[[#This Row],[התחלה]],1),טבלה1[[#This Row],[הוספת דקות]],-טבלה1[[#This Row],[הפחתת דקות]])))) -> 0.8021412037 | K41: =IF(טבלה1[[#This Row],[שעות]]="","",IFERROR( IF(IF(AND(מטבע="שקלים",VLOOKUP(טבלה1[[#This Row],[שם העבודה]],טבלה2[],3,FALSE)="$"), VLOOKUP(טבלה1[[#This Row],[שם העבודה]],טבלה2[#All],2,FALSE)*טבלה1[[#This Row],[שעות]]*24*שער, IF(AND(מטבע="דולרים",VLOOKUP(טבלה1[[#This Row],[שם העבודה]],טבלה2[],3,FALSE)="₪"), VLOOKUP(טבלה1[[#This Row],[שם העבודה]],טבלה2[#All],2,FALSE)*טבלה1[[#This Row],[שעות]]*24/שער, VLOOKUP(טבלה1[[#This Row],[שם העבודה]],טבלה2[#All],2,FALSE)*טבלה1[[#This Row],[שעות]]*24))=0,"", IF(AND(מטבע="שקלים",VLOOKUP(טבלה1[[#This Row],[שם העבודה]],טבלה2[],3,FALSE)="$"), VLOOKUP(טבלה1[[#This Row],[שם העבודה]],טבלה2[#All],2,FALSE)*טבלה1[[#This Row],[שעות]]*24*שער, IF(AND(מטבע="דולרים",VLOOKUP(טבלה1[[#This Row],[שם העבודה]],טבלה2[],3,FALSE)="₪"), VLOOKUP(טבלה1[[#This Row],[שם העבודה]],טבלה2[#All],2,FALSE)*טבלה1[[#This Row],[שעות]]*24/שער, VLOOKUP(טבלה1[[#This Row],[שם העבודה]],טבלה2[#All],2,FALSE)*טבלה1[[#This Row],[שעות]]*24))),"")) -> 962.5694444 | L41: =IF(טבלה1[[#This Row],[תאריך]]="","",DATE(YEAR(טבלה1[[#This Row],[תאריך]]),MONTH(טבלה1[[#This Row],[תאריך]]),1)) -> 2024-09-01 | AP41: =IF(OR(טבלה3[[#This Row],[תווים]]="",טבלה3[[#This Row],[שכר לתווים]]=""),"", IF(טבלה3[[#This Row],[תווים שהוקלדו]]/טבלה3[[#This Row],[תווים]]*טבלה3[[#This Row],[שכר לתווים]]=0,"", טבלה3[[#This Row],[תווים שהוקלדו]]/טבלה3[[#This Row],[תווים]]*טבלה3[[#This Row],[שכר לתווים]])) ->  | AQ41: =IF(OR(טבלה3[[#This Row],[שכר]]="",טבלה3[[#This Row],[יעד]]=""),"", IF(טבלה3[[#This Row],[שכר]]>=טבלה3[[#This Row],[יעד]],"הגעת ליעד!", טבלה3[[#This Row],[שכר]]/טבלה3[[#This Row],[יעד]])) ->  | AU41: =IF(טבלה3[[#This Row],[שכר]]="","", IF(SUM(טבלה3[[#This Row],[שכר]])-SUM(טבלה3[[#This Row],[חיובים נוספים]]+טבלה3[[#This Row],[זיכויים / שולם]])=0,"", SUM(טבלה3[[#This Row],[שכר]])-SUM(טבלה3[[#This Row],[חיובים נוספים]]+טבלה3[[#This Row],[זיכויים / שולם]]))) -> 
B42: =IF(AND(טבלה1[[#This Row],[תאריך]]="",טבלה1[[#This Row],[התחלה]]="",טבלה1[[#This Row],[שם העבודה]]=""),"",ROW()-10) -> 32 | C42: =IF(טבלה1[[#This Row],[תאריך]]="","",IF(TEXT(טבלה1[[#This Row],[תאריך]],"DDD")="שבת","מוצ""ש",TEXT(טבלה1[[#This Row],[תאריך]],"DDD"))) -> יום ה | D42: 2024-09-05 | E42: 03:00:18 | F42: עימוד | G42: 22:15:17 | J42: =IF(IF(AND(טבלה1[[#This Row],[התחלה]]="",טבלה1[[#This Row],[סיום]]<>""),"",IF(AND(טבלה1[[#This Row],[התחלה]]<>"",טבלה1[[#This Row],[סיום]]=""), SUM(MOD(MOD(NOW(),1)-טבלה1[[#This Row],[התחלה]],1),טבלה1[[#This Row],[הוספת דקות]],-טבלה1[[#This Row],[הפחתת דקות]]), SUM(MOD(טבלה1[[#This Row],[סיום]]-טבלה1[[#This Row],[התחלה]],1),טבלה1[[#This Row],[הוספת דקות]],-טבלה1[[#This Row],[הפחתת דקות]])))<=0,"", IF(AND(טבלה1[[#This Row],[התחלה]]="",טבלה1[[#This Row],[סיום]]<>""),"",IF(AND(טבלה1[[#This Row],[התחלה]]<>"",טבלה1[[#This Row],[סיום]]=""), SUM(MOD(MOD(NOW(),1)-טבלה1[[#This Row],[התחלה]],1),טבלה1[[#This Row],[הוספת דקות]],-טבלה1[[#This Row],[הפחתת דקות]]), SUM(MOD(טבלה1[[#This Row],[סיום]]-טבלה1[[#This Row],[התחלה]],1),טבלה1[[#This Row],[הוספת דקות]],-טבלה1[[#This Row],[הפחתת דקות]])))) -> 0.8020717593 | K42: =IF(טבלה1[[#This Row],[שעות]]="","",IFERROR( IF(IF(AND(מטבע="שקלים",VLOOKUP(טבלה1[[#This Row],[שם העבודה]],טבלה2[],3,FALSE)="$"), VLOOKUP(טבלה1[[#This Row],[שם העבודה]],טבלה2[#All],2,FALSE)*טבלה1[[#This Row],[שעות]]*24*שער, IF(AND(מטבע="דולרים",VLOOKUP(טבלה1[[#This Row],[שם העבודה]],טבלה2[],3,FALSE)="₪"), VLOOKUP(טבלה1[[#This Row],[שם העבודה]],טבלה2[#All],2,FALSE)*טבלה1[[#This Row],[שעות]]*24/שער, VLOOKUP(טבלה1[[#This Row],[שם העבודה]],טבלה2[#All],2,FALSE)*טבלה1[[#This Row],[שעות]]*24))=0,"", IF(AND(מטבע="שקלים",VLOOKUP(טבלה1[[#This Row],[שם העבודה]],טבלה2[],3,FALSE)="$"), VLOOKUP(טבלה1[[#This Row],[שם העבודה]],טבלה2[#All],2,FALSE)*טבלה1[[#This Row],[שעות]]*24*שער, IF(AND(מטבע="דולרים",VLOOKUP(טבלה1[[#This Row],[שם העבודה]],טבלה2[],3,FALSE)="₪"), VLOOKUP(טבלה1[[#This Row],[שם העבודה]],טבלה2[#All],2,FALSE)*טבלה1[[#This Row],[שעות]]*24/שער, VLOOKUP(טבלה1[[#This Row],[שם העבודה]],טבלה2[#All],2,FALSE)*טבלה1[[#This Row],[שעות]]*24))),"")) -> 1154.983333 | L42: =IF(טבלה1[[#This Row],[תאריך]]="","",DATE(YEAR(טבלה1[[#This Row],[תאריך]]),MONTH(טבלה1[[#This Row],[תאריך]]),1)) -> 2024-09-01 | AP42: =IF(OR(טבלה3[[#This Row],[תווים]]="",טבלה3[[#This Row],[שכר לתווים]]=""),"", IF(טבלה3[[#This Row],[תווים שהוקלדו]]/טבלה3[[#This Row],[תווים]]*טבלה3[[#This Row],[שכר לתווים]]=0,"", טבלה3[[#This Row],[תווים שהוקלדו]]/טבלה3[[#This Row],[תווים]]*טבלה3[[#This Row],[שכר לתווים]])) ->  | AQ42: =IF(OR(טבלה3[[#This Row],[שכר]]="",טבלה3[[#This Row],[יעד]]=""),"", IF(טבלה3[[#This Row],[שכר]]>=טבלה3[[#This Row],[יעד]],"הגעת ליעד!", טבלה3[[#This Row],[שכר]]/טבלה3[[#This Row],[יעד]])) ->  | AU42: =IF(טבלה3[[#This Row],[שכר]]="","", IF(SUM(טבלה3[[#This Row],[שכר]])-SUM(טבלה3[[#This Row],[חיובים נוספים]]+טבלה3[[#This Row],[זיכויים / שולם]])=0,"", SUM(טבלה3[[#This Row],[שכר]])-SUM(טבלה3[[#This Row],[חיובים נוספים]]+טבלה3[[#This Row],[זיכויים / שולם]]))) -> 
B43: =IF(AND(טבלה1[[#This Row],[תאריך]]="",טבלה1[[#This Row],[התחלה]]="",טבלה1[[#This Row],[שם העבודה]]=""),"",ROW()-10) -> 33 | C43: =IF(טבלה1[[#This Row],[תאריך]]="","",IF(TEXT(טבלה1[[#This Row],[תאריך]],"DDD")="שבת","מוצ""ש",TEXT(טבלה1[[#This Row],[תאריך]],"DDD"))) -> יום ו | D43: 2024-09-06 | E43: 14:17:24 | F43: הגהה | G43: 16:17:28 | J43: =IF(IF(AND(טבלה1[[#This Row],[התחלה]]="",טבלה1[[#This Row],[סיום]]<>""),"",IF(AND(טבלה1[[#This Row],[התחלה]]<>"",טבלה1[[#This Row],[סיום]]=""), SUM(MOD(MOD(NOW(),1)-טבלה1[[#This Row],[התחלה]],1),טבלה1[[#This Row],[הוספת דקות]],-טבלה1[[#This Row],[הפחתת דקות]]), SUM(MOD(טבלה1[[#This Row],[סיום]]-טבלה1[[#This Row],[התחלה]],1),טבלה1[[#This Row],[הוספת דקות]],-טבלה1[[#This Row],[הפחתת דקות]])))<=0,"", IF(AND(טבלה1[[#This Row],[התחלה]]="",טבלה1[[#This Row],[סיום]]<>""),"",IF(AND(טבלה1[[#This Row],[התחלה]]<>"",טבלה1[[#This Row],[סיום]]=""), SUM(MOD(MOD(NOW(),1)-טבלה1[[#This Row],[התחלה]],1),טבלה1[[#This Row],[הוספת דקות]],-טבלה1[[#This Row],[הפחתת דקות]]), SUM(MOD(טבלה1[[#This Row],[סיום]]-טבלה1[[#This Row],[התחלה]],1),טבלה1[[#This Row],[הוספת דקות]],-טבלה1[[#This Row],[הפחתת דקות]])))) -> 0.08337962963 | K43: =IF(טבלה1[[#This Row],[שעות]]="","",IFERROR( IF(IF(AND(מטבע="שקלים",VLOOKUP(טבלה1[[#This Row],[שם העבודה]],טבלה2[],3,FALSE)="$"), VLOOKUP(טבלה1[[#This Row],[שם העבודה]],טבלה2[#All],2,FALSE)*טבלה1[[#This Row],[שעות]]*24*שער, IF(AND(מטבע="דולרים",VLOOKUP(טבלה1[[#This Row],[שם העבודה]],טבלה2[],3,FALSE)="₪"), VLOOKUP(טבלה1[[#This Row],[שם העבודה]],טבלה2[#All],2,FALSE)*טבלה1[[#This Row],[שעות]]*24/שער, VLOOKUP(טבלה1[[#This Row],[שם העבודה]],טבלה2[#All],2,FALSE)*טבלה1[[#This Row],[שעות]]*24))=0,"", IF(AND(מטבע="שקלים",VLOOKUP(טבלה1[[#This Row],[שם העבודה]],טבלה2[],3,FALSE)="$"), VLOOKUP(טבלה1[[#This Row],[שם העבודה]],טבלה2[#All],2,FALSE)*טבלה1[[#This Row],[שעות]]*24*שער, IF(AND(מטבע="דולרים",VLOOKUP(טבלה1[[#This Row],[שם העבודה]],טבלה2[],3,FALSE)="₪"), VLOOKUP(טבלה1[[#This Row],[שם העבודה]],טבלה2[#All],2,FALSE)*טבלה1[[#This Row],[שעות]]*24/שער, VLOOKUP(טבלה1[[#This Row],[שם העבודה]],טבלה2[#All],2,FALSE)*טבלה1[[#This Row],[שעות]]*24))),"")) -> 140.0777778 | L43: =IF(טבלה1[[#This Row],[תאריך]]="","",DATE(YEAR(טבלה1[[#This Row],[תאריך]]),MONTH(טבלה1[[#This Row],[תאריך]]),1)) -> 2024-09-01 | AP43: =IF(OR(טבלה3[[#This Row],[תווים]]="",טבלה3[[#This Row],[שכר לתווים]]=""),"", IF(טבלה3[[#This Row],[תווים שהוקלדו]]/טבלה3[[#This Row],[תווים]]*טבלה3[[#This Row],[שכר לתווים]]=0,"", טבלה3[[#This Row],[תווים שהוקלדו]]/טבלה3[[#This Row],[תווים]]*טבלה3[[#This Row],[שכר לתווים]])) ->  | AQ43: =IF(OR(טבלה3[[#This Row],[שכר]]="",טבלה3[[#This Row],[יעד]]=""),"", IF(טבלה3[[#This Row],[שכר]]>=טבלה3[[#This Row],[יעד]],"הגעת ליעד!", טבלה3[[#This Row],[שכר]]/טבלה3[[#This Row],[יעד]])) ->  | AU43: =IF(טבלה3[[#This Row],[שכר]]="","", IF(SUM(טבלה3[[#This Row],[שכר]])-SUM(טבלה3[[#This Row],[חיובים נוספים]]+טבלה3[[#This Row],[זיכויים / שולם]])=0,"", SUM(טבלה3[[#This Row],[שכר]])-SUM(טבלה3[[#This Row],[חיובים נוספים]]+טבלה3[[#This Row],[זיכויים / שולם]]))) -> 
B44: =IF(AND(טבלה1[[#This Row],[תאריך]]="",טבלה1[[#This Row],[התחלה]]="",טבלה1[[#This Row],[שם העבודה]]=""),"",ROW()-10) -> 34 | C44: =IF(טבלה1[[#This Row],[תאריך]]="","",IF(TEXT(טבלה1[[#This Row],[תאריך]],"DDD")="שבת","מוצ""ש",TEXT(טבלה1[[#This Row],[תאריך]],"DDD"))) -> מוצ"ש | D44: 2024-09-07 | E44: 03:06:39 | F44: מכון תורה אור | G44: 04:20:58 | J44: =IF(IF(AND(טבלה1[[#This Row],[התחלה]]="",טבלה1[[#This Row],[סיום]]<>""),"",IF(AND(טבלה1[[#This Row],[התחלה]]<>"",טבלה1[[#This Row],[סיום]]=""), SUM(MOD(MOD(NOW(),1)-טבלה1[[#This Row],[התחלה]],1),טבלה1[[#This Row],[הוספת דקות]],-טבלה1[[#This Row],[הפחתת דקות]]), SUM(MOD(טבלה1[[#This Row],[סיום]]-טבלה1[[#This Row],[התחלה]],1),טבלה1[[#This Row],[הוספת דקות]],-טבלה1[[#This Row],[הפחתת דקות]])))<=0,"", IF(AND(טבלה1[[#This Row],[התחלה]]="",טבלה1[[#This Row],[סיום]]<>""),"",IF(AND(טבלה1[[#This Row],[התחלה]]<>"",טבלה1[[#This Row],[סיום]]=""), SUM(MOD(MOD(NOW(),1)-טבלה1[[#This Row],[התחלה]],1),טבלה1[[#This Row],[הוספת דקות]],-טבלה1[[#This Row],[הפחתת דקות]]), SUM(MOD(טבלה1[[#This Row],[סיום]]-טבלה1[[#This Row],[התחלה]],1),טבלה1[[#This Row],[הוספת דקות]],-טבלה1[[#This Row],[הפחתת דקות]])))) -> 0.0516087963 | K44: =IF(טבלה1[[#This Row],[שעות]]="","",IFERROR( IF(IF(AND(מטבע="שקלים",VLOOKUP(טבלה1[[#This Row],[שם העבודה]],טבלה2[],3,FALSE)="$"), VLOOKUP(טבלה1[[#This Row],[שם העבודה]],טבלה2[#All],2,FALSE)*טבלה1[[#This Row],[שעות]]*24*שער, IF(AND(מטבע="דולרים",VLOOKUP(טבלה1[[#This Row],[שם העבודה]],טבלה2[],3,FALSE)="₪"), VLOOKUP(טבלה1[[#This Row],[שם העבודה]],טבלה2[#All],2,FALSE)*טבלה1[[#This Row],[שעות]]*24/שער, VLOOKUP(טבלה1[[#This Row],[שם העבודה]],טבלה2[#All],2,FALSE)*טבלה1[[#This Row],[שעות]]*24))=0,"", IF(AND(מטבע="שקלים",VLOOKUP(טבלה1[[#This Row],[שם העבודה]],טבלה2[],3,FALSE)="$"), VLOOKUP(טבלה1[[#This Row],[שם העבודה]],טבלה2[#All],2,FALSE)*טבלה1[[#This Row],[שעות]]*24*שער, IF(AND(מטבע="דולרים",VLOOKUP(טבלה1[[#This Row],[שם העבודה]],טבלה2[],3,FALSE)="₪"), VLOOKUP(טבלה1[[#This Row],[שם העבודה]],טבלה2[#All],2,FALSE)*טבלה1[[#This Row],[שעות]]*24/שער, VLOOKUP(טבלה1[[#This Row],[שם העבודה]],טבלה2[#All],2,FALSE)*טבלה1[[#This Row],[שעות]]*24))),"")) -> 80.50972222 | L44: =IF(טבלה1[[#This Row],[תאריך]]="","",DATE(YEAR(טבלה1[[#This Row],[תאריך]]),MONTH(טבלה1[[#This Row],[תאריך]]),1)) -> 2024-09-01 | AP44: =IF(OR(טבלה3[[#This Row],[תווים]]="",טבלה3[[#This Row],[שכר לתווים]]=""),"", IF(טבלה3[[#This Row],[תווים שהוקלדו]]/טבלה3[[#This Row],[תווים]]*טבלה3[[#This Row],[שכר לתווים]]=0,"", טבלה3[[#This Row],[תווים שהוקלדו]]/טבלה3[[#This Row],[תווים]]*טבלה3[[#This Row],[שכר לתווים]])) ->  | AQ44: =IF(OR(טבלה3[[#This Row],[שכר]]="",טבלה3[[#This Row],[יעד]]=""),"", IF(טבלה3[[#This Row],[שכר]]>=טבלה3[[#This Row],[יעד]],"הגעת ליעד!", טבלה3[[#This Row],[שכר]]/טבלה3[[#This Row],[יעד]])) ->  | AU44: =IF(טבלה3[[#This Row],[שכר]]="","", IF(SUM(טבלה3[[#This Row],[שכר]])-SUM(טבלה3[[#This Row],[חיובים נוספים]]+טבלה3[[#This Row],[זיכויים / שולם]])=0,"", SUM(טבלה3[[#This Row],[שכר]])-SUM(טבלה3[[#This Row],[חיובים נוספים]]+טבלה3[[#This Row],[זיכויים / שולם]]))) -> 
B45: =IF(AND(טבלה1[[#This Row],[תאריך]]="",טבלה1[[#This Row],[התחלה]]="",טבלה1[[#This Row],[שם העבודה]]=""),"",ROW()-10) -> 35 | C45: =IF(טבלה1[[#This Row],[תאריך]]="","",IF(TEXT(טבלה1[[#This Row],[תאריך]],"DDD")="שבת","מוצ""ש",TEXT(טבלה1[[#This Row],[תאריך]],"DDD"))) -> יום א | D45: 2024-09-08 | E45: 17:37:57 | F45: מכון אורה | G45: 18:00:01 | J45: =IF(IF(AND(טבלה1[[#This Row],[התחלה]]="",טבלה1[[#This Row],[סיום]]<>""),"",IF(AND(טבלה1[[#This Row],[התחלה]]<>"",טבלה1[[#This Row],[סיום]]=""), SUM(MOD(MOD(NOW(),1)-טבלה1[[#This Row],[התחלה]],1),טבלה1[[#This Row],[הוספת דקות]],-טבלה1[[#This Row],[הפחתת דקות]]), SUM(MOD(טבלה1[[#This Row],[סיום]]-טבלה1[[#This Row],[התחלה]],1),טבלה1[[#This Row],[הוספת דקות]],-טבלה1[[#This Row],[הפחתת דקות]])))<=0,"", IF(AND(טבלה1[[#This Row],[התחלה]]="",טבלה1[[#This Row],[סיום]]<>""),"",IF(AND(טבלה1[[#This Row],[התחלה]]<>"",טבלה1[[#This Row],[סיום]]=""), SUM(MOD(MOD(NOW(),1)-טבלה1[[#This Row],[התחלה]],1),טבלה1[[#This Row],[הוספת דקות]],-טבלה1[[#This Row],[הפחתת דקות]]), SUM(MOD(טבלה1[[#This Row],[סיום]]-טבלה1[[#This Row],[התחלה]],1),טבלה1[[#This Row],[הוספת דקות]],-טבלה1[[#This Row],[הפחתת דקות]])))) -> 0.01532407407 | K45: =IF(טבלה1[[#This Row],[שעות]]="","",IFERROR( IF(IF(AND(מטבע="שקלים",VLOOKUP(טבלה1[[#This Row],[שם העבודה]],טבלה2[],3,FALSE)="$"), VLOOKUP(טבלה1[[#This Row],[שם העבודה]],טבלה2[#All],2,FALSE)*טבלה1[[#This Row],[שעות]]*24*שער, IF(AND(מטבע="דולרים",VLOOKUP(טבלה1[[#This Row],[שם העבודה]],טבלה2[],3,FALSE)="₪"), VLOOKUP(טבלה1[[#This Row],[שם העבודה]],טבלה2[#All],2,FALSE)*טבלה1[[#This Row],[שעות]]*24/שער, VLOOKUP(טבלה1[[#This Row],[שם העבודה]],טבלה2[#All],2,FALSE)*טבלה1[[#This Row],[שעות]]*24))=0,"", IF(AND(מטבע="שקלים",VLOOKUP(טבלה1[[#This Row],[שם העבודה]],טבלה2[],3,FALSE)="$"), VLOOKUP(טבלה1[[#This Row],[שם העבודה]],טבלה2[#All],2,FALSE)*טבלה1[[#This Row],[שעות]]*24*שער, IF(AND(מטבע="דולרים",VLOOKUP(טבלה1[[#This Row],[שם העבודה]],טבלה2[],3,FALSE)="₪"), VLOOKUP(טבלה1[[#This Row],[שם העבודה]],טבלה2[#All],2,FALSE)*טבלה1[[#This Row],[שעות]]*24/שער, VLOOKUP(טבלה1[[#This Row],[שם העבודה]],טבלה2[#All],2,FALSE)*טבלה1[[#This Row],[שעות]]*24))),"")) -> 14.71111111 | L45: =IF(טבלה1[[#This Row],[תאריך]]="","",DATE(YEAR(טבלה1[[#This Row],[תאריך]]),MONTH(טבלה1[[#This Row],[תאריך]]),1)) -> 2024-09-01 | AP45: =IF(OR(טבלה3[[#This Row],[תווים]]="",טבלה3[[#This Row],[שכר לתווים]]=""),"", IF(טבלה3[[#This Row],[תווים שהוקלדו]]/טבלה3[[#This Row],[תווים]]*טבלה3[[#This Row],[שכר לתווים]]=0,"", טבלה3[[#This Row],[תווים שהוקלדו]]/טבלה3[[#This Row],[תווים]]*טבלה3[[#This Row],[שכר לתווים]])) ->  | AQ45: =IF(OR(טבלה3[[#This Row],[שכר]]="",טבלה3[[#This Row],[יעד]]=""),"", IF(טבלה3[[#This Row],[שכר]]>=טבלה3[[#This Row],[יעד]],"הגעת ליעד!", טבלה3[[#This Row],[שכר]]/טבלה3[[#This Row],[יעד]])) ->  | AU45: =IF(טבלה3[[#This Row],[שכר]]="","", IF(SUM(טבלה3[[#This Row],[שכר]])-SUM(טבלה3[[#This Row],[חיובים נוספים]]+טבלה3[[#This Row],[זיכויים / שולם]])=0,"", SUM(טבלה3[[#This Row],[שכר]])-SUM(טבלה3[[#This Row],[חיובים נוספים]]+טבלה3[[#This Row],[זיכויים / שולם]]))) -> 
B46: =IF(AND(טבלה1[[#This Row],[תאריך]]="",טבלה1[[#This Row],[התחלה]]="",טבלה1[[#This Row],[שם העבודה]]=""),"",ROW()-10) -> 36 | C46: =IF(טבלה1[[#This Row],[תאריך]]="","",IF(TEXT(טבלה1[[#This Row],[תאריך]],"DDD")="שבת","מוצ""ש",TEXT(טבלה1[[#This Row],[תאריך]],"DDD"))) -> יום ב | D46: 2024-09-09 | E46: 18:59:58 | F46: הקלדה | G46: 19:00:01 | J46: =IF(IF(AND(טבלה1[[#This Row],[התחלה]]="",טבלה1[[#This Row],[סיום]]<>""),"",IF(AND(טבלה1[[#This Row],[התחלה]]<>"",טבלה1[[#This Row],[סיום]]=""), SUM(MOD(MOD(NOW(),1)-טבלה1[[#This Row],[התחלה]],1),טבלה1[[#This Row],[הוספת דקות]],-טבלה1[[#This Row],[הפחתת דקות]]), SUM(MOD(טבלה1[[#This Row],[סיום]]-טבלה1[[#This Row],[התחלה]],1),טבלה1[[#This Row],[הוספת דקות]],-טבלה1[[#This Row],[הפחתת דקות]])))<=0,"", IF(AND(טבלה1[[#This Row],[התחלה]]="",טבלה1[[#This Row],[סיום]]<>""),"",IF(AND(טבלה1[[#This Row],[התחלה]]<>"",טבלה1[[#This Row],[סיום]]=""), SUM(MOD(MOD(NOW(),1)-טבלה1[[#This Row],[התחלה]],1),טבלה1[[#This Row],[הוספת דקות]],-טבלה1[[#This Row],[הפחתת דקות]]), SUM(MOD(טבלה1[[#This Row],[סיום]]-טבלה1[[#This Row],[התחלה]],1),טבלה1[[#This Row],[הוספת דקות]],-טבלה1[[#This Row],[הפחתת דקות]])))) -> 3.472222222e-05 | K46: =IF(טבלה1[[#This Row],[שעות]]="","",IFERROR( IF(IF(AND(מטבע="שקלים",VLOOKUP(טבלה1[[#This Row],[שם העבודה]],טבלה2[],3,FALSE)="$"), VLOOKUP(טבלה1[[#This Row],[שם העבודה]],טבלה2[#All],2,FALSE)*טבלה1[[#This Row],[שעות]]*24*שער, IF(AND(מטבע="דולרים",VLOOKUP(טבלה1[[#This Row],[שם העבודה]],טבלה2[],3,FALSE)="₪"), VLOOKUP(טבלה1[[#This Row],[שם העבודה]],טבלה2[#All],2,FALSE)*טבלה1[[#This Row],[שעות]]*24/שער, VLOOKUP(טבלה1[[#This Row],[שם העבודה]],טבלה2[#All],2,FALSE)*טבלה1[[#This Row],[שעות]]*24))=0,"", IF(AND(מטבע="שקלים",VLOOKUP(טבלה1[[#This Row],[שם העבודה]],טבלה2[],3,FALSE)="$"), VLOOKUP(טבלה1[[#This Row],[שם העבודה]],טבלה2[#All],2,FALSE)*טבלה1[[#This Row],[שעות]]*24*שער, IF(AND(מטבע="דולרים",VLOOKUP(טבלה1[[#This Row],[שם העבודה]],טבלה2[],3,FALSE)="₪"), VLOOKUP(טבלה1[[#This Row],[שם העבודה]],טבלה2[#All],2,FALSE)*טבלה1[[#This Row],[שעות]]*24/שער, VLOOKUP(טבלה1[[#This Row],[שם העבודה]],טבלה2[#All],2,FALSE)*טבלה1[[#This Row],[שעות]]*24))),"")) -> 0.04166666667 | L46: =IF(טבלה1[[#This Row],[תאריך]]="","",DATE(YEAR(טבלה1[[#This Row],[תאריך]]),MONTH(טבלה1[[#This Row],[תאריך]]),1)) -> 2024-09-01 | AP46: =IF(OR(טבלה3[[#This Row],[תווים]]="",טבלה3[[#This Row],[שכר לתווים]]=""),"", IF(טבלה3[[#This Row],[תווים שהוקלדו]]/טבלה3[[#This Row],[תווים]]*טבלה3[[#This Row],[שכר לתווים]]=0,"", טבלה3[[#This Row],[תווים שהוקלדו]]/טבלה3[[#This Row],[תווים]]*טבלה3[[#This Row],[שכר לתווים]])) ->  | AQ46: =IF(OR(טבלה3[[#This Row],[שכר]]="",טבלה3[[#This Row],[יעד]]=""),"", IF(טבלה3[[#This Row],[שכר]]>=טבלה3[[#This Row],[יעד]],"הגעת ליעד!", טבלה3[[#This Row],[שכר]]/טבלה3[[#This Row],[יעד]])) ->  | AU46: =IF(טבלה3[[#This Row],[שכר]]="","", IF(SUM(טבלה3[[#This Row],[שכר]])-SUM(טבלה3[[#This Row],[חיובים נוספים]]+טבלה3[[#This Row],[זיכויים / שולם]])=0,"", SUM(טבלה3[[#This Row],[שכר]])-SUM(טבלה3[[#This Row],[חיובים נוספים]]+טבלה3[[#This Row],[זיכויים / שולם]]))) -> 
B47: =IF(AND(טבלה1[[#This Row],[תאריך]]="",טבלה1[[#This Row],[התחלה]]="",טבלה1[[#This Row],[שם העבודה]]=""),"",ROW()-10) -> 37 | C47: =IF(טבלה1[[#This Row],[תאריך]]="","",IF(TEXT(טבלה1[[#This Row],[תאריך]],"DDD")="שבת","מוצ""ש",TEXT(טבלה1[[#This Row],[תאריך]],"DDD"))) -> יום ג | D47: 2024-09-10 | E47: 01:28:03 | F47: עימוד | G47: 02:32:39 | I47: 0.0001717592653 | J47: =IF(IF(AND(טבלה1[[#This Row],[התחלה]]="",טבלה1[[#This Row],[סיום]]<>""),"",IF(AND(טבלה1[[#This Row],[התחלה]]<>"",טבלה1[[#This Row],[סיום]]=""), SUM(MOD(MOD(NOW(),1)-טבלה1[[#This Row],[התחלה]],1),טבלה1[[#This Row],[הוספת דקות]],-טבלה1[[#This Row],[הפחתת דקות]]), SUM(MOD(טבלה1[[#This Row],[סיום]]-טבלה1[[#This Row],[התחלה]],1),טבלה1[[#This Row],[הוספת דקות]],-טבלה1[[#This Row],[הפחתת דקות]])))<=0,"", IF(AND(טבלה1[[#This Row],[התחלה]]="",טבלה1[[#This Row],[סיום]]<>""),"",IF(AND(טבלה1[[#This Row],[התחלה]]<>"",טבלה1[[#This Row],[סיום]]=""), SUM(MOD(MOD(NOW(),1)-טבלה1[[#This Row],[התחלה]],1),טבלה1[[#This Row],[הוספת דקות]],-טבלה1[[#This Row],[הפחתת דקות]]), SUM(MOD(טבלה1[[#This Row],[סיום]]-טבלה1[[#This Row],[התחלה]],1),טבלה1[[#This Row],[הוספת דקות]],-טבלה1[[#This Row],[הפחתת דקות]])))) -> 0.04468935185 | K47: =IF(טבלה1[[#This Row],[שעות]]="","",IFERROR( IF(IF(AND(מטבע="שקלים",VLOOKUP(טבלה1[[#This Row],[שם העבודה]],טבלה2[],3,FALSE)="$"), VLOOKUP(טבלה1[[#This Row],[שם העבודה]],טבלה2[#All],2,FALSE)*טבלה1[[#This Row],[שעות]]*24*שער, IF(AND(מטבע="דולרים",VLOOKUP(טבלה1[[#This Row],[שם העבודה]],טבלה2[],3,FALSE)="₪"), VLOOKUP(טבלה1[[#This Row],[שם העבודה]],טבלה2[#All],2,FALSE)*טבלה1[[#This Row],[שעות]]*24/שער, VLOOKUP(טבלה1[[#This Row],[שם העבודה]],טבלה2[#All],2,FALSE)*טבלה1[[#This Row],[שעות]]*24))=0,"", IF(AND(מטבע="שקלים",VLOOKUP(טבלה1[[#This Row],[שם העבודה]],טבלה2[],3,FALSE)="$"), VLOOKUP(טבלה1[[#This Row],[שם העבודה]],טבלה2[#All],2,FALSE)*טבלה1[[#This Row],[שעות]]*24*שער, IF(AND(מטבע="דולרים",VLOOKUP(טבלה1[[#This Row],[שם העבודה]],טבלה2[],3,FALSE)="₪"), VLOOKUP(טבלה1[[#This Row],[שם העבודה]],טבלה2[#All],2,FALSE)*טבלה1[[#This Row],[שעות]]*24/שער, VLOOKUP(טבלה1[[#This Row],[שם העבודה]],טבלה2[#All],2,FALSE)*טבלה1[[#This Row],[שעות]]*24))),"")) -> 64.35266666 | L47: =IF(טבלה1[[#This Row],[תאריך]]="","",DATE(YEAR(טבלה1[[#This Row],[תאריך]]),MONTH(טבלה1[[#This Row],[תאריך]]),1)) -> 2024-09-01 | AP47: =IF(OR(טבלה3[[#This Row],[תווים]]="",טבלה3[[#This Row],[שכר לתווים]]=""),"", IF(טבלה3[[#This Row],[תווים שהוקלדו]]/טבלה3[[#This Row],[תווים]]*טבלה3[[#This Row],[שכר לתווים]]=0,"", טבלה3[[#This Row],[תווים שהוקלדו]]/טבלה3[[#This Row],[תווים]]*טבלה3[[#This Row],[שכר לתווים]])) ->  | AQ47: =IF(OR(טבלה3[[#This Row],[שכר]]="",טבלה3[[#This Row],[יעד]]=""),"", IF(טבלה3[[#This Row],[שכר]]>=טבלה3[[#This Row],[יעד]],"הגעת ליעד!", טבלה3[[#This Row],[שכר]]/טבלה3[[#This Row],[יעד]])) ->  | AU47: =IF(טבלה3[[#This Row],[שכר]]="","", IF(SUM(טבלה3[[#This Row],[שכר]])-SUM(טבלה3[[#This Row],[חיובים נוספים]]+טבלה3[[#This Row],[זיכויים / שולם]])=0,"", SUM(טבלה3[[#This Row],[שכר]])-SUM(טבלה3[[#This Row],[חיובים נוספים]]+טבלה3[[#This Row],[זיכויים / שולם]]))) -> 
B48: =IF(AND(טבלה1[[#This Row],[תאריך]]="",טבלה1[[#This Row],[התחלה]]="",טבלה1[[#This Row],[שם העבודה]]=""),"",ROW()-10) -> 38 | C48: =IF(טבלה1[[#This Row],[תאריך]]="","",IF(TEXT(טבלה1[[#This Row],[תאריך]],"DDD")="שבת","מוצ""ש",TEXT(טבלה1[[#This Row],[תאריך]],"DDD"))) -> יום ד | D48: 2024-09-11 | E48: 01:32:46 | F48: הגהה | G48: 03:32:39 | I48: 4.201389019e-05 | J48: =IF(IF(AND(טבלה1[[#This Row],[התחלה]]="",טבלה1[[#This Row],[סיום]]<>""),"",IF(AND(טבלה1[[#This Row],[התחלה]]<>"",טבלה1[[#This Row],[סיום]]=""), SUM(MOD(MOD(NOW(),1)-טבלה1[[#This Row],[התחלה]],1),טבלה1[[#This Row],[הוספת דקות]],-טבלה1[[#This Row],[הפחתת דקות]]), SUM(MOD(טבלה1[[#This Row],[סיום]]-טבלה1[[#This Row],[התחלה]],1),טבלה1[[#This Row],[הוספת דקות]],-טבלה1[[#This Row],[הפחתת דקות]])))<=0,"", IF(AND(טבלה1[[#This Row],[התחלה]]="",טבלה1[[#This Row],[סיום]]<>""),"",IF(AND(טבלה1[[#This Row],[התחלה]]<>"",טבלה1[[#This Row],[סיום]]=""), SUM(MOD(MOD(NOW(),1)-טבלה1[[#This Row],[התחלה]],1),טבלה1[[#This Row],[הוספת דקות]],-טבלה1[[#This Row],[הפחתת דקות]]), SUM(MOD(טבלה1[[#This Row],[סיום]]-טבלה1[[#This Row],[התחלה]],1),טבלה1[[#This Row],[הוספת דקות]],-טבלה1[[#This Row],[הפחתת דקות]])))) -> 0.08321030092 | K48: =IF(טבלה1[[#This Row],[שעות]]="","",IFERROR( IF(IF(AND(מטבע="שקלים",VLOOKUP(טבלה1[[#This Row],[שם העבודה]],טבלה2[],3,FALSE)="$"), VLOOKUP(טבלה1[[#This Row],[שם העבודה]],טבלה2[#All],2,FALSE)*טבלה1[[#This Row],[שעות]]*24*שער, IF(AND(מטבע="דולרים",VLOOKUP(טבלה1[[#This Row],[שם העבודה]],טבלה2[],3,FALSE)="₪"), VLOOKUP(טבלה1[[#This Row],[שם העבודה]],טבלה2[#All],2,FALSE)*טבלה1[[#This Row],[שעות]]*24/שער, VLOOKUP(טבלה1[[#This Row],[שם העבודה]],טבלה2[#All],2,FALSE)*טבלה1[[#This Row],[שעות]]*24))=0,"", IF(AND(מטבע="שקלים",VLOOKUP(טבלה1[[#This Row],[שם העבודה]],טבלה2[],3,FALSE)="$"), VLOOKUP(טבלה1[[#This Row],[שם העבודה]],טבלה2[#All],2,FALSE)*טבלה1[[#This Row],[שעות]]*24*שער, IF(AND(מטבע="דולרים",VLOOKUP(טבלה1[[#This Row],[שם העבודה]],טבלה2[],3,FALSE)="₪"), VLOOKUP(טבלה1[[#This Row],[שם העבודה]],טבלה2[#All],2,FALSE)*טבלה1[[#This Row],[שעות]]*24/שער, VLOOKUP(טבלה1[[#This Row],[שם העבודה]],טבלה2[#All],2,FALSE)*טבלה1[[#This Row],[שעות]]*24))),"")) -> 139.7933056 | L48: =IF(טבלה1[[#This Row],[תאריך]]="","",DATE(YEAR(טבלה1[[#This Row],[תאריך]]),MONTH(טבלה1[[#This Row],[תאריך]]),1)) -> 2024-09-01 | AP48: =IF(OR(טבלה3[[#This Row],[תווים]]="",טבלה3[[#This Row],[שכר לתווים]]=""),"", IF(טבלה3[[#This Row],[תווים שהוקלדו]]/טבלה3[[#This Row],[תווים]]*טבלה3[[#This Row],[שכר לתווים]]=0,"", טבלה3[[#This Row],[תווים שהוקלדו]]/טבלה3[[#This Row],[תווים]]*טבלה3[[#This Row],[שכר לתווים]])) ->  | AQ48: =IF(OR(טבלה3[[#This Row],[שכר]]="",טבלה3[[#This Row],[יעד]]=""),"", IF(טבלה3[[#This Row],[שכר]]>=טבלה3[[#This Row],[יעד]],"הגעת ליעד!", טבלה3[[#This Row],[שכר]]/טבלה3[[#This Row],[יעד]])) ->  | AU48: =IF(טבלה3[[#This Row],[שכר]]="","", IF(SUM(טבלה3[[#This Row],[שכר]])-SUM(טבלה3[[#This Row],[חיובים נוספים]]+טבלה3[[#This Row],[זיכויים / שולם]])=0,"", SUM(טבלה3[[#This Row],[שכר]])-SUM(טבלה3[[#This Row],[חיובים נוספים]]+טבלה3[[#This Row],[זיכויים / שולם]]))) -> 
B49: =IF(AND(טבלה1[[#This Row],[תאריך]]="",טבלה1[[#This Row],[התחלה]]="",טבלה1[[#This Row],[שם העבודה]]=""),"",ROW()-10) -> 39 | C49: =IF(טבלה1[[#This Row],[תאריך]]="","",IF(TEXT(טבלה1[[#This Row],[תאריך]],"DDD")="שבת","מוצ""ש",TEXT(טבלה1[[#This Row],[תאריך]],"DDD"))) -> יום ה | D49: 2024-09-12 | E49: 18:26:15 | F49: מכון תורה אור | G49: 18:26:22 | J49: =IF(IF(AND(טבלה1[[#This Row],[התחלה]]="",טבלה1[[#This Row],[סיום]]<>""),"",IF(AND(טבלה1[[#This Row],[התחלה]]<>"",טבלה1[[#This Row],[סיום]]=""), SUM(MOD(MOD(NOW(),1)-טבלה1[[#This Row],[התחלה]],1),טבלה1[[#This Row],[הוספת דקות]],-טבלה1[[#This Row],[הפחתת דקות]]), SUM(MOD(טבלה1[[#This Row],[סיום]]-טבלה1[[#This Row],[התחלה]],1),טבלה1[[#This Row],[הוספת דקות]],-טבלה1[[#This Row],[הפחתת דקות]])))<=0,"", IF(AND(טבלה1[[#This Row],[התחלה]]="",טבלה1[[#This Row],[סיום]]<>""),"",IF(AND(טבלה1[[#This Row],[התחלה]]<>"",טבלה1[[#This Row],[סיום]]=""), SUM(MOD(MOD(NOW(),1)-טבלה1[[#This Row],[התחלה]],1),טבלה1[[#This Row],[הוספת דקות]],-טבלה1[[#This Row],[הפחתת דקות]]), SUM(MOD(טבלה1[[#This Row],[סיום]]-טבלה1[[#This Row],[התחלה]],1),טבלה1[[#This Row],[הוספת דקות]],-טבלה1[[#This Row],[הפחתת דקות]])))) -> 8.101851852e-05 | K49: =IF(טבלה1[[#This Row],[שעות]]="","",IFERROR( IF(IF(AND(מטבע="שקלים",VLOOKUP(טבלה1[[#This Row],[שם העבודה]],טבלה2[],3,FALSE)="$"), VLOOKUP(טבלה1[[#This Row],[שם העבודה]],טבלה2[#All],2,FALSE)*טבלה1[[#This Row],[שעות]]*24*שער, IF(AND(מטבע="דולרים",VLOOKUP(טבלה1[[#This Row],[שם העבודה]],טבלה2[],3,FALSE)="₪"), VLOOKUP(טבלה1[[#This Row],[שם העבודה]],טבלה2[#All],2,FALSE)*טבלה1[[#This Row],[שעות]]*24/שער, VLOOKUP(טבלה1[[#This Row],[שם העבודה]],טבלה2[#All],2,FALSE)*טבלה1[[#This Row],[שעות]]*24))=0,"", IF(AND(מטבע="שקלים",VLOOKUP(טבלה1[[#This Row],[שם העבודה]],טבלה2[],3,FALSE)="$"), VLOOKUP(טבלה1[[#This Row],[שם העבודה]],טבלה2[#All],2,FALSE)*טבלה1[[#This Row],[שעות]]*24*שער, IF(AND(מטבע="דולרים",VLOOKUP(טבלה1[[#This Row],[שם העבודה]],טבלה2[],3,FALSE)="₪"), VLOOKUP(טבלה1[[#This Row],[שם העבודה]],טבלה2[#All],2,FALSE)*טבלה1[[#This Row],[שעות]]*24/שער, VLOOKUP(טבלה1[[#This Row],[שם העבודה]],טבלה2[#All],2,FALSE)*טבלה1[[#This Row],[שעות]]*24))),"")) -> 0.1263888889 | L49: =IF(טבלה1[[#This Row],[תאריך]]="","",DATE(YEAR(טבלה1[[#This Row],[תאריך]]),MONTH(טבלה1[[#This Row],[תאריך]]),1)) -> 2024-09-01 | AP49: =IF(OR(טבלה3[[#This Row],[תווים]]="",טבלה3[[#This Row],[שכר לתווים]]=""),"", IF(טבלה3[[#This Row],[תווים שהוקלדו]]/טבלה3[[#This Row],[תווים]]*טבלה3[[#This Row],[שכר לתווים]]=0,"", טבלה3[[#This Row],[תווים שהוקלדו]]/טבלה3[[#This Row],[תווים]]*טבלה3[[#This Row],[שכר לתווים]])) ->  | AQ49: =IF(OR(טבלה3[[#This Row],[שכר]]="",טבלה3[[#This Row],[יעד]]=""),"", IF(טבלה3[[#This Row],[שכר]]>=טבלה3[[#This Row],[יעד]],"הגעת ליעד!", טבלה3[[#This Row],[שכר]]/טבלה3[[#This Row],[יעד]])) ->  | AU49: =IF(טבלה3[[#This Row],[שכר]]="","", IF(SUM(טבלה3[[#This Row],[שכר]])-SUM(טבלה3[[#This Row],[חיובים נוספים]]+טבלה3[[#This Row],[זיכויים / שולם]])=0,"", SUM(טבלה3[[#This Row],[שכר]])-SUM(טבלה3[[#This Row],[חיובים נוספים]]+טבלה3[[#This Row],[זיכויים / שולם]]))) -> 
B50: =IF(AND(טבלה1[[#This Row],[תאריך]]="",טבלה1[[#This Row],[התחלה]]="",טבלה1[[#This Row],[שם העבודה]]=""),"",ROW()-10) -> 40 | C50: =IF(טבלה1[[#This Row],[תאריך]]="","",IF(TEXT(טבלה1[[#This Row],[תאריך]],"DDD")="שבת","מוצ""ש",TEXT(טבלה1[[#This Row],[תאריך]],"DDD"))) -> יום ו | D50: 2024-09-13 | E50: 14:17:24 | F50: מכון אורה | G50: 16:17:28 | J50: =IF(IF(AND(טבלה1[[#This Row],[התחלה]]="",טבלה1[[#This Row],[סיום]]<>""),"",IF(AND(טבלה1[[#This Row],[התחלה]]<>"",טבלה1[[#This Row],[סיום]]=""), SUM(MOD(MOD(NOW(),1)-טבלה1[[#This Row],[התחלה]],1),טבלה1[[#This Row],[הוספת דקות]],-טבלה1[[#This Row],[הפחתת דקות]]), SUM(MOD(טבלה1[[#This Row],[סיום]]-טבלה1[[#This Row],[התחלה]],1),טבלה1[[#This Row],[הוספת דקות]],-טבלה1[[#This Row],[הפחתת דקות]])))<=0,"", IF(AND(טבלה1[[#This Row],[התחלה]]="",טבלה1[[#This Row],[סיום]]<>""),"",IF(AND(טבלה1[[#This Row],[התחלה]]<>"",טבלה1[[#This Row],[סיום]]=""), SUM(MOD(MOD(NOW(),1)-טבלה1[[#This Row],[התחלה]],1),טבלה1[[#This Row],[הוספת דקות]],-טבלה1[[#This Row],[הפחתת דקות]]), SUM(MOD(טבלה1[[#This Row],[סיום]]-טבלה1[[#This Row],[התחלה]],1),טבלה1[[#This Row],[הוספת דקות]],-טבלה1[[#This Row],[הפחתת דקות]])))) -> 0.08337962963 | K50: =IF(טבלה1[[#This Row],[שעות]]="","",IFERROR( IF(IF(AND(מטבע="שקלים",VLOOKUP(טבלה1[[#This Row],[שם העבודה]],טבלה2[],3,FALSE)="$"), VLOOKUP(טבלה1[[#This Row],[שם העבודה]],טבלה2[#All],2,FALSE)*טבלה1[[#This Row],[שעות]]*24*שער, IF(AND(מטבע="דולרים",VLOOKUP(טבלה1[[#This Row],[שם העבודה]],טבלה2[],3,FALSE)="₪"), VLOOKUP(טבלה1[[#This Row],[שם העבודה]],טבלה2[#All],2,FALSE)*טבלה1[[#This Row],[שעות]]*24/שער, VLOOKUP(טבלה1[[#This Row],[שם העבודה]],טבלה2[#All],2,FALSE)*טבלה1[[#This Row],[שעות]]*24))=0,"", IF(AND(מטבע="שקלים",VLOOKUP(טבלה1[[#This Row],[שם העבודה]],טבלה2[],3,FALSE)="$"), VLOOKUP(טבלה1[[#This Row],[שם העבודה]],טבלה2[#All],2,FALSE)*טבלה1[[#This Row],[שעות]]*24*שער, IF(AND(מטבע="דולרים",VLOOKUP(טבלה1[[#This Row],[שם העבודה]],טבלה2[],3,FALSE)="₪"), VLOOKUP(טבלה1[[#This Row],[שם העבודה]],טבלה2[#All],2,FALSE)*טבלה1[[#This Row],[שעות]]*24/שער, VLOOKUP(טבלה1[[#This Row],[שם העבודה]],טבלה2[#All],2,FALSE)*טבלה1[[#This Row],[שעות]]*24))),"")) -> 80.04444444 | L50: =IF(טבלה1[[#This Row],[תאריך]]="","",DATE(YEAR(טבלה1[[#This Row],[תאריך]]),MONTH(טבלה1[[#This Row],[תאריך]]),1)) -> 2024-09-01 | AP50: =IF(OR(טבלה3[[#This Row],[תווים]]="",טבלה3[[#This Row],[שכר לתווים]]=""),"", IF(טבלה3[[#This Row],[תווים שהוקלדו]]/טבלה3[[#This Row],[תווים]]*טבלה3[[#This Row],[שכר לתווים]]=0,"", טבלה3[[#This Row],[תווים שהוקלדו]]/טבלה3[[#This Row],[תווים]]*טבלה3[[#This Row],[שכר לתווים]])) ->  | AQ50: =IF(OR(טבלה3[[#This Row],[שכר]]="",טבלה3[[#This Row],[יעד]]=""),"", IF(טבלה3[[#This Row],[שכר]]>=טבלה3[[#This Row],[יעד]],"הגעת ליעד!", טבלה3[[#This Row],[שכר]]/טבלה3[[#This Row],[יעד]])) ->  | AU50: =IF(טבלה3[[#This Row],[שכר]]="","", IF(SUM(טבלה3[[#This Row],[שכר]])-SUM(טבלה3[[#This Row],[חיובים נוספים]]+טבלה3[[#This Row],[זיכויים / שולם]])=0,"", SUM(טבלה3[[#This Row],[שכר]])-SUM(טבלה3[[#This Row],[חיובים נוספים]]+טבלה3[[#This Row],[זיכויים / שולם]]))) -> 
B51: =IF(AND(טבלה1[[#This Row],[תאריך]]="",טבלה1[[#This Row],[התחלה]]="",טבלה1[[#This Row],[שם העבודה]]=""),"",ROW()-10) -> 41 | C51: =IF(טבלה1[[#This Row],[תאריך]]="","",IF(TEXT(טבלה1[[#This Row],[תאריך]],"DDD")="שבת","מוצ""ש",TEXT(טבלה1[[#This Row],[תאריך]],"DDD"))) -> מוצ"ש | D51: 2024-09-14 | E51: 03:02:03 | F51: הקלדה | G51: 11:02:07 | J51: =IF(IF(AND(טבלה1[[#This Row],[התחלה]]="",טבלה1[[#This Row],[סיום]]<>""),"",IF(AND(טבלה1[[#This Row],[התחלה]]<>"",טבלה1[[#This Row],[סיום]]=""), SUM(MOD(MOD(NOW(),1)-טבלה1[[#This Row],[התחלה]],1),טבלה1[[#This Row],[הוספת דקות]],-טבלה1[[#This Row],[הפחתת דקות]]), SUM(MOD(טבלה1[[#This Row],[סיום]]-טבלה1[[#This Row],[התחלה]],1),טבלה1[[#This Row],[הוספת דקות]],-טבלה1[[#This Row],[הפחתת דקות]])))<=0,"", IF(AND(טבלה1[[#This Row],[התחלה]]="",טבלה1[[#This Row],[סיום]]<>""),"",IF(AND(טבלה1[[#This Row],[התחלה]]<>"",טבלה1[[#This Row],[סיום]]=""), SUM(MOD(MOD(NOW(),1)-טבלה1[[#This Row],[התחלה]],1),טבלה1[[#This Row],[הוספת דקות]],-טבלה1[[#This Row],[הפחתת דקות]]), SUM(MOD(טבלה1[[#This Row],[סיום]]-טבלה1[[#This Row],[התחלה]],1),טבלה1[[#This Row],[הוספת דקות]],-טבלה1[[#This Row],[הפחתת דקות]])))) -> 0.3333796296 | K51: =IF(טבלה1[[#This Row],[שעות]]="","",IFERROR( IF(IF(AND(מטבע="שקלים",VLOOKUP(טבלה1[[#This Row],[שם העבודה]],טבלה2[],3,FALSE)="$"), VLOOKUP(טבלה1[[#This Row],[שם העבודה]],טבלה2[#All],2,FALSE)*טבלה1[[#This Row],[שעות]]*24*שער, IF(AND(מטבע="דולרים",VLOOKUP(טבלה1[[#This Row],[שם העבודה]],טבלה2[],3,FALSE)="₪"), VLOOKUP(טבלה1[[#This Row],[שם העבודה]],טבלה2[#All],2,FALSE)*טבלה1[[#This Row],[שעות]]*24/שער, VLOOKUP(טבלה1[[#This Row],[שם העבודה]],טבלה2[#All],2,FALSE)*טבלה1[[#This Row],[שעות]]*24))=0,"", IF(AND(מטבע="שקלים",VLOOKUP(טבלה1[[#This Row],[שם העבודה]],טבלה2[],3,FALSE)="$"), VLOOKUP(טבלה1[[#This Row],[שם העבודה]],טבלה2[#All],2,FALSE)*טבלה1[[#This Row],[שעות]]*24*שער, IF(AND(מטבע="דולרים",VLOOKUP(טבלה1[[#This Row],[שם העבודה]],טבלה2[],3,FALSE)="₪"), VLOOKUP(טבלה1[[#This Row],[שם העבודה]],טבלה2[#All],2,FALSE)*טבלה1[[#This Row],[שעות]]*24/שער, VLOOKUP(טבלה1[[#This Row],[שם העבודה]],טבלה2[#All],2,FALSE)*טבלה1[[#This Row],[שעות]]*24))),"")) -> 400.0555556 | L51: =IF(טבלה1[[#This Row],[תאריך]]="","",DATE(YEAR(טבלה1[[#This Row],[תאריך]]),MONTH(טבלה1[[#This Row],[תאריך]]),1)) -> 2024-09-01 | AP51: =IF(OR(טבלה3[[#This Row],[תווים]]="",טבלה3[[#This Row],[שכר לתווים]]=""),"", IF(טבלה3[[#This Row],[תווים שהוקלדו]]/טבלה3[[#This Row],[תווים]]*טבלה3[[#This Row],[שכר לתווים]]=0,"", טבלה3[[#This Row],[תווים שהוקלדו]]/טבלה3[[#This Row],[תווים]]*טבלה3[[#This Row],[שכר לתווים]])) ->  | AQ51: =IF(OR(טבלה3[[#This Row],[שכר]]="",טבלה3[[#This Row],[יעד]]=""),"", IF(טבלה3[[#This Row],[שכר]]>=טבלה3[[#This Row],[יעד]],"הגעת ליעד!", טבלה3[[#This Row],[שכר]]/טבלה3[[#This Row],[יעד]])) ->  | AU51: =IF(טבלה3[[#This Row],[שכר]]="","", IF(SUM(טבלה3[[#This Row],[שכר]])-SUM(טבלה3[[#This Row],[חיובים נוספים]]+טבלה3[[#This Row],[זיכויים / שולם]])=0,"", SUM(טבלה3[[#This Row],[שכר]])-SUM(טבלה3[[#This Row],[חיובים נוספים]]+טבלה3[[#This Row],[זיכויים / שולם]]))) -> 
B52: =IF(AND(טבלה1[[#This Row],[תאריך]]="",טבלה1[[#This Row],[התחלה]]="",טבלה1[[#This Row],[שם העבודה]]=""),"",ROW()-10) ->  | C52: =IF(טבלה1[[#This Row],[תאריך]]="","",IF(TEXT(טבלה1[[#This Row],[תאריך]],"DDD")="שבת","מוצ""ש",TEXT(טבלה1[[#This Row],[תאריך]],"DDD"))) ->  | J52: =IF(IF(AND(טבלה1[[#This Row],[התחלה]]="",טבלה1[[#This Row],[סיום]]<>""),"",IF(AND(טבלה1[[#This Row],[התחלה]]<>"",טבלה1[[#This Row],[סיום]]=""), SUM(MOD(MOD(NOW(),1)-טבלה1[[#This Row],[התחלה]],1),טבלה1[[#This Row],[הוספת דקות]],-טבלה1[[#This Row],[הפחתת דקות]]), SUM(MOD(טבלה1[[#This Row],[סיום]]-טבלה1[[#This Row],[התחלה]],1),טבלה1[[#This Row],[הוספת דקות]],-טבלה1[[#This Row],[הפחתת דקות]])))<=0,"", IF(AND(טבלה1[[#This Row],[התחלה]]="",טבלה1[[#This Row],[סיום]]<>""),"",IF(AND(טבלה1[[#This Row],[התחלה]]<>"",טבלה1[[#This Row],[סיום]]=""), SUM(MOD(MOD(NOW(),1)-טבלה1[[#This Row],[התחלה]],1),טבלה1[[#This Row],[הוספת דקות]],-טבלה1[[#This Row],[הפחתת דקות]]), SUM(MOD(טבלה1[[#This Row],[סיום]]-טבלה1[[#This Row],[התחלה]],1),טבלה1[[#This Row],[הוספת דקות]],-טבלה1[[#This Row],[הפחתת דקות]])))) ->  | K52: =IF(טבלה1[[#This Row],[שעות]]="","",IFERROR( IF(IF(AND(מטבע="שקלים",VLOOKUP(טבלה1[[#This Row],[שם העבודה]],טבלה2[],3,FALSE)="$"), VLOOKUP(טבלה1[[#This Row],[שם העבודה]],טבלה2[#All],2,FALSE)*טבלה1[[#This Row],[שעות]]*24*שער, IF(AND(מטבע="דולרים",VLOOKUP(טבלה1[[#This Row],[שם העבודה]],טבלה2[],3,FALSE)="₪"), VLOOKUP(טבלה1[[#This Row],[שם העבודה]],טבלה2[#All],2,FALSE)*טבלה1[[#This Row],[שעות]]*24/שער, VLOOKUP(טבלה1[[#This Row],[שם העבודה]],טבלה2[#All],2,FALSE)*טבלה1[[#This Row],[שעות]]*24))=0,"", IF(AND(מטבע="שקלים",VLOOKUP(טבלה1[[#This Row],[שם העבודה]],טבלה2[],3,FALSE)="$"), VLOOKUP(טבלה1[[#This Row],[שם העבודה]],טבלה2[#All],2,FALSE)*טבלה1[[#This Row],[שעות]]*24*שער, IF(AND(מטבע="דולרים",VLOOKUP(טבלה1[[#This Row],[שם העבודה]],טבלה2[],3,FALSE)="₪"), VLOOKUP(טבלה1[[#This Row],[שם העבודה]],טבלה2[#All],2,FALSE)*טבלה1[[#This Row],[שעות]]*24/שער, VLOOKUP(טבלה1[[#This Row],[שם העבודה]],טבלה2[#All],2,FALSE)*טבלה1[[#This Row],[שעות]]*24))),"")) ->  | L52: =IF(טבלה1[[#This Row],[תאריך]]="","",DATE(YEAR(טבלה1[[#This Row],[תאריך]]),MONTH(טבלה1[[#This Row],[תאריך]]),1)) ->  | AP52: =IF(OR(טבלה3[[#This Row],[תווים]]="",טבלה3[[#This Row],[שכר לתווים]]=""),"", IF(טבלה3[[#This Row],[תווים שהוקלדו]]/טבלה3[[#This Row],[תווים]]*טבלה3[[#This Row],[שכר לתווים]]=0,"", טבלה3[[#This Row],[תווים שהוקלדו]]/טבלה3[[#This Row],[תווים]]*טבלה3[[#This Row],[שכר לתווים]])) ->  | AQ52: =IF(OR(טבלה3[[#This Row],[שכר]]="",טבלה3[[#This Row],[יעד]]=""),"", IF(טבלה3[[#This Row],[שכר]]>=טבלה3[[#This Row],[יעד]],"הגעת ליעד!", טבלה3[[#This Row],[שכר]]/טבלה3[[#This Row],[יעד]])) ->  | AU52: =IF(טבלה3[[#This Row],[שכר]]="","", IF(SUM(טבלה3[[#This Row],[שכר]])-SUM(טבלה3[[#This Row],[חיובים נוספים]]+טבלה3[[#This Row],[זיכויים / שולם]])=0,"", SUM(טבלה3[[#This Row],[שכר]])-SUM(טבלה3[[#This Row],[חיובים נוספים]]+טבלה3[[#This Row],[זיכויים / שולם]]))) -> 
B53: =IF(AND(טבלה1[[#This Row],[תאריך]]="",טבלה1[[#This Row],[התחלה]]="",טבלה1[[#This Row],[שם העבודה]]=""),"",ROW()-10) ->  | C53: =IF(טבלה1[[#This Row],[תאריך]]="","",IF(TEXT(טבלה1[[#This Row],[תאריך]],"DDD")="שבת","מוצ""ש",TEXT(טבלה1[[#This Row],[תאריך]],"DDD"))) ->  | J53: =IF(IF(AND(טבלה1[[#This Row],[התחלה]]="",טבלה1[[#This Row],[סיום]]<>""),"",IF(AND(טבלה1[[#This Row],[התחלה]]<>"",טבלה1[[#This Row],[סיום]]=""), SUM(MOD(MOD(NOW(),1)-טבלה1[[#This Row],[התחלה]],1),טבלה1[[#This Row],[הוספת דקות]],-טבלה1[[#This Row],[הפחתת דקות]]), SUM(MOD(טבלה1[[#This Row],[סיום]]-טבלה1[[#This Row],[התחלה]],1),טבלה1[[#This Row],[הוספת דקות]],-טבלה1[[#This Row],[הפחתת דקות]])))<=0,"", IF(AND(טבלה1[[#This Row],[התחלה]]="",טבלה1[[#This Row],[סיום]]<>""),"",IF(AND(טבלה1[[#This Row],[התחלה]]<>"",טבלה1[[#This Row],[סיום]]=""), SUM(MOD(MOD(NOW(),1)-טבלה1[[#This Row],[התחלה]],1),טבלה1[[#This Row],[הוספת דקות]],-טבלה1[[#This Row],[הפחתת דקות]]), SUM(MOD(טבלה1[[#This Row],[סיום]]-טבלה1[[#This Row],[התחלה]],1),טבלה1[[#This Row],[הוספת דקות]],-טבלה1[[#This Row],[הפחתת דקות]])))) ->  | K53: =IF(טבלה1[[#This Row],[שעות]]="","",IFERROR( IF(IF(AND(מטבע="שקלים",VLOOKUP(טבלה1[[#This Row],[שם העבודה]],טבלה2[],3,FALSE)="$"), VLOOKUP(טבלה1[[#This Row],[שם העבודה]],טבלה2[#All],2,FALSE)*טבלה1[[#This Row],[שעות]]*24*שער, IF(AND(מטבע="דולרים",VLOOKUP(טבלה1[[#This Row],[שם העבודה]],טבלה2[],3,FALSE)="₪"), VLOOKUP(טבלה1[[#This Row],[שם העבודה]],טבלה2[#All],2,FALSE)*טבלה1[[#This Row],[שעות]]*24/שער, VLOOKUP(טבלה1[[#This Row],[שם העבודה]],טבלה2[#All],2,FALSE)*טבלה1[[#This Row],[שעות]]*24))=0,"", IF(AND(מטבע="שקלים",VLOOKUP(טבלה1[[#This Row],[שם העבודה]],טבלה2[],3,FALSE)="$"), VLOOKUP(טבלה1[[#This Row],[שם העבודה]],טבלה2[#All],2,FALSE)*טבלה1[[#This Row],[שעות]]*24*שער, IF(AND(מטבע="דולרים",VLOOKUP(טבלה1[[#This Row],[שם העבודה]],טבלה2[],3,FALSE)="₪"), VLOOKUP(טבלה1[[#This Row],[שם העבודה]],טבלה2[#All],2,FALSE)*טבלה1[[#This Row],[שעות]]*24/שער, VLOOKUP(טבלה1[[#This Row],[שם העבודה]],טבלה2[#All],2,FALSE)*טבלה1[[#This Row],[שעות]]*24))),"")) ->  | L53: =IF(טבלה1[[#This Row],[תאריך]]="","",DATE(YEAR(טבלה1[[#This Row],[תאריך]]),MONTH(טבלה1[[#This Row],[תאריך]]),1)) ->  | AP53: =IF(OR(טבלה3[[#This Row],[תווים]]="",טבלה3[[#This Row],[שכר לתווים]]=""),"", IF(טבלה3[[#This Row],[תווים שהוקלדו]]/טבלה3[[#This Row],[תווים]]*טבלה3[[#This Row],[שכר לתווים]]=0,"", טבלה3[[#This Row],[תווים שהוקלדו]]/טבלה3[[#This Row],[תווים]]*טבלה3[[#This Row],[שכר לתווים]])) ->  | AQ53: =IF(OR(טבלה3[[#This Row],[שכר]]="",טבלה3[[#This Row],[יעד]]=""),"", IF(טבלה3[[#This Row],[שכר]]>=טבלה3[[#This Row],[יעד]],"הגעת ליעד!", טבלה3[[#This Row],[שכר]]/טבלה3[[#This Row],[יעד]])) ->  | AU53: =IF(טבלה3[[#This Row],[שכר]]="","", IF(SUM(טבלה3[[#This Row],[שכר]])-SUM(טבלה3[[#This Row],[חיובים נוספים]]+טבלה3[[#This Row],[זיכויים / שולם]])=0,"", SUM(טבלה3[[#This Row],[שכר]])-SUM(טבלה3[[#This Row],[חיובים נוספים]]+טבלה3[[#This Row],[זיכויים / שולם]]))) -> 
B54: =IF(AND(טבלה1[[#This Row],[תאריך]]="",טבלה1[[#This Row],[התחלה]]="",טבלה1[[#This Row],[שם העבודה]]=""),"",ROW()-10) ->  | C54: =IF(טבלה1[[#This Row],[תאריך]]="","",IF(TEXT(טבלה1[[#This Row],[תאריך]],"DDD")="שבת","מוצ""ש",TEXT(טבלה1[[#This Row],[תאריך]],"DDD"))) ->  | J54: =IF(IF(AND(טבלה1[[#This Row],[התחלה]]="",טבלה1[[#This Row],[סיום]]<>""),"",IF(AND(טבלה1[[#This Row],[התחלה]]<>"",טבלה1[[#This Row],[סיום]]=""), SUM(MOD(MOD(NOW(),1)-טבלה1[[#This Row],[התחלה]],1),טבלה1[[#This Row],[הוספת דקות]],-טבלה1[[#This Row],[הפחתת דקות]]), SUM(MOD(טבלה1[[#This Row],[סיום]]-טבלה1[[#This Row],[התחלה]],1),טבלה1[[#This Row],[הוספת דקות]],-טבלה1[[#This Row],[הפחתת דקות]])))<=0,"", IF(AND(טבלה1[[#This Row],[התחלה]]="",טבלה1[[#This Row],[סיום]]<>""),"",IF(AND(טבלה1[[#This Row],[התחלה]]<>"",טבלה1[[#This Row],[סיום]]=""), SUM(MOD(MOD(NOW(),1)-טבלה1[[#This Row],[התחלה]],1),טבלה1[[#This Row],[הוספת דקות]],-טבלה1[[#This Row],[הפחתת דקות]]), SUM(MOD(טבלה1[[#This Row],[סיום]]-טבלה1[[#This Row],[התחלה]],1),טבלה1[[#This Row],[הוספת דקות]],-טבלה1[[#This Row],[הפחתת דקות]])))) ->  | K54: =IF(טבלה1[[#This Row],[שעות]]="","",IFERROR( IF(IF(AND(מטבע="שקלים",VLOOKUP(טבלה1[[#This Row],[שם העבודה]],טבלה2[],3,FALSE)="$"), VLOOKUP(טבלה1[[#This Row],[שם העבודה]],טבלה2[#All],2,FALSE)*טבלה1[[#This Row],[שעות]]*24*שער, IF(AND(מטבע="דולרים",VLOOKUP(טבלה1[[#This Row],[שם העבודה]],טבלה2[],3,FALSE)="₪"), VLOOKUP(טבלה1[[#This Row],[שם העבודה]],טבלה2[#All],2,FALSE)*טבלה1[[#This Row],[שעות]]*24/שער, VLOOKUP(טבלה1[[#This Row],[שם העבודה]],טבלה2[#All],2,FALSE)*טבלה1[[#This Row],[שעות]]*24))=0,"", IF(AND(מטבע="שקלים",VLOOKUP(טבלה1[[#This Row],[שם העבודה]],טבלה2[],3,FALSE)="$"), VLOOKUP(טבלה1[[#This Row],[שם העבודה]],טבלה2[#All],2,FALSE)*טבלה1[[#This Row],[שעות]]*24*שער, IF(AND(מטבע="דולרים",VLOOKUP(טבלה1[[#This Row],[שם העבודה]],טבלה2[],3,FALSE)="₪"), VLOOKUP(טבלה1[[#This Row],[שם העבודה]],טבלה2[#All],2,FALSE)*טבלה1[[#This Row],[שעות]]*24/שער, VLOOKUP(טבלה1[[#This Row],[שם העבודה]],טבלה2[#All],2,FALSE)*טבלה1[[#This Row],[שעות]]*24))),"")) ->  | L54: =IF(טבלה1[[#This Row],[תאריך]]="","",DATE(YEAR(טבלה1[[#This Row],[תאריך]]),MONTH(טבלה1[[#This Row],[תאריך]]),1)) ->  | AP54: =IF(OR(טבלה3[[#This Row],[תווים]]="",טבלה3[[#This Row],[שכר לתווים]]=""),"", IF(טבלה3[[#This Row],[תווים שהוקלדו]]/טבלה3[[#This Row],[תווים]]*טבלה3[[#This Row],[שכר לתווים]]=0,"", טבלה3[[#This Row],[תווים שהוקלדו]]/טבלה3[[#This Row],[תווים]]*טבלה3[[#This Row],[שכר לתווים]])) ->  | AQ54: =IF(OR(טבלה3[[#This Row],[שכר]]="",טבלה3[[#This Row],[יעד]]=""),"", IF(טבלה3[[#This Row],[שכר]]>=טבלה3[[#This Row],[יעד]],"הגעת ליעד!", טבלה3[[#This Row],[שכר]]/טבלה3[[#This Row],[יעד]])) ->  | AU54: =IF(טבלה3[[#This Row],[שכר]]="","", IF(SUM(טבלה3[[#This Row],[שכר]])-SUM(טבלה3[[#This Row],[חיובים נוספים]]+טבלה3[[#This Row],[זיכויים / שולם]])=0,"", SUM(טבלה3[[#This Row],[שכר]])-SUM(טבלה3[[#This Row],[חיובים נוספים]]+טבלה3[[#This Row],[זיכויים / שולם]]))) -> 
B55: =IF(AND(טבלה1[[#This Row],[תאריך]]="",טבלה1[[#This Row],[התחלה]]="",טבלה1[[#This Row],[שם העבודה]]=""),"",ROW()-10) ->  | C55: =IF(טבלה1[[#This Row],[תאריך]]="","",IF(TEXT(טבלה1[[#This Row],[תאריך]],"DDD")="שבת","מוצ""ש",TEXT(טבלה1[[#This Row],[תאריך]],"DDD"))) ->  | J55: =IF(IF(AND(טבלה1[[#This Row],[התחלה]]="",טבלה1[[#This Row],[סיום]]<>""),"",IF(AND(טבלה1[[#This Row],[התחלה]]<>"",טבלה1[[#This Row],[סיום]]=""), SUM(MOD(MOD(NOW(),1)-טבלה1[[#This Row],[התחלה]],1),טבלה1[[#This Row],[הוספת דקות]],-טבלה1[[#This Row],[הפחתת דקות]]), SUM(MOD(טבלה1[[#This Row],[סיום]]-טבלה1[[#This Row],[התחלה]],1),טבלה1[[#This Row],[הוספת דקות]],-טבלה1[[#This Row],[הפחתת דקות]])))<=0,"", IF(AND(טבלה1[[#This Row],[התחלה]]="",טבלה1[[#This Row],[סיום]]<>""),"",IF(AND(טבלה1[[#This Row],[התחלה]]<>"",טבלה1[[#This Row],[סיום]]=""), SUM(MOD(MOD(NOW(),1)-טבלה1[[#This Row],[התחלה]],1),טבלה1[[#This Row],[הוספת דקות]],-טבלה1[[#This Row],[הפחתת דקות]]), SUM(MOD(טבלה1[[#This Row],[סיום]]-טבלה1[[#This Row],[התחלה]],1),טבלה1[[#This Row],[הוספת דקות]],-טבלה1[[#This Row],[הפחתת דקות]])))) ->  | K55: =IF(טבלה1[[#This Row],[שעות]]="","",IFERROR( IF(IF(AND(מטבע="שקלים",VLOOKUP(טבלה1[[#This Row],[שם העבודה]],טבלה2[],3,FALSE)="$"), VLOOKUP(טבלה1[[#This Row],[שם העבודה]],טבלה2[#All],2,FALSE)*טבלה1[[#This Row],[שעות]]*24*שער, IF(AND(מטבע="דולרים",VLOOKUP(טבלה1[[#This Row],[שם העבודה]],טבלה2[],3,FALSE)="₪"), VLOOKUP(טבלה1[[#This Row],[שם העבודה]],טבלה2[#All],2,FALSE)*טבלה1[[#This Row],[שעות]]*24/שער, VLOOKUP(טבלה1[[#This Row],[שם העבודה]],טבלה2[#All],2,FALSE)*טבלה1[[#This Row],[שעות]]*24))=0,"", IF(AND(מטבע="שקלים",VLOOKUP(טבלה1[[#This Row],[שם העבודה]],טבלה2[],3,FALSE)="$"), VLOOKUP(טבלה1[[#This Row],[שם העבודה]],טבלה2[#All],2,FALSE)*טבלה1[[#This Row],[שעות]]*24*שער, IF(AND(מטבע="דולרים",VLOOKUP(טבלה1[[#This Row],[שם העבודה]],טבלה2[],3,FALSE)="₪"), VLOOKUP(טבלה1[[#This Row],[שם העבודה]],טבלה2[#All],2,FALSE)*טבלה1[[#This Row],[שעות]]*24/שער, VLOOKUP(טבלה1[[#This Row],[שם העבודה]],טבלה2[#All],2,FALSE)*טבלה1[[#This Row],[שעות]]*24))),"")) ->  | L55: =IF(טבלה1[[#This Row],[תאריך]]="","",DATE(YEAR(טבלה1[[#This Row],[תאריך]]),MONTH(טבלה1[[#This Row],[תאריך]]),1)) ->  | AP55: =IF(OR(טבלה3[[#This Row],[תווים]]="",טבלה3[[#This Row],[שכר לתווים]]=""),"", IF(טבלה3[[#This Row],[תווים שהוקלדו]]/טבלה3[[#This Row],[תווים]]*טבלה3[[#This Row],[שכר לתווים]]=0,"", טבלה3[[#This Row],[תווים שהוקלדו]]/טבלה3[[#This Row],[תווים]]*טבלה3[[#This Row],[שכר לתווים]])) ->  | AQ55: =IF(OR(טבלה3[[#This Row],[שכר]]="",טבלה3[[#This Row],[יעד]]=""),"", IF(טבלה3[[#This Row],[שכר]]>=טבלה3[[#This Row],[יעד]],"הגעת ליעד!", טבלה3[[#This Row],[שכר]]/טבלה3[[#This Row],[יעד]])) ->  | AU55: =IF(טבלה3[[#This Row],[שכר]]="","", IF(SUM(טבלה3[[#This Row],[שכר]])-SUM(טבלה3[[#This Row],[חיובים נוספים]]+טבלה3[[#This Row],[זיכויים / שולם]])=0,"", SUM(טבלה3[[#This Row],[שכר]])-SUM(טבלה3[[#This Row],[חיובים נוספים]]+טבלה3[[#This Row],[זיכויים / שולם]]))) -> 
B56: =IF(AND(טבלה1[[#This Row],[תאריך]]="",טבלה1[[#This Row],[התחלה]]="",טבלה1[[#This Row],[שם העבודה]]=""),"",ROW()-10) ->  | C56: =IF(טבלה1[[#This Row],[תאריך]]="","",IF(TEXT(טבלה1[[#This Row],[תאריך]],"DDD")="שבת","מוצ""ש",TEXT(טבלה1[[#This Row],[תאריך]],"DDD"))) ->  | J56: =IF(IF(AND(טבלה1[[#This Row],[התחלה]]="",טבלה1[[#This Row],[סיום]]<>""),"",IF(AND(טבלה1[[#This Row],[התחלה]]<>"",טבלה1[[#This Row],[סיום]]=""), SUM(MOD(MOD(NOW(),1)-טבלה1[[#This Row],[התחלה]],1),טבלה1[[#This Row],[הוספת דקות]],-טבלה1[[#This Row],[הפחתת דקות]]), SUM(MOD(טבלה1[[#This Row],[סיום]]-טבלה1[[#This Row],[התחלה]],1),טבלה1[[#This Row],[הוספת דקות]],-טבלה1[[#This Row],[הפחתת דקות]])))<=0,"", IF(AND(טבלה1[[#This Row],[התחלה]]="",טבלה1[[#This Row],[סיום]]<>""),"",IF(AND(טבלה1[[#This Row],[התחלה]]<>"",טבלה1[[#This Row],[סיום]]=""), SUM(MOD(MOD(NOW(),1)-טבלה1[[#This Row],[התחלה]],1),טבלה1[[#This Row],[הוספת דקות]],-טבלה1[[#This Row],[הפחתת דקות]]), SUM(MOD(טבלה1[[#This Row],[סיום]]-טבלה1[[#This Row],[התחלה]],1),טבלה1[[#This Row],[הוספת דקות]],-טבלה1[[#This Row],[הפחתת דקות]])))) ->  | K56: =IF(טבלה1[[#This Row],[שעות]]="","",IFERROR( IF(IF(AND(מטבע="שקלים",VLOOKUP(טבלה1[[#This Row],[שם העבודה]],טבלה2[],3,FALSE)="$"), VLOOKUP(טבלה1[[#This Row],[שם העבודה]],טבלה2[#All],2,FALSE)*טבלה1[[#This Row],[שעות]]*24*שער, IF(AND(מטבע="דולרים",VLOOKUP(טבלה1[[#This Row],[שם העבודה]],טבלה2[],3,FALSE)="₪"), VLOOKUP(טבלה1[[#This Row],[שם העבודה]],טבלה2[#All],2,FALSE)*טבלה1[[#This Row],[שעות]]*24/שער, VLOOKUP(טבלה1[[#This Row],[שם העבודה]],טבלה2[#All],2,FALSE)*טבלה1[[#This Row],[שעות]]*24))=0,"", IF(AND(מטבע="שקלים",VLOOKUP(טבלה1[[#This Row],[שם העבודה]],טבלה2[],3,FALSE)="$"), VLOOKUP(טבלה1[[#This Row],[שם העבודה]],טבלה2[#All],2,FALSE)*טבלה1[[#This Row],[שעות]]*24*שער, IF(AND(מטבע="דולרים",VLOOKUP(טבלה1[[#This Row],[שם העבודה]],טבלה2[],3,FALSE)="₪"), VLOOKUP(טבלה1[[#This Row],[שם העבודה]],טבלה2[#All],2,FALSE)*טבלה1[[#This Row],[שעות]]*24/שער, VLOOKUP(טבלה1[[#This Row],[שם העבודה]],טבלה2[#All],2,FALSE)*טבלה1[[#This Row],[שעות]]*24))),"")) ->  | L56: =IF(טבלה1[[#This Row],[תאריך]]="","",DATE(YEAR(טבלה1[[#This Row],[תאריך]]),MONTH(טבלה1[[#This Row],[תאריך]]),1)) ->  | AP56: =IF(OR(טבלה3[[#This Row],[תווים]]="",טבלה3[[#This Row],[שכר לתווים]]=""),"", IF(טבלה3[[#This Row],[תווים שהוקלדו]]/טבלה3[[#This Row],[תווים]]*טבלה3[[#This Row],[שכר לתווים]]=0,"", טבלה3[[#This Row],[תווים שהוקלדו]]/טבלה3[[#This Row],[תווים]]*טבלה3[[#This Row],[שכר לתווים]])) ->  | AQ56: =IF(OR(טבלה3[[#This Row],[שכר]]="",טבלה3[[#This Row],[יעד]]=""),"", IF(טבלה3[[#This Row],[שכר]]>=טבלה3[[#This Row],[יעד]],"הגעת ליעד!", טבלה3[[#This Row],[שכר]]/טבלה3[[#This Row],[יעד]])) ->  | AU56: =IF(טבלה3[[#This Row],[שכר]]="","", IF(SUM(טבלה3[[#This Row],[שכר]])-SUM(טבלה3[[#This Row],[חיובים נוספים]]+טבלה3[[#This Row],[זיכויים / שולם]])=0,"", SUM(טבלה3[[#This Row],[שכר]])-SUM(טבלה3[[#This Row],[חיובים נוספים]]+טבלה3[[#This Row],[זיכויים / שולם]]))) -> 
B57: =IF(AND(טבלה1[[#This Row],[תאריך]]="",טבלה1[[#This Row],[התחלה]]="",טבלה1[[#This Row],[שם העבודה]]=""),"",ROW()-10) ->  | C57: =IF(טבלה1[[#This Row],[תאריך]]="","",IF(TEXT(טבלה1[[#This Row],[תאריך]],"DDD")="שבת","מוצ""ש",TEXT(טבלה1[[#This Row],[תאריך]],"DDD"))) ->  | J57: =IF(IF(AND(טבלה1[[#This Row],[התחלה]]="",טבלה1[[#This Row],[סיום]]<>""),"",IF(AND(טבלה1[[#This Row],[התחלה]]<>"",טבלה1[[#This Row],[סיום]]=""), SUM(MOD(MOD(NOW(),1)-טבלה1[[#This Row],[התחלה]],1),טבלה1[[#This Row],[הוספת דקות]],-טבלה1[[#This Row],[הפחתת דקות]]), SUM(MOD(טבלה1[[#This Row],[סיום]]-טבלה1[[#This Row],[התחלה]],1),טבלה1[[#This Row],[הוספת דקות]],-טבלה1[[#This Row],[הפחתת דקות]])))<=0,"", IF(AND(טבלה1[[#This Row],[התחלה]]="",טבלה1[[#This Row],[סיום]]<>""),"",IF(AND(טבלה1[[#This Row],[התחלה]]<>"",טבלה1[[#This Row],[סיום]]=""), SUM(MOD(MOD(NOW(),1)-טבלה1[[#This Row],[התחלה]],1),טבלה1[[#This Row],[הוספת דקות]],-טבלה1[[#This Row],[הפחתת דקות]]), SUM(MOD(טבלה1[[#This Row],[סיום]]-טבלה1[[#This Row],[התחלה]],1),טבלה1[[#This Row],[הוספת דקות]],-טבלה1[[#This Row],[הפחתת דקות]])))) ->  | K57: =IF(טבלה1[[#This Row],[שעות]]="","",IFERROR( IF(IF(AND(מטבע="שקלים",VLOOKUP(טבלה1[[#This Row],[שם העבודה]],טבלה2[],3,FALSE)="$"), VLOOKUP(טבלה1[[#This Row],[שם העבודה]],טבלה2[#All],2,FALSE)*טבלה1[[#This Row],[שעות]]*24*שער, IF(AND(מטבע="דולרים",VLOOKUP(טבלה1[[#This Row],[שם העבודה]],טבלה2[],3,FALSE)="₪"), VLOOKUP(טבלה1[[#This Row],[שם העבודה]],טבלה2[#All],2,FALSE)*טבלה1[[#This Row],[שעות]]*24/שער, VLOOKUP(טבלה1[[#This Row],[שם העבודה]],טבלה2[#All],2,FALSE)*טבלה1[[#This Row],[שעות]]*24))=0,"", IF(AND(מטבע="שקלים",VLOOKUP(טבלה1[[#This Row],[שם העבודה]],טבלה2[],3,FALSE)="$"), VLOOKUP(טבלה1[[#This Row],[שם העבודה]],טבלה2[#All],2,FALSE)*טבלה1[[#This Row],[שעות]]*24*שער, IF(AND(מטבע="דולרים",VLOOKUP(טבלה1[[#This Row],[שם העבודה]],טבלה2[],3,FALSE)="₪"), VLOOKUP(טבלה1[[#This Row],[שם העבודה]],טבלה2[#All],2,FALSE)*טבלה1[[#This Row],[שעות]]*24/שער, VLOOKUP(טבלה1[[#This Row],[שם העבודה]],טבלה2[#All],2,FALSE)*טבלה1[[#This Row],[שעות]]*24))),"")) ->  | L57: =IF(טבלה1[[#This Row],[תאריך]]="","",DATE(YEAR(טבלה1[[#This Row],[תאריך]]),MONTH(טבלה1[[#This Row],[תאריך]]),1)) ->  | AP57: =IF(OR(טבלה3[[#This Row],[תווים]]="",טבלה3[[#This Row],[שכר לתווים]]=""),"", IF(טבלה3[[#This Row],[תווים שהוקלדו]]/טבלה3[[#This Row],[תווים]]*טבלה3[[#This Row],[שכר לתווים]]=0,"", טבלה3[[#This Row],[תווים שהוקלדו]]/טבלה3[[#This Row],[תווים]]*טבלה3[[#This Row],[שכר לתווים]])) ->  | AQ57: =IF(OR(טבלה3[[#This Row],[שכר]]="",טבלה3[[#This Row],[יעד]]=""),"", IF(טבלה3[[#This Row],[שכר]]>=טבלה3[[#This Row],[יעד]],"הגעת ליעד!", טבלה3[[#This Row],[שכר]]/טבלה3[[#This Row],[יעד]])) ->  | AU57: =IF(טבלה3[[#This Row],[שכר]]="","", IF(SUM(טבלה3[[#This Row],[שכר]])-SUM(טבלה3[[#This Row],[חיובים נוספים]]+טבלה3[[#This Row],[זיכויים / שולם]])=0,"", SUM(טבלה3[[#This Row],[שכר]])-SUM(טבלה3[[#This Row],[חיובים נוספים]]+טבלה3[[#This Row],[זיכויים / שולם]]))) -> 
B58: =IF(AND(טבלה1[[#This Row],[תאריך]]="",טבלה1[[#This Row],[התחלה]]="",טבלה1[[#This Row],[שם העבודה]]=""),"",ROW()-10) ->  | C58: =IF(טבלה1[[#This Row],[תאריך]]="","",IF(TEXT(טבלה1[[#This Row],[תאריך]],"DDD")="שבת","מוצ""ש",TEXT(טבלה1[[#This Row],[תאריך]],"DDD"))) ->  | J58: =IF(IF(AND(טבלה1[[#This Row],[התחלה]]="",טבלה1[[#This Row],[סיום]]<>""),"",IF(AND(טבלה1[[#This Row],[התחלה]]<>"",טבלה1[[#This Row],[סיום]]=""), SUM(MOD(MOD(NOW(),1)-טבלה1[[#This Row],[התחלה]],1),טבלה1[[#This Row],[הוספת דקות]],-טבלה1[[#This Row],[הפחתת דקות]]), SUM(MOD(טבלה1[[#This Row],[סיום]]-טבלה1[[#This Row],[התחלה]],1),טבלה1[[#This Row],[הוספת דקות]],-טבלה1[[#This Row],[הפחתת דקות]])))<=0,"", IF(AND(טבלה1[[#This Row],[התחלה]]="",טבלה1[[#This Row],[סיום]]<>""),"",IF(AND(טבלה1[[#This Row],[התחלה]]<>"",טבלה1[[#This Row],[סיום]]=""), SUM(MOD(MOD(NOW(),1)-טבלה1[[#This Row],[התחלה]],1),טבלה1[[#This Row],[הוספת דקות]],-טבלה1[[#This Row],[הפחתת דקות]]), SUM(MOD(טבלה1[[#This Row],[סיום]]-טבלה1[[#This Row],[התחלה]],1),טבלה1[[#This Row],[הוספת דקות]],-טבלה1[[#This Row],[הפחתת דקות]])))) ->  | K58: =IF(טבלה1[[#This Row],[שעות]]="","",IFERROR( IF(IF(AND(מטבע="שקלים",VLOOKUP(טבלה1[[#This Row],[שם העבודה]],טבלה2[],3,FALSE)="$"), VLOOKUP(טבלה1[[#This Row],[שם העבודה]],טבלה2[#All],2,FALSE)*טבלה1[[#This Row],[שעות]]*24*שער, IF(AND(מטבע="דולרים",VLOOKUP(טבלה1[[#This Row],[שם העבודה]],טבלה2[],3,FALSE)="₪"), VLOOKUP(טבלה1[[#This Row],[שם העבודה]],טבלה2[#All],2,FALSE)*טבלה1[[#This Row],[שעות]]*24/שער, VLOOKUP(טבלה1[[#This Row],[שם העבודה]],טבלה2[#All],2,FALSE)*טבלה1[[#This Row],[שעות]]*24))=0,"", IF(AND(מטבע="שקלים",VLOOKUP(טבלה1[[#This Row],[שם העבודה]],טבלה2[],3,FALSE)="$"), VLOOKUP(טבלה1[[#This Row],[שם העבודה]],טבלה2[#All],2,FALSE)*טבלה1[[#This Row],[שעות]]*24*שער, IF(AND(מטבע="דולרים",VLOOKUP(טבלה1[[#This Row],[שם העבודה]],טבלה2[],3,FALSE)="₪"), VLOOKUP(טבלה1[[#This Row],[שם העבודה]],טבלה2[#All],2,FALSE)*טבלה1[[#This Row],[שעות]]*24/שער, VLOOKUP(טבלה1[[#This Row],[שם העבודה]],טבלה2[#All],2,FALSE)*טבלה1[[#This Row],[שעות]]*24))),"")) ->  | L58: =IF(טבלה1[[#This Row],[תאריך]]="","",DATE(YEAR(טבלה1[[#This Row],[תאריך]]),MONTH(טבלה1[[#This Row],[תאריך]]),1)) ->  | AP58: =IF(OR(טבלה3[[#This Row],[תווים]]="",טבלה3[[#This Row],[שכר לתווים]]=""),"", IF(טבלה3[[#This Row],[תווים שהוקלדו]]/טבלה3[[#This Row],[תווים]]*טבלה3[[#This Row],[שכר לתווים]]=0,"", טבלה3[[#This Row],[תווים שהוקלדו]]/טבלה3[[#This Row],[תווים]]*טבלה3[[#This Row],[שכר לתווים]])) ->  | AQ58: =IF(OR(טבלה3[[#This Row],[שכר]]="",טבלה3[[#This Row],[יעד]]=""),"", IF(טבלה3[[#This Row],[שכר]]>=טבלה3[[#This Row],[יעד]],"הגעת ליעד!", טבלה3[[#This Row],[שכר]]/טבלה3[[#This Row],[יעד]])) ->  | AU58: =IF(טבלה3[[#This Row],[שכר]]="","", IF(SUM(טבלה3[[#This Row],[שכר]])-SUM(טבלה3[[#This Row],[חיובים נוספים]]+טבלה3[[#This Row],[זיכויים / שולם]])=0,"", SUM(טבלה3[[#This Row],[שכר]])-SUM(טבלה3[[#This Row],[חיובים נוספים]]+טבלה3[[#This Row],[זיכויים / שולם]]))) -> 
B59: =IF(AND(טבלה1[[#This Row],[תאריך]]="",טבלה1[[#This Row],[התחלה]]="",טבלה1[[#This Row],[שם העבודה]]=""),"",ROW()-10) ->  | C59: =IF(טבלה1[[#This Row],[תאריך]]="","",IF(TEXT(טבלה1[[#This Row],[תאריך]],"DDD")="שבת","מוצ""ש",TEXT(טבלה1[[#This Row],[תאריך]],"DDD"))) ->  | J59: =IF(IF(AND(טבלה1[[#This Row],[התחלה]]="",טבלה1[[#This Row],[סיום]]<>""),"",IF(AND(טבלה1[[#This Row],[התחלה]]<>"",טבלה1[[#This Row],[סיום]]=""), SUM(MOD(MOD(NOW(),1)-טבלה1[[#This Row],[התחלה]],1),טבלה1[[#This Row],[הוספת דקות]],-טבלה1[[#This Row],[הפחתת דקות]]), SUM(MOD(טבלה1[[#This Row],[סיום]]-טבלה1[[#This Row],[התחלה]],1),טבלה1[[#This Row],[הוספת דקות]],-טבלה1[[#This Row],[הפחתת דקות]])))<=0,"", IF(AND(טבלה1[[#This Row],[התחלה]]="",טבלה1[[#This Row],[סיום]]<>""),"",IF(AND(טבלה1[[#This Row],[התחלה]]<>"",טבלה1[[#This Row],[סיום]]=""), SUM(MOD(MOD(NOW(),1)-טבלה1[[#This Row],[התחלה]],1),טבלה1[[#This Row],[הוספת דקות]],-טבלה1[[#This Row],[הפחתת דקות]]), SUM(MOD(טבלה1[[#This Row],[סיום]]-טבלה1[[#This Row],[התחלה]],1),טבלה1[[#This Row],[הוספת דקות]],-טבלה1[[#This Row],[הפחתת דקות]])))) ->  | K59: =IF(טבלה1[[#This Row],[שעות]]="","",IFERROR( IF(IF(AND(מטבע="שקלים",VLOOKUP(טבלה1[[#This Row],[שם העבודה]],טבלה2[],3,FALSE)="$"), VLOOKUP(טבלה1[[#This Row],[שם העבודה]],טבלה2[#All],2,FALSE)*טבלה1[[#This Row],[שעות]]*24*שער, IF(AND(מטבע="דולרים",VLOOKUP(טבלה1[[#This Row],[שם העבודה]],טבלה2[],3,FALSE)="₪"), VLOOKUP(טבלה1[[#This Row],[שם העבודה]],טבלה2[#All],2,FALSE)*טבלה1[[#This Row],[שעות]]*24/שער, VLOOKUP(טבלה1[[#This Row],[שם העבודה]],טבלה2[#All],2,FALSE)*טבלה1[[#This Row],[שעות]]*24))=0,"", IF(AND(מטבע="שקלים",VLOOKUP(טבלה1[[#This Row],[שם העבודה]],טבלה2[],3,FALSE)="$"), VLOOKUP(טבלה1[[#This Row],[שם העבודה]],טבלה2[#All],2,FALSE)*טבלה1[[#This Row],[שעות]]*24*שער, IF(AND(מטבע="דולרים",VLOOKUP(טבלה1[[#This Row],[שם העבודה]],טבלה2[],3,FALSE)="₪"), VLOOKUP(טבלה1[[#This Row],[שם העבודה]],טבלה2[#All],2,FALSE)*טבלה1[[#This Row],[שעות]]*24/שער, VLOOKUP(טבלה1[[#This Row],[שם העבודה]],טבלה2[#All],2,FALSE)*טבלה1[[#This Row],[שעות]]*24))),"")) ->  | L59: =IF(טבלה1[[#This Row],[תאריך]]="","",DATE(YEAR(טבלה1[[#This Row],[תאריך]]),MONTH(טבלה1[[#This Row],[תאריך]]),1)) ->  | AP59: =IF(OR(טבלה3[[#This Row],[תווים]]="",טבלה3[[#This Row],[שכר לתווים]]=""),"", IF(טבלה3[[#This Row],[תווים שהוקלדו]]/טבלה3[[#This Row],[תווים]]*טבלה3[[#This Row],[שכר לתווים]]=0,"", טבלה3[[#This Row],[תווים שהוקלדו]]/טבלה3[[#This Row],[תווים]]*טבלה3[[#This Row],[שכר לתווים]])) ->  | AQ59: =IF(OR(טבלה3[[#This Row],[שכר]]="",טבלה3[[#This Row],[יעד]]=""),"", IF(טבלה3[[#This Row],[שכר]]>=טבלה3[[#This Row],[יעד]],"הגעת ליעד!", טבלה3[[#This Row],[שכר]]/טבלה3[[#This Row],[יעד]])) ->  | AU59: =IF(טבלה3[[#This Row],[שכר]]="","", IF(SUM(טבלה3[[#This Row],[שכר]])-SUM(טבלה3[[#This Row],[חיובים נוספים]]+טבלה3[[#This Row],[זיכויים / שולם]])=0,"", SUM(טבלה3[[#This Row],[שכר]])-SUM(טבלה3[[#This Row],[חיובים נוספים]]+טבלה3[[#This Row],[זיכויים / שולם]]))) -> 
B60: =IF(AND(טבלה1[[#This Row],[תאריך]]="",טבלה1[[#This Row],[התחלה]]="",טבלה1[[#This Row],[שם העבודה]]=""),"",ROW()-10) ->  | C60: =IF(טבלה1[[#This Row],[תאריך]]="","",IF(TEXT(טבלה1[[#This Row],[תאריך]],"DDD")="שבת","מוצ""ש",TEXT(טבלה1[[#This Row],[תאריך]],"DDD"))) ->  | J60: =IF(IF(AND(טבלה1[[#This Row],[התחלה]]="",טבלה1[[#This Row],[סיום]]<>""),"",IF(AND(טבלה1[[#This Row],[התחלה]]<>"",טבלה1[[#This Row],[סיום]]=""), SUM(MOD(MOD(NOW(),1)-טבלה1[[#This Row],[התחלה]],1),טבלה1[[#This Row],[הוספת דקות]],-טבלה1[[#This Row],[הפחתת דקות]]), SUM(MOD(טבלה1[[#This Row],[סיום]]-טבלה1[[#This Row],[התחלה]],1),טבלה1[[#This Row],[הוספת דקות]],-טבלה1[[#This Row],[הפחתת דקות]])))<=0,"", IF(AND(טבלה1[[#This Row],[התחלה]]="",טבלה1[[#This Row],[סיום]]<>""),"",IF(AND(טבלה1[[#This Row],[התחלה]]<>"",טבלה1[[#This Row],[סיום]]=""), SUM(MOD(MOD(NOW(),1)-טבלה1[[#This Row],[התחלה]],1),טבלה1[[#This Row],[הוספת דקות]],-טבלה1[[#This Row],[הפחתת דקות]]), SUM(MOD(טבלה1[[#This Row],[סיום]]-טבלה1[[#This Row],[התחלה]],1),טבלה1[[#This Row],[הוספת דקות]],-טבלה1[[#This Row],[הפחתת דקות]])))) ->  | K60: =IF(טבלה1[[#This Row],[שעות]]="","",IFERROR( IF(IF(AND(מטבע="שקלים",VLOOKUP(טבלה1[[#This Row],[שם העבודה]],טבלה2[],3,FALSE)="$"), VLOOKUP(טבלה1[[#This Row],[שם העבודה]],טבלה2[#All],2,FALSE)*טבלה1[[#This Row],[שעות]]*24*שער, IF(AND(מטבע="דולרים",VLOOKUP(טבלה1[[#This Row],[שם העבודה]],טבלה2[],3,FALSE)="₪"), VLOOKUP(טבלה1[[#This Row],[שם העבודה]],טבלה2[#All],2,FALSE)*טבלה1[[#This Row],[שעות]]*24/שער, VLOOKUP(טבלה1[[#This Row],[שם העבודה]],טבלה2[#All],2,FALSE)*טבלה1[[#This Row],[שעות]]*24))=0,"", IF(AND(מטבע="שקלים",VLOOKUP(טבלה1[[#This Row],[שם העבודה]],טבלה2[],3,FALSE)="$"), VLOOKUP(טבלה1[[#This Row],[שם העבודה]],טבלה2[#All],2,FALSE)*טבלה1[[#This Row],[שעות]]*24*שער, IF(AND(מטבע="דולרים",VLOOKUP(טבלה1[[#This Row],[שם העבודה]],טבלה2[],3,FALSE)="₪"), VLOOKUP(טבלה1[[#This Row],[שם העבודה]],טבלה2[#All],2,FALSE)*טבלה1[[#This Row],[שעות]]*24/שער, VLOOKUP(טבלה1[[#This Row],[שם העבודה]],טבלה2[#All],2,FALSE)*טבלה1[[#This Row],[שעות]]*24))),"")) ->  | L60: =IF(טבלה1[[#This Row],[תאריך]]="","",DATE(YEAR(טבלה1[[#This Row],[תאריך]]),MONTH(טבלה1[[#This Row],[תאריך]]),1)) ->  | AP60: =IF(OR(טבלה3[[#This Row],[תווים]]="",טבלה3[[#This Row],[שכר לתווים]]=""),"", IF(טבלה3[[#This Row],[תווים שהוקלדו]]/טבלה3[[#This Row],[תווים]]*טבלה3[[#This Row],[שכר לתווים]]=0,"", טבלה3[[#This Row],[תווים שהוקלדו]]/טבלה3[[#This Row],[תווים]]*טבלה3[[#This Row],[שכר לתווים]])) ->  | AQ60: =IF(OR(טבלה3[[#This Row],[שכר]]="",טבלה3[[#This Row],[יעד]]=""),"", IF(טבלה3[[#This Row],[שכר]]>=טבלה3[[#This Row],[יעד]],"הגעת ליעד!", טבלה3[[#This Row],[שכר]]/טבלה3[[#This Row],[יעד]])) ->  | AU60: =IF(טבלה3[[#This Row],[שכר]]="","", IF(SUM(טבלה3[[#This Row],[שכר]])-SUM(טבלה3[[#This Row],[חיובים נוספים]]+טבלה3[[#This Row],[זיכויים / שולם]])=0,"", SUM(טבלה3[[#This Row],[שכר]])-SUM(טבלה3[[#This Row],[חיובים נוספים]]+טבלה3[[#This Row],[זיכויים / שולם]]))) -> 
B61: =IF(AND(טבלה1[[#This Row],[תאריך]]="",טבלה1[[#This Row],[התחלה]]="",טבלה1[[#This Row],[שם העבודה]]=""),"",ROW()-10) ->  | C61: =IF(טבלה1[[#This Row],[תאריך]]="","",IF(TEXT(טבלה1[[#This Row],[תאריך]],"DDD")="שבת","מוצ""ש",TEXT(טבלה1[[#This Row],[תאריך]],"DDD"))) ->  | J61: =IF(IF(AND(טבלה1[[#This Row],[התחלה]]="",טבלה1[[#This Row],[סיום]]<>""),"",IF(AND(טבלה1[[#This Row],[התחלה]]<>"",טבלה1[[#This Row],[סיום]]=""), SUM(MOD(MOD(NOW(),1)-טבלה1[[#This Row],[התחלה]],1),טבלה1[[#This Row],[הוספת דקות]],-טבלה1[[#This Row],[הפחתת דקות]]), SUM(MOD(טבלה1[[#This Row],[סיום]]-טבלה1[[#This Row],[התחלה]],1),טבלה1[[#This Row],[הוספת דקות]],-טבלה1[[#This Row],[הפחתת דקות]])))<=0,"", IF(AND(טבלה1[[#This Row],[התחלה]]="",טבלה1[[#This Row],[סיום]]<>""),"",IF(AND(טבלה1[[#This Row],[התחלה]]<>"",טבלה1[[#This Row],[סיום]]=""), SUM(MOD(MOD(NOW(),1)-טבלה1[[#This Row],[התחלה]],1),טבלה1[[#This Row],[הוספת דקות]],-טבלה1[[#This Row],[הפחתת דקות]]), SUM(MOD(טבלה1[[#This Row],[סיום]]-טבלה1[[#This Row],[התחלה]],1),טבלה1[[#This Row],[הוספת דקות]],-טבלה1[[#This Row],[הפחתת דקות]])))) ->  | K61: =IF(טבלה1[[#This Row],[שעות]]="","",IFERROR( IF(IF(AND(מטבע="שקלים",VLOOKUP(טבלה1[[#This Row],[שם העבודה]],טבלה2[],3,FALSE)="$"), VLOOKUP(טבלה1[[#This Row],[שם העבודה]],טבלה2[#All],2,FALSE)*טבלה1[[#This Row],[שעות]]*24*שער, IF(AND(מטבע="דולרים",VLOOKUP(טבלה1[[#This Row],[שם העבודה]],טבלה2[],3,FALSE)="₪"), VLOOKUP(טבלה1[[#This Row],[שם העבודה]],טבלה2[#All],2,FALSE)*טבלה1[[#This Row],[שעות]]*24/שער, VLOOKUP(טבלה1[[#This Row],[שם העבודה]],טבלה2[#All],2,FALSE)*טבלה1[[#This Row],[שעות]]*24))=0,"", IF(AND(מטבע="שקלים",VLOOKUP(טבלה1[[#This Row],[שם העבודה]],טבלה2[],3,FALSE)="$"), VLOOKUP(טבלה1[[#This Row],[שם העבודה]],טבלה2[#All],2,FALSE)*טבלה1[[#This Row],[שעות]]*24*שער, IF(AND(מטבע="דולרים",VLOOKUP(טבלה1[[#This Row],[שם העבודה]],טבלה2[],3,FALSE)="₪"), VLOOKUP(טבלה1[[#This Row],[שם העבודה]],טבלה2[#All],2,FALSE)*טבלה1[[#This Row],[שעות]]*24/שער, VLOOKUP(טבלה1[[#This Row],[שם העבודה]],טבלה2[#All],2,FALSE)*טבלה1[[#This Row],[שעות]]*24))),"")) ->  | L61: =IF(טבלה1[[#This Row],[תאריך]]="","",DATE(YEAR(טבלה1[[#This Row],[תאריך]]),MONTH(טבלה1[[#This Row],[תאריך]]),1)) ->  | AP61: =IF(OR(טבלה3[[#This Row],[תווים]]="",טבלה3[[#This Row],[שכר לתווים]]=""),"", IF(טבלה3[[#This Row],[תווים שהוקלדו]]/טבלה3[[#This Row],[תווים]]*טבלה3[[#This Row],[שכר לתווים]]=0,"", טבלה3[[#This Row],[תווים שהוקלדו]]/טבלה3[[#This Row],[תווים]]*טבלה3[[#This Row],[שכר לתווים]])) ->  | AQ61: =IF(OR(טבלה3[[#This Row],[שכר]]="",טבלה3[[#This Row],[יעד]]=""),"", IF(טבלה3[[#This Row],[שכר]]>=טבלה3[[#This Row],[יעד]],"הגעת ליעד!", טבלה3[[#This Row],[שכר]]/טבלה3[[#This Row],[יעד]])) ->  | AU61: =IF(טבלה3[[#This Row],[שכר]]="","", IF(SUM(טבלה3[[#This Row],[שכר]])-SUM(טבלה3[[#This Row],[חיובים נוספים]]+טבלה3[[#This Row],[זיכויים / שולם]])=0,"", SUM(טבלה3[[#This Row],[שכר]])-SUM(טבלה3[[#This Row],[חיובים נוספים]]+טבלה3[[#This Row],[זיכויים / שולם]]))) -> 
B62: =IF(AND(טבלה1[[#This Row],[תאריך]]="",טבלה1[[#This Row],[התחלה]]="",טבלה1[[#This Row],[שם העבודה]]=""),"",ROW()-10) ->  | C62: =IF(טבלה1[[#This Row],[תאריך]]="","",IF(TEXT(טבלה1[[#This Row],[תאריך]],"DDD")="שבת","מוצ""ש",TEXT(טבלה1[[#This Row],[תאריך]],"DDD"))) ->  | J62: =IF(IF(AND(טבלה1[[#This Row],[התחלה]]="",טבלה1[[#This Row],[סיום]]<>""),"",IF(AND(טבלה1[[#This Row],[התחלה]]<>"",טבלה1[[#This Row],[סיום]]=""), SUM(MOD(MOD(NOW(),1)-טבלה1[[#This Row],[התחלה]],1),טבלה1[[#This Row],[הוספת דקות]],-טבלה1[[#This Row],[הפחתת דקות]]), SUM(MOD(טבלה1[[#This Row],[סיום]]-טבלה1[[#This Row],[התחלה]],1),טבלה1[[#This Row],[הוספת דקות]],-טבלה1[[#This Row],[הפחתת דקות]])))<=0,"", IF(AND(טבלה1[[#This Row],[התחלה]]="",טבלה1[[#This Row],[סיום]]<>""),"",IF(AND(טבלה1[[#This Row],[התחלה]]<>"",טבלה1[[#This Row],[סיום]]=""), SUM(MOD(MOD(NOW(),1)-טבלה1[[#This Row],[התחלה]],1),טבלה1[[#This Row],[הוספת דקות]],-טבלה1[[#This Row],[הפחתת דקות]]), SUM(MOD(טבלה1[[#This Row],[סיום]]-טבלה1[[#This Row],[התחלה]],1),טבלה1[[#This Row],[הוספת דקות]],-טבלה1[[#This Row],[הפחתת דקות]])))) ->  | K62: =IF(טבלה1[[#This Row],[שעות]]="","",IFERROR( IF(IF(AND(מטבע="שקלים",VLOOKUP(טבלה1[[#This Row],[שם העבודה]],טבלה2[],3,FALSE)="$"), VLOOKUP(טבלה1[[#This Row],[שם העבודה]],טבלה2[#All],2,FALSE)*טבלה1[[#This Row],[שעות]]*24*שער, IF(AND(מטבע="דולרים",VLOOKUP(טבלה1[[#This Row],[שם העבודה]],טבלה2[],3,FALSE)="₪"), VLOOKUP(טבלה1[[#This Row],[שם העבודה]],טבלה2[#All],2,FALSE)*טבלה1[[#This Row],[שעות]]*24/שער, VLOOKUP(טבלה1[[#This Row],[שם העבודה]],טבלה2[#All],2,FALSE)*טבלה1[[#This Row],[שעות]]*24))=0,"", IF(AND(מטבע="שקלים",VLOOKUP(טבלה1[[#This Row],[שם העבודה]],טבלה2[],3,FALSE)="$"), VLOOKUP(טבלה1[[#This Row],[שם העבודה]],טבלה2[#All],2,FALSE)*טבלה1[[#This Row],[שעות]]*24*שער, IF(AND(מטבע="דולרים",VLOOKUP(טבלה1[[#This Row],[שם העבודה]],טבלה2[],3,FALSE)="₪"), VLOOKUP(טבלה1[[#This Row],[שם העבודה]],טבלה2[#All],2,FALSE)*טבלה1[[#This Row],[שעות]]*24/שער, VLOOKUP(טבלה1[[#This Row],[שם העבודה]],טבלה2[#All],2,FALSE)*טבלה1[[#This Row],[שעות]]*24))),"")) ->  | L62: =IF(טבלה1[[#This Row],[תאריך]]="","",DATE(YEAR(טבלה1[[#This Row],[תאריך]]),MONTH(טבלה1[[#This Row],[תאריך]]),1)) ->  | AP62: =IF(OR(טבלה3[[#This Row],[תווים]]="",טבלה3[[#This Row],[שכר לתווים]]=""),"", IF(טבלה3[[#This Row],[תווים שהוקלדו]]/טבלה3[[#This Row],[תווים]]*טבלה3[[#This Row],[שכר לתווים]]=0,"", טבלה3[[#This Row],[תווים שהוקלדו]]/טבלה3[[#This Row],[תווים]]*טבלה3[[#This Row],[שכר לתווים]])) ->  | AQ62: =IF(OR(טבלה3[[#This Row],[שכר]]="",טבלה3[[#This Row],[יעד]]=""),"", IF(טבלה3[[#This Row],[שכר]]>=טבלה3[[#This Row],[יעד]],"הגעת ליעד!", טבלה3[[#This Row],[שכר]]/טבלה3[[#This Row],[יעד]])) ->  | AU62: =IF(טבלה3[[#This Row],[שכר]]="","", IF(SUM(טבלה3[[#This Row],[שכר]])-SUM(טבלה3[[#This Row],[חיובים נוספים]]+טבלה3[[#This Row],[זיכויים / שולם]])=0,"", SUM(טבלה3[[#This Row],[שכר]])-SUM(טבלה3[[#This Row],[חיובים נוספים]]+טבלה3[[#This Row],[זיכויים / שולם]]))) -> 
B63: =IF(AND(טבלה1[[#This Row],[תאריך]]="",טבלה1[[#This Row],[התחלה]]="",טבלה1[[#This Row],[שם העבודה]]=""),"",ROW()-10) ->  | C63: =IF(טבלה1[[#This Row],[תאריך]]="","",IF(TEXT(טבלה1[[#This Row],[תאריך]],"DDD")="שבת","מוצ""ש",TEXT(טבלה1[[#This Row],[תאריך]],"DDD"))) ->  | J63: =IF(IF(AND(טבלה1[[#This Row],[התחלה]]="",טבלה1[[#This Row],[סיום]]<>""),"",IF(AND(טבלה1[[#This Row],[התחלה]]<>"",טבלה1[[#This Row],[סיום]]=""), SUM(MOD(MOD(NOW(),1)-טבלה1[[#This Row],[התחלה]],1),טבלה1[[#This Row],[הוספת דקות]],-טבלה1[[#This Row],[הפחתת דקות]]), SUM(MOD(טבלה1[[#This Row],[סיום]]-טבלה1[[#This Row],[התחלה]],1),טבלה1[[#This Row],[הוספת דקות]],-טבלה1[[#This Row],[הפחתת דקות]])))<=0,"", IF(AND(טבלה1[[#This Row],[התחלה]]="",טבלה1[[#This Row],[סיום]]<>""),"",IF(AND(טבלה1[[#This Row],[התחלה]]<>"",טבלה1[[#This Row],[סיום]]=""), SUM(MOD(MOD(NOW(),1)-טבלה1[[#This Row],[התחלה]],1),טבלה1[[#This Row],[הוספת דקות]],-טבלה1[[#This Row],[הפחתת דקות]]), SUM(MOD(טבלה1[[#This Row],[סיום]]-טבלה1[[#This Row],[התחלה]],1),טבלה1[[#This Row],[הוספת דקות]],-טבלה1[[#This Row],[הפחתת דקות]])))) ->  | K63: =IF(טבלה1[[#This Row],[שעות]]="","",IFERROR( IF(IF(AND(מטבע="שקלים",VLOOKUP(טבלה1[[#This Row],[שם העבודה]],טבלה2[],3,FALSE)="$"), VLOOKUP(טבלה1[[#This Row],[שם העבודה]],טבלה2[#All],2,FALSE)*טבלה1[[#This Row],[שעות]]*24*שער, IF(AND(מטבע="דולרים",VLOOKUP(טבלה1[[#This Row],[שם העבודה]],טבלה2[],3,FALSE)="₪"), VLOOKUP(טבלה1[[#This Row],[שם העבודה]],טבלה2[#All],2,FALSE)*טבלה1[[#This Row],[שעות]]*24/שער, VLOOKUP(טבלה1[[#This Row],[שם העבודה]],טבלה2[#All],2,FALSE)*טבלה1[[#This Row],[שעות]]*24))=0,"", IF(AND(מטבע="שקלים",VLOOKUP(טבלה1[[#This Row],[שם העבודה]],טבלה2[],3,FALSE)="$"), VLOOKUP(טבלה1[[#This Row],[שם העבודה]],טבלה2[#All],2,FALSE)*טבלה1[[#This Row],[שעות]]*24*שער, IF(AND(מטבע="דולרים",VLOOKUP(טבלה1[[#This Row],[שם העבודה]],טבלה2[],3,FALSE)="₪"), VLOOKUP(טבלה1[[#This Row],[שם העבודה]],טבלה2[#All],2,FALSE)*טבלה1[[#This Row],[שעות]]*24/שער, VLOOKUP(טבלה1[[#This Row],[שם העבודה]],טבלה2[#All],2,FALSE)*טבלה1[[#This Row],[שעות]]*24))),"")) ->  | L63: =IF(טבלה1[[#This Row],[תאריך]]="","",DATE(YEAR(טבלה1[[#This Row],[תאריך]]),MONTH(טבלה1[[#This Row],[תאריך]]),1)) ->  | AP63: =IF(OR(טבלה3[[#This Row],[תווים]]="",טבלה3[[#This Row],[שכר לתווים]]=""),"", IF(טבלה3[[#This Row],[תווים שהוקלדו]]/טבלה3[[#This Row],[תווים]]*טבלה3[[#This Row],[שכר לתווים]]=0,"", טבלה3[[#This Row],[תווים שהוקלדו]]/טבלה3[[#This Row],[תווים]]*טבלה3[[#This Row],[שכר לתווים]])) ->  | AQ63: =IF(OR(טבלה3[[#This Row],[שכר]]="",טבלה3[[#This Row],[יעד]]=""),"", IF(טבלה3[[#This Row],[שכר]]>=טבלה3[[#This Row],[יעד]],"הגעת ליעד!", טבלה3[[#This Row],[שכר]]/טבלה3[[#This Row],[יעד]])) ->  | AU63: =IF(טבלה3[[#This Row],[שכר]]="","", IF(SUM(טבלה3[[#This Row],[שכר]])-SUM(טבלה3[[#This Row],[חיובים נוספים]]+טבלה3[[#This Row],[זיכויים / שולם]])=0,"", SUM(טבלה3[[#This Row],[שכר]])-SUM(טבלה3[[#This Row],[חיובים נוספים]]+טבלה3[[#This Row],[זיכויים / שולם]]))) -> 
B64: =IF(AND(טבלה1[[#This Row],[תאריך]]="",טבלה1[[#This Row],[התחלה]]="",טבלה1[[#This Row],[שם העבודה]]=""),"",ROW()-10) ->  | C64: =IF(טבלה1[[#This Row],[תאריך]]="","",IF(TEXT(טבלה1[[#This Row],[תאריך]],"DDD")="שבת","מוצ""ש",TEXT(טבלה1[[#This Row],[תאריך]],"DDD"))) ->  | J64: =IF(IF(AND(טבלה1[[#This Row],[התחלה]]="",טבלה1[[#This Row],[סיום]]<>""),"",IF(AND(טבלה1[[#This Row],[התחלה]]<>"",טבלה1[[#This Row],[סיום]]=""), SUM(MOD(MOD(NOW(),1)-טבלה1[[#This Row],[התחלה]],1),טבלה1[[#This Row],[הוספת דקות]],-טבלה1[[#This Row],[הפחתת דקות]]), SUM(MOD(טבלה1[[#This Row],[סיום]]-טבלה1[[#This Row],[התחלה]],1),טבלה1[[#This Row],[הוספת דקות]],-טבלה1[[#This Row],[הפחתת דקות]])))<=0,"", IF(AND(טבלה1[[#This Row],[התחלה]]="",טבלה1[[#This Row],[סיום]]<>""),"",IF(AND(טבלה1[[#This Row],[התחלה]]<>"",טבלה1[[#This Row],[סיום]]=""), SUM(MOD(MOD(NOW(),1)-טבלה1[[#This Row],[התחלה]],1),טבלה1[[#This Row],[הוספת דקות]],-טבלה1[[#This Row],[הפחתת דקות]]), SUM(MOD(טבלה1[[#This Row],[סיום]]-טבלה1[[#This Row],[התחלה]],1),טבלה1[[#This Row],[הוספת דקות]],-טבלה1[[#This Row],[הפחתת דקות]])))) ->  | K64: =IF(טבלה1[[#This Row],[שעות]]="","",IFERROR( IF(IF(AND(מטבע="שקלים",VLOOKUP(טבלה1[[#This Row],[שם העבודה]],טבלה2[],3,FALSE)="$"), VLOOKUP(טבלה1[[#This Row],[שם העבודה]],טבלה2[#All],2,FALSE)*טבלה1[[#This Row],[שעות]]*24*שער, IF(AND(מטבע="דולרים",VLOOKUP(טבלה1[[#This Row],[שם העבודה]],טבלה2[],3,FALSE)="₪"), VLOOKUP(טבלה1[[#This Row],[שם העבודה]],טבלה2[#All],2,FALSE)*טבלה1[[#This Row],[שעות]]*24/שער, VLOOKUP(טבלה1[[#This Row],[שם העבודה]],טבלה2[#All],2,FALSE)*טבלה1[[#This Row],[שעות]]*24))=0,"", IF(AND(מטבע="שקלים",VLOOKUP(טבלה1[[#This Row],[שם העבודה]],טבלה2[],3,FALSE)="$"), VLOOKUP(טבלה1[[#This Row],[שם העבודה]],טבלה2[#All],2,FALSE)*טבלה1[[#This Row],[שעות]]*24*שער, IF(AND(מטבע="דולרים",VLOOKUP(טבלה1[[#This Row],[שם העבודה]],טבלה2[],3,FALSE)="₪"), VLOOKUP(טבלה1[[#This Row],[שם העבודה]],טבלה2[#All],2,FALSE)*טבלה1[[#This Row],[שעות]]*24/שער, VLOOKUP(טבלה1[[#This Row],[שם העבודה]],טבלה2[#All],2,FALSE)*טבלה1[[#This Row],[שעות]]*24))),"")) ->  | L64: =IF(טבלה1[[#This Row],[תאריך]]="","",DATE(YEAR(טבלה1[[#This Row],[תאריך]]),MONTH(טבלה1[[#This Row],[תאריך]]),1)) ->  | AP64: =IF(OR(טבלה3[[#This Row],[תווים]]="",טבלה3[[#This Row],[שכר לתווים]]=""),"", IF(טבלה3[[#This Row],[תווים שהוקלדו]]/טבלה3[[#This Row],[תווים]]*טבלה3[[#This Row],[שכר לתווים]]=0,"", טבלה3[[#This Row],[תווים שהוקלדו]]/טבלה3[[#This Row],[תווים]]*טבלה3[[#This Row],[שכר לתווים]])) ->  | AQ64: =IF(OR(טבלה3[[#This Row],[שכר]]="",טבלה3[[#This Row],[יעד]]=""),"", IF(טבלה3[[#This Row],[שכר]]>=טבלה3[[#This Row],[יעד]],"הגעת ליעד!", טבלה3[[#This Row],[שכר]]/טבלה3[[#This Row],[יעד]])) ->  | AU64: =IF(טבלה3[[#This Row],[שכר]]="","", IF(SUM(טבלה3[[#This Row],[שכר]])-SUM(טבלה3[[#This Row],[חיובים נוספים]]+טבלה3[[#This Row],[זיכויים / שולם]])=0,"", SUM(טבלה3[[#This Row],[שכר]])-SUM(טבלה3[[#This Row],[חיובים נוספים]]+טבלה3[[#This Row],[זיכויים / שולם]]))) -> 
B65: =IF(AND(טבלה1[[#This Row],[תאריך]]="",טבלה1[[#This Row],[התחלה]]="",טבלה1[[#This Row],[שם העבודה]]=""),"",ROW()-10) ->  | C65: =IF(טבלה1[[#This Row],[תאריך]]="","",IF(TEXT(טבלה1[[#This Row],[תאריך]],"DDD")="שבת","מוצ""ש",TEXT(טבלה1[[#This Row],[תאריך]],"DDD"))) ->  | J65: =IF(IF(AND(טבלה1[[#This Row],[התחלה]]="",טבלה1[[#This Row],[סיום]]<>""),"",IF(AND(טבלה1[[#This Row],[התחלה]]<>"",טבלה1[[#This Row],[סיום]]=""), SUM(MOD(MOD(NOW(),1)-טבלה1[[#This Row],[התחלה]],1),טבלה1[[#This Row],[הוספת דקות]],-טבלה1[[#This Row],[הפחתת דקות]]), SUM(MOD(טבלה1[[#This Row],[סיום]]-טבלה1[[#This Row],[התחלה]],1),טבלה1[[#This Row],[הוספת דקות]],-טבלה1[[#This Row],[הפחתת דקות]])))<=0,"", IF(AND(טבלה1[[#This Row],[התחלה]]="",טבלה1[[#This Row],[סיום]]<>""),"",IF(AND(טבלה1[[#This Row],[התחלה]]<>"",טבלה1[[#This Row],[סיום]]=""), SUM(MOD(MOD(NOW(),1)-טבלה1[[#This Row],[התחלה]],1),טבלה1[[#This Row],[הוספת דקות]],-טבלה1[[#This Row],[הפחתת דקות]]), SUM(MOD(טבלה1[[#This Row],[סיום]]-טבלה1[[#This Row],[התחלה]],1),טבלה1[[#This Row],[הוספת דקות]],-טבלה1[[#This Row],[הפחתת דקות]])))) ->  | K65: =IF(טבלה1[[#This Row],[שעות]]="","",IFERROR( IF(IF(AND(מטבע="שקלים",VLOOKUP(טבלה1[[#This Row],[שם העבודה]],טבלה2[],3,FALSE)="$"), VLOOKUP(טבלה1[[#This Row],[שם העבודה]],טבלה2[#All],2,FALSE)*טבלה1[[#This Row],[שעות]]*24*שער, IF(AND(מטבע="דולרים",VLOOKUP(טבלה1[[#This Row],[שם העבודה]],טבלה2[],3,FALSE)="₪"), VLOOKUP(טבלה1[[#This Row],[שם העבודה]],טבלה2[#All],2,FALSE)*טבלה1[[#This Row],[שעות]]*24/שער, VLOOKUP(טבלה1[[#This Row],[שם העבודה]],טבלה2[#All],2,FALSE)*טבלה1[[#This Row],[שעות]]*24))=0,"", IF(AND(מטבע="שקלים",VLOOKUP(טבלה1[[#This Row],[שם העבודה]],טבלה2[],3,FALSE)="$"), VLOOKUP(טבלה1[[#This Row],[שם העבודה]],טבלה2[#All],2,FALSE)*טבלה1[[#This Row],[שעות]]*24*שער, IF(AND(מטבע="דולרים",VLOOKUP(טבלה1[[#This Row],[שם העבודה]],טבלה2[],3,FALSE)="₪"), VLOOKUP(טבלה1[[#This Row],[שם העבודה]],טבלה2[#All],2,FALSE)*טבלה1[[#This Row],[שעות]]*24/שער, VLOOKUP(טבלה1[[#This Row],[שם העבודה]],טבלה2[#All],2,FALSE)*טבלה1[[#This Row],[שעות]]*24))),"")) ->  | L65: =IF(טבלה1[[#This Row],[תאריך]]="","",DATE(YEAR(טבלה1[[#This Row],[תאריך]]),MONTH(טבלה1[[#This Row],[תאריך]]),1)) ->  | AP65: =IF(OR(טבלה3[[#This Row],[תווים]]="",טבלה3[[#This Row],[שכר לתווים]]=""),"", IF(טבלה3[[#This Row],[תווים שהוקלדו]]/טבלה3[[#This Row],[תווים]]*טבלה3[[#This Row],[שכר לתווים]]=0,"", טבלה3[[#This Row],[תווים שהוקלדו]]/טבלה3[[#This Row],[תווים]]*טבלה3[[#This Row],[שכר לתווים]])) ->  | AQ65: =IF(OR(טבלה3[[#This Row],[שכר]]="",טבלה3[[#This Row],[יעד]]=""),"", IF(טבלה3[[#This Row],[שכר]]>=טבלה3[[#This Row],[יעד]],"הגעת ליעד!", טבלה3[[#This Row],[שכר]]/טבלה3[[#This Row],[יעד]])) ->  | AU65: =IF(טבלה3[[#This Row],[שכר]]="","", IF(SUM(טבלה3[[#This Row],[שכר]])-SUM(טבלה3[[#This Row],[חיובים נוספים]]+טבלה3[[#This Row],[זיכויים / שולם]])=0,"", SUM(טבלה3[[#This Row],[שכר]])-SUM(טבלה3[[#This Row],[חיובים נוספים]]+טבלה3[[#This Row],[זיכויים / שולם]]))) -> 
B66: =IF(AND(טבלה1[[#This Row],[תאריך]]="",טבלה1[[#This Row],[התחלה]]="",טבלה1[[#This Row],[שם העבודה]]=""),"",ROW()-10) ->  | C66: =IF(טבלה1[[#This Row],[תאריך]]="","",IF(TEXT(טבלה1[[#This Row],[תאריך]],"DDD")="שבת","מוצ""ש",TEXT(טבלה1[[#This Row],[תאריך]],"DDD"))) ->  | J66: =IF(IF(AND(טבלה1[[#This Row],[התחלה]]="",טבלה1[[#This Row],[סיום]]<>""),"",IF(AND(טבלה1[[#This Row],[התחלה]]<>"",טבלה1[[#This Row],[סיום]]=""), SUM(MOD(MOD(NOW(),1)-טבלה1[[#This Row],[התחלה]],1),טבלה1[[#This Row],[הוספת דקות]],-טבלה1[[#This Row],[הפחתת דקות]]), SUM(MOD(טבלה1[[#This Row],[סיום]]-טבלה1[[#This Row],[התחלה]],1),טבלה1[[#This Row],[הוספת דקות]],-טבלה1[[#This Row],[הפחתת דקות]])))<=0,"", IF(AND(טבלה1[[#This Row],[התחלה]]="",טבלה1[[#This Row],[סיום]]<>""),"",IF(AND(טבלה1[[#This Row],[התחלה]]<>"",טבלה1[[#This Row],[סיום]]=""), SUM(MOD(MOD(NOW(),1)-טבלה1[[#This Row],[התחלה]],1),טבלה1[[#This Row],[הוספת דקות]],-טבלה1[[#This Row],[הפחתת דקות]]), SUM(MOD(טבלה1[[#This Row],[סיום]]-טבלה1[[#This Row],[התחלה]],1),טבלה1[[#This Row],[הוספת דקות]],-טבלה1[[#This Row],[הפחתת דקות]])))) ->  | K66: =IF(טבלה1[[#This Row],[שעות]]="","",IFERROR( IF(IF(AND(מטבע="שקלים",VLOOKUP(טבלה1[[#This Row],[שם העבודה]],טבלה2[],3,FALSE)="$"), VLOOKUP(טבלה1[[#This Row],[שם העבודה]],טבלה2[#All],2,FALSE)*טבלה1[[#This Row],[שעות]]*24*שער, IF(AND(מטבע="דולרים",VLOOKUP(טבלה1[[#This Row],[שם העבודה]],טבלה2[],3,FALSE)="₪"), VLOOKUP(טבלה1[[#This Row],[שם העבודה]],טבלה2[#All],2,FALSE)*טבלה1[[#This Row],[שעות]]*24/שער, VLOOKUP(טבלה1[[#This Row],[שם העבודה]],טבלה2[#All],2,FALSE)*טבלה1[[#This Row],[שעות]]*24))=0,"", IF(AND(מטבע="שקלים",VLOOKUP(טבלה1[[#This Row],[שם העבודה]],טבלה2[],3,FALSE)="$"), VLOOKUP(טבלה1[[#This Row],[שם העבודה]],טבלה2[#All],2,FALSE)*טבלה1[[#This Row],[שעות]]*24*שער, IF(AND(מטבע="דולרים",VLOOKUP(טבלה1[[#This Row],[שם העבודה]],טבלה2[],3,FALSE)="₪"), VLOOKUP(טבלה1[[#This Row],[שם העבודה]],טבלה2[#All],2,FALSE)*טבלה1[[#This Row],[שעות]]*24/שער, VLOOKUP(טבלה1[[#This Row],[שם העבודה]],טבלה2[#All],2,FALSE)*טבלה1[[#This Row],[שעות]]*24))),"")) ->  | L66: =IF(טבלה1[[#This Row],[תאריך]]="","",DATE(YEAR(טבלה1[[#This Row],[תאריך]]),MONTH(טבלה1[[#This Row],[תאריך]]),1)) ->  | AP66: =IF(OR(טבלה3[[#This Row],[תווים]]="",טבלה3[[#This Row],[שכר לתווים]]=""),"", IF(טבלה3[[#This Row],[תווים שהוקלדו]]/טבלה3[[#This Row],[תווים]]*טבלה3[[#This Row],[שכר לתווים]]=0,"", טבלה3[[#This Row],[תווים שהוקלדו]]/טבלה3[[#This Row],[תווים]]*טבלה3[[#This Row],[שכר לתווים]])) ->  | AQ66: =IF(OR(טבלה3[[#This Row],[שכר]]="",טבלה3[[#This Row],[יעד]]=""),"", IF(טבלה3[[#This Row],[שכר]]>=טבלה3[[#This Row],[יעד]],"הגעת ליעד!", טבלה3[[#This Row],[שכר]]/טבלה3[[#This Row],[יעד]])) ->  | AU66: =IF(טבלה3[[#This Row],[שכר]]="","", IF(SUM(טבלה3[[#This Row],[שכר]])-SUM(טבלה3[[#This Row],[חיובים נוספים]]+טבלה3[[#This Row],[זיכויים / שולם]])=0,"", SUM(טבלה3[[#This Row],[שכר]])-SUM(טבלה3[[#This Row],[חיובים נוספים]]+טבלה3[[#This Row],[זיכויים / שולם]]))) -> 
B67: =IF(AND(טבלה1[[#This Row],[תאריך]]="",טבלה1[[#This Row],[התחלה]]="",טבלה1[[#This Row],[שם העבודה]]=""),"",ROW()-10) ->  | C67: =IF(טבלה1[[#This Row],[תאריך]]="","",IF(TEXT(טבלה1[[#This Row],[תאריך]],"DDD")="שבת","מוצ""ש",TEXT(טבלה1[[#This Row],[תאריך]],"DDD"))) ->  | J67: =IF(IF(AND(טבלה1[[#This Row],[התחלה]]="",טבלה1[[#This Row],[סיום]]<>""),"",IF(AND(טבלה1[[#This Row],[התחלה]]<>"",טבלה1[[#This Row],[סיום]]=""), SUM(MOD(MOD(NOW(),1)-טבלה1[[#This Row],[התחלה]],1),טבלה1[[#This Row],[הוספת דקות]],-טבלה1[[#This Row],[הפחתת דקות]]), SUM(MOD(טבלה1[[#This Row],[סיום]]-טבלה1[[#This Row],[התחלה]],1),טבלה1[[#This Row],[הוספת דקות]],-טבלה1[[#This Row],[הפחתת דקות]])))<=0,"", IF(AND(טבלה1[[#This Row],[התחלה]]="",טבלה1[[#This Row],[סיום]]<>""),"",IF(AND(טבלה1[[#This Row],[התחלה]]<>"",טבלה1[[#This Row],[סיום]]=""), SUM(MOD(MOD(NOW(),1)-טבלה1[[#This Row],[התחלה]],1),טבלה1[[#This Row],[הוספת דקות]],-טבלה1[[#This Row],[הפחתת דקות]]), SUM(MOD(טבלה1[[#This Row],[סיום]]-טבלה1[[#This Row],[התחלה]],1),טבלה1[[#This Row],[הוספת דקות]],-טבלה1[[#This Row],[הפחתת דקות]])))) ->  | K67: =IF(טבלה1[[#This Row],[שעות]]="","",IFERROR( IF(IF(AND(מטבע="שקלים",VLOOKUP(טבלה1[[#This Row],[שם העבודה]],טבלה2[],3,FALSE)="$"), VLOOKUP(טבלה1[[#This Row],[שם העבודה]],טבלה2[#All],2,FALSE)*טבלה1[[#This Row],[שעות]]*24*שער, IF(AND(מטבע="דולרים",VLOOKUP(טבלה1[[#This Row],[שם העבודה]],טבלה2[],3,FALSE)="₪"), VLOOKUP(טבלה1[[#This Row],[שם העבודה]],טבלה2[#All],2,FALSE)*טבלה1[[#This Row],[שעות]]*24/שער, VLOOKUP(טבלה1[[#This Row],[שם העבודה]],טבלה2[#All],2,FALSE)*טבלה1[[#This Row],[שעות]]*24))=0,"", IF(AND(מטבע="שקלים",VLOOKUP(טבלה1[[#This Row],[שם העבודה]],טבלה2[],3,FALSE)="$"), VLOOKUP(טבלה1[[#This Row],[שם העבודה]],טבלה2[#All],2,FALSE)*טבלה1[[#This Row],[שעות]]*24*שער, IF(AND(מטבע="דולרים",VLOOKUP(טבלה1[[#This Row],[שם העבודה]],טבלה2[],3,FALSE)="₪"), VLOOKUP(טבלה1[[#This Row],[שם העבודה]],טבלה2[#All],2,FALSE)*טבלה1[[#This Row],[שעות]]*24/שער, VLOOKUP(טבלה1[[#This Row],[שם העבודה]],טבלה2[#All],2,FALSE)*טבלה1[[#This Row],[שעות]]*24))),"")) ->  | L67: =IF(טבלה1[[#This Row],[תאריך]]="","",DATE(YEAR(טבלה1[[#This Row],[תאריך]]),MONTH(טבלה1[[#This Row],[תאריך]]),1)) ->  | AP67: =IF(OR(טבלה3[[#This Row],[תווים]]="",טבלה3[[#This Row],[שכר לתווים]]=""),"", IF(טבלה3[[#This Row],[תווים שהוקלדו]]/טבלה3[[#This Row],[תווים]]*טבלה3[[#This Row],[שכר לתווים]]=0,"", טבלה3[[#This Row],[תווים שהוקלדו]]/טבלה3[[#This Row],[תווים]]*טבלה3[[#This Row],[שכר לתווים]])) ->  | AQ67: =IF(OR(טבלה3[[#This Row],[שכר]]="",טבלה3[[#This Row],[יעד]]=""),"", IF(טבלה3[[#This Row],[שכר]]>=טבלה3[[#This Row],[יעד]],"הגעת ליעד!", טבלה3[[#This Row],[שכר]]/טבלה3[[#This Row],[יעד]])) ->  | AU67: =IF(טבלה3[[#This Row],[שכר]]="","", IF(SUM(טבלה3[[#This Row],[שכר]])-SUM(טבלה3[[#This Row],[חיובים נוספים]]+טבלה3[[#This Row],[זיכויים / שולם]])=0,"", SUM(טבלה3[[#This Row],[שכר]])-SUM(טבלה3[[#This Row],[חיובים נוספים]]+טבלה3[[#This Row],[זיכויים / שולם]]))) -> 
B68: =IF(AND(טבלה1[[#This Row],[תאריך]]="",טבלה1[[#This Row],[התחלה]]="",טבלה1[[#This Row],[שם העבודה]]=""),"",ROW()-10) ->  | C68: =IF(טבלה1[[#This Row],[תאריך]]="","",IF(TEXT(טבלה1[[#This Row],[תאריך]],"DDD")="שבת","מוצ""ש",TEXT(טבלה1[[#This Row],[תאריך]],"DDD"))) ->  | J68: =IF(IF(AND(טבלה1[[#This Row],[התחלה]]="",טבלה1[[#This Row],[סיום]]<>""),"",IF(AND(טבלה1[[#This Row],[התחלה]]<>"",טבלה1[[#This Row],[סיום]]=""), SUM(MOD(MOD(NOW(),1)-טבלה1[[#This Row],[התחלה]],1),טבלה1[[#This Row],[הוספת דקות]],-טבלה1[[#This Row],[הפחתת דקות]]), SUM(MOD(טבלה1[[#This Row],[סיום]]-טבלה1[[#This Row],[התחלה]],1),טבלה1[[#This Row],[הוספת דקות]],-טבלה1[[#This Row],[הפחתת דקות]])))<=0,"", IF(AND(טבלה1[[#This Row],[התחלה]]="",טבלה1[[#This Row],[סיום]]<>""),"",IF(AND(טבלה1[[#This Row],[התחלה]]<>"",טבלה1[[#This Row],[סיום]]=""), SUM(MOD(MOD(NOW(),1)-טבלה1[[#This Row],[התחלה]],1),טבלה1[[#This Row],[הוספת דקות]],-טבלה1[[#This Row],[הפחתת דקות]]), SUM(MOD(טבלה1[[#This Row],[סיום]]-טבלה1[[#This Row],[התחלה]],1),טבלה1[[#This Row],[הוספת דקות]],-טבלה1[[#This Row],[הפחתת דקות]])))) ->  | K68: =IF(טבלה1[[#This Row],[שעות]]="","",IFERROR( IF(IF(AND(מטבע="שקלים",VLOOKUP(טבלה1[[#This Row],[שם העבודה]],טבלה2[],3,FALSE)="$"), VLOOKUP(טבלה1[[#This Row],[שם העבודה]],טבלה2[#All],2,FALSE)*טבלה1[[#This Row],[שעות]]*24*שער, IF(AND(מטבע="דולרים",VLOOKUP(טבלה1[[#This Row],[שם העבודה]],טבלה2[],3,FALSE)="₪"), VLOOKUP(טבלה1[[#This Row],[שם העבודה]],טבלה2[#All],2,FALSE)*טבלה1[[#This Row],[שעות]]*24/שער, VLOOKUP(טבלה1[[#This Row],[שם העבודה]],טבלה2[#All],2,FALSE)*טבלה1[[#This Row],[שעות]]*24))=0,"", IF(AND(מטבע="שקלים",VLOOKUP(טבלה1[[#This Row],[שם העבודה]],טבלה2[],3,FALSE)="$"), VLOOKUP(טבלה1[[#This Row],[שם העבודה]],טבלה2[#All],2,FALSE)*טבלה1[[#This Row],[שעות]]*24*שער, IF(AND(מטבע="דולרים",VLOOKUP(טבלה1[[#This Row],[שם העבודה]],טבלה2[],3,FALSE)="₪"), VLOOKUP(טבלה1[[#This Row],[שם העבודה]],טבלה2[#All],2,FALSE)*טבלה1[[#This Row],[שעות]]*24/שער, VLOOKUP(טבלה1[[#This Row],[שם העבודה]],טבלה2[#All],2,FALSE)*טבלה1[[#This Row],[שעות]]*24))),"")) ->  | L68: =IF(טבלה1[[#This Row],[תאריך]]="","",DATE(YEAR(טבלה1[[#This Row],[תאריך]]),MONTH(טבלה1[[#This Row],[תאריך]]),1)) ->  | AP68: =IF(OR(טבלה3[[#This Row],[תווים]]="",טבלה3[[#This Row],[שכר לתווים]]=""),"", IF(טבלה3[[#This Row],[תווים שהוקלדו]]/טבלה3[[#This Row],[תווים]]*טבלה3[[#This Row],[שכר לתווים]]=0,"", טבלה3[[#This Row],[תווים שהוקלדו]]/טבלה3[[#This Row],[תווים]]*טבלה3[[#This Row],[שכר לתווים]])) ->  | AQ68: =IF(OR(טבלה3[[#This Row],[שכר]]="",טבלה3[[#This Row],[יעד]]=""),"", IF(טבלה3[[#This Row],[שכר]]>=טבלה3[[#This Row],[יעד]],"הגעת ליעד!", טבלה3[[#This Row],[שכר]]/טבלה3[[#This Row],[יעד]])) ->  | AU68: =IF(טבלה3[[#This Row],[שכר]]="","", IF(SUM(טבלה3[[#This Row],[שכר]])-SUM(טבלה3[[#This Row],[חיובים נוספים]]+טבלה3[[#This Row],[זיכויים / שולם]])=0,"", SUM(טבלה3[[#This Row],[שכר]])-SUM(טבלה3[[#This Row],[חיובים נוספים]]+טבלה3[[#This Row],[זיכויים / שולם]]))) -> 
B69: =IF(AND(טבלה1[[#This Row],[תאריך]]="",טבלה1[[#This Row],[התחלה]]="",טבלה1[[#This Row],[שם העבודה]]=""),"",ROW()-10) ->  | C69: =IF(טבלה1[[#This Row],[תאריך]]="","",IF(TEXT(טבלה1[[#This Row],[תאריך]],"DDD")="שבת","מוצ""ש",TEXT(טבלה1[[#This Row],[תאריך]],"DDD"))) ->  | J69: =IF(IF(AND(טבלה1[[#This Row],[התחלה]]="",טבלה1[[#This Row],[סיום]]<>""),"",IF(AND(טבלה1[[#This Row],[התחלה]]<>"",טבלה1[[#This Row],[סיום]]=""), SUM(MOD(MOD(NOW(),1)-טבלה1[[#This Row],[התחלה]],1),טבלה1[[#This Row],[הוספת דקות]],-טבלה1[[#This Row],[הפחתת דקות]]), SUM(MOD(טבלה1[[#This Row],[סיום]]-טבלה1[[#This Row],[התחלה]],1),טבלה1[[#This Row],[הוספת דקות]],-טבלה1[[#This Row],[הפחתת דקות]])))<=0,"", IF(AND(טבלה1[[#This Row],[התחלה]]="",טבלה1[[#This Row],[סיום]]<>""),"",IF(AND(טבלה1[[#This Row],[התחלה]]<>"",טבלה1[[#This Row],[סיום]]=""), SUM(MOD(MOD(NOW(),1)-טבלה1[[#This Row],[התחלה]],1),טבלה1[[#This Row],[הוספת דקות]],-טבלה1[[#This Row],[הפחתת דקות]]), SUM(MOD(טבלה1[[#This Row],[סיום]]-טבלה1[[#This Row],[התחלה]],1),טבלה1[[#This Row],[הוספת דקות]],-טבלה1[[#This Row],[הפחתת דקות]])))) ->  | K69: =IF(טבלה1[[#This Row],[שעות]]="","",IFERROR( IF(IF(AND(מטבע="שקלים",VLOOKUP(טבלה1[[#This Row],[שם העבודה]],טבלה2[],3,FALSE)="$"), VLOOKUP(טבלה1[[#This Row],[שם העבודה]],טבלה2[#All],2,FALSE)*טבלה1[[#This Row],[שעות]]*24*שער, IF(AND(מטבע="דולרים",VLOOKUP(טבלה1[[#This Row],[שם העבודה]],טבלה2[],3,FALSE)="₪"), VLOOKUP(טבלה1[[#This Row],[שם העבודה]],טבלה2[#All],2,FALSE)*טבלה1[[#This Row],[שעות]]*24/שער, VLOOKUP(טבלה1[[#This Row],[שם העבודה]],טבלה2[#All],2,FALSE)*טבלה1[[#This Row],[שעות]]*24))=0,"", IF(AND(מטבע="שקלים",VLOOKUP(טבלה1[[#This Row],[שם העבודה]],טבלה2[],3,FALSE)="$"), VLOOKUP(טבלה1[[#This Row],[שם העבודה]],טבלה2[#All],2,FALSE)*טבלה1[[#This Row],[שעות]]*24*שער, IF(AND(מטבע="דולרים",VLOOKUP(טבלה1[[#This Row],[שם העבודה]],טבלה2[],3,FALSE)="₪"), VLOOKUP(טבלה1[[#This Row],[שם העבודה]],טבלה2[#All],2,FALSE)*טבלה1[[#This Row],[שעות]]*24/שער, VLOOKUP(טבלה1[[#This Row],[שם העבודה]],טבלה2[#All],2,FALSE)*טבלה1[[#This Row],[שעות]]*24))),"")) ->  | L69: =IF(טבלה1[[#This Row],[תאריך]]="","",DATE(YEAR(טבלה1[[#This Row],[תאריך]]),MONTH(טבלה1[[#This Row],[תאריך]]),1)) ->  | AP69: =IF(OR(טבלה3[[#This Row],[תווים]]="",טבלה3[[#This Row],[שכר לתווים]]=""),"", IF(טבלה3[[#This Row],[תווים שהוקלדו]]/טבלה3[[#This Row],[תווים]]*טבלה3[[#This Row],[שכר לתווים]]=0,"", טבלה3[[#This Row],[תווים שהוקלדו]]/טבלה3[[#This Row],[תווים]]*טבלה3[[#This Row],[שכר לתווים]])) ->  | AQ69: =IF(OR(טבלה3[[#This Row],[שכר]]="",טבלה3[[#This Row],[יעד]]=""),"", IF(טבלה3[[#This Row],[שכר]]>=טבלה3[[#This Row],[יעד]],"הגעת ליעד!", טבלה3[[#This Row],[שכר]]/טבלה3[[#This Row],[יעד]])) ->  | AU69: =IF(טבלה3[[#This Row],[שכר]]="","", IF(SUM(טבלה3[[#This Row],[שכר]])-SUM(טבלה3[[#This Row],[חיובים נוספים]]+טבלה3[[#This Row],[זיכויים / שולם]])=0,"", SUM(טבלה3[[#This Row],[שכר]])-SUM(טבלה3[[#This Row],[חיובים נוספים]]+טבלה3[[#This Row],[זיכויים / שולם]]))) -> 
B70: =IF(AND(טבלה1[[#This Row],[תאריך]]="",טבלה1[[#This Row],[התחלה]]="",טבלה1[[#This Row],[שם העבודה]]=""),"",ROW()-10) ->  | C70: =IF(טבלה1[[#This Row],[תאריך]]="","",IF(TEXT(טבלה1[[#This Row],[תאריך]],"DDD")="שבת","מוצ""ש",TEXT(טבלה1[[#This Row],[תאריך]],"DDD"))) ->  | J70: =IF(IF(AND(טבלה1[[#This Row],[התחלה]]="",טבלה1[[#This Row],[סיום]]<>""),"",IF(AND(טבלה1[[#This Row],[התחלה]]<>"",טבלה1[[#This Row],[סיום]]=""), SUM(MOD(MOD(NOW(),1)-טבלה1[[#This Row],[התחלה]],1),טבלה1[[#This Row],[הוספת דקות]],-טבלה1[[#This Row],[הפחתת דקות]]), SUM(MOD(טבלה1[[#This Row],[סיום]]-טבלה1[[#This Row],[התחלה]],1),טבלה1[[#This Row],[הוספת דקות]],-טבלה1[[#This Row],[הפחתת דקות]])))<=0,"", IF(AND(טבלה1[[#This Row],[התחלה]]="",טבלה1[[#This Row],[סיום]]<>""),"",IF(AND(טבלה1[[#This Row],[התחלה]]<>"",טבלה1[[#This Row],[סיום]]=""), SUM(MOD(MOD(NOW(),1)-טבלה1[[#This Row],[התחלה]],1),טבלה1[[#This Row],[הוספת דקות]],-טבלה1[[#This Row],[הפחתת דקות]]), SUM(MOD(טבלה1[[#This Row],[סיום]]-טבלה1[[#This Row],[התחלה]],1),טבלה1[[#This Row],[הוספת דקות]],-טבלה1[[#This Row],[הפחתת דקות]])))) ->  | K70: =IF(טבלה1[[#This Row],[שעות]]="","",IFERROR( IF(IF(AND(מטבע="שקלים",VLOOKUP(טבלה1[[#This Row],[שם העבודה]],טבלה2[],3,FALSE)="$"), VLOOKUP(טבלה1[[#This Row],[שם העבודה]],טבלה2[#All],2,FALSE)*טבלה1[[#This Row],[שעות]]*24*שער, IF(AND(מטבע="דולרים",VLOOKUP(טבלה1[[#This Row],[שם העבודה]],טבלה2[],3,FALSE)="₪"), VLOOKUP(טבלה1[[#This Row],[שם העבודה]],טבלה2[#All],2,FALSE)*טבלה1[[#This Row],[שעות]]*24/שער, VLOOKUP(טבלה1[[#This Row],[שם העבודה]],טבלה2[#All],2,FALSE)*טבלה1[[#This Row],[שעות]]*24))=0,"", IF(AND(מטבע="שקלים",VLOOKUP(טבלה1[[#This Row],[שם העבודה]],טבלה2[],3,FALSE)="$"), VLOOKUP(טבלה1[[#This Row],[שם העבודה]],טבלה2[#All],2,FALSE)*טבלה1[[#This Row],[שעות]]*24*שער, IF(AND(מטבע="דולרים",VLOOKUP(טבלה1[[#This Row],[שם העבודה]],טבלה2[],3,FALSE)="₪"), VLOOKUP(טבלה1[[#This Row],[שם העבודה]],טבלה2[#All],2,FALSE)*טבלה1[[#This Row],[שעות]]*24/שער, VLOOKUP(טבלה1[[#This Row],[שם העבודה]],טבלה2[#All],2,FALSE)*טבלה1[[#This Row],[שעות]]*24))),"")) ->  | L70: =IF(טבלה1[[#This Row],[תאריך]]="","",DATE(YEAR(טבלה1[[#This Row],[תאריך]]),MONTH(טבלה1[[#This Row],[תאריך]]),1)) -> 
B71: =IF(AND(טבלה1[[#This Row],[תאריך]]="",טבלה1[[#This Row],[התחלה]]="",טבלה1[[#This Row],[שם העבודה]]=""),"",ROW()-10) ->  | C71: =IF(טבלה1[[#This Row],[תאריך]]="","",IF(TEXT(טבלה1[[#This Row],[תאריך]],"DDD")="שבת","מוצ""ש",TEXT(טבלה1[[#This Row],[תאריך]],"DDD"))) ->  | J71: =IF(IF(AND(טבלה1[[#This Row],[התחלה]]="",טבלה1[[#This Row],[סיום]]<>""),"",IF(AND(טבלה1[[#This Row],[התחלה]]<>"",טבלה1[[#This Row],[סיום]]=""), SUM(MOD(MOD(NOW(),1)-טבלה1[[#This Row],[התחלה]],1),טבלה1[[#This Row],[הוספת דקות]],-טבלה1[[#This Row],[הפחתת דקות]]), SUM(MOD(טבלה1[[#This Row],[סיום]]-טבלה1[[#This Row],[התחלה]],1),טבלה1[[#This Row],[הוספת דקות]],-טבלה1[[#This Row],[הפחתת דקות]])))<=0,"", IF(AND(טבלה1[[#This Row],[התחלה]]="",טבלה1[[#This Row],[סיום]]<>""),"",IF(AND(טבלה1[[#This Row],[התחלה]]<>"",טבלה1[[#This Row],[סיום]]=""), SUM(MOD(MOD(NOW(),1)-טבלה1[[#This Row],[התחלה]],1),טבלה1[[#This Row],[הוספת דקות]],-טבלה1[[#This Row],[הפחתת דקות]]), SUM(MOD(טבלה1[[#This Row],[סיום]]-טבלה1[[#This Row],[התחלה]],1),טבלה1[[#This Row],[הוספת דקות]],-טבלה1[[#This Row],[הפחתת דקות]])))) ->  | K71: =IF(טבלה1[[#This Row],[שעות]]="","",IFERROR( IF(IF(AND(מטבע="שקלים",VLOOKUP(טבלה1[[#This Row],[שם העבודה]],טבלה2[],3,FALSE)="$"), VLOOKUP(טבלה1[[#This Row],[שם העבודה]],טבלה2[#All],2,FALSE)*טבלה1[[#This Row],[שעות]]*24*שער, IF(AND(מטבע="דולרים",VLOOKUP(טבלה1[[#This Row],[שם העבודה]],טבלה2[],3,FALSE)="₪"), VLOOKUP(טבלה1[[#This Row],[שם העבודה]],טבלה2[#All],2,FALSE)*טבלה1[[#This Row],[שעות]]*24/שער, VLOOKUP(טבלה1[[#This Row],[שם העבודה]],טבלה2[#All],2,FALSE)*טבלה1[[#This Row],[שעות]]*24))=0,"", IF(AND(מטבע="שקלים",VLOOKUP(טבלה1[[#This Row],[שם העבודה]],טבלה2[],3,FALSE)="$"), VLOOKUP(טבלה1[[#This Row],[שם העבודה]],טבלה2[#All],2,FALSE)*טבלה1[[#This Row],[שעות]]*24*שער, IF(AND(מטבע="דולרים",VLOOKUP(טבלה1[[#This Row],[שם העבודה]],טבלה2[],3,FALSE)="₪"), VLOOKUP(טבלה1[[#This Row],[שם העבודה]],טבלה2[#All],2,FALSE)*טבלה1[[#This Row],[שעות]]*24/שער, VLOOKUP(טבלה1[[#This Row],[שם העבודה]],טבלה2[#All],2,FALSE)*טבלה1[[#This Row],[שעות]]*24))),"")) ->  | L71: =IF(טבלה1[[#This Row],[תאריך]]="","",DATE(YEAR(טבלה1[[#This Row],[תאריך]]),MONTH(טבלה1[[#This Row],[תאריך]]),1)) -> 
B72: =IF(AND(טבלה1[[#This Row],[תאריך]]="",טבלה1[[#This Row],[התחלה]]="",טבלה1[[#This Row],[שם העבודה]]=""),"",ROW()-10) ->  | C72: =IF(טבלה1[[#This Row],[תאריך]]="","",IF(TEXT(טבלה1[[#This Row],[תאריך]],"DDD")="שבת","מוצ""ש",TEXT(טבלה1[[#This Row],[תאריך]],"DDD"))) ->  | J72: =IF(IF(AND(טבלה1[[#This Row],[התחלה]]="",טבלה1[[#This Row],[סיום]]<>""),"",IF(AND(טבלה1[[#This Row],[התחלה]]<>"",טבלה1[[#This Row],[סיום]]=""), SUM(MOD(MOD(NOW(),1)-טבלה1[[#This Row],[התחלה]],1),טבלה1[[#This Row],[הוספת דקות]],-טבלה1[[#This Row],[הפחתת דקות]]), SUM(MOD(טבלה1[[#This Row],[סיום]]-טבלה1[[#This Row],[התחלה]],1),טבלה1[[#This Row],[הוספת דקות]],-טבלה1[[#This Row],[הפחתת דקות]])))<=0,"", IF(AND(טבלה1[[#This Row],[התחלה]]="",טבלה1[[#This Row],[סיום]]<>""),"",IF(AND(טבלה1[[#This Row],[התחלה]]<>"",טבלה1[[#This Row],[סיום]]=""), SUM(MOD(MOD(NOW(),1)-טבלה1[[#This Row],[התחלה]],1),טבלה1[[#This Row],[הוספת דקות]],-טבלה1[[#This Row],[הפחתת דקות]]), SUM(MOD(טבלה1[[#This Row],[סיום]]-טבלה1[[#This Row],[התחלה]],1),טבלה1[[#This Row],[הוספת דקות]],-טבלה1[[#This Row],[הפחתת דקות]])))) ->  | K72: =IF(טבלה1[[#This Row],[שעות]]="","",IFERROR( IF(IF(AND(מטבע="שקלים",VLOOKUP(טבלה1[[#This Row],[שם העבודה]],טבלה2[],3,FALSE)="$"), VLOOKUP(טבלה1[[#This Row],[שם העבודה]],טבלה2[#All],2,FALSE)*טבלה1[[#This Row],[שעות]]*24*שער, IF(AND(מטבע="דולרים",VLOOKUP(טבלה1[[#This Row],[שם העבודה]],טבלה2[],3,FALSE)="₪"), VLOOKUP(טבלה1[[#This Row],[שם העבודה]],טבלה2[#All],2,FALSE)*טבלה1[[#This Row],[שעות]]*24/שער, VLOOKUP(טבלה1[[#This Row],[שם העבודה]],טבלה2[#All],2,FALSE)*טבלה1[[#This Row],[שעות]]*24))=0,"", IF(AND(מטבע="שקלים",VLOOKUP(טבלה1[[#This Row],[שם העבודה]],טבלה2[],3,FALSE)="$"), VLOOKUP(טבלה1[[#This Row],[שם העבודה]],טבלה2[#All],2,FALSE)*טבלה1[[#This Row],[שעות]]*24*שער, IF(AND(מטבע="דולרים",VLOOKUP(טבלה1[[#This Row],[שם העבודה]],טבלה2[],3,FALSE)="₪"), VLOOKUP(טבלה1[[#This Row],[שם העבודה]],טבלה2[#All],2,FALSE)*טבלה1[[#This Row],[שעות]]*24/שער, VLOOKUP(טבלה1[[#This Row],[שם העבודה]],טבלה2[#All],2,FALSE)*טבלה1[[#This Row],[שעות]]*24))),"")) ->  | L72: =IF(טבלה1[[#This Row],[תאריך]]="","",DATE(YEAR(טבלה1[[#This Row],[תאריך]]),MONTH(טבלה1[[#This Row],[תאריך]]),1)) -> 
B73: =IF(AND(טבלה1[[#This Row],[תאריך]]="",טבלה1[[#This Row],[התחלה]]="",טבלה1[[#This Row],[שם העבודה]]=""),"",ROW()-10) ->  | C73: =IF(טבלה1[[#This Row],[תאריך]]="","",IF(TEXT(טבלה1[[#This Row],[תאריך]],"DDD")="שבת","מוצ""ש",TEXT(טבלה1[[#This Row],[תאריך]],"DDD"))) ->  | J73: =IF(IF(AND(טבלה1[[#This Row],[התחלה]]="",טבלה1[[#This Row],[סיום]]<>""),"",IF(AND(טבלה1[[#This Row],[התחלה]]<>"",טבלה1[[#This Row],[סיום]]=""), SUM(MOD(MOD(NOW(),1)-טבלה1[[#This Row],[התחלה]],1),טבלה1[[#This Row],[הוספת דקות]],-טבלה1[[#This Row],[הפחתת דקות]]), SUM(MOD(טבלה1[[#This Row],[סיום]]-טבלה1[[#This Row],[התחלה]],1),טבלה1[[#This Row],[הוספת דקות]],-טבלה1[[#This Row],[הפחתת דקות]])))<=0,"", IF(AND(טבלה1[[#This Row],[התחלה]]="",טבלה1[[#This Row],[סיום]]<>""),"",IF(AND(טבלה1[[#This Row],[התחלה]]<>"",טבלה1[[#This Row],[סיום]]=""), SUM(MOD(MOD(NOW(),1)-טבלה1[[#This Row],[התחלה]],1),טבלה1[[#This Row],[הוספת דקות]],-טבלה1[[#This Row],[הפחתת דקות]]), SUM(MOD(טבלה1[[#This Row],[סיום]]-טבלה1[[#This Row],[התחלה]],1),טבלה1[[#This Row],[הוספת דקות]],-טבלה1[[#This Row],[הפחתת דקות]])))) ->  | K73: =IF(טבלה1[[#This Row],[שעות]]="","",IFERROR( IF(IF(AND(מטבע="שקלים",VLOOKUP(טבלה1[[#This Row],[שם העבודה]],טבלה2[],3,FALSE)="$"), VLOOKUP(טבלה1[[#This Row],[שם העבודה]],טבלה2[#All],2,FALSE)*טבלה1[[#This Row],[שעות]]*24*שער, IF(AND(מטבע="דולרים",VLOOKUP(טבלה1[[#This Row],[שם העבודה]],טבלה2[],3,FALSE)="₪"), VLOOKUP(טבלה1[[#This Row],[שם העבודה]],טבלה2[#All],2,FALSE)*טבלה1[[#This Row],[שעות]]*24/שער, VLOOKUP(טבלה1[[#This Row],[שם העבודה]],טבלה2[#All],2,FALSE)*טבלה1[[#This Row],[שעות]]*24))=0,"", IF(AND(מטבע="שקלים",VLOOKUP(טבלה1[[#This Row],[שם העבודה]],טבלה2[],3,FALSE)="$"), VLOOKUP(טבלה1[[#This Row],[שם העבודה]],טבלה2[#All],2,FALSE)*טבלה1[[#This Row],[שעות]]*24*שער, IF(AND(מטבע="דולרים",VLOOKUP(טבלה1[[#This Row],[שם העבודה]],טבלה2[],3,FALSE)="₪"), VLOOKUP(טבלה1[[#This Row],[שם העבודה]],טבלה2[#All],2,FALSE)*טבלה1[[#This Row],[שעות]]*24/שער, VLOOKUP(טבלה1[[#This Row],[שם העבודה]],טבלה2[#All],2,FALSE)*טבלה1[[#This Row],[שעות]]*24))),"")) ->  | L73: =IF(טבלה1[[#This Row],[תאריך]]="","",DATE(YEAR(טבלה1[[#This Row],[תאריך]]),MONTH(טבלה1[[#This Row],[תאריך]]),1)) -> 
B74: =IF(AND(טבלה1[[#This Row],[תאריך]]="",טבלה1[[#This Row],[התחלה]]="",טבלה1[[#This Row],[שם העבודה]]=""),"",ROW()-10) ->  | C74: =IF(טבלה1[[#This Row],[תאריך]]="","",IF(TEXT(טבלה1[[#This Row],[תאריך]],"DDD")="שבת","מוצ""ש",TEXT(טבלה1[[#This Row],[תאריך]],"DDD"))) ->  | J74: =IF(IF(AND(טבלה1[[#This Row],[התחלה]]="",טבלה1[[#This Row],[סיום]]<>""),"",IF(AND(טבלה1[[#This Row],[התחלה]]<>"",טבלה1[[#This Row],[סיום]]=""), SUM(MOD(MOD(NOW(),1)-טבלה1[[#This Row],[התחלה]],1),טבלה1[[#This Row],[הוספת דקות]],-טבלה1[[#This Row],[הפחתת דקות]]), SUM(MOD(טבלה1[[#This Row],[סיום]]-טבלה1[[#This Row],[התחלה]],1),טבלה1[[#This Row],[הוספת דקות]],-טבלה1[[#This Row],[הפחתת דקות]])))<=0,"", IF(AND(טבלה1[[#This Row],[התחלה]]="",טבלה1[[#This Row],[סיום]]<>""),"",IF(AND(טבלה1[[#This Row],[התחלה]]<>"",טבלה1[[#This Row],[סיום]]=""), SUM(MOD(MOD(NOW(),1)-טבלה1[[#This Row],[התחלה]],1),טבלה1[[#This Row],[הוספת דקות]],-טבלה1[[#This Row],[הפחתת דקות]]), SUM(MOD(טבלה1[[#This Row],[סיום]]-טבלה1[[#This Row],[התחלה]],1),טבלה1[[#This Row],[הוספת דקות]],-טבלה1[[#This Row],[הפחתת דקות]])))) ->  | K74: =IF(טבלה1[[#This Row],[שעות]]="","",IFERROR( IF(IF(AND(מטבע="שקלים",VLOOKUP(טבלה1[[#This Row],[שם העבודה]],טבלה2[],3,FALSE)="$"), VLOOKUP(טבלה1[[#This Row],[שם העבודה]],טבלה2[#All],2,FALSE)*טבלה1[[#This Row],[שעות]]*24*שער, IF(AND(מטבע="דולרים",VLOOKUP(טבלה1[[#This Row],[שם העבודה]],טבלה2[],3,FALSE)="₪"), VLOOKUP(טבלה1[[#This Row],[שם העבודה]],טבלה2[#All],2,FALSE)*טבלה1[[#This Row],[שעות]]*24/שער, VLOOKUP(טבלה1[[#This Row],[שם העבודה]],טבלה2[#All],2,FALSE)*טבלה1[[#This Row],[שעות]]*24))=0,"", IF(AND(מטבע="שקלים",VLOOKUP(טבלה1[[#This Row],[שם העבודה]],טבלה2[],3,FALSE)="$"), VLOOKUP(טבלה1[[#This Row],[שם העבודה]],טבלה2[#All],2,FALSE)*טבלה1[[#This Row],[שעות]]*24*שער, IF(AND(מטבע="דולרים",VLOOKUP(טבלה1[[#This Row],[שם העבודה]],טבלה2[],3,FALSE)="₪"), VLOOKUP(טבלה1[[#This Row],[שם העבודה]],טבלה2[#All],2,FALSE)*טבלה1[[#This Row],[שעות]]*24/שער, VLOOKUP(טבלה1[[#This Row],[שם העבודה]],טבלה2[#All],2,FALSE)*טבלה1[[#This Row],[שעות]]*24))),"")) ->  | L74: =IF(טבלה1[[#This Row],[תאריך]]="","",DATE(YEAR(טבלה1[[#This Row],[תאריך]]),MONTH(טבלה1[[#This Row],[תאריך]]),1)) -> 
B75: =IF(AND(טבלה1[[#This Row],[תאריך]]="",טבלה1[[#This Row],[התחלה]]="",טבלה1[[#This Row],[שם העבודה]]=""),"",ROW()-10) ->  | C75: =IF(טבלה1[[#This Row],[תאריך]]="","",IF(TEXT(טבלה1[[#This Row],[תאריך]],"DDD")="שבת","מוצ""ש",TEXT(טבלה1[[#This Row],[תאריך]],"DDD"))) ->  | J75: =IF(IF(AND(טבלה1[[#This Row],[התחלה]]="",טבלה1[[#This Row],[סיום]]<>""),"",IF(AND(טבלה1[[#This Row],[התחלה]]<>"",טבלה1[[#This Row],[סיום]]=""), SUM(MOD(MOD(NOW(),1)-טבלה1[[#This Row],[התחלה]],1),טבלה1[[#This Row],[הוספת דקות]],-טבלה1[[#This Row],[הפחתת דקות]]), SUM(MOD(טבלה1[[#This Row],[סיום]]-טבלה1[[#This Row],[התחלה]],1),טבלה1[[#This Row],[הוספת דקות]],-טבלה1[[#This Row],[הפחתת דקות]])))<=0,"", IF(AND(טבלה1[[#This Row],[התחלה]]="",טבלה1[[#This Row],[סיום]]<>""),"",IF(AND(טבלה1[[#This Row],[התחלה]]<>"",טבלה1[[#This Row],[סיום]]=""), SUM(MOD(MOD(NOW(),1)-טבלה1[[#This Row],[התחלה]],1),טבלה1[[#This Row],[הוספת דקות]],-טבלה1[[#This Row],[הפחתת דקות]]), SUM(MOD(טבלה1[[#This Row],[סיום]]-טבלה1[[#This Row],[התחלה]],1),טבלה1[[#This Row],[הוספת דקות]],-טבלה1[[#This Row],[הפחתת דקות]])))) ->  | K75: =IF(טבלה1[[#This Row],[שעות]]="","",IFERROR( IF(IF(AND(מטבע="שקלים",VLOOKUP(טבלה1[[#This Row],[שם העבודה]],טבלה2[],3,FALSE)="$"), VLOOKUP(טבלה1[[#This Row],[שם העבודה]],טבלה2[#All],2,FALSE)*טבלה1[[#This Row],[שעות]]*24*שער, IF(AND(מטבע="דולרים",VLOOKUP(טבלה1[[#This Row],[שם העבודה]],טבלה2[],3,FALSE)="₪"), VLOOKUP(טבלה1[[#This Row],[שם העבודה]],טבלה2[#All],2,FALSE)*טבלה1[[#This Row],[שעות]]*24/שער, VLOOKUP(טבלה1[[#This Row],[שם העבודה]],טבלה2[#All],2,FALSE)*טבלה1[[#This Row],[שעות]]*24))=0,"", IF(AND(מטבע="שקלים",VLOOKUP(טבלה1[[#This Row],[שם העבודה]],טבלה2[],3,FALSE)="$"), VLOOKUP(טבלה1[[#This Row],[שם העבודה]],טבלה2[#All],2,FALSE)*טבלה1[[#This Row],[שעות]]*24*שער, IF(AND(מטבע="דולרים",VLOOKUP(טבלה1[[#This Row],[שם העבודה]],טבלה2[],3,FALSE)="₪"), VLOOKUP(טבלה1[[#This Row],[שם העבודה]],טבלה2[#All],2,FALSE)*טבלה1[[#This Row],[שעות]]*24/שער, VLOOKUP(טבלה1[[#This Row],[שם העבודה]],טבלה2[#All],2,FALSE)*טבלה1[[#This Row],[שעות]]*24))),"")) ->  | L75: =IF(טבלה1[[#This Row],[תאריך]]="","",DATE(YEAR(טבלה1[[#This Row],[תאריך]]),MONTH(טבלה1[[#This Row],[תאריך]]),1)) -> 
B76: =IF(AND(טבלה1[[#This Row],[תאריך]]="",טבלה1[[#This Row],[התחלה]]="",טבלה1[[#This Row],[שם העבודה]]=""),"",ROW()-10) ->  | C76: =IF(טבלה1[[#This Row],[תאריך]]="","",IF(TEXT(טבלה1[[#This Row],[תאריך]],"DDD")="שבת","מוצ""ש",TEXT(טבלה1[[#This Row],[תאריך]],"DDD"))) ->  | J76: =IF(IF(AND(טבלה1[[#This Row],[התחלה]]="",טבלה1[[#This Row],[סיום]]<>""),"",IF(AND(טבלה1[[#This Row],[התחלה]]<>"",טבלה1[[#This Row],[סיום]]=""), SUM(MOD(MOD(NOW(),1)-טבלה1[[#This Row],[התחלה]],1),טבלה1[[#This Row],[הוספת דקות]],-טבלה1[[#This Row],[הפחתת דקות]]), SUM(MOD(טבלה1[[#This Row],[סיום]]-טבלה1[[#This Row],[התחלה]],1),טבלה1[[#This Row],[הוספת דקות]],-טבלה1[[#This Row],[הפחתת דקות]])))<=0,"", IF(AND(טבלה1[[#This Row],[התחלה]]="",טבלה1[[#This Row],[סיום]]<>""),"",IF(AND(טבלה1[[#This Row],[התחלה]]<>"",טבלה1[[#This Row],[סיום]]=""), SUM(MOD(MOD(NOW(),1)-טבלה1[[#This Row],[התחלה]],1),טבלה1[[#This Row],[הוספת דקות]],-טבלה1[[#This Row],[הפחתת דקות]]), SUM(MOD(טבלה1[[#This Row],[סיום]]-טבלה1[[#This Row],[התחלה]],1),טבלה1[[#This Row],[הוספת דקות]],-טבלה1[[#This Row],[הפחתת דקות]])))) ->  | K76: =IF(טבלה1[[#This Row],[שעות]]="","",IFERROR( IF(IF(AND(מטבע="שקלים",VLOOKUP(טבלה1[[#This Row],[שם העבודה]],טבלה2[],3,FALSE)="$"), VLOOKUP(טבלה1[[#This Row],[שם העבודה]],טבלה2[#All],2,FALSE)*טבלה1[[#This Row],[שעות]]*24*שער, IF(AND(מטבע="דולרים",VLOOKUP(טבלה1[[#This Row],[שם העבודה]],טבלה2[],3,FALSE)="₪"), VLOOKUP(טבלה1[[#This Row],[שם העבודה]],טבלה2[#All],2,FALSE)*טבלה1[[#This Row],[שעות]]*24/שער, VLOOKUP(טבלה1[[#This Row],[שם העבודה]],טבלה2[#All],2,FALSE)*טבלה1[[#This Row],[שעות]]*24))=0,"", IF(AND(מטבע="שקלים",VLOOKUP(טבלה1[[#This Row],[שם העבודה]],טבלה2[],3,FALSE)="$"), VLOOKUP(טבלה1[[#This Row],[שם העבודה]],טבלה2[#All],2,FALSE)*טבלה1[[#This Row],[שעות]]*24*שער, IF(AND(מטבע="דולרים",VLOOKUP(טבלה1[[#This Row],[שם העבודה]],טבלה2[],3,FALSE)="₪"), VLOOKUP(טבלה1[[#This Row],[שם העבודה]],טבלה2[#All],2,FALSE)*טבלה1[[#This Row],[שעות]]*24/שער, VLOOKUP(טבלה1[[#This Row],[שם העבודה]],טבלה2[#All],2,FALSE)*טבלה1[[#This Row],[שעות]]*24))),"")) ->  | L76: =IF(טבלה1[[#This Row],[תאריך]]="","",DATE(YEAR(טבלה1[[#This Row],[תאריך]]),MONTH(טבלה1[[#This Row],[תאריך]]),1)) -> 
B77: =IF(AND(טבלה1[[#This Row],[תאריך]]="",טבלה1[[#This Row],[התחלה]]="",טבלה1[[#This Row],[שם העבודה]]=""),"",ROW()-10) ->  | C77: =IF(טבלה1[[#This Row],[תאריך]]="","",IF(TEXT(טבלה1[[#This Row],[תאריך]],"DDD")="שבת","מוצ""ש",TEXT(טבלה1[[#This Row],[תאריך]],"DDD"))) ->  | J77: =IF(IF(AND(טבלה1[[#This Row],[התחלה]]="",טבלה1[[#This Row],[סיום]]<>""),"",IF(AND(טבלה1[[#This Row],[התחלה]]<>"",טבלה1[[#This Row],[סיום]]=""), SUM(MOD(MOD(NOW(),1)-טבלה1[[#This Row],[התחלה]],1),טבלה1[[#This Row],[הוספת דקות]],-טבלה1[[#This Row],[הפחתת דקות]]), SUM(MOD(טבלה1[[#This Row],[סיום]]-טבלה1[[#This Row],[התחלה]],1),טבלה1[[#This Row],[הוספת דקות]],-טבלה1[[#This Row],[הפחתת דקות]])))<=0,"", IF(AND(טבלה1[[#This Row],[התחלה]]="",טבלה1[[#This Row],[סיום]]<>""),"",IF(AND(טבלה1[[#This Row],[התחלה]]<>"",טבלה1[[#This Row],[סיום]]=""), SUM(MOD(MOD(NOW(),1)-טבלה1[[#This Row],[התחלה]],1),טבלה1[[#This Row],[הוספת דקות]],-טבלה1[[#This Row],[הפחתת דקות]]), SUM(MOD(טבלה1[[#This Row],[סיום]]-טבלה1[[#This Row],[התחלה]],1),טבלה1[[#This Row],[הוספת דקות]],-טבלה1[[#This Row],[הפחתת דקות]])))) ->  | K77: =IF(טבלה1[[#This Row],[שעות]]="","",IFERROR( IF(IF(AND(מטבע="שקלים",VLOOKUP(טבלה1[[#This Row],[שם העבודה]],טבלה2[],3,FALSE)="$"), VLOOKUP(טבלה1[[#This Row],[שם העבודה]],טבלה2[#All],2,FALSE)*טבלה1[[#This Row],[שעות]]*24*שער, IF(AND(מטבע="דולרים",VLOOKUP(טבלה1[[#This Row],[שם העבודה]],טבלה2[],3,FALSE)="₪"), VLOOKUP(טבלה1[[#This Row],[שם העבודה]],טבלה2[#All],2,FALSE)*טבלה1[[#This Row],[שעות]]*24/שער, VLOOKUP(טבלה1[[#This Row],[שם העבודה]],טבלה2[#All],2,FALSE)*טבלה1[[#This Row],[שעות]]*24))=0,"", IF(AND(מטבע="שקלים",VLOOKUP(טבלה1[[#This Row],[שם העבודה]],טבלה2[],3,FALSE)="$"), VLOOKUP(טבלה1[[#This Row],[שם העבודה]],טבלה2[#All],2,FALSE)*טבלה1[[#This Row],[שעות]]*24*שער, IF(AND(מטבע="דולרים",VLOOKUP(טבלה1[[#This Row],[שם העבודה]],טבלה2[],3,FALSE)="₪"), VLOOKUP(טבלה1[[#This Row],[שם העבודה]],טבלה2[#All],2,FALSE)*טבלה1[[#This Row],[שעות]]*24/שער, VLOOKUP(טבלה1[[#This Row],[שם העבודה]],טבלה2[#All],2,FALSE)*טבלה1[[#This Row],[שעות]]*24))),"")) ->  | L77: =IF(טבלה1[[#This Row],[תאריך]]="","",DATE(YEAR(טבלה1[[#This Row],[תאריך]]),MONTH(טבלה1[[#This Row],[תאריך]]),1)) -> 
B78: =IF(AND(טבלה1[[#This Row],[תאריך]]="",טבלה1[[#This Row],[התחלה]]="",טבלה1[[#This Row],[שם העבודה]]=""),"",ROW()-10) ->  | C78: =IF(טבלה1[[#This Row],[תאריך]]="","",IF(TEXT(טבלה1[[#This Row],[תאריך]],"DDD")="שבת","מוצ""ש",TEXT(טבלה1[[#This Row],[תאריך]],"DDD"))) ->  | J78: =IF(IF(AND(טבלה1[[#This Row],[התחלה]]="",טבלה1[[#This Row],[סיום]]<>""),"",IF(AND(טבלה1[[#This Row],[התחלה]]<>"",טבלה1[[#This Row],[סיום]]=""), SUM(MOD(MOD(NOW(),1)-טבלה1[[#This Row],[התחלה]],1),טבלה1[[#This Row],[הוספת דקות]],-טבלה1[[#This Row],[הפחתת דקות]]), SUM(MOD(טבלה1[[#This Row],[סיום]]-טבלה1[[#This Row],[התחלה]],1),טבלה1[[#This Row],[הוספת דקות]],-טבלה1[[#This Row],[הפחתת דקות]])))<=0,"", IF(AND(טבלה1[[#This Row],[התחלה]]="",טבלה1[[#This Row],[סיום]]<>""),"",IF(AND(טבלה1[[#This Row],[התחלה]]<>"",טבלה1[[#This Row],[סיום]]=""), SUM(MOD(MOD(NOW(),1)-טבלה1[[#This Row],[התחלה]],1),טבלה1[[#This Row],[הוספת דקות]],-טבלה1[[#This Row],[הפחתת דקות]]), SUM(MOD(טבלה1[[#This Row],[סיום]]-טבלה1[[#This Row],[התחלה]],1),טבלה1[[#This Row],[הוספת דקות]],-טבלה1[[#This Row],[הפחתת דקות]])))) ->  | K78: =IF(טבלה1[[#This Row],[שעות]]="","",IFERROR( IF(IF(AND(מטבע="שקלים",VLOOKUP(טבלה1[[#This Row],[שם העבודה]],טבלה2[],3,FALSE)="$"), VLOOKUP(טבלה1[[#This Row],[שם העבודה]],טבלה2[#All],2,FALSE)*טבלה1[[#This Row],[שעות]]*24*שער, IF(AND(מטבע="דולרים",VLOOKUP(טבלה1[[#This Row],[שם העבודה]],טבלה2[],3,FALSE)="₪"), VLOOKUP(טבלה1[[#This Row],[שם העבודה]],טבלה2[#All],2,FALSE)*טבלה1[[#This Row],[שעות]]*24/שער, VLOOKUP(טבלה1[[#This Row],[שם העבודה]],טבלה2[#All],2,FALSE)*טבלה1[[#This Row],[שעות]]*24))=0,"", IF(AND(מטבע="שקלים",VLOOKUP(טבלה1[[#This Row],[שם העבודה]],טבלה2[],3,FALSE)="$"), VLOOKUP(טבלה1[[#This Row],[שם העבודה]],טבלה2[#All],2,FALSE)*טבלה1[[#This Row],[שעות]]*24*שער, IF(AND(מטבע="דולרים",VLOOKUP(טבלה1[[#This Row],[שם העבודה]],טבלה2[],3,FALSE)="₪"), VLOOKUP(טבלה1[[#This Row],[שם העבודה]],טבלה2[#All],2,FALSE)*טבלה1[[#This Row],[שעות]]*24/שער, VLOOKUP(טבלה1[[#This Row],[שם העבודה]],טבלה2[#All],2,FALSE)*טבלה1[[#This Row],[שעות]]*24))),"")) ->  | L78: =IF(טבלה1[[#This Row],[תאריך]]="","",DATE(YEAR(טבלה1[[#This Row],[תאריך]]),MONTH(טבלה1[[#This Row],[תאריך]]),1)) -> 
B79: =IF(AND(טבלה1[[#This Row],[תאריך]]="",טבלה1[[#This Row],[התחלה]]="",טבלה1[[#This Row],[שם העבודה]]=""),"",ROW()-10) ->  | C79: =IF(טבלה1[[#This Row],[תאריך]]="","",IF(TEXT(טבלה1[[#This Row],[תאריך]],"DDD")="שבת","מוצ""ש",TEXT(טבלה1[[#This Row],[תאריך]],"DDD"))) ->  | J79: =IF(IF(AND(טבלה1[[#This Row],[התחלה]]="",טבלה1[[#This Row],[סיום]]<>""),"",IF(AND(טבלה1[[#This Row],[התחלה]]<>"",טבלה1[[#This Row],[סיום]]=""), SUM(MOD(MOD(NOW(),1)-טבלה1[[#This Row],[התחלה]],1),טבלה1[[#This Row],[הוספת דקות]],-טבלה1[[#This Row],[הפחתת דקות]]), SUM(MOD(טבלה1[[#This Row],[סיום]]-טבלה1[[#This Row],[התחלה]],1),טבלה1[[#This Row],[הוספת דקות]],-טבלה1[[#This Row],[הפחתת דקות]])))<=0,"", IF(AND(טבלה1[[#This Row],[התחלה]]="",טבלה1[[#This Row],[סיום]]<>""),"",IF(AND(טבלה1[[#This Row],[התחלה]]<>"",טבלה1[[#This Row],[סיום]]=""), SUM(MOD(MOD(NOW(),1)-טבלה1[[#This Row],[התחלה]],1),טבלה1[[#This Row],[הוספת דקות]],-טבלה1[[#This Row],[הפחתת דקות]]), SUM(MOD(טבלה1[[#This Row],[סיום]]-טבלה1[[#This Row],[התחלה]],1),טבלה1[[#This Row],[הוספת דקות]],-טבלה1[[#This Row],[הפחתת דקות]])))) ->  | K79: =IF(טבלה1[[#This Row],[שעות]]="","",IFERROR( IF(IF(AND(מטבע="שקלים",VLOOKUP(טבלה1[[#This Row],[שם העבודה]],טבלה2[],3,FALSE)="$"), VLOOKUP(טבלה1[[#This Row],[שם העבודה]],טבלה2[#All],2,FALSE)*טבלה1[[#This Row],[שעות]]*24*שער, IF(AND(מטבע="דולרים",VLOOKUP(טבלה1[[#This Row],[שם העבודה]],טבלה2[],3,FALSE)="₪"), VLOOKUP(טבלה1[[#This Row],[שם העבודה]],טבלה2[#All],2,FALSE)*טבלה1[[#This Row],[שעות]]*24/שער, VLOOKUP(טבלה1[[#This Row],[שם העבודה]],טבלה2[#All],2,FALSE)*טבלה1[[#This Row],[שעות]]*24))=0,"", IF(AND(מטבע="שקלים",VLOOKUP(טבלה1[[#This Row],[שם העבודה]],טבלה2[],3,FALSE)="$"), VLOOKUP(טבלה1[[#This Row],[שם העבודה]],טבלה2[#All],2,FALSE)*טבלה1[[#This Row],[שעות]]*24*שער, IF(AND(מטבע="דולרים",VLOOKUP(טבלה1[[#This Row],[שם העבודה]],טבלה2[],3,FALSE)="₪"), VLOOKUP(טבלה1[[#This Row],[שם העבודה]],טבלה2[#All],2,FALSE)*טבלה1[[#This Row],[שעות]]*24/שער, VLOOKUP(טבלה1[[#This Row],[שם העבודה]],טבלה2[#All],2,FALSE)*טבלה1[[#This Row],[שעות]]*24))),"")) ->  | L79: =IF(טבלה1[[#This Row],[תאריך]]="","",DATE(YEAR(טבלה1[[#This Row],[תאריך]]),MONTH(טבלה1[[#This Row],[תאריך]]),1)) -> 
B80: =IF(AND(טבלה1[[#This Row],[תאריך]]="",טבלה1[[#This Row],[התחלה]]="",טבלה1[[#This Row],[שם העבודה]]=""),"",ROW()-10) ->  | C80: =IF(טבלה1[[#This Row],[תאריך]]="","",IF(TEXT(טבלה1[[#This Row],[תאריך]],"DDD")="שבת","מוצ""ש",TEXT(טבלה1[[#This Row],[תאריך]],"DDD"))) ->  | J80: =IF(IF(AND(טבלה1[[#This Row],[התחלה]]="",טבלה1[[#This Row],[סיום]]<>""),"",IF(AND(טבלה1[[#This Row],[התחלה]]<>"",טבלה1[[#This Row],[סיום]]=""), SUM(MOD(MOD(NOW(),1)-טבלה1[[#This Row],[התחלה]],1),טבלה1[[#This Row],[הוספת דקות]],-טבלה1[[#This Row],[הפחתת דקות]]), SUM(MOD(טבלה1[[#This Row],[סיום]]-טבלה1[[#This Row],[התחלה]],1),טבלה1[[#This Row],[הוספת דקות]],-טבלה1[[#This Row],[הפחתת דקות]])))<=0,"", IF(AND(טבלה1[[#This Row],[התחלה]]="",טבלה1[[#This Row],[סיום]]<>""),"",IF(AND(טבלה1[[#This Row],[התחלה]]<>"",טבלה1[[#This Row],[סיום]]=""), SUM(MOD(MOD(NOW(),1)-טבלה1[[#This Row],[התחלה]],1),טבלה1[[#This Row],[הוספת דקות]],-טבלה1[[#This Row],[הפחתת דקות]]), SUM(MOD(טבלה1[[#This Row],[סיום]]-טבלה1[[#This Row],[התחלה]],1),טבלה1[[#This Row],[הוספת דקות]],-טבלה1[[#This Row],[הפחתת דקות]])))) ->  | K80: =IF(טבלה1[[#This Row],[שעות]]="","",IFERROR( IF(IF(AND(מטבע="שקלים",VLOOKUP(טבלה1[[#This Row],[שם העבודה]],טבלה2[],3,FALSE)="$"), VLOOKUP(טבלה1[[#This Row],[שם העבודה]],טבלה2[#All],2,FALSE)*טבלה1[[#This Row],[שעות]]*24*שער, IF(AND(מטבע="דולרים",VLOOKUP(טבלה1[[#This Row],[שם העבודה]],טבלה2[],3,FALSE)="₪"), VLOOKUP(טבלה1[[#This Row],[שם העבודה]],טבלה2[#All],2,FALSE)*טבלה1[[#This Row],[שעות]]*24/שער, VLOOKUP(טבלה1[[#This Row],[שם העבודה]],טבלה2[#All],2,FALSE)*טבלה1[[#This Row],[שעות]]*24))=0,"", IF(AND(מטבע="שקלים",VLOOKUP(טבלה1[[#This Row],[שם העבודה]],טבלה2[],3,FALSE)="$"), VLOOKUP(טבלה1[[#This Row],[שם העבודה]],טבלה2[#All],2,FALSE)*טבלה1[[#This Row],[שעות]]*24*שער, IF(AND(מטבע="דולרים",VLOOKUP(טבלה1[[#This Row],[שם העבודה]],טבלה2[],3,FALSE)="₪"), VLOOKUP(טבלה1[[#This Row],[שם העבודה]],טבלה2[#All],2,FALSE)*טבלה1[[#This Row],[שעות]]*24/שער, VLOOKUP(טבלה1[[#This Row],[שם העבודה]],טבלה2[#All],2,FALSE)*טבלה1[[#This Row],[שעות]]*24))),"")) ->  | L80: =IF(טבלה1[[#This Row],[תאריך]]="","",DATE(YEAR(טבלה1[[#This Row],[תאריך]]),MONTH(טבלה1[[#This Row],[תאריך]]),1)) -> 
B81: =IF(AND(טבלה1[[#This Row],[תאריך]]="",טבלה1[[#This Row],[התחלה]]="",טבלה1[[#This Row],[שם העבודה]]=""),"",ROW()-10) ->  | C81: =IF(טבלה1[[#This Row],[תאריך]]="","",IF(TEXT(טבלה1[[#This Row],[תאריך]],"DDD")="שבת","מוצ""ש",TEXT(טבלה1[[#This Row],[תאריך]],"DDD"))) ->  | J81: =IF(IF(AND(טבלה1[[#This Row],[התחלה]]="",טבלה1[[#This Row],[סיום]]<>""),"",IF(AND(טבלה1[[#This Row],[התחלה]]<>"",טבלה1[[#This Row],[סיום]]=""), SUM(MOD(MOD(NOW(),1)-טבלה1[[#This Row],[התחלה]],1),טבלה1[[#This Row],[הוספת דקות]],-טבלה1[[#This Row],[הפחתת דקות]]), SUM(MOD(טבלה1[[#This Row],[סיום]]-טבלה1[[#This Row],[התחלה]],1),טבלה1[[#This Row],[הוספת דקות]],-טבלה1[[#This Row],[הפחתת דקות]])))<=0,"", IF(AND(טבלה1[[#This Row],[התחלה]]="",טבלה1[[#This Row],[סיום]]<>""),"",IF(AND(טבלה1[[#This Row],[התחלה]]<>"",טבלה1[[#This Row],[סיום]]=""), SUM(MOD(MOD(NOW(),1)-טבלה1[[#This Row],[התחלה]],1),טבלה1[[#This Row],[הוספת דקות]],-טבלה1[[#This Row],[הפחתת דקות]]), SUM(MOD(טבלה1[[#This Row],[סיום]]-טבלה1[[#This Row],[התחלה]],1),טבלה1[[#This Row],[הוספת דקות]],-טבלה1[[#This Row],[הפחתת דקות]])))) ->  | K81: =IF(טבלה1[[#This Row],[שעות]]="","",IFERROR( IF(IF(AND(מטבע="שקלים",VLOOKUP(טבלה1[[#This Row],[שם העבודה]],טבלה2[],3,FALSE)="$"), VLOOKUP(טבלה1[[#This Row],[שם העבודה]],טבלה2[#All],2,FALSE)*טבלה1[[#This Row],[שעות]]*24*שער, IF(AND(מטבע="דולרים",VLOOKUP(טבלה1[[#This Row],[שם העבודה]],טבלה2[],3,FALSE)="₪"), VLOOKUP(טבלה1[[#This Row],[שם העבודה]],טבלה2[#All],2,FALSE)*טבלה1[[#This Row],[שעות]]*24/שער, VLOOKUP(טבלה1[[#This Row],[שם העבודה]],טבלה2[#All],2,FALSE)*טבלה1[[#This Row],[שעות]]*24))=0,"", IF(AND(מטבע="שקלים",VLOOKUP(טבלה1[[#This Row],[שם העבודה]],טבלה2[],3,FALSE)="$"), VLOOKUP(טבלה1[[#This Row],[שם העבודה]],טבלה2[#All],2,FALSE)*טבלה1[[#This Row],[שעות]]*24*שער, IF(AND(מטבע="דולרים",VLOOKUP(טבלה1[[#This Row],[שם העבודה]],טבלה2[],3,FALSE)="₪"), VLOOKUP(טבלה1[[#This Row],[שם העבודה]],טבלה2[#All],2,FALSE)*טבלה1[[#This Row],[שעות]]*24/שער, VLOOKUP(טבלה1[[#This Row],[שם העבודה]],טבלה2[#All],2,FALSE)*טבלה1[[#This Row],[שעות]]*24))),"")) ->  | L81: =IF(טבלה1[[#This Row],[תאריך]]="","",DATE(YEAR(טבלה1[[#This Row],[תאריך]]),MONTH(טבלה1[[#This Row],[תאריך]]),1)) -> 
B82: =IF(AND(טבלה1[[#This Row],[תאריך]]="",טבלה1[[#This Row],[התחלה]]="",טבלה1[[#This Row],[שם העבודה]]=""),"",ROW()-10) ->  | C82: =IF(טבלה1[[#This Row],[תאריך]]="","",IF(TEXT(טבלה1[[#This Row],[תאריך]],"DDD")="שבת","מוצ""ש",TEXT(טבלה1[[#This Row],[תאריך]],"DDD"))) ->  | J82: =IF(IF(AND(טבלה1[[#This Row],[התחלה]]="",טבלה1[[#This Row],[סיום]]<>""),"",IF(AND(טבלה1[[#This Row],[התחלה]]<>"",טבלה1[[#This Row],[סיום]]=""), SUM(MOD(MOD(NOW(),1)-טבלה1[[#This Row],[התחלה]],1),טבלה1[[#This Row],[הוספת דקות]],-טבלה1[[#This Row],[הפחתת דקות]]), SUM(MOD(טבלה1[[#This Row],[סיום]]-טבלה1[[#This Row],[התחלה]],1),טבלה1[[#This Row],[הוספת דקות]],-טבלה1[[#This Row],[הפחתת דקות]])))<=0,"", IF(AND(טבלה1[[#This Row],[התחלה]]="",טבלה1[[#This Row],[סיום]]<>""),"",IF(AND(טבלה1[[#This Row],[התחלה]]<>"",טבלה1[[#This Row],[סיום]]=""), SUM(MOD(MOD(NOW(),1)-טבלה1[[#This Row],[התחלה]],1),טבלה1[[#This Row],[הוספת דקות]],-טבלה1[[#This Row],[הפחתת דקות]]), SUM(MOD(טבלה1[[#This Row],[סיום]]-טבלה1[[#This Row],[התחלה]],1),טבלה1[[#This Row],[הוספת דקות]],-טבלה1[[#This Row],[הפחתת דקות]])))) ->  | K82: =IF(טבלה1[[#This Row],[שעות]]="","",IFERROR( IF(IF(AND(מטבע="שקלים",VLOOKUP(טבלה1[[#This Row],[שם העבודה]],טבלה2[],3,FALSE)="$"), VLOOKUP(טבלה1[[#This Row],[שם העבודה]],טבלה2[#All],2,FALSE)*טבלה1[[#This Row],[שעות]]*24*שער, IF(AND(מטבע="דולרים",VLOOKUP(טבלה1[[#This Row],[שם העבודה]],טבלה2[],3,FALSE)="₪"), VLOOKUP(טבלה1[[#This Row],[שם העבודה]],טבלה2[#All],2,FALSE)*טבלה1[[#This Row],[שעות]]*24/שער, VLOOKUP(טבלה1[[#This Row],[שם העבודה]],טבלה2[#All],2,FALSE)*טבלה1[[#This Row],[שעות]]*24))=0,"", IF(AND(מטבע="שקלים",VLOOKUP(טבלה1[[#This Row],[שם העבודה]],טבלה2[],3,FALSE)="$"), VLOOKUP(טבלה1[[#This Row],[שם העבודה]],טבלה2[#All],2,FALSE)*טבלה1[[#This Row],[שעות]]*24*שער, IF(AND(מטבע="דולרים",VLOOKUP(טבלה1[[#This Row],[שם העבודה]],טבלה2[],3,FALSE)="₪"), VLOOKUP(טבלה1[[#This Row],[שם העבודה]],טבלה2[#All],2,FALSE)*טבלה1[[#This Row],[שעות]]*24/שער, VLOOKUP(טבלה1[[#This Row],[שם העבודה]],טבלה2[#All],2,FALSE)*טבלה1[[#This Row],[שעות]]*24))),"")) ->  | L82: =IF(טבלה1[[#This Row],[תאריך]]="","",DATE(YEAR(טבלה1[[#This Row],[תאריך]]),MONTH(טבלה1[[#This Row],[תאריך]]),1)) -> 
B83: =IF(AND(טבלה1[[#This Row],[תאריך]]="",טבלה1[[#This Row],[התחלה]]="",טבלה1[[#This Row],[שם העבודה]]=""),"",ROW()-10) ->  | C83: =IF(טבלה1[[#This Row],[תאריך]]="","",IF(TEXT(טבלה1[[#This Row],[תאריך]],"DDD")="שבת","מוצ""ש",TEXT(טבלה1[[#This Row],[תאריך]],"DDD"))) ->  | J83: =IF(IF(AND(טבלה1[[#This Row],[התחלה]]="",טבלה1[[#This Row],[סיום]]<>""),"",IF(AND(טבלה1[[#This Row],[התחלה]]<>"",טבלה1[[#This Row],[סיום]]=""), SUM(MOD(MOD(NOW(),1)-טבלה1[[#This Row],[התחלה]],1),טבלה1[[#This Row],[הוספת דקות]],-טבלה1[[#This Row],[הפחתת דקות]]), SUM(MOD(טבלה1[[#This Row],[סיום]]-טבלה1[[#This Row],[התחלה]],1),טבלה1[[#This Row],[הוספת דקות]],-טבלה1[[#This Row],[הפחתת דקות]])))<=0,"", IF(AND(טבלה1[[#This Row],[התחלה]]="",טבלה1[[#This Row],[סיום]]<>""),"",IF(AND(טבלה1[[#This Row],[התחלה]]<>"",טבלה1[[#This Row],[סיום]]=""), SUM(MOD(MOD(NOW(),1)-טבלה1[[#This Row],[התחלה]],1),טבלה1[[#This Row],[הוספת דקות]],-טבלה1[[#This Row],[הפחתת דקות]]), SUM(MOD(טבלה1[[#This Row],[סיום]]-טבלה1[[#This Row],[התחלה]],1),טבלה1[[#This Row],[הוספת דקות]],-טבלה1[[#This Row],[הפחתת דקות]])))) ->  | K83: =IF(טבלה1[[#This Row],[שעות]]="","",IFERROR( IF(IF(AND(מטבע="שקלים",VLOOKUP(טבלה1[[#This Row],[שם העבודה]],טבלה2[],3,FALSE)="$"), VLOOKUP(טבלה1[[#This Row],[שם העבודה]],טבלה2[#All],2,FALSE)*טבלה1[[#This Row],[שעות]]*24*שער, IF(AND(מטבע="דולרים",VLOOKUP(טבלה1[[#This Row],[שם העבודה]],טבלה2[],3,FALSE)="₪"), VLOOKUP(טבלה1[[#This Row],[שם העבודה]],טבלה2[#All],2,FALSE)*טבלה1[[#This Row],[שעות]]*24/שער, VLOOKUP(טבלה1[[#This Row],[שם העבודה]],טבלה2[#All],2,FALSE)*טבלה1[[#This Row],[שעות]]*24))=0,"", IF(AND(מטבע="שקלים",VLOOKUP(טבלה1[[#This Row],[שם העבודה]],טבלה2[],3,FALSE)="$"), VLOOKUP(טבלה1[[#This Row],[שם העבודה]],טבלה2[#All],2,FALSE)*טבלה1[[#This Row],[שעות]]*24*שער, IF(AND(מטבע="דולרים",VLOOKUP(טבלה1[[#This Row],[שם העבודה]],טבלה2[],3,FALSE)="₪"), VLOOKUP(טבלה1[[#This Row],[שם העבודה]],טבלה2[#All],2,FALSE)*טבלה1[[#This Row],[שעות]]*24/שער, VLOOKUP(טבלה1[[#This Row],[שם העבודה]],טבלה2[#All],2,FALSE)*טבלה1[[#This Row],[שעות]]*24))),"")) ->  | L83: =IF(טבלה1[[#This Row],[תאריך]]="","",DATE(YEAR(טבלה1[[#This Row],[תאריך]]),MONTH(טבלה1[[#This Row],[תאריך]]),1)) -> 
B84: =IF(AND(טבלה1[[#This Row],[תאריך]]="",טבלה1[[#This Row],[התחלה]]="",טבלה1[[#This Row],[שם העבודה]]=""),"",ROW()-10) ->  | C84: =IF(טבלה1[[#This Row],[תאריך]]="","",IF(TEXT(טבלה1[[#This Row],[תאריך]],"DDD")="שבת","מוצ""ש",TEXT(טבלה1[[#This Row],[תאריך]],"DDD"))) ->  | J84: =IF(IF(AND(טבלה1[[#This Row],[התחלה]]="",טבלה1[[#This Row],[סיום]]<>""),"",IF(AND(טבלה1[[#This Row],[התחלה]]<>"",טבלה1[[#This Row],[סיום]]=""), SUM(MOD(MOD(NOW(),1)-טבלה1[[#This Row],[התחלה]],1),טבלה1[[#This Row],[הוספת דקות]],-טבלה1[[#This Row],[הפחתת דקות]]), SUM(MOD(טבלה1[[#This Row],[סיום]]-טבלה1[[#This Row],[התחלה]],1),טבלה1[[#This Row],[הוספת דקות]],-טבלה1[[#This Row],[הפחתת דקות]])))<=0,"", IF(AND(טבלה1[[#This Row],[התחלה]]="",טבלה1[[#This Row],[סיום]]<>""),"",IF(AND(טבלה1[[#This Row],[התחלה]]<>"",טבלה1[[#This Row],[סיום]]=""), SUM(MOD(MOD(NOW(),1)-טבלה1[[#This Row],[התחלה]],1),טבלה1[[#This Row],[הוספת דקות]],-טבלה1[[#This Row],[הפחתת דקות]]), SUM(MOD(טבלה1[[#This Row],[סיום]]-טבלה1[[#This Row],[התחלה]],1),טבלה1[[#This Row],[הוספת דקות]],-טבלה1[[#This Row],[הפחתת דקות]])))) ->  | K84: =IF(טבלה1[[#This Row],[שעות]]="","",IFERROR( IF(IF(AND(מטבע="שקלים",VLOOKUP(טבלה1[[#This Row],[שם העבודה]],טבלה2[],3,FALSE)="$"), VLOOKUP(טבלה1[[#This Row],[שם העבודה]],טבלה2[#All],2,FALSE)*טבלה1[[#This Row],[שעות]]*24*שער, IF(AND(מטבע="דולרים",VLOOKUP(טבלה1[[#This Row],[שם העבודה]],טבלה2[],3,FALSE)="₪"), VLOOKUP(טבלה1[[#This Row],[שם העבודה]],טבלה2[#All],2,FALSE)*טבלה1[[#This Row],[שעות]]*24/שער, VLOOKUP(טבלה1[[#This Row],[שם העבודה]],טבלה2[#All],2,FALSE)*טבלה1[[#This Row],[שעות]]*24))=0,"", IF(AND(מטבע="שקלים",VLOOKUP(טבלה1[[#This Row],[שם העבודה]],טבלה2[],3,FALSE)="$"), VLOOKUP(טבלה1[[#This Row],[שם העבודה]],טבלה2[#All],2,FALSE)*טבלה1[[#This Row],[שעות]]*24*שער, IF(AND(מטבע="דולרים",VLOOKUP(טבלה1[[#This Row],[שם העבודה]],טבלה2[],3,FALSE)="₪"), VLOOKUP(טבלה1[[#This Row],[שם העבודה]],טבלה2[#All],2,FALSE)*טבלה1[[#This Row],[שעות]]*24/שער, VLOOKUP(טבלה1[[#This Row],[שם העבודה]],טבלה2[#All],2,FALSE)*טבלה1[[#This Row],[שעות]]*24))),"")) ->  | L84: =IF(טבלה1[[#This Row],[תאריך]]="","",DATE(YEAR(טבלה1[[#This Row],[תאריך]]),MONTH(טבלה1[[#This Row],[תאריך]]),1)) -> 
B85: =IF(AND(טבלה1[[#This Row],[תאריך]]="",טבלה1[[#This Row],[התחלה]]="",טבלה1[[#This Row],[שם העבודה]]=""),"",ROW()-10) ->  | C85: =IF(טבלה1[[#This Row],[תאריך]]="","",IF(TEXT(טבלה1[[#This Row],[תאריך]],"DDD")="שבת","מוצ""ש",TEXT(טבלה1[[#This Row],[תאריך]],"DDD"))) ->  | J85: =IF(IF(AND(טבלה1[[#This Row],[התחלה]]="",טבלה1[[#This Row],[סיום]]<>""),"",IF(AND(טבלה1[[#This Row],[התחלה]]<>"",טבלה1[[#This Row],[סיום]]=""), SUM(MOD(MOD(NOW(),1)-טבלה1[[#This Row],[התחלה]],1),טבלה1[[#This Row],[הוספת דקות]],-טבלה1[[#This Row],[הפחתת דקות]]), SUM(MOD(טבלה1[[#This Row],[סיום]]-טבלה1[[#This Row],[התחלה]],1),טבלה1[[#This Row],[הוספת דקות]],-טבלה1[[#This Row],[הפחתת דקות]])))<=0,"", IF(AND(טבלה1[[#This Row],[התחלה]]="",טבלה1[[#This Row],[סיום]]<>""),"",IF(AND(טבלה1[[#This Row],[התחלה]]<>"",טבלה1[[#This Row],[סיום]]=""), SUM(MOD(MOD(NOW(),1)-טבלה1[[#This Row],[התחלה]],1),טבלה1[[#This Row],[הוספת דקות]],-טבלה1[[#This Row],[הפחתת דקות]]), SUM(MOD(טבלה1[[#This Row],[סיום]]-טבלה1[[#This Row],[התחלה]],1),טבלה1[[#This Row],[הוספת דקות]],-טבלה1[[#This Row],[הפחתת דקות]])))) ->  | K85: =IF(טבלה1[[#This Row],[שעות]]="","",IFERROR( IF(IF(AND(מטבע="שקלים",VLOOKUP(טבלה1[[#This Row],[שם העבודה]],טבלה2[],3,FALSE)="$"), VLOOKUP(טבלה1[[#This Row],[שם העבודה]],טבלה2[#All],2,FALSE)*טבלה1[[#This Row],[שעות]]*24*שער, IF(AND(מטבע="דולרים",VLOOKUP(טבלה1[[#This Row],[שם העבודה]],טבלה2[],3,FALSE)="₪"), VLOOKUP(טבלה1[[#This Row],[שם העבודה]],טבלה2[#All],2,FALSE)*טבלה1[[#This Row],[שעות]]*24/שער, VLOOKUP(טבלה1[[#This Row],[שם העבודה]],טבלה2[#All],2,FALSE)*טבלה1[[#This Row],[שעות]]*24))=0,"", IF(AND(מטבע="שקלים",VLOOKUP(טבלה1[[#This Row],[שם העבודה]],טבלה2[],3,FALSE)="$"), VLOOKUP(טבלה1[[#This Row],[שם העבודה]],טבלה2[#All],2,FALSE)*טבלה1[[#This Row],[שעות]]*24*שער, IF(AND(מטבע="דולרים",VLOOKUP(טבלה1[[#This Row],[שם העבודה]],טבלה2[],3,FALSE)="₪"), VLOOKUP(טבלה1[[#This Row],[שם העבודה]],טבלה2[#All],2,FALSE)*טבלה1[[#This Row],[שעות]]*24/שער, VLOOKUP(טבלה1[[#This Row],[שם העבודה]],טבלה2[#All],2,FALSE)*טבלה1[[#This Row],[שעות]]*24))),"")) ->  | L85: =IF(טבלה1[[#This Row],[תאריך]]="","",DATE(YEAR(טבלה1[[#This Row],[תאריך]]),MONTH(טבלה1[[#This Row],[תאריך]]),1)) -> 
B86: =IF(AND(טבלה1[[#This Row],[תאריך]]="",טבלה1[[#This Row],[התחלה]]="",טבלה1[[#This Row],[שם העבודה]]=""),"",ROW()-10) ->  | C86: =IF(טבלה1[[#This Row],[תאריך]]="","",IF(TEXT(טבלה1[[#This Row],[תאריך]],"DDD")="שבת","מוצ""ש",TEXT(טבלה1[[#This Row],[תאריך]],"DDD"))) ->  | J86: =IF(IF(AND(טבלה1[[#This Row],[התחלה]]="",טבלה1[[#This Row],[סיום]]<>""),"",IF(AND(טבלה1[[#This Row],[התחלה]]<>"",טבלה1[[#This Row],[סיום]]=""), SUM(MOD(MOD(NOW(),1)-טבלה1[[#This Row],[התחלה]],1),טבלה1[[#This Row],[הוספת דקות]],-טבלה1[[#This Row],[הפחתת דקות]]), SUM(MOD(טבלה1[[#This Row],[סיום]]-טבלה1[[#This Row],[התחלה]],1),טבלה1[[#This Row],[הוספת דקות]],-טבלה1[[#This Row],[הפחתת דקות]])))<=0,"", IF(AND(טבלה1[[#This Row],[התחלה]]="",טבלה1[[#This Row],[סיום]]<>""),"",IF(AND(טבלה1[[#This Row],[התחלה]]<>"",טבלה1[[#This Row],[סיום]]=""), SUM(MOD(MOD(NOW(),1)-טבלה1[[#This Row],[התחלה]],1),טבלה1[[#This Row],[הוספת דקות]],-טבלה1[[#This Row],[הפחתת דקות]]), SUM(MOD(טבלה1[[#This Row],[סיום]]-טבלה1[[#This Row],[התחלה]],1),טבלה1[[#This Row],[הוספת דקות]],-טבלה1[[#This Row],[הפחתת דקות]])))) ->  | K86: =IF(טבלה1[[#This Row],[שעות]]="","",IFERROR( IF(IF(AND(מטבע="שקלים",VLOOKUP(טבלה1[[#This Row],[שם העבודה]],טבלה2[],3,FALSE)="$"), VLOOKUP(טבלה1[[#This Row],[שם העבודה]],טבלה2[#All],2,FALSE)*טבלה1[[#This Row],[שעות]]*24*שער, IF(AND(מטבע="דולרים",VLOOKUP(טבלה1[[#This Row],[שם העבודה]],טבלה2[],3,FALSE)="₪"), VLOOKUP(טבלה1[[#This Row],[שם העבודה]],טבלה2[#All],2,FALSE)*טבלה1[[#This Row],[שעות]]*24/שער, VLOOKUP(טבלה1[[#This Row],[שם העבודה]],טבלה2[#All],2,FALSE)*טבלה1[[#This Row],[שעות]]*24))=0,"", IF(AND(מטבע="שקלים",VLOOKUP(טבלה1[[#This Row],[שם העבודה]],טבלה2[],3,FALSE)="$"), VLOOKUP(טבלה1[[#This Row],[שם העבודה]],טבלה2[#All],2,FALSE)*טבלה1[[#This Row],[שעות]]*24*שער, IF(AND(מטבע="דולרים",VLOOKUP(טבלה1[[#This Row],[שם העבודה]],טבלה2[],3,FALSE)="₪"), VLOOKUP(טבלה1[[#This Row],[שם העבודה]],טבלה2[#All],2,FALSE)*טבלה1[[#This Row],[שעות]]*24/שער, VLOOKUP(טבלה1[[#This Row],[שם העבודה]],טבלה2[#All],2,FALSE)*טבלה1[[#This Row],[שעות]]*24))),"")) ->  | L86: =IF(טבלה1[[#This Row],[תאריך]]="","",DATE(YEAR(טבלה1[[#This Row],[תאריך]]),MONTH(טבלה1[[#This Row],[תאריך]]),1)) -> 
B87: =IF(AND(טבלה1[[#This Row],[תאריך]]="",טבלה1[[#This Row],[התחלה]]="",טבלה1[[#This Row],[שם העבודה]]=""),"",ROW()-10) ->  | C87: =IF(טבלה1[[#This Row],[תאריך]]="","",IF(TEXT(טבלה1[[#This Row],[תאריך]],"DDD")="שבת","מוצ""ש",TEXT(טבלה1[[#This Row],[תאריך]],"DDD"))) ->  | J87: =IF(IF(AND(טבלה1[[#This Row],[התחלה]]="",טבלה1[[#This Row],[סיום]]<>""),"",IF(AND(טבלה1[[#This Row],[התחלה]]<>"",טבלה1[[#This Row],[סיום]]=""), SUM(MOD(MOD(NOW(),1)-טבלה1[[#This Row],[התחלה]],1),טבלה1[[#This Row],[הוספת דקות]],-טבלה1[[#This Row],[הפחתת דקות]]), SUM(MOD(טבלה1[[#This Row],[סיום]]-טבלה1[[#This Row],[התחלה]],1),טבלה1[[#This Row],[הוספת דקות]],-טבלה1[[#This Row],[הפחתת דקות]])))<=0,"", IF(AND(טבלה1[[#This Row],[התחלה]]="",טבלה1[[#This Row],[סיום]]<>""),"",IF(AND(טבלה1[[#This Row],[התחלה]]<>"",טבלה1[[#This Row],[סיום]]=""), SUM(MOD(MOD(NOW(),1)-טבלה1[[#This Row],[התחלה]],1),טבלה1[[#This Row],[הוספת דקות]],-טבלה1[[#This Row],[הפחתת דקות]]), SUM(MOD(טבלה1[[#This Row],[סיום]]-טבלה1[[#This Row],[התחלה]],1),טבלה1[[#This Row],[הוספת דקות]],-טבלה1[[#This Row],[הפחתת דקות]])))) ->  | K87: =IF(טבלה1[[#This Row],[שעות]]="","",IFERROR( IF(IF(AND(מטבע="שקלים",VLOOKUP(טבלה1[[#This Row],[שם העבודה]],טבלה2[],3,FALSE)="$"), VLOOKUP(טבלה1[[#This Row],[שם העבודה]],טבלה2[#All],2,FALSE)*טבלה1[[#This Row],[שעות]]*24*שער, IF(AND(מטבע="דולרים",VLOOKUP(טבלה1[[#This Row],[שם העבודה]],טבלה2[],3,FALSE)="₪"), VLOOKUP(טבלה1[[#This Row],[שם העבודה]],טבלה2[#All],2,FALSE)*טבלה1[[#This Row],[שעות]]*24/שער, VLOOKUP(טבלה1[[#This Row],[שם העבודה]],טבלה2[#All],2,FALSE)*טבלה1[[#This Row],[שעות]]*24))=0,"", IF(AND(מטבע="שקלים",VLOOKUP(טבלה1[[#This Row],[שם העבודה]],טבלה2[],3,FALSE)="$"), VLOOKUP(טבלה1[[#This Row],[שם העבודה]],טבלה2[#All],2,FALSE)*טבלה1[[#This Row],[שעות]]*24*שער, IF(AND(מטבע="דולרים",VLOOKUP(טבלה1[[#This Row],[שם העבודה]],טבלה2[],3,FALSE)="₪"), VLOOKUP(טבלה1[[#This Row],[שם העבודה]],טבלה2[#All],2,FALSE)*טבלה1[[#This Row],[שעות]]*24/שער, VLOOKUP(טבלה1[[#This Row],[שם העבודה]],טבלה2[#All],2,FALSE)*טבלה1[[#This Row],[שעות]]*24))),"")) ->  | L87: =IF(טבלה1[[#This Row],[תאריך]]="","",DATE(YEAR(טבלה1[[#This Row],[תאריך]]),MONTH(טבלה1[[#This Row],[תאריך]]),1)) -> 
B88: =IF(AND(טבלה1[[#This Row],[תאריך]]="",טבלה1[[#This Row],[התחלה]]="",טבלה1[[#This Row],[שם העבודה]]=""),"",ROW()-10) ->  | C88: =IF(טבלה1[[#This Row],[תאריך]]="","",IF(TEXT(טבלה1[[#This Row],[תאריך]],"DDD")="שבת","מוצ""ש",TEXT(טבלה1[[#This Row],[תאריך]],"DDD"))) ->  | J88: =IF(IF(AND(טבלה1[[#This Row],[התחלה]]="",טבלה1[[#This Row],[סיום]]<>""),"",IF(AND(טבלה1[[#This Row],[התחלה]]<>"",טבלה1[[#This Row],[סיום]]=""), SUM(MOD(MOD(NOW(),1)-טבלה1[[#This Row],[התחלה]],1),טבלה1[[#This Row],[הוספת דקות]],-טבלה1[[#This Row],[הפחתת דקות]]), SUM(MOD(טבלה1[[#This Row],[סיום]]-טבלה1[[#This Row],[התחלה]],1),טבלה1[[#This Row],[הוספת דקות]],-טבלה1[[#This Row],[הפחתת דקות]])))<=0,"", IF(AND(טבלה1[[#This Row],[התחלה]]="",טבלה1[[#This Row],[סיום]]<>""),"",IF(AND(טבלה1[[#This Row],[התחלה]]<>"",טבלה1[[#This Row],[סיום]]=""), SUM(MOD(MOD(NOW(),1)-טבלה1[[#This Row],[התחלה]],1),טבלה1[[#This Row],[הוספת דקות]],-טבלה1[[#This Row],[הפחתת דקות]]), SUM(MOD(טבלה1[[#This Row],[סיום]]-טבלה1[[#This Row],[התחלה]],1),טבלה1[[#This Row],[הוספת דקות]],-טבלה1[[#This Row],[הפחתת דקות]])))) ->  | K88: =IF(טבלה1[[#This Row],[שעות]]="","",IFERROR( IF(IF(AND(מטבע="שקלים",VLOOKUP(טבלה1[[#This Row],[שם העבודה]],טבלה2[],3,FALSE)="$"), VLOOKUP(טבלה1[[#This Row],[שם העבודה]],טבלה2[#All],2,FALSE)*טבלה1[[#This Row],[שעות]]*24*שער, IF(AND(מטבע="דולרים",VLOOKUP(טבלה1[[#This Row],[שם העבודה]],טבלה2[],3,FALSE)="₪"), VLOOKUP(טבלה1[[#This Row],[שם העבודה]],טבלה2[#All],2,FALSE)*טבלה1[[#This Row],[שעות]]*24/שער, VLOOKUP(טבלה1[[#This Row],[שם העבודה]],טבלה2[#All],2,FALSE)*טבלה1[[#This Row],[שעות]]*24))=0,"", IF(AND(מטבע="שקלים",VLOOKUP(טבלה1[[#This Row],[שם העבודה]],טבלה2[],3,FALSE)="$"), VLOOKUP(טבלה1[[#This Row],[שם העבודה]],טבלה2[#All],2,FALSE)*טבלה1[[#This Row],[שעות]]*24*שער, IF(AND(מטבע="דולרים",VLOOKUP(טבלה1[[#This Row],[שם העבודה]],טבלה2[],3,FALSE)="₪"), VLOOKUP(טבלה1[[#This Row],[שם העבודה]],טבלה2[#All],2,FALSE)*טבלה1[[#This Row],[שעות]]*24/שער, VLOOKUP(טבלה1[[#This Row],[שם העבודה]],טבלה2[#All],2,FALSE)*טבלה1[[#This Row],[שעות]]*24))),"")) ->  | L88: =IF(טבלה1[[#This Row],[תאריך]]="","",DATE(YEAR(טבלה1[[#This Row],[תאריך]]),MONTH(טבלה1[[#This Row],[תאריך]]),1)) -> 
B89: =IF(AND(טבלה1[[#This Row],[תאריך]]="",טבלה1[[#This Row],[התחלה]]="",טבלה1[[#This Row],[שם העבודה]]=""),"",ROW()-10) ->  | C89: =IF(טבלה1[[#This Row],[תאריך]]="","",IF(TEXT(טבלה1[[#This Row],[תאריך]],"DDD")="שבת","מוצ""ש",TEXT(טבלה1[[#This Row],[תאריך]],"DDD"))) ->  | J89: =IF(IF(AND(טבלה1[[#This Row],[התחלה]]="",טבלה1[[#This Row],[סיום]]<>""),"",IF(AND(טבלה1[[#This Row],[התחלה]]<>"",טבלה1[[#This Row],[סיום]]=""), SUM(MOD(MOD(NOW(),1)-טבלה1[[#This Row],[התחלה]],1),טבלה1[[#This Row],[הוספת דקות]],-טבלה1[[#This Row],[הפחתת דקות]]), SUM(MOD(טבלה1[[#This Row],[סיום]]-טבלה1[[#This Row],[התחלה]],1),טבלה1[[#This Row],[הוספת דקות]],-טבלה1[[#This Row],[הפחתת דקות]])))<=0,"", IF(AND(טבלה1[[#This Row],[התחלה]]="",טבלה1[[#This Row],[סיום]]<>""),"",IF(AND(טבלה1[[#This Row],[התחלה]]<>"",טבלה1[[#This Row],[סיום]]=""), SUM(MOD(MOD(NOW(),1)-טבלה1[[#This Row],[התחלה]],1),טבלה1[[#This Row],[הוספת דקות]],-טבלה1[[#This Row],[הפחתת דקות]]), SUM(MOD(טבלה1[[#This Row],[סיום]]-טבלה1[[#This Row],[התחלה]],1),טבלה1[[#This Row],[הוספת דקות]],-טבלה1[[#This Row],[הפחתת דקות]])))) ->  | K89: =IF(טבלה1[[#This Row],[שעות]]="","",IFERROR( IF(IF(AND(מטבע="שקלים",VLOOKUP(טבלה1[[#This Row],[שם העבודה]],טבלה2[],3,FALSE)="$"), VLOOKUP(טבלה1[[#This Row],[שם העבודה]],טבלה2[#All],2,FALSE)*טבלה1[[#This Row],[שעות]]*24*שער, IF(AND(מטבע="דולרים",VLOOKUP(טבלה1[[#This Row],[שם העבודה]],טבלה2[],3,FALSE)="₪"), VLOOKUP(טבלה1[[#This Row],[שם העבודה]],טבלה2[#All],2,FALSE)*טבלה1[[#This Row],[שעות]]*24/שער, VLOOKUP(טבלה1[[#This Row],[שם העבודה]],טבלה2[#All],2,FALSE)*טבלה1[[#This Row],[שעות]]*24))=0,"", IF(AND(מטבע="שקלים",VLOOKUP(טבלה1[[#This Row],[שם העבודה]],טבלה2[],3,FALSE)="$"), VLOOKUP(טבלה1[[#This Row],[שם העבודה]],טבלה2[#All],2,FALSE)*טבלה1[[#This Row],[שעות]]*24*שער, IF(AND(מטבע="דולרים",VLOOKUP(טבלה1[[#This Row],[שם העבודה]],טבלה2[],3,FALSE)="₪"), VLOOKUP(טבלה1[[#This Row],[שם העבודה]],טבלה2[#All],2,FALSE)*טבלה1[[#This Row],[שעות]]*24/שער, VLOOKUP(טבלה1[[#This Row],[שם העבודה]],טבלה2[#All],2,FALSE)*טבלה1[[#This Row],[שעות]]*24))),"")) ->  | L89: =IF(טבלה1[[#This Row],[תאריך]]="","",DATE(YEAR(טבלה1[[#This Row],[תאריך]]),MONTH(טבלה1[[#This Row],[תאריך]]),1)) -> 
B90: =IF(AND(טבלה1[[#This Row],[תאריך]]="",טבלה1[[#This Row],[התחלה]]="",טבלה1[[#This Row],[שם העבודה]]=""),"",ROW()-10) ->  | C90: =IF(טבלה1[[#This Row],[תאריך]]="","",IF(TEXT(טבלה1[[#This Row],[תאריך]],"DDD")="שבת","מוצ""ש",TEXT(טבלה1[[#This Row],[תאריך]],"DDD"))) ->  | J90: =IF(IF(AND(טבלה1[[#This Row],[התחלה]]="",טבלה1[[#This Row],[סיום]]<>""),"",IF(AND(טבלה1[[#This Row],[התחלה]]<>"",טבלה1[[#This Row],[סיום]]=""), SUM(MOD(MOD(NOW(),1)-טבלה1[[#This Row],[התחלה]],1),טבלה1[[#This Row],[הוספת דקות]],-טבלה1[[#This Row],[הפחתת דקות]]), SUM(MOD(טבלה1[[#This Row],[סיום]]-טבלה1[[#This Row],[התחלה]],1),טבלה1[[#This Row],[הוספת דקות]],-טבלה1[[#This Row],[הפחתת דקות]])))<=0,"", IF(AND(טבלה1[[#This Row],[התחלה]]="",טבלה1[[#This Row],[סיום]]<>""),"",IF(AND(טבלה1[[#This Row],[התחלה]]<>"",טבלה1[[#This Row],[סיום]]=""), SUM(MOD(MOD(NOW(),1)-טבלה1[[#This Row],[התחלה]],1),טבלה1[[#This Row],[הוספת דקות]],-טבלה1[[#This Row],[הפחתת דקות]]), SUM(MOD(טבלה1[[#This Row],[סיום]]-טבלה1[[#This Row],[התחלה]],1),טבלה1[[#This Row],[הוספת דקות]],-טבלה1[[#This Row],[הפחתת דקות]])))) ->  | K90: =IF(טבלה1[[#This Row],[שעות]]="","",IFERROR( IF(IF(AND(מטבע="שקלים",VLOOKUP(טבלה1[[#This Row],[שם העבודה]],טבלה2[],3,FALSE)="$"), VLOOKUP(טבלה1[[#This Row],[שם העבודה]],טבלה2[#All],2,FALSE)*טבלה1[[#This Row],[שעות]]*24*שער, IF(AND(מטבע="דולרים",VLOOKUP(טבלה1[[#This Row],[שם העבודה]],טבלה2[],3,FALSE)="₪"), VLOOKUP(טבלה1[[#This Row],[שם העבודה]],טבלה2[#All],2,FALSE)*טבלה1[[#This Row],[שעות]]*24/שער, VLOOKUP(טבלה1[[#This Row],[שם העבודה]],טבלה2[#All],2,FALSE)*טבלה1[[#This Row],[שעות]]*24))=0,"", IF(AND(מטבע="שקלים",VLOOKUP(טבלה1[[#This Row],[שם העבודה]],טבלה2[],3,FALSE)="$"), VLOOKUP(טבלה1[[#This Row],[שם העבודה]],טבלה2[#All],2,FALSE)*טבלה1[[#This Row],[שעות]]*24*שער, IF(AND(מטבע="דולרים",VLOOKUP(טבלה1[[#This Row],[שם העבודה]],טבלה2[],3,FALSE)="₪"), VLOOKUP(טבלה1[[#This Row],[שם העבודה]],טבלה2[#All],2,FALSE)*טבלה1[[#This Row],[שעות]]*24/שער, VLOOKUP(טבלה1[[#This Row],[שם העבודה]],טבלה2[#All],2,FALSE)*טבלה1[[#This Row],[שעות]]*24))),"")) ->  | L90: =IF(טבלה1[[#This Row],[תאריך]]="","",DATE(YEAR(טבלה1[[#This Row],[תאריך]]),MONTH(טבלה1[[#This Row],[תאריך]]),1)) -> 
B91: =IF(AND(טבלה1[[#This Row],[תאריך]]="",טבלה1[[#This Row],[התחלה]]="",טבלה1[[#This Row],[שם העבודה]]=""),"",ROW()-10) ->  | C91: =IF(טבלה1[[#This Row],[תאריך]]="","",IF(TEXT(טבלה1[[#This Row],[תאריך]],"DDD")="שבת","מוצ""ש",TEXT(טבלה1[[#This Row],[תאריך]],"DDD"))) ->  | J91: =IF(IF(AND(טבלה1[[#This Row],[התחלה]]="",טבלה1[[#This Row],[סיום]]<>""),"",IF(AND(טבלה1[[#This Row],[התחלה]]<>"",טבלה1[[#This Row],[סיום]]=""), SUM(MOD(MOD(NOW(),1)-טבלה1[[#This Row],[התחלה]],1),טבלה1[[#This Row],[הוספת דקות]],-טבלה1[[#This Row],[הפחתת דקות]]), SUM(MOD(טבלה1[[#This Row],[סיום]]-טבלה1[[#This Row],[התחלה]],1),טבלה1[[#This Row],[הוספת דקות]],-טבלה1[[#This Row],[הפחתת דקות]])))<=0,"", IF(AND(טבלה1[[#This Row],[התחלה]]="",טבלה1[[#This Row],[סיום]]<>""),"",IF(AND(טבלה1[[#This Row],[התחלה]]<>"",טבלה1[[#This Row],[סיום]]=""), SUM(MOD(MOD(NOW(),1)-טבלה1[[#This Row],[התחלה]],1),טבלה1[[#This Row],[הוספת דקות]],-טבלה1[[#This Row],[הפחתת דקות]]), SUM(MOD(טבלה1[[#This Row],[סיום]]-טבלה1[[#This Row],[התחלה]],1),טבלה1[[#This Row],[הוספת דקות]],-טבלה1[[#This Row],[הפחתת דקות]])))) ->  | K91: =IF(טבלה1[[#This Row],[שעות]]="","",IFERROR( IF(IF(AND(מטבע="שקלים",VLOOKUP(טבלה1[[#This Row],[שם העבודה]],טבלה2[],3,FALSE)="$"), VLOOKUP(טבלה1[[#This Row],[שם העבודה]],טבלה2[#All],2,FALSE)*טבלה1[[#This Row],[שעות]]*24*שער, IF(AND(מטבע="דולרים",VLOOKUP(טבלה1[[#This Row],[שם העבודה]],טבלה2[],3,FALSE)="₪"), VLOOKUP(טבלה1[[#This Row],[שם העבודה]],טבלה2[#All],2,FALSE)*טבלה1[[#This Row],[שעות]]*24/שער, VLOOKUP(טבלה1[[#This Row],[שם העבודה]],טבלה2[#All],2,FALSE)*טבלה1[[#This Row],[שעות]]*24))=0,"", IF(AND(מטבע="שקלים",VLOOKUP(טבלה1[[#This Row],[שם העבודה]],טבלה2[],3,FALSE)="$"), VLOOKUP(טבלה1[[#This Row],[שם העבודה]],טבלה2[#All],2,FALSE)*טבלה1[[#This Row],[שעות]]*24*שער, IF(AND(מטבע="דולרים",VLOOKUP(טבלה1[[#This Row],[שם העבודה]],טבלה2[],3,FALSE)="₪"), VLOOKUP(טבלה1[[#This Row],[שם העבודה]],טבלה2[#All],2,FALSE)*טבלה1[[#This Row],[שעות]]*24/שער, VLOOKUP(טבלה1[[#This Row],[שם העבודה]],טבלה2[#All],2,FALSE)*טבלה1[[#This Row],[שעות]]*24))),"")) ->  | L91: =IF(טבלה1[[#This Row],[תאריך]]="","",DATE(YEAR(טבלה1[[#This Row],[תאריך]]),MONTH(טבלה1[[#This Row],[תאריך]]),1)) -> 
B92: =IF(AND(טבלה1[[#This Row],[תאריך]]="",טבלה1[[#This Row],[התחלה]]="",טבלה1[[#This Row],[שם העבודה]]=""),"",ROW()-10) ->  | C92: =IF(טבלה1[[#This Row],[תאריך]]="","",IF(TEXT(טבלה1[[#This Row],[תאריך]],"DDD")="שבת","מוצ""ש",TEXT(טבלה1[[#This Row],[תאריך]],"DDD"))) ->  | J92: =IF(IF(AND(טבלה1[[#This Row],[התחלה]]="",טבלה1[[#This Row],[סיום]]<>""),"",IF(AND(טבלה1[[#This Row],[התחלה]]<>"",טבלה1[[#This Row],[סיום]]=""), SUM(MOD(MOD(NOW(),1)-טבלה1[[#This Row],[התחלה]],1),טבלה1[[#This Row],[הוספת דקות]],-טבלה1[[#This Row],[הפחתת דקות]]), SUM(MOD(טבלה1[[#This Row],[סיום]]-טבלה1[[#This Row],[התחלה]],1),טבלה1[[#This Row],[הוספת דקות]],-טבלה1[[#This Row],[הפחתת דקות]])))<=0,"", IF(AND(טבלה1[[#This Row],[התחלה]]="",טבלה1[[#This Row],[סיום]]<>""),"",IF(AND(טבלה1[[#This Row],[התחלה]]<>"",טבלה1[[#This Row],[סיום]]=""), SUM(MOD(MOD(NOW(),1)-טבלה1[[#This Row],[התחלה]],1),טבלה1[[#This Row],[הוספת דקות]],-טבלה1[[#This Row],[הפחתת דקות]]), SUM(MOD(טבלה1[[#This Row],[סיום]]-טבלה1[[#This Row],[התחלה]],1),טבלה1[[#This Row],[הוספת דקות]],-טבלה1[[#This Row],[הפחתת דקות]])))) ->  | K92: =IF(טבלה1[[#This Row],[שעות]]="","",IFERROR( IF(IF(AND(מטבע="שקלים",VLOOKUP(טבלה1[[#This Row],[שם העבודה]],טבלה2[],3,FALSE)="$"), VLOOKUP(טבלה1[[#This Row],[שם העבודה]],טבלה2[#All],2,FALSE)*טבלה1[[#This Row],[שעות]]*24*שער, IF(AND(מטבע="דולרים",VLOOKUP(טבלה1[[#This Row],[שם העבודה]],טבלה2[],3,FALSE)="₪"), VLOOKUP(טבלה1[[#This Row],[שם העבודה]],טבלה2[#All],2,FALSE)*טבלה1[[#This Row],[שעות]]*24/שער, VLOOKUP(טבלה1[[#This Row],[שם העבודה]],טבלה2[#All],2,FALSE)*טבלה1[[#This Row],[שעות]]*24))=0,"", IF(AND(מטבע="שקלים",VLOOKUP(טבלה1[[#This Row],[שם העבודה]],טבלה2[],3,FALSE)="$"), VLOOKUP(טבלה1[[#This Row],[שם העבודה]],טבלה2[#All],2,FALSE)*טבלה1[[#This Row],[שעות]]*24*שער, IF(AND(מטבע="דולרים",VLOOKUP(טבלה1[[#This Row],[שם העבודה]],טבלה2[],3,FALSE)="₪"), VLOOKUP(טבלה1[[#This Row],[שם העבודה]],טבלה2[#All],2,FALSE)*טבלה1[[#This Row],[שעות]]*24/שער, VLOOKUP(טבלה1[[#This Row],[שם העבודה]],טבלה2[#All],2,FALSE)*טבלה1[[#This Row],[שעות]]*24))),"")) ->  | L92: =IF(טבלה1[[#This Row],[תאריך]]="","",DATE(YEAR(טבלה1[[#This Row],[תאריך]]),MONTH(טבלה1[[#This Row],[תאריך]]),1)) -> 
B93: =IF(AND(טבלה1[[#This Row],[תאריך]]="",טבלה1[[#This Row],[התחלה]]="",טבלה1[[#This Row],[שם העבודה]]=""),"",ROW()-10) ->  | C93: =IF(טבלה1[[#This Row],[תאריך]]="","",IF(TEXT(טבלה1[[#This Row],[תאריך]],"DDD")="שבת","מוצ""ש",TEXT(טבלה1[[#This Row],[תאריך]],"DDD"))) ->  | J93: =IF(IF(AND(טבלה1[[#This Row],[התחלה]]="",טבלה1[[#This Row],[סיום]]<>""),"",IF(AND(טבלה1[[#This Row],[התחלה]]<>"",טבלה1[[#This Row],[סיום]]=""), SUM(MOD(MOD(NOW(),1)-טבלה1[[#This Row],[התחלה]],1),טבלה1[[#This Row],[הוספת דקות]],-טבלה1[[#This Row],[הפחתת דקות]]), SUM(MOD(טבלה1[[#This Row],[סיום]]-טבלה1[[#This Row],[התחלה]],1),טבלה1[[#This Row],[הוספת דקות]],-טבלה1[[#This Row],[הפחתת דקות]])))<=0,"", IF(AND(טבלה1[[#This Row],[התחלה]]="",טבלה1[[#This Row],[סיום]]<>""),"",IF(AND(טבלה1[[#This Row],[התחלה]]<>"",טבלה1[[#This Row],[סיום]]=""), SUM(MOD(MOD(NOW(),1)-טבלה1[[#This Row],[התחלה]],1),טבלה1[[#This Row],[הוספת דקות]],-טבלה1[[#This Row],[הפחתת דקות]]), SUM(MOD(טבלה1[[#This Row],[סיום]]-טבלה1[[#This Row],[התחלה]],1),טבלה1[[#This Row],[הוספת דקות]],-טבלה1[[#This Row],[הפחתת דקות]])))) ->  | K93: =IF(טבלה1[[#This Row],[שעות]]="","",IFERROR( IF(IF(AND(מטבע="שקלים",VLOOKUP(טבלה1[[#This Row],[שם העבודה]],טבלה2[],3,FALSE)="$"), VLOOKUP(טבלה1[[#This Row],[שם העבודה]],טבלה2[#All],2,FALSE)*טבלה1[[#This Row],[שעות]]*24*שער, IF(AND(מטבע="דולרים",VLOOKUP(טבלה1[[#This Row],[שם העבודה]],טבלה2[],3,FALSE)="₪"), VLOOKUP(טבלה1[[#This Row],[שם העבודה]],טבלה2[#All],2,FALSE)*טבלה1[[#This Row],[שעות]]*24/שער, VLOOKUP(טבלה1[[#This Row],[שם העבודה]],טבלה2[#All],2,FALSE)*טבלה1[[#This Row],[שעות]]*24))=0,"", IF(AND(מטבע="שקלים",VLOOKUP(טבלה1[[#This Row],[שם העבודה]],טבלה2[],3,FALSE)="$"), VLOOKUP(טבלה1[[#This Row],[שם העבודה]],טבלה2[#All],2,FALSE)*טבלה1[[#This Row],[שעות]]*24*שער, IF(AND(מטבע="דולרים",VLOOKUP(טבלה1[[#This Row],[שם העבודה]],טבלה2[],3,FALSE)="₪"), VLOOKUP(טבלה1[[#This Row],[שם העבודה]],טבלה2[#All],2,FALSE)*טבלה1[[#This Row],[שעות]]*24/שער, VLOOKUP(טבלה1[[#This Row],[שם העבודה]],טבלה2[#All],2,FALSE)*טבלה1[[#This Row],[שעות]]*24))),"")) ->  | L93: =IF(טבלה1[[#This Row],[תאריך]]="","",DATE(YEAR(טבלה1[[#This Row],[תאריך]]),MONTH(טבלה1[[#This Row],[תאריך]]),1)) -> 
B94: =IF(AND(טבלה1[[#This Row],[תאריך]]="",טבלה1[[#This Row],[התחלה]]="",טבלה1[[#This Row],[שם העבודה]]=""),"",ROW()-10) ->  | C94: =IF(טבלה1[[#This Row],[תאריך]]="","",IF(TEXT(טבלה1[[#This Row],[תאריך]],"DDD")="שבת","מוצ""ש",TEXT(טבלה1[[#This Row],[תאריך]],"DDD"))) ->  | J94: =IF(IF(AND(טבלה1[[#This Row],[התחלה]]="",טבלה1[[#This Row],[סיום]]<>""),"",IF(AND(טבלה1[[#This Row],[התחלה]]<>"",טבלה1[[#This Row],[סיום]]=""), SUM(MOD(MOD(NOW(),1)-טבלה1[[#This Row],[התחלה]],1),טבלה1[[#This Row],[הוספת דקות]],-טבלה1[[#This Row],[הפחתת דקות]]), SUM(MOD(טבלה1[[#This Row],[סיום]]-טבלה1[[#This Row],[התחלה]],1),טבלה1[[#This Row],[הוספת דקות]],-טבלה1[[#This Row],[הפחתת דקות]])))<=0,"", IF(AND(טבלה1[[#This Row],[התחלה]]="",טבלה1[[#This Row],[סיום]]<>""),"",IF(AND(טבלה1[[#This Row],[התחלה]]<>"",טבלה1[[#This Row],[סיום]]=""), SUM(MOD(MOD(NOW(),1)-טבלה1[[#This Row],[התחלה]],1),טבלה1[[#This Row],[הוספת דקות]],-טבלה1[[#This Row],[הפחתת דקות]]), SUM(MOD(טבלה1[[#This Row],[סיום]]-טבלה1[[#This Row],[התחלה]],1),טבלה1[[#This Row],[הוספת דקות]],-טבלה1[[#This Row],[הפחתת דקות]])))) ->  | K94: =IF(טבלה1[[#This Row],[שעות]]="","",IFERROR( IF(IF(AND(מטבע="שקלים",VLOOKUP(טבלה1[[#This Row],[שם העבודה]],טבלה2[],3,FALSE)="$"), VLOOKUP(טבלה1[[#This Row],[שם העבודה]],טבלה2[#All],2,FALSE)*טבלה1[[#This Row],[שעות]]*24*שער, IF(AND(מטבע="דולרים",VLOOKUP(טבלה1[[#This Row],[שם העבודה]],טבלה2[],3,FALSE)="₪"), VLOOKUP(טבלה1[[#This Row],[שם העבודה]],טבלה2[#All],2,FALSE)*טבלה1[[#This Row],[שעות]]*24/שער, VLOOKUP(טבלה1[[#This Row],[שם העבודה]],טבלה2[#All],2,FALSE)*טבלה1[[#This Row],[שעות]]*24))=0,"", IF(AND(מטבע="שקלים",VLOOKUP(טבלה1[[#This Row],[שם העבודה]],טבלה2[],3,FALSE)="$"), VLOOKUP(טבלה1[[#This Row],[שם העבודה]],טבלה2[#All],2,FALSE)*טבלה1[[#This Row],[שעות]]*24*שער, IF(AND(מטבע="דולרים",VLOOKUP(טבלה1[[#This Row],[שם העבודה]],טבלה2[],3,FALSE)="₪"), VLOOKUP(טבלה1[[#This Row],[שם העבודה]],טבלה2[#All],2,FALSE)*טבלה1[[#This Row],[שעות]]*24/שער, VLOOKUP(טבלה1[[#This Row],[שם העבודה]],טבלה2[#All],2,FALSE)*טבלה1[[#This Row],[שעות]]*24))),"")) ->  | L94: =IF(טבלה1[[#This Row],[תאריך]]="","",DATE(YEAR(טבלה1[[#This Row],[תאריך]]),MONTH(טבלה1[[#This Row],[תאריך]]),1)) -> 
B95: =IF(AND(טבלה1[[#This Row],[תאריך]]="",טבלה1[[#This Row],[התחלה]]="",טבלה1[[#This Row],[שם העבודה]]=""),"",ROW()-10) ->  | C95: =IF(טבלה1[[#This Row],[תאריך]]="","",IF(TEXT(טבלה1[[#This Row],[תאריך]],"DDD")="שבת","מוצ""ש",TEXT(טבלה1[[#This Row],[תאריך]],"DDD"))) ->  | J95: =IF(IF(AND(טבלה1[[#This Row],[התחלה]]="",טבלה1[[#This Row],[סיום]]<>""),"",IF(AND(טבלה1[[#This Row],[התחלה]]<>"",טבלה1[[#This Row],[סיום]]=""), SUM(MOD(MOD(NOW(),1)-טבלה1[[#This Row],[התחלה]],1),טבלה1[[#This Row],[הוספת דקות]],-טבלה1[[#This Row],[הפחתת דקות]]), SUM(MOD(טבלה1[[#This Row],[סיום]]-טבלה1[[#This Row],[התחלה]],1),טבלה1[[#This Row],[הוספת דקות]],-טבלה1[[#This Row],[הפחתת דקות]])))<=0,"", IF(AND(טבלה1[[#This Row],[התחלה]]="",טבלה1[[#This Row],[סיום]]<>""),"",IF(AND(טבלה1[[#This Row],[התחלה]]<>"",טבלה1[[#This Row],[סיום]]=""), SUM(MOD(MOD(NOW(),1)-טבלה1[[#This Row],[התחלה]],1),טבלה1[[#This Row],[הוספת דקות]],-טבלה1[[#This Row],[הפחתת דקות]]), SUM(MOD(טבלה1[[#This Row],[סיום]]-טבלה1[[#This Row],[התחלה]],1),טבלה1[[#This Row],[הוספת דקות]],-טבלה1[[#This Row],[הפחתת דקות]])))) ->  | K95: =IF(טבלה1[[#This Row],[שעות]]="","",IFERROR( IF(IF(AND(מטבע="שקלים",VLOOKUP(טבלה1[[#This Row],[שם העבודה]],טבלה2[],3,FALSE)="$"), VLOOKUP(טבלה1[[#This Row],[שם העבודה]],טבלה2[#All],2,FALSE)*טבלה1[[#This Row],[שעות]]*24*שער, IF(AND(מטבע="דולרים",VLOOKUP(טבלה1[[#This Row],[שם העבודה]],טבלה2[],3,FALSE)="₪"), VLOOKUP(טבלה1[[#This Row],[שם העבודה]],טבלה2[#All],2,FALSE)*טבלה1[[#This Row],[שעות]]*24/שער, VLOOKUP(טבלה1[[#This Row],[שם העבודה]],טבלה2[#All],2,FALSE)*טבלה1[[#This Row],[שעות]]*24))=0,"", IF(AND(מטבע="שקלים",VLOOKUP(טבלה1[[#This Row],[שם העבודה]],טבלה2[],3,FALSE)="$"), VLOOKUP(טבלה1[[#This Row],[שם העבודה]],טבלה2[#All],2,FALSE)*טבלה1[[#This Row],[שעות]]*24*שער, IF(AND(מטבע="דולרים",VLOOKUP(טבלה1[[#This Row],[שם העבודה]],טבלה2[],3,FALSE)="₪"), VLOOKUP(טבלה1[[#This Row],[שם העבודה]],טבלה2[#All],2,FALSE)*טבלה1[[#This Row],[שעות]]*24/שער, VLOOKUP(טבלה1[[#This Row],[שם העבודה]],טבלה2[#All],2,FALSE)*טבלה1[[#This Row],[שעות]]*24))),"")) ->  | L95: =IF(טבלה1[[#This Row],[תאריך]]="","",DATE(YEAR(טבלה1[[#This Row],[תאריך]]),MONTH(טבלה1[[#This Row],[תאריך]]),1)) -> 
B96: =IF(AND(טבלה1[[#This Row],[תאריך]]="",טבלה1[[#This Row],[התחלה]]="",טבלה1[[#This Row],[שם העבודה]]=""),"",ROW()-10) ->  | C96: =IF(טבלה1[[#This Row],[תאריך]]="","",IF(TEXT(טבלה1[[#This Row],[תאריך]],"DDD")="שבת","מוצ""ש",TEXT(טבלה1[[#This Row],[תאריך]],"DDD"))) ->  | J96: =IF(IF(AND(טבלה1[[#This Row],[התחלה]]="",טבלה1[[#This Row],[סיום]]<>""),"",IF(AND(טבלה1[[#This Row],[התחלה]]<>"",טבלה1[[#This Row],[סיום]]=""), SUM(MOD(MOD(NOW(),1)-טבלה1[[#This Row],[התחלה]],1),טבלה1[[#This Row],[הוספת דקות]],-טבלה1[[#This Row],[הפחתת דקות]]), SUM(MOD(טבלה1[[#This Row],[סיום]]-טבלה1[[#This Row],[התחלה]],1),טבלה1[[#This Row],[הוספת דקות]],-טבלה1[[#This Row],[הפחתת דקות]])))<=0,"", IF(AND(טבלה1[[#This Row],[התחלה]]="",טבלה1[[#This Row],[סיום]]<>""),"",IF(AND(טבלה1[[#This Row],[התחלה]]<>"",טבלה1[[#This Row],[סיום]]=""), SUM(MOD(MOD(NOW(),1)-טבלה1[[#This Row],[התחלה]],1),טבלה1[[#This Row],[הוספת דקות]],-טבלה1[[#This Row],[הפחתת דקות]]), SUM(MOD(טבלה1[[#This Row],[סיום]]-טבלה1[[#This Row],[התחלה]],1),טבלה1[[#This Row],[הוספת דקות]],-טבלה1[[#This Row],[הפחתת דקות]])))) ->  | K96: =IF(טבלה1[[#This Row],[שעות]]="","",IFERROR( IF(IF(AND(מטבע="שקלים",VLOOKUP(טבלה1[[#This Row],[שם העבודה]],טבלה2[],3,FALSE)="$"), VLOOKUP(טבלה1[[#This Row],[שם העבודה]],טבלה2[#All],2,FALSE)*טבלה1[[#This Row],[שעות]]*24*שער, IF(AND(מטבע="דולרים",VLOOKUP(טבלה1[[#This Row],[שם העבודה]],טבלה2[],3,FALSE)="₪"), VLOOKUP(טבלה1[[#This Row],[שם העבודה]],טבלה2[#All],2,FALSE)*טבלה1[[#This Row],[שעות]]*24/שער, VLOOKUP(טבלה1[[#This Row],[שם העבודה]],טבלה2[#All],2,FALSE)*טבלה1[[#This Row],[שעות]]*24))=0,"", IF(AND(מטבע="שקלים",VLOOKUP(טבלה1[[#This Row],[שם העבודה]],טבלה2[],3,FALSE)="$"), VLOOKUP(טבלה1[[#This Row],[שם העבודה]],טבלה2[#All],2,FALSE)*טבלה1[[#This Row],[שעות]]*24*שער, IF(AND(מטבע="דולרים",VLOOKUP(טבלה1[[#This Row],[שם העבודה]],טבלה2[],3,FALSE)="₪"), VLOOKUP(טבלה1[[#This Row],[שם העבודה]],טבלה2[#All],2,FALSE)*טבלה1[[#This Row],[שעות]]*24/שער, VLOOKUP(טבלה1[[#This Row],[שם העבודה]],טבלה2[#All],2,FALSE)*טבלה1[[#This Row],[שעות]]*24))),"")) ->  | L96: =IF(טבלה1[[#This Row],[תאריך]]="","",DATE(YEAR(טבלה1[[#This Row],[תאריך]]),MONTH(טבלה1[[#This Row],[תאריך]]),1)) -> 
B97: =IF(AND(טבלה1[[#This Row],[תאריך]]="",טבלה1[[#This Row],[התחלה]]="",טבלה1[[#This Row],[שם העבודה]]=""),"",ROW()-10) ->  | C97: =IF(טבלה1[[#This Row],[תאריך]]="","",IF(TEXT(טבלה1[[#This Row],[תאריך]],"DDD")="שבת","מוצ""ש",TEXT(טבלה1[[#This Row],[תאריך]],"DDD"))) ->  | J97: =IF(IF(AND(טבלה1[[#This Row],[התחלה]]="",טבלה1[[#This Row],[סיום]]<>""),"",IF(AND(טבלה1[[#This Row],[התחלה]]<>"",טבלה1[[#This Row],[סיום]]=""), SUM(MOD(MOD(NOW(),1)-טבלה1[[#This Row],[התחלה]],1),טבלה1[[#This Row],[הוספת דקות]],-טבלה1[[#This Row],[הפחתת דקות]]), SUM(MOD(טבלה1[[#This Row],[סיום]]-טבלה1[[#This Row],[התחלה]],1),טבלה1[[#This Row],[הוספת דקות]],-טבלה1[[#This Row],[הפחתת דקות]])))<=0,"", IF(AND(טבלה1[[#This Row],[התחלה]]="",טבלה1[[#This Row],[סיום]]<>""),"",IF(AND(טבלה1[[#This Row],[התחלה]]<>"",טבלה1[[#This Row],[סיום]]=""), SUM(MOD(MOD(NOW(),1)-טבלה1[[#This Row],[התחלה]],1),טבלה1[[#This Row],[הוספת דקות]],-טבלה1[[#This Row],[הפחתת דקות]]), SUM(MOD(טבלה1[[#This Row],[סיום]]-טבלה1[[#This Row],[התחלה]],1),טבלה1[[#This Row],[הוספת דקות]],-טבלה1[[#This Row],[הפחתת דקות]])))) ->  | K97: =IF(טבלה1[[#This Row],[שעות]]="","",IFERROR( IF(IF(AND(מטבע="שקלים",VLOOKUP(טבלה1[[#This Row],[שם העבודה]],טבלה2[],3,FALSE)="$"), VLOOKUP(טבלה1[[#This Row],[שם העבודה]],טבלה2[#All],2,FALSE)*טבלה1[[#This Row],[שעות]]*24*שער, IF(AND(מטבע="דולרים",VLOOKUP(טבלה1[[#This Row],[שם העבודה]],טבלה2[],3,FALSE)="₪"), VLOOKUP(טבלה1[[#This Row],[שם העבודה]],טבלה2[#All],2,FALSE)*טבלה1[[#This Row],[שעות]]*24/שער, VLOOKUP(טבלה1[[#This Row],[שם העבודה]],טבלה2[#All],2,FALSE)*טבלה1[[#This Row],[שעות]]*24))=0,"", IF(AND(מטבע="שקלים",VLOOKUP(טבלה1[[#This Row],[שם העבודה]],טבלה2[],3,FALSE)="$"), VLOOKUP(טבלה1[[#This Row],[שם העבודה]],טבלה2[#All],2,FALSE)*טבלה1[[#This Row],[שעות]]*24*שער, IF(AND(מטבע="דולרים",VLOOKUP(טבלה1[[#This Row],[שם העבודה]],טבלה2[],3,FALSE)="₪"), VLOOKUP(טבלה1[[#This Row],[שם העבודה]],טבלה2[#All],2,FALSE)*טבלה1[[#This Row],[שעות]]*24/שער, VLOOKUP(טבלה1[[#This Row],[שם העבודה]],טבלה2[#All],2,FALSE)*טבלה1[[#This Row],[שעות]]*24))),"")) ->  | L97: =IF(טבלה1[[#This Row],[תאריך]]="","",DATE(YEAR(טבלה1[[#This Row],[תאריך]]),MONTH(טבלה1[[#This Row],[תאריך]]),1)) -> 
